Workbook

Sheet PRESENTACION
A29: Autoridades: | G29: Esta publicación ha sido elaborada por los integrantes del Área de Investigación y Estadística de la Dirección de Educación del Ministerio de Educación y Cultura:
A30: Sr. José Alberto Mujica Cordano Presidente de la República Dr. Ricardo Ehrlich Ministro de Educación y Cultura Mtro. Oscar Gómez Subsecretario de Educación y Cultura Sr. Pablo Álvarez Director General de Secretaría Mtro. Luis Garibaldi Director de Educación
G31: Mag. Gabriel Errandonea Lennon (Coordinador)
G32: Estadística Educativa Mag. Gabriel Gómez (encargado) Sra. Nathalia Ascue Lic. Daniel Zoppis Lic. Daniel Manber Lic. Mariana Yozzi | L32: Investigación Educativa Mag. Leandro Pereira (encargado) Reportes Internacionales Lic. Carla Orós (encargada) Lic. Mariana Émery

Sheet SINOPSIS - ÍNDICE DE CUADROS

Sheet SINOPSIS - ÍNDICE DE GRÁFICOS

Sheet O I-1.1.1
B2: Organigrama I-1.1.1 SISTEMA NACIONAL DE EDUCACIÓN - 2013
BO4: SISTEMA NACIONAL DE EDUCACIÓN - 2012
K6: ESCOLARIDAD OBLIGATORIA
BI7: CAMPO LABORAL
K11: EDUC. INICIAL | P11: EDUCACIÓN PRIMARIA | Y11: EDUCACIÓN MEDIA | AX11: EDUCACIÓN TERCIARIA
C14: 0 | D14: 1 | E14: 2 | F14: 3 | K14: 4 | L14: 5 | P14: 1º | Q14: 2º | R14: 3º | S14: 4º | T14: 5º | U14: 6º | AH14: Formación profesional técnica y tecnológica | AX14: EDUCACIÓN UNIVERSITARIA
C15: EDUCACIÓN EN LA PRIMERA INFANCIA | K15: EDUCACIÓN INICIAL | P15: EDUCACIÓN PRIMARIA | R15: Incluye: - Urbana común - Rural común - T.C. - Especial - Escuelas Aprender - Práctica
AA16: 1º | AB16: 2º | AC16: 3º
Y17: EDUCACIÓN MEDIA BÁSICA | Z17: Educación media básica general (incluye 7º, 8º y 9º rural)
AL19: 1º | AM19: 2º | AN19: 3º
AH20: EDUCACIÓN MEDIA SUPERIOR | AL20: Educación media tecnológica superior
AZ21: 1º | BA21: 2º | BB21: 3º | BC21: 4º
AX22: FORMACIÓN EN EDUCACIÓN
AA26: 1º | AB26: 2º | AC26: 3º
Z27: Educación media básica tecnológica | AZ27: 1º | BA27: 2º | BB27: 3º | BC27: 4º
AL28: 4º | AM28: 5º | AN28: 6º | AX28: EDUCACIÓN TERCIARIA NO UNIVERSITARIA (técnicas, policial, militar, artística, etc.)
AL29: Educación media general superior
C35: 0-3 años | K35: 4-5 años | P35: 6 años | Y35: 12 años | AH35: 15 años | AX35: 18 años
C38: EDUCACIÓN NO FORMAL

Sheet O I-1.1.2
B2: Organigrama I-1.1.2
B3: ESTRUCTURA ORGANIZACIONAL DEL SISTEMA NACIONAL DE EDUCACIÓN - 2013
Q6: SNEP
E11: MEC | Q11: ANEP | AB11: UdelaR
I37: Habilita y/o autoriza y/o supervisa
C38: Autoriza / supervisa
S41: SECTOR PRIVADO
F46: Centros de educación en la primera infancia de Intervención social (INAU) | S46: UNIVERSIDADES PRIVADAS | AB46: INSTITUTOS UNIVERSITARIOS PRIVADOS
F51: Centros de educación inicial, primaria y media privados (ANEP) | S51: Tres o más áreas disciplinarias no afines orgánicamente estructuradas en facultades, departamentos o unidades académicas equivalentes. | AB51: Al menos una carrera completa de grado universitario, una maestría o un doctorado.
F56: Centros de educación infantil privados (MEC)
G61: Consejo Consultivo de Enseñanza Universitaria Privada
O64: Reconocimiento de carreras universitarias y terciarias no universitarias privadas
H65: y coordina …

Sheet O I-2.1.1
A1: Ministerio de Educación y Cultura Dirección de Educación
A4: Organigrama I-2.1.1
A6: Organigrama I-2.1.1
A7: ESTRUCTURA ORGANIZACIONAL DEL SISTEMA NACIONAL DE EDUCACIÓN EN LA PRIMERA INFANCIA Y EN EDUCACIÓN INICIAL - 2012
Z11: EDUCACIÓN EN LA PRIMERA INFANCIA | AH11: EDUCACIÓN INICIAL
Z13: 0 a 24 meses | AC13: 2 años | AH13: 3 a 5 años
U16: Experiencias Oportunas | Z16: Talleres
L17: CAIF
G19: INAU | U19: Modalidad Diaria | Z19: Diseño Básico Curricular (0 a 36 meses)
B21: EDUCACIÓN EN LA PRIMERA INFANCIA E INICIAL
Z22: Diseño Básico Curricular (0 a 36 meses)
L23: Centros Diurnos
U24: Modalidad Diaria
AH25: Programa de Educación Inicial y Primaria
Z29: Diseño Básico Curricular (0 a 36 meses)
L30: Centros Educativos Privados | P30: Colegios y Jardines de Infantes Habilitados o Autorizados
AH32: Programa de Educación Inicial y Primaria
P36: Centros Educativos Primera Infancia (CEPI) | Z36: Diseño Básico Curricular (0 a 36 meses)
U39: Común
G41: ANEP CEIP
U42: Tiempo extendido
P43: Grupos de Educación Inicial en Escuelas (urbanas y rurales)
L45: Centros Educativos Públicos | U45: Tiempo completo
AH46: Programa de Educación Inicial y Primaria
P49: Grupos de Educación Inicial en Jardines de Infantes | U49: APRENDER
U52: JICI
U55: Práctica o Hab. de Prác.
G58: Primera Infancia MEC | L58: Centros de Educación Infantil Privados (incluye Programa Nuestros Niños - IM y otros) | Z58: Diseño Básico Curricular (0 a 36 meses)
AH59: Programa de Educación Inicial y Primaria

Sheet I-1.1.1
A1: Ministerio de Educación y Cultura Dirección de Educación
A3: Cuadro I-1.1.1 UNIVERSO CUBIERTO POR EL ANUARIO ESTADÍSTICO DE EDUCACIÓN 2013 POR FORMA DE ADMINISTRACIÓN, MATRÍCULA Y FUENTE DE INFORMACIÓN SEGÚN TIPO DE OFERTA Y NIVEL EDUCATIVO
A4: Nivel (Edad teórica) | C4: Descripción (Oferta por forma de administración) | E4: Matricula 2013 | F4: Fuentes de información
A5: EDUCACIÓN EN LA PRIMERA INFANCIA 0 a 2 años | C5: PÚBLICO: centros de educación infantil gestionados por organismos públicos (por ej. centros de INAU o intendencias). | E5: 48530 | F5: · Área de Educación en la Primera Infancia y Área de Investigación y Estadística de la Dirección de Educación del Ministerio de Educación y Cultura – Registro Nacional de Centros de Educación en la Primera Infancia; · Sistema de Información Para la Infancia (SIPI) de INAU
C6: PRIVADO: Centros de Educación Infantil Privados bajo supervisión del MEC En todos los casos la matrícula reportada excluye a los niños matriculados en centros que ya han sido habilitados por ANEP.
C7: PÚBLICO/PRIVADO: CAIF (modalidad diaria)
A8: EDUCACIÓN INICIAL 3 a 5 años (4 y 5 años obligatorio) | C8: PUBLICO:Esta.del Consejo de Educación Inicial y Primaria (CEIP) Jardines y clases jardineras en escuelas de educación común. | E8: 109794 | F8: · Área de Educación en la Primera Infancia, AIEde la Dir. de Edu. del MEC; · Depto. de Estadística Educativa del CEIP; · SIPI de INAU.
C9: PRIVADO: jardines de infantes privados, jardines en colegios privados y clases jardineras en colegios privados (bajo supervisión de ANEP).
A10: EDUCACIÓN PRIMARIA 6 a 11 años (obligatorio) | C10: PUBLICO: Establecimientos del Consejo de Educación Inicial y Primaria. | E10: 317900 | F10: · Departamento de Estadística Educativa del CEIP.
C11: PRIVADO: Establecimientos privados bajo supervisión de ANEP.
A12: EDUCACIÓN FORMAL DE JÓVENES Y ADULTOS | C12: Dirección Sectorial de Educación de Jóvenes y Adultos de la ANEP (Niveles I y II y Acreditación). | E12: 4287 | F12: · Dirección Sectorial de Educación de Jóvenes y Adultos de la ANEP
A13: EDUCACIÓN MEDIA BÁSICA 12 a 14 años | C13: PÚBLICO: establecimientos del Consejo de Educación Secundaria, del Consejo de Educación Técnico Profesional y del Ciclo Básico Rural (7º, 8º y 9º) | D13: MEDIA BÁSICA 12 a 14 años (obligatorio) | E13: 182087 | F13: · Departamento de Estadística del CES (oficiales, habilitados privados y habilitados militares); · Departamento de Estadística del CETP y · Departamento de Estadística del CEIP(para 7º, 8º y 9º) a través de planillas estadísticas.
C14: PRIVADO: liceos habilitados privados bajo supervisión de ANEP.
A15: EDUCACIÓN MEDIA SUPERIOR 15 a 17 años | C15: PÚBLICO: establecimientos del Consejo de Educación Secundaria, del Consejo de Educación Técnico Profesional y los Habilitados Liceo Militar y Escuela Naval. | D15: MEDIA SUPERIOR 15 a 17 años | E15: 155547
C16: PRIVADO: liceos habilitados privados bajo supervisión de ANEP.
A17: FORMACIÓN EN EDUCACIÓN | C17: PÚBLICOS: ANEP - CONSEJO DE FORMACIÓN EN EDUCACIÓN, CEN.FOR.ES - I.N.A.U. | E17: 24192 | F17: · Of. de información para la Gestión del CFE de ANEP; · CEN.FOR.ES - I.N.A.U. . C.I.E.P
C18: PRIVADOS: C.I.E.P
A19: EDUCACIÓN TERCIARIA (18 y más años) | C19: PÚBLICOS: Inst. Terc. Univ. y No Univ. (UdelaR; CFE, Esc. Mun. de Arte Dramático, Esc. Nacional de Policía, Esc. Militar, Esc. Militar de Aeronáutica, Esc. Naval). | E19: 116021 | F19: · Div. de Estadística de la DGP de la UdelaR; . Unidades de planeamiento y/o asuntos estudiantiles de univ. e inst. univ. y no univ. públicos y privados.
C20: PRIVADOS: Univ. e Inst. Univ. Privados (UC, ORT, de Montevideo, de la Empresa; Fundación Politécnico de Punta del Este, Asociación Cristiana de Jóvenes, CLAEH, Crandon, Mariano Soler).
A21: EDUCACIÓN NO FORMAL | C21: Instituciones de Educación Técnico-Profesional públicas y privadas | E21: 93228
C22: Centros de Capacitación y Producción (CECAP) y Consejo De Capacitación Profesional (COCAP) del MEC. | E22: 3905 | F22: · Relevamiento propio de Instituciones de Educación Técnico-profesional (Área de Investigación y Estadística, Dir. Edu., MEC.) · Departamento de Estadística del CETP; · Área de Educación No Formal de la Dirección de Educación del MEC; · Gerencia de Programas Especiales de CODICEN; · Oficina Nacional del Servicio Civil; e · Información brindada por las instituciones universitarias.
C23: PÚBLICO: Establecimientos del Consejo de Educación Técnico Profesional | D23: TÉCNICO-PROFESIONAL DE INSERCIÓN LABORAL 15 y más años | E23: 8632
C24: INEFOP
C25: Dir. Sectorial de Edu.de Jóvenes y Adultos de la ANEP (Talleres). | E25: 4065
C26: Escuela de Funcionarios Públicos de la ONSC. | E26: 7605
C27: Educación no terciaria en universidades e instituciones universitarias privadas. | E27: 5039
A28: Nota: Educación en la primera infancia de 0 a 3 años y Educación Inicial 3 a 5 años: Esta definición etaria responde a la lógica de los hechos: prácticamente la mitad de los niños atendidos en Centros de Educación Infantil Privados tienen 3 años (también existe una porción minoritaria de niños de 4 y 5 años). En términos teóricos, este nivel atendería a niños de 0 a 36 meses (o hasta 2 años cumplidos y 11 meses). Algo similar sucede en el caso del nivel “Educación Inicial”, donde la enorme mayoría de los niños tienen 4 o 5 años y cuya definición teórica apuntaría a aquellos de 3, 4 y 5. Educación Primaria: La matrícula de Educación Primaria Educación de Jóvenes y Adultos de la ANEP. Educación Media: Media Básica incluye Ciclo Básico Rural, Educación Media Básica General (CEM) y Educación Media Tecnológica Básica (CETP); y Media Superior incluye Ciclo Superior de Secundaria, Bachillerato Tecnológico y Educación Media Tecnológica. Instituciones de Educación Técnico-profesional públicas y privadas: incluye a todas las ofertas de educación técnico-profesional públicas y privadas; no incluye ofertas de ANEP o UdelaR. Técnico-profesional de inserción laboral: incluye a los cursos de las ofertas de Nivel de Formación Profesional del CETP.

Sheet I-1.2.1
A1: Ministerio de Educación y Cultura Dirección de Educación
A3: Cuadro I-1.2.1
A4: TASA DE ANALFABETISMO Y PORCENTAJE DE POBLACIÓN POR ÁREA DEMOGRÁFICA SEGÚN AÑO LECTIVO. AÑO 2013.
A5: AÑO LECTIVO | B5: Fuente | C5: TASA | E5: % de población rural | F5: % de analfabetos rurales sobre total país
C6: Total del país | D6: Área Rural
A7: 1963 | B7: CENSO | C7: 8.8 | D7: 15.4 | E7: 19.2 | F7: 2.96
A8: 1975 | B8: CENSO | C8: 5.7 | D8: 10.3 | E8: 17 | F8: 1.75
A9: 1985 | B9: CENSO | C9: 4.3 | D9: 8.4 | E9: 12.7 | F9: 1.06
A10: 1996 | B10: CENSO | C10: 3.1 | D10: 6.2 | E10: 9.2 | F10: 0.57
A11: 2006 | B11: ENHA | C11: 2.2 | D11: 3 | E11: 6.4 | F11: 0.19
A12: 2007 | B12: ECH | C12: 2.1 | D12: 3.4 | E12: 6.6 | F12: 0.21
A13: 2008 | B13: ECH | C13: 1.9 | D13: 3.1 | E13: 6.2 | F13: 0.19
A14: 2009 | B14: ECH | C14: 1.8 | D14: 3.4 | E14: 7.9 | F14: 0.27
A15: 2010 | B15: ECH | C15: 2 | D15: 3.2 | E15: 5.8 | F15: 0.19
A16: 2011 | B16: ECH | C16: 1.7 | D16: 3.4 | E16: 8.58 | F16: 0.29
A17: 2012 | B17: ECH | C17: 1.6 | D17: 2.5 | E17: 6.4 | F17: 0.16
A18: 2013 | B18: ECH | C18: 1.6 | D18: 2.7 | E18: 5.6 | F18: 0.15
A20: Fuente: 1963 a 1996: Censos de Población .
A21: 2006: Encuesta Nacional de Hogares Ampliada (ENHA) 2006. Condiciones de vida de la población residente en el área rural. Enero-Marzo 200, INE.
A22: 2007 a 2013: Elaboración propia con base en las ECH de 2007 a 2011 y las Proyecciones Poblacionales, Revisión 2005 del INE. (ÁREA SOCIODEMOGRÁFICA)
A23: Nota Las tasas fueron calculadas sobre población con 15 y más años de edad. La evolución de la población rural con base en el total poblacional.

Sheet I-1.2.2
A1: Ministerio de Educación y Cultura Dirección de Educación
A3: Cuadro I-1.2.2
A4: TASA DE ANALFABETISMO SEGÚN TRAMOS DE EDAD
A5: TASA DE ANALFABETISMO | C5: TRAMOS DE EDAD
C6: TOTAL | D6: 15 a 20 años | E6: 21 a 39 años | F6: 40 a 49 años | G6: 50 a 59 años | H6: 60 a 64 años | I6: 65 y más años
A7: 2006 | C7: 2.2 | D7: 1.2 | E7: 1.4 | F7: 1.4 | G7: 2.1 | H7: 2.6 | I7: 4.7
A8: 2007 | C8: 2.1 | D8: 1.2 | E8: 1.3 | F8: 1.5 | G8: 1.8 | H8: 2.3 | I8: 4.7
A9: 2008 | C9: 1.9 | D9: 0.9 | E9: 1.3 | F9: 1.3 | G9: 1.9 | H9: 2 | I9: 4
A10: 2009 | C10: 1.8 | D10: 1 | E10: 1.1 | F10: 1.1 | G10: 1.5 | H10: 2.3 | I10: 4.2
A11: 2010 | C11: 2 | D11: 1.2 | E11: 1.3 | F11: 1.3 | G11: 1.8 | H11: 2.1 | I11: 4.5
A12: 2011 | C12: 1.7 | D12: 1.3 | E12: 1.1 | F12: 1.2 | G12: 1.6 | H12: 1.8 | I12: 3.6
A13: 2012 | C13: 1.6 | D13: 1 | E13: 1.1 | F13: 1.3 | G13: 1.6 | H13: 2 | I13: 3.2
A14: 2013 | C14: 1.6 | D14: 1.15 | E14: 1 | F14: 1.18 | G14: 1.29 | H14: 2.26 | I14: 3.5
A15: Fuentes: Elaboración propia en base a la ECH 2013. Nota: Población con 15 y más años para todo el país (Año 2006-2013)

Sheet I-1.2.3
A1: Ministerio de Educación y Cultura Dirección de Educación
A3: Cuadro I-1.2.3 ASISTENCIA A ALGÚN ESTABLECIMIENTO EDUCATIVO POR EDADES SIMPLES SEGÚN AÑO LECTIVO. 2013
A4: EDADES SIMPLES | B4: AÑO LECTIVO
B5: 2006 | C5: 2007 | D5: 2008 | E5: 2009 | F5: 2010 | G5: 2011 | H5: 2012 | I5: 2013
A6: 0 | B6: s/d | C6: s/d | D6: s/d | E6: 6.4 | F6: 7.9 | G6: 6.1 | H6: 7.3 | I6: 7.4
A7: 1 | B7: s/d | C7: s/d | D7: s/d | E7: 20.7 | F7: 24 | G7: 19.9 | H7: 28.5 | I7: 25.2
A8: 2 | B8: s/d | C8: s/d | D8: s/d | E8: 40.7 | F8: 41.1 | G8: 41.3 | H8: 44.6 | I8: 44.9
A9: 3 | B9: 46.3 | C9: 49.4 | D9: 49.9 | E9: 58.5 | F9: 61.3 | G9: 60.4 | H9: 63.8 | I9: 60.39
A10: 4 | B10: 76.5 | C10: 78.9 | D10: 81.2 | E10: 86.6 | F10: 86.1 | G10: 86.1 | H10: 89.1 | I10: 90.244
A11: 5 | B11: 95.2 | C11: 94.7 | D11: 96.4 | E11: 97.3 | F11: 97.3 | G11: 96.3 | H11: 97.7 | I11: 98.6
A12: 6 | B12: 99.3 | C12: 99.3 | D12: 99 | E12: 98.9 | F12: 99.3 | G12: 98 | H12: 98.8 | I12: 98.7
A13: 7 | B13: 99.6 | C13: 99.5 | D13: 99.1 | E13: 98.7 | F13: 99 | G13: 98.6 | H13: 99.7 | I13: 99.53
A14: 8 | B14: 99.8 | C14: 99.7 | D14: 99.1 | E14: 98.8 | F14: 98.8 | G14: 98.9 | H14: 99.8 | I14: 99.83
A15: 9 | B15: 99.8 | C15: 99.9 | D15: 99.3 | E15: 98.8 | F15: 99.2 | G15: 98.4 | H15: 99.7 | I15: 99.67
A16: 10 | B16: 99.6 | C16: 99.8 | D16: 99.1 | E16: 98.9 | F16: 99.3 | G16: 98.5 | H16: 99.6 | I16: 99.38
A17: 11 | B17: 99.6 | C17: 99.9 | D17: 99.1 | E17: 99 | F17: 98.5 | G17: 97.6 | H17: 98.9 | I17: 98.64
A18: 12 | B18: 98.5 | C18: 99.8 | D18: 97.5 | E18: 98 | F18: 98.3 | G18: 97.7 | H18: 97.6 | I18: 97.75
A19: 13 | B19: 95.2 | C19: 95 | D19: 94.3 | E19: 94.5 | F19: 95.6 | G19: 96 | H19: 96.6 | I19: 95.69
A20: 14 | B20: 90.2 | C20: 88.7 | D20: 89.7 | E20: 91 | F20: 91.2 | G20: 92.4 | H20: 92.6 | I20: 92.45
A21: 15 | B21: 82.1 | C21: 82.1 | D21: 82.6 | E21: 83.8 | F21: 82.1 | G21: 85.2 | H21: 87 | I21: 86.9
A22: 16 | B22: 76.6 | C22: 74.6 | D22: 73.3 | E22: 77.7 | F22: 78.1 | G22: 77.7 | H22: 80.1 | I22: 78.81
A23: 17 | B23: 66.9 | C23: 65.5 | D23: 67.7 | E23: 70.2 | F23: 66.4 | G23: 68.2 | H23: 68.8 | I23: 71.18
A24: 18 | B24: 55 | C24: 53.4 | D24: 52.8 | E24: 53.3 | F24: 49.2 | G24: 49.1 | H24: 53.9 | I24: 53.8
A25: 19 | B25: 47 | C25: 46.3 | D25: 45.3 | E25: 44.9 | F25: 44.2 | G25: 45.2 | H25: 45.5 | I25: 43.78
A26: 20 | B26: 40.5 | C26: 39.3 | D26: 42.2 | E26: 41.4 | F26: 40.5 | G26: 39.3 | H26: 39.2 | I26: 38.66
A27: 21 | B27: 35.6 | C27: 37.1 | D27: 39 | E27: 37.6 | F27: 36.1 | G27: 36.8 | H27: 36.7 | I27: 37.33
A28: 22 | B28: 34.3 | C28: 31.5 | D28: 33.5 | E28: 32.7 | F28: 32.1 | G28: 36.6 | H28: 31.4 | I28: 34.42
A29: Fuentes:Elaboración propia en base a ECH 2006 y ECH de 2007 a 2012 del INE. Nota:Todo el país (Años 2006 a 2012)

Sheet I-1.2.4
A1: Ministerio de Educación y Cultura Dirección de Educación
A3: Cuadro I-1.2.4 ASISTENCIA A ALGÚN ESTABLECIMIENTO EDUCATIVO POR EDADES SIMPLES SEGÚN AÑO LECTIVO Y PERTENENCIA DE LOS HOGARES A LOS QUINTILES EXTREMOS DE INGRESOS. AÑO 2013.
A4: AÑO LECTIVO | C4: EDADES SIMPLES
C5: 12 | D5: 13 | E5: 14
A6: 1er Quintil
A7: 2006 | C7: 97.5 | D7: 93 | E7: 83.7
A8: 2007 | C8: 98.5 | D8: 92.6 | E8: 81.9
A9: 2008 | C9: 96.9 | D9: 90.2 | E9: 81.8
A10: 2009 | C10: 97.5 | D10: 91.2 | E10: 83.5
A11: 2010 | C11: 97.8 | D11: 92.6 | E11: 83.7
A12: 2011 | C12: 97.5 | D12: 93.7 | E12: 86.9
A13: 2012 | C13: 96.52658662 | D13: 94.03934566 | E13: 85.7397306
A14: 2013 | C14: 97.6 | D14: 92.1 | E14: 86.6
A15: Quintil Mayor
A16: 2006 | C16: 100 | D16: 99.2 | E16: 99.3
A17: 2007 | C17: 99.1 | D17: 100 | E17: 100
A18: 2008 | C18: 98.3 | D18: 98.1 | E18: 99.3
A19: 2009 | C19: 98 | D19: 94.5 | E19: 91
A20: 2010 | C20: 99.3 | D20: 99.2 | E20: 99.5
A21: 2011 | C21: 97.9 | D21: 99.5 | E21: 100
A22: 2012 | C22: 97.65282435 | D22: 100 | E22: 98.52494577
A23: 2013 | C23: 97.9 | D23: 100 | E23: 97.5
A24: Fuentes:Elaboración propia en base a la ENHA 2006 y a las ECH 2007 a 2013. Nota:Todo el país (Años 2006 a 2013)

Sheet I-1.2.5
A1: Ministerio de Educación y Cultura Dirección de Educación
A3: Cuadro I-1.2.5 DIFERENCIA DE ASISTENCIA ENTRE EL QUINTIL MAYOR Y EL PRIMER Y EL SEGUNDO QUINTIL Y EL PRIMERO DE INGRESOS DE LOS HOGARES PARA 2013 Y DIFERENCIA CON 2012
A4: DIFERENCIAS | D4: EDADES SIMPLES
D5: 12 | E5: 13 | F5: 14
A6: Entre el Quintil mayor y el 1erQuintil | C6: Diferencia 2013 | D6: 0.3 | E6: 7.9 | F6: 10.9
C7: Diferencia 2013-diferencia 2012 = | D7: -0.8 | E7: 1.9 | F7: -1.9
A8: Entre el 2do quintil y el 1erquintil | C8: Diferencia 2013 | D8: -0.1 | E8: 5.2 | F8: 6.9
C9: Diferencia 2013-diferencia 2012 = | D9: -2 | E9: 2.7 | F9: -1
A10: Fuentes:Elaboración propia en base en las ECH 2012 y 2013. Notas:Las diferencias “2013-2012” son el resultado de restar a la diferencia entre quintiles de 2012, idéntica diferencia entre quintiles de 2011. Estos valores son interpretados como indicadores de evolución de la brecha entre el año de referencia y el anterior. Todo el país (Años 2012 y 2013)

Sheet I-1.2.6
A1: Ministerio de Educación y Cultura Dirección de Educación
A3: Cuadro I-1.2.6
A4: ASISTENCIA A ALGÚN ESTABLECIMIENTO EDUCATIVO POR EDADES SIMPLES SEGÚN GRANDES ÁREAS Y AÑO LECTIVO. AÑO 2013
A5: AÑO LECTIVO | B5: EDADES SIMPLES
B6: 3 | C6: 4 | D6: 5 | E6: 6 | F6: 7 | G6: 8 | H6: 9 | I6: 10 | J6: 11 | K6: 12 | L6: 13 | M6: 14 | N6: 15 | O6: 16 | P6: 17 | Q6: 18 | R6: 19 | S6: 20 | T6: 21 | U6: 22
A7: Montevideo
A8: 2006 | B8: 53.7 | C8: 79.4 | D8: 95.8 | E8: 99.1 | F8: 99.5 | G8: 99.7 | H8: 99.8 | I8: 99.6 | J8: 99.6 | K8: 99.1 | L8: 96.8 | M8: 93.3 | N8: 86.1 | O8: 79.1 | P8: 72.9 | Q8: 62.7 | R8: 55.1 | S8: 51.3 | T8: 47.9 | U8: 46
A9: 2007 | B9: 59.6 | C9: 82.5 | D9: 94.5 | E9: 99.1 | F9: 99.1 | G9: 99.6 | H9: 100 | I9: 99.8 | J9: 99.9 | K9: 99.2 | L9: 96.5 | M9: 90.7 | N9: 85.5 | O9: 80.3 | P9: 70.4 | Q9: 60.5 | R9: 56.9 | S9: 49.2 | T9: 49.1 | U9: 42.6
A10: 2008 | B10: 61.5 | C10: 86.5 | D10: 96.5 | E10: 99.1 | F10: 98.9 | G10: 99 | H10: 99.4 | I10: 98.8 | J10: 98.9 | K10: 98.1 | L10: 96.2 | M10: 92.8 | N10: 87.3 | O10: 79.1 | P10: 74.1 | Q10: 57.6 | R10: 54.2 | S10: 51.5 | T10: 48.5 | U10: 45.9
A11: 2009 | B11: 67.2 | C11: 86.5 | D11: 95.5 | E11: 98.6 | F11: 98.5 | G11: 97.9 | H11: 99.4 | I11: 99.2 | J11: 99.3 | K11: 98.5 | L11: 96.7 | M11: 93.5 | N11: 88.6 | O11: 81.8 | P11: 74.8 | Q11: 60.9 | R11: 51 | S11: 50.8 | T11: 52 | U11: 42
A12: 2010 | B12: 72.2 | C12: 89 | D12: 95.6 | E12: 99 | F12: 98.4 | G12: 99.2 | H12: 98.5 | I12: 99.3 | J12: 98.2 | K12: 97.9 | L12: 96.9 | M12: 93.6 | N12: 85.9 | O12: 82.1 | P12: 70.9 | Q12: 56.8 | R12: 52.6 | S12: 50.5 | T12: 48.6 | U12: 44.2
A13: 2011 | B13: 64.7 | C13: 87.1 | D13: 93.3 | E13: 97.6 | F13: 97.1 | G13: 98.8 | H13: 98.5 | I13: 98.4 | J13: 97.3 | K13: 97.5 | L13: 97.5 | M13: 94.8 | N13: 89.2 | O13: 81.2 | P13: 73 | Q13: 57 | R13: 53.1 | S13: 50.1 | T13: 48.7 | U13: 49.9
A14: 2012 | B14: 68.7 | C14: 88.7 | D14: 96.7 | E14: 98.9 | F14: 99.8 | G14: 99.7 | H14: 99.8 | I14: 99.5 | J14: 98.8 | K14: 98.2 | L14: 97.9 | M14: 94.7 | N14: 88.6 | O14: 82.1 | P14: 73.2 | Q14: 59.3 | R14: 53 | S14: 49.3 | T14: 45.3 | U14: 40.4
A15: 2013 | B15: 65.51332649 | C15: 90.50662032 | D15: 98.20982041 | E15: 98.7706079 | F15: 99.46692652 | G15: 100 | H15: 99.80999881 | I15: 99.54629385 | J15: 98.22872545 | K15: 98.0007444 | L15: 97.95219863 | M15: 94.75620008 | N15: 90.0724721 | O15: 80.534217 | P15: 74.76337551 | Q15: 56.9812637 | R15: 52.11637318 | S15: 45.93544106 | T15: 48.02501646 | U15: 44.61097937
A16: Resto del país
A17: 2006 | B17: 41.9 | C17: 74.8 | D17: 94.8 | E17: 99.4 | F17: 99.6 | G17: 99.8 | H17: 99.8 | I17: 99.6 | J17: 99.5 | K17: 98.2 | L17: 94.4 | M17: 88.4 | N17: 79.7 | O17: 75.1 | P17: 63 | Q17: 49.6 | R17: 41.8 | S17: 33.1 | T17: 25.9 | U17: 24.5
A18: 2007 | B18: 43.3 | C18: 76.9 | D18: 94.8 | E18: 99.5 | F18: 99.8 | G18: 99.7 | H18: 99.9 | I18: 99.8 | J18: 99.8 | K18: 98.5 | L18: 94.2 | M18: 87.7 | N18: 80.2 | O18: 71.5 | P18: 62.5 | Q18: 48.9 | R18: 38.9 | S18: 32.7 | T18: 27.9 | U18: 23
A19: 2008 | B19: 42.8 | C19: 78 | D19: 96.3 | E19: 98.9 | F19: 99.2 | G19: 99.1 | H19: 99.2 | I19: 99.3 | J19: 99.1 | K19: 97.1 | L19: 93.4 | M19: 88.1 | N19: 79.9 | O19: 69.9 | P19: 63.6 | Q19: 49.7 | R19: 39.1 | S19: 35.2 | T19: 31.2 | U19: 23
A20: 2009 | B20: 52.5 | C20: 86.7 | D20: 98.4 | E20: 99.1 | F20: 98.9 | G20: 99.3 | H20: 98.5 | I20: 98.8 | J20: 98.8 | K20: 97.7 | L20: 93.4 | M20: 89.7 | N20: 80.9 | O20: 75.3 | P20: 67.4 | Q20: 48.5 | R20: 40.5 | S20: 34 | T20: 26.6 | U20: 24.5
A21: 2010 | B21: 58 | C21: 86.3 | D21: 98.4 | E21: 99.5 | F21: 99.2 | G21: 98.4 | H21: 99.6 | I21: 99.3 | J21: 98.8 | K21: 98.7 | L21: 95.4 | M21: 91.7 | N21: 81.3 | O21: 77.2 | P21: 64.8 | Q21: 45.6 | R21: 39.4 | S21: 34.8 | T21: 28.9 | U21: 23.7
A22: 2011 | B22: 57.8 | C22: 85.5 | D22: 98 | E22: 98.3 | F22: 99.3 | G22: 98.9 | H22: 98.4 | I22: 98.5 | J22: 97.7 | K22: 97.8 | L22: 95.3 | M22: 91.3 | N22: 83.1 | O22: 75.8 | P22: 65.8 | Q22: 44.8 | R22: 40.2 | S22: 32.3 | T22: 27.4 | U22: 26
A23: 2012 | B23: 60.7 | C23: 89.4 | D23: 98.3 | E23: 98.7 | F23: 99.7 | G23: 99.8 | H23: 99.6 | I23: 99.6 | J23: 99 | K23: 97.3 | L23: 96.1 | M23: 91.5 | N23: 86.1 | O23: 79 | P23: 66.5 | Q23: 50.6 | R23: 41.3 | S23: 32.6 | T23: 29.7 | U23: 23.6
A24: 2013 | B24: 57.05605991 | C24: 90.06338751 | D24: 98.83393647 | E24: 98.66824404 | F24: 99.57693309 | G24: 99.74014063 | H24: 99.61143328 | I24: 99.30067858 | J24: 98.87565536 | K24: 97.62638897 | L24: 94.59252971 | M24: 91.24813526 | N24: 85.31776913 | O24: 77.89470844 | P24: 69.3122662 | Q24: 51.9988675 | R24: 38.89192579 | S24: 33.74351086 | T24: 29.61151861 | U24: 26.16819039
A25: Fuentes | B25: Elaboración propia en base a la ENHA 2006 y a las ECH 2007 a 2013.
A26: Nota: | B26: Todo el país (Años 2006 a 2013)

Sheet I-1.2.7
A1: Ministerio de Educación y Cultura Dirección de Educación
A3: Cuadro I-1.2.7 JÓVENES DE 15 A 20 AÑOS DE EDAD POR ASISTENCIA A ALGÚN ESTABLECIMIENTO DE EDUCACIÓN Y ACTIVIDAD SEGÚN NIVEL EDUCATIVO MÁXIMO ALCANZADO. AÑO 2013.
A4: NIVEL EDUCATIVO MÁXIMO ALCANZADO | B4: ASISTENCIA A ALGÚN ESTABLECIMIENTO DE EDUCACIÓN Y ACTIVIDAD
B5: TOTAL | C5: Asiste y trabaja o busca trabajo | D5: Asiste y no trabaja ni busca trabajo | E5: No Asiste y trabaja o busca trabajo | F5: No asiste, no trabaja y no busca trabajo
A6: TOTAL | B6: 100 | C6: 13.1 | D6: 49.6 | E6: 24.77021521 | F6: 12.5
A7: Sin instrucción | B7: 0.1461005936 | C7: 0 | D7: 0 | E7: 0.006472811111 | F7: 0.1396277825
A8: Educación inicial | B8: 0.01756905873 | C8: 0 | D8: 0 | E8: 0 | F8: 0.01756905873
A9: Primaria incompleta | B9: 2.129554856 | C9: 0.04130269947 | D9: 0.2644605683 | E9: 0.6663913153 | F9: 1.157400272
A10: Primaria completa | B10: 8.607605861 | C10: 0.1824716275 | D10: 0.5788542508 | E10: 4.757207938 | F10: 3.089072045
A11: Media Básica incompleta | B11: 28.86164829 | C11: 2.361343139 | D11: 12.88705869 | E11: 8.801173736 | F11: 4.812072717
A12: Media Básica completa | B12: 7.091426916 | C12: 0.3476824254 | D12: 0.8966384534 | E12: 4.412916032 | F12: 1.434190005
A13: Media Superior incompleta | B13: 39.45640716 | C13: 6.84330249 | D13: 27.61023814 | E13: 3.933003323 | F13: 1.069863208
A14: Media Superior completa | B14: 3.272776589 | C14: 0.3593951312 | D14: 0.3165512862 | E14: 1.898999488 | F14: 0.6978306836
A15: Terciaria Incompleta | B15: 10.36851871 | C15: 3.023727476 | D15: 6.955806112 | E15: 0.2549054661 | F15: 0.1340796587
A16: Terciaria Completa | B16: 0.04839196878 | C16: 0 | D16: 0 | E16: 0.03914509577 | F16: 0.009246873016
A18: Fuentes: Elaboración propia en base a la ECH 2013.
A19: Nota: Todo el país (Año 2013)

Sheet I.1.2.8
A1: Ministerio de Educación y Cultura Dirección de Educación
A3: Cuadro I-1.2.8 JÓVENES DE 15 A 20 AÑOS DE EDAD POR ASISTENCIA A ALGÚN ESTABLECIMIENTO DE EDUCACIÓN Y ACTIVIDAD SEGÚN AÑO LECTIVO. AÑO 2013.
C4: ASISTENCIA A ALGÚN ESTABLECIMIENTO DE EDUCACIÓN Y ACTIVIDAD
A5: AÑO LECTIVO | C5: Asiste y no trabaja y no busca trabajo | D5: Asiste y trabaja o busca trabajo | E5: No asiste y trabaja o busca trabajo | F5: No asiste y no trabaja y no busca trabajo | G5: TOTAL
A6: 2006 | C6: 47.9 | D6: 14.4 | E6: 25.7 | F6: 12.1 | G6: 100
A7: 2007 | C7: 47.1 | D7: 13.9 | E7: 27.3 | F7: 11.8 | G7: 100
A8: 2008 | C8: 48.2 | D8: 13.3 | E8: 25.9 | F8: 12.6 | G8: 100
A9: 2009 | C9: 48.4 | D9: 14.3 | E9: 25.6 | F9: 11.7 | G9: 100
A10: 2010 | C10: 48.2 | D10: 13.2 | E10: 26.2 | F10: 12.4 | G10: 100
A11: 2011 | C11: 48.9 | D11: 12.9 | E11: 25.6 | F11: 12.5 | G11: 100
A12: 2012 | C12: 50.2 | D12: 13 | E12: 23.7 | F12: 13 | G12: 100
A13: 2013 | C13: 49.5 | D13: 13.2 | E13: 24.8 | F13: 12.6 | G13: 100
A14: Fuentes: Elaboración propia en base a la ENHA 2006 y a las ECH 2007 a 2013. Nota:Todo el país (Años 2006 a 2013)

Sheet I.1.2.9
A1: Ministerio de Educación y Cultura Dirección de Educación
A3: Cuadro I-1.2.9 JÓVENES DE 12 A 29 AÑOS DE EDAD QUE ALCANZARON Y NO CULMINARON EDUCACIÓN MEDIA Y NO ASISTEN POR TRAMOS DE EDAD Y QUINTILES EXTREMOS DE INGRESO SEGÚN LA PRINCIPAL RAZÓN POR LA CUAL SE HAN DESVINCULADO DEL SISTEMA EDUCATIVO. AÑO 2013.
A4: NIVEL EDUCATIVO MÁXIMO | C4: TOTAL | D4: TRAMOS DE EDAD | G4: QUINTILES EXTREMOS DE INGRESO
D5: 12 a 17 años | E5: 18 a 29 años | G5: Primer quintil | H5: Quintil mayor
A6: TOTAL | C6: 100 | D6: 100 | E6: 100 | G6: 100 | H6: 100
A7: Comenzó a trabajar | C7: 26.86057171 | D7: 5.674525213 | E7: 29.49677514 | G7: 20.2212442 | H7: 31.334559
A8: No tenía interés o le interesaban otras cosas | C8: 49.34324237 | D8: 64.10281598 | E8: 47.50669215 | G8: 45.62996445 | H8: 56.16367322
A9: Quedó ella o su pareja embarazada | C9: 7.43757632 | D9: 5.848068107 | E9: 7.635360602 | G9: 11.78911753 | H9: 1.895064347
A10: Le resultaba difícil | C10: 4.649662834 | D10: 8.47740668 | E10: 4.173372393 | G10: 5.223160594 | H10: 2.479611559
A11: Debió atender asuntos familiares | C11: 3.994898126 | D11: 3.248199083 | E11: 4.087810721 | G11: 5.772966972 | H11: 2.847310611
A12: Otras razones | C12: 3.450287524 | D12: 8.84086444 | E12: 2.779532018 | G12: 4.319152029 | H12: 3.238580116
A13: Dificultades económicas | C13: 4.263761111 | D13: 3.808120498 | E13: 4.320456981 | G13: 7.044394222 | H13: 2.04120115
A14: Fuentes: Elaboración propia en base a la ECH 2012. Nota: Jóvenes de 12 a 29 años de todo el país, que declararon haber asistido a educación media pero que hoy no lo hacen (Año 2012)

Sheet I-1.2.10
A1: Ministerio de Educación y Cultura Dirección de Educación
A3: Cuadro I-1.2.10 SITUACIÓN DE LOS JÓVENES QUE NO ESTUDIAN Y NO TRABAJAN POR ASISTENCIA Y CONDICIÓN DE ACTIVIDAD SEGÚN SEXO, GRANDES ÁREAS Y QUINTILES DE INGRESOS DE LOS HOGARES.
B4: ASISTENCIA Y CONDICIÓN DE ACTIVIDAD ECONÓMICA | E4: Total
C5: No estudia y no trabaja, pero en las últimas 4 semanas buscó trabajo | D5: No estudia, no trabaja y no busca trabajo
A7: SEXO | B7: Hombre | C7: 39.24927114 | D7: 35.18471419 | E7: 35.35459697
B8: Mujer | C8: 60.75072886 | D8: 64.81528581 | E8: 64.64540303
A10: GRANDES ÁREAS | B10: Montevideo | C10: 31.01311953 | D10: 35.86348318 | E10: 35.66075672
B11: Resto del país | C11: 68.98688047 | D11: 64.13651682 | E11: 64.33924328
A13: QUINTILES DE INGRESOS DE LOS HOGARES | B13: 1er quintil | C13: 44.56997085 | D13: 51.49265594 | E13: 51.20331445
B14: 2do quintil | C14: 22.52186589 | D14: 25.81547657 | E14: 25.67781637
B15: 3er quintil | C15: 15.30612245 | D15: 13.05557322 | E15: 13.14963748
B16: 4to quintil | C16: 15.3425656 | D16: 5.903859605 | E16: 6.298361055
B17: Quintil mayor | C17: 2.259475219 | D17: 3.732434666 | E17: 3.670870651
B19: Total | C19: 100 | D19: 100 | E19: 100
A20: Fuente: Elaboración propia en base a la ECH 2013.

Sheet I-1-2-11
A1: Ministerio de Educación y Cultura Dirección de Educación
A3: Cuadro I-1.2.11 SITUACIÓN DE LOS JÓVENES QUE NO ESTUDIAN Y NO TRABAJAN POR ASISTENCIA Y CONDICIÓN DE ACTIVIDAD SEGÚN NIVEL EDUCATIVO ALCANZADO
A4: NIVEL EDUCATIVO ALCANZADO | B4: ASISTENCIA Y CONDICIÓN DE ACTIVIDAD ECONÓMICA | D4: Total
B6: No estudia y no trabaja, pero en las últimas 4 semanas buscó trabajo | C6: No estudia, no trabaja y no busca trabajo
A7: Sin instrucción | C7: 1.1 | D7: 1.06
A8: Educación inicial | C8: 0.09 | D8: 0.086
A9: Educación Primaria | B9: 23.4 | C9: 32.51 | D9: 32.13
A10: Media Básica | B10: 40.8 | C10: 47.2 | D10: 46.96
A11: Media Superior | B11: 31.3 | C11: 16.91 | D11: 17.518
A12: Terciaria Completa | B12: 4.44 | C12: 2.13 | D12: 2.226
A13: Total | B13: 100 | C13: 100 | D13: 100
A14: Fuente:Elaboración propia en base a la ECH 2013.

Sheet I-1.2.12
A1: Ministerio de Educación y Cultura Dirección de Educación
A3: Cuadro I-1.2.12
A4: MATRÍCULA DEL SISTEMA EDUCATIVO POR AÑO LECTIVO SEGÚN NIVEL, FORMA DE ADMINISTRACIÓN Y MODALIDAD
A5: NIVEL/FORMA DE ADMINISTRACIÓN/MODALIDAD | D5: AÑO LECTIVO
D6: 2002 | E6: 2003 | F6: 2004 | G6: 2005 | H6: 2006 | I6: 2007 | J6: 2008 | K6: 2009 | L6: 2010 | M6: 2011 | N6: 2012 | O6: 2013
A8: TOTAL SISTEMA | D8: =D10+D15+D27+D41+D43 -> 942084 | E8: 948314 | F8: 953588 | G8: 937694 | H8: 947477 | I8: 949746 | J8: 973172 | K8: 986125 | L8: =K10+L15+L27+L41+L43 -> 983258 | M8: =M10+M15+M27+M41+M43 -> 966785 | N8: =N10+N15+N27+N41+N43 -> 992485 | O8: =O10+O15+O27+O41+O43 -> 993510
A10: Total Edu. en la Primera Infancia e Inicial | D10: 144319 | E10: 133964 | F10: 140628 | G10: 133640 | H10: 141065 | I10: 141307 | J10: 160934 | K10: 173003 | L10: 160504 | M10: 156089 | N10: =N12+N13 -> 176477 | O10: =O12+O13 -> 177733
B12: Inicial de 0a 2 años | D12: S/D | E12: S/D | F12: S/D | G12: S/D | H12: S/D | I12: S/D | J12: S/D | K12: S/D | L12: S/D | M12: S/D | N12: 47500 | O12: 48530
B13: Primera Infancia de 3 a 5 años | N13: 128977 | O13: 129203
A15: Total Educación Primaria | D15: =D17+D20+D23 -> 365004 | E15: 365495 | F15: 367428 | G15: 365840 | H15: 365879 | I15: 360653 | J15: 354852 | K15: 349271 | L15: 347207 | M15: 341607 | N15: 334130 | O15: 329000
B17: Primaria Común | D17: =D18+D19 -> 353826 | E17: 354843 | F17: 355568 | G17: 354777 | H17: 353528 | I17: 348579 | J17: 342498 | K17: 336865 | L17: 330548 | M17: =M18+M19 -> 325509 | N17: =N18+N19 -> 319238 | O17: =O18+O19 -> 314760
C18: Común pública | D18: 307756 | E18: 311141 | F18: 311350 | G18: 309286 | H18: 306030 | I18: 300143 | J18: 292542 | K18: 286092 | L18: 279445 | M18: 273440 | N18: 266349 | O18: 261188
C19: Común privada | D19: 46070 | E19: 43702 | F19: 44218 | G19: 45491 | H19: 47498 | I19: 48436 | J19: 49956 | K19: 50773 | L19: 51103 | M19: 52069 | N19: 52889 | O19: 53572
B20: Primaria Especial | D20: =D21+D22 -> 11178 | E20: 10652 | F20: 11860 | G20: 11063 | H20: 12351 | I20: 12074 | J20: 12354 | K20: 12406 | L20: 11808 | M20: =M21+M22 -> 11253 | N20: =N21+N22 -> 10504 | O20: =O21+O22 -> 9953
C21: Especial pública | D21: 9076 | E21: 8884 | F21: 8553 | G21: 8379 | H21: 8221 | I21: 7913 | J21: 7778 | K21: 7535 | L21: 7416 | M21: 7286 | N21: 6910 | O21: 6813
C22: Especial privada | D22: 2102 | E22: 1768 | F22: 3307 | G22: 2684 | H22: 4130 | I22: 4161 | J22: 4576 | K22: 4871 | L22: 4392 | M22: 3967 | N22: 3594 | O22: 3140
B23: Programa Jóvenes y Adultos ANEP | L23: =L24+L25 -> 4851 | M23: =M24+M25 -> 4845 | N23: =N24+N25 -> 4388 | O23: =O24+O25 -> 4287
C24: Educación Primaria (Niveles I y II y Programa de Alfabetización) | L24: 3827 | M24: 3804 | N24: 3234 | O24: 3136
C25: Pruebas de Acreditación | L25: 1024 | M25: 1041 | N25: 1154 | O25: 1151
A27: Total Educación Media | D27: =D29+D35 -> 295399 | E27: 306417 | F27: 306778 | G27: 302311 | H27: 300681 | I27: 298925 | J27: 310128 | K27: 320420 | L27: 322977 | M27: 331659 | N27: 335126 | O27: 337634
B29: Total Educación Media Básica | D29: =D30+D31+D34 -> 162664 | E29: 164180 | F29: 161736 | G29: 158131 | H29: 160028 | I29: 160367 | J29: 171502 | K29: 177015 | L29: 177619 | M29: =M30+M31+M34 -> 182175 | N29: =N30+N31+N34 -> 181444 | O29: =O30+O31+O34 -> 182087
C30: Ciclo Básico Rural (7º, 8º y 9º) | D30: 1498 | E30: 1771 | F30: 1869 | G30: 1797 | H30: 1818 | I30: 1784 | J30: 2028 | K30: 1991 | L30: 1934 | M30: 1966 | N30: 1916 | O30: 1812
C31: Total Media Básica General | D31: 146588 | E31: 147146 | F31: 144374 | G31: 140743 | H31: 142350 | I31: 142420 | J31: 151798 | K31: 155409 | L31: 155444 | M31: =M32+M33 -> 156418 | N31: =N32+N33 -> 153287 | O31: =O32+O33 -> 151201
A32: Pública | D32: 125367 | E32: 127162 | F32: 123869 | G32: 120487 | H32: 121195 | I32: 120960 | J32: 127681 | K32: 130013 | L32: 130073 | M32: 130978 | N32: 127593 | O32: 124749
A33: Privada3 | D33: 21221 | E33: 19984 | F33: 20505 | G33: 20256 | H33: 21155 | I33: 21460 | J33: 24117 | K33: 25396 | L33: 25371 | M33: 25440 | N33: 25694 | O33: 26452
C34: Media Básica Tecnológica | D34: 14578 | E34: 15263 | F34: 15493 | G34: 15591 | H34: 15860 | I34: 16163 | J34: 17676 | K34: 19615 | L34: 20241 | M34: 23791 | N34: 26241 | O34: 29074
B35: Total Educación Media Superior | D35: =D36+D39 -> 132735 | E35: 142237 | F35: 145042 | G35: 144180 | H35: 140653 | I35: 138558 | J35: 138626 | K35: 143405 | L35: 145358 | M35: 149484 | N35: 153682 | O35: 155547
C36: Total Media Superior General | D36: 122617 | E36: 129454 | F36: 127356 | G36: 124512 | H36: 119418 | I36: 112877 | J36: 110507 | K36: 112664 | L36: 113327 | M36: =M37+M38 -> 116117 | N36: =N37+N38 -> 117497 | O36: =O37+O38 -> 116552
A37: Pública | D37: 108589 | E37: 115157 | F37: 112669 | G37: 108459 | H37: 103938 | I37: 97136 | J37: 94506 | K37: 96319 | L37: 96902 | M37: 99175 | N37: 100265 | O37: 99510
A38: Privada3 | D38: 14028 | E38: 14297 | F38: 14687 | G38: 16053 | H38: 15480 | I38: 15741 | J38: 16001 | K38: 16345 | L38: 16425 | M38: 16942 | N38: 17232 | O38: 17042
C39: Total Media Superior Tecnológica | D39: 10118 | E39: 12783 | F39: 17686 | G39: 19668 | H39: 21235 | I39: 25681 | J39: 28119 | K39: 30741 | L39: 32031 | M39: 33367 | N39: 36185 | O39: 38995
A41: Total Edu. Técnica (s/cont. educativa) | D41: 36416 | E41: 37219 | F41: 32372 | G41: 27146 | H41: 28840 | I41: 24419 | J41: 19957 | K41: 16769 | L41: 11912 | M41: 7546 | N41: 9859 | O41: 8632
L42: .
A43: Total Educación Terciaria | D43: =D45+D52+D58 -> 100946 | E43: 105219 | F43: 106382 | G43: 108757 | H43: 111012 | I43: 124442 | J43: 127301 | K43: 126662 | L43: 128159 | M43: 129884 | N43: 136893 | O43: 140511
B45: Terciaria No Universitaria | D45: =D46+D50 -> 5496 | E45: =E46+E50 -> 7238 | F45: =F46+F50 -> 6437 | G45: =G46+G50 -> 5454 | H45: =H46 -> 5726 | I45: =I46 -> 5786 | J45: 6718 | K45: 7179 | L45: 7560 | M45: 7339 | N45: 8308 | O45: 9253
C46: Terciaria No Universitaria Pública | D46: =D47+D48+D49 -> 5148 | E46: 6107 | F46: 6129 | G46: 5297 | H46: 5726 | I46: 5786 | J46: 6718 | K46: 7179 | L46: 7560 | M46: =M47+M48+M49 -> 7339 | N46: =N47+N48+N49 -> 8308 | O46: =O47+O48+O49 -> 9253
A47: CETP | D47: 2564 | E47: 3514 | F47: 3671 | G47: 4024 | H47: 3961 | I47: 3896 | J47: 4650 | K47: 4964 | L47: 6158 | M47: 6780 | N47: 7610 | O47: 8511
A48: Terciaria Policial o Militar | D48: 620 | E48: 623 | F48: 653 | G48: 679 | H48: 724 | I48: 652 | J48: 557 | K48: 649 | L48: 603 | M48: 470 | N48: 572 | O48: 626
A49: Otras terciaria pública4 | D49: 1964 | E49: 1970 | F49: 1805 | G49: 594 | H49: 1041 | I49: 1238 | J49: 1511 | K49: 1566 | L49: 799 | M49: 89 | N49: 126 | O49: 116
C50: Terciaria No Universitaria Privada7 | D50: 348 | E50: 1131 | F50: 308 | G50: 157 | H50: n/c | I50: n/c | J50: n/c | K50: n/c | L50: n/c | M50: n/c | N50: n/c | O50: n/c
B52: Formación en Educación | D52: =D53+D56 -> 16735 | E52: =E53+E56 -> 19411 | F52: 21397 | G52: 20779 | H52: 21537 | I52: 22609 | J52: 22747 | K52: 20951 | L52: 20703 | M52: 21242 | N52: 22754 | O52: 24239
C53: Publica | D53: =D54 -> 16610 | E53: =E54 -> 19298 | F53: =F54+F55 -> 21260 | G53: =G54+G55 -> 20631 | H53: 21406 | I53: 22456 | J53: 22572 | K53: 20855 | L53: 20655 | M53: 21149 | N53: 22649 | O53: 24120
A54: Consejo de Formación en Educación (CFE) | D54: 16610 | E54: 19298 | F54: 20968 | G54: 20435 | H54: 21175 | I54: 21992 | J54: 22108 | K54: 20391 | L54: 20191 | M54: 20919 | N54: 22331 | O54: 24067
A55: CENFORES - INAU | D55: n/c | E55: n/c | F55: 292 | G55: 196 | H55: 231 | I55: 464 | J55: 464 | K55: 464 | L55: 464 | M55: 230 | N55: 318 | O55: 53
C56: Privada | D56: =D57 -> 125 | E56: =E57 -> 113 | F56: 137 | G56: 148 | H56: 131 | I56: 153 | J56: 175 | K56: 96 | L56: 48 | M56: 93 | N56: 105 | O56: 119
A57: Centro de Inv. y Experim. Pedagógica (CIEP) | D57: 125 | E57: 113 | F57: 137 | G57: 148 | H57: 131 | I57: 153 | J57: 175 | K57: 96 | L57: 48 | M57: 93 | N57: 105 | O57: 119
B58: Total Educación Universitaria6 | D58: =D59+D60 -> 78715 | E58: 78570 | F58: 78548 | G58: 82524 | H58: 83749 | I58: 96047 | J58: 97836 | K58: 98532 | L58: 99896 | M58: 101303 | N58: =N59+N60+N61 -> 105831 | O58: =O59+O60+O61 -> 107019
C59: Universitaria Pública (UdelaR)9 | D59: 70156 | E59: 70156 | F59: 70156 | G59: 70156 | H59: 70156 | I59: 81774 | J59: 81774 | K59: 81774 | L59: 81774 | M59: 81774 | N59: 85905 | O59: 85905
C60: Universitaria Privada | D60: 8559 | E60: 8414 | F60: 8392 | G60: 12368 | H60: 13593 | I60: 14273 | J60: 16062 | K60: 16758 | L60: 18122 | M60: 19529 | N60: 19824 | O60: 21062
C61: Seguridad y Defensa | D61: n/c | E61: n/c | F61: n/c | G61: n/c | H61: n/c | I61: n/c | J61: n/c | K61: n/c | L61: n/c | M61: s/d | N61: 102 | O61: 52
B63: Fuentes: Departamentos de Estadística (u oficinas productoras de información) del CEIP, CES y CETP y de la Universidad de la República, Dirección de Formación y Perfeccionamiento Docente, e instituciones privadas de educación terciaria Notas: 1-A partir de 2012, Primera Infancia incluye niños de 0 y 1 año de CAIF. 2-El dato de Educación Primaria Común Pública para 2011 incluyen 1.041 acreditados por el Programa Nacional de Jóvenes y Adultos de ANEP(Acreditación de Primaria). 3-Los datos de secundaria privada corresponden a la educación secundaria habilitada, que se componen en su gran mayoría por liceos privados a los que se suma el Liceo Militar y el bachillerato de la Escuela Naval. 4-La baja significativa de matriculados en la categoría “Otras terciaria pública” en 2005, responde a que el ISEF no reportó información para dicho año sí lo había hecho en 2004 (1181 matriculados). En 2006 y 2007 reportó en UdelaR, institución a la pasó a formar parte. 5-Algunas instituciones de educación terciaria no universitaria privada fueron reportadas en distintos niveles a lo largo de la serie o bien no reportaron en algunos de los años, lo que explica la irregularidad de la evolución de la matrícula en este nivel. 6-Los datos de enseñanza terciaria universitaria pública y privada corresponden a carreras cortas y de grado (excluyen carreras de postgrado). 7-Los datos de UdelaR del 2000 a 2006 corresponden a una proyección realizada del Censo 1999 de carreras de grado. El dato de 2007 corresponde al Censo 2007 y los datos 2008 a 2011 responden a la proyección del Censo 2007. El dato de 2012 corresponde al VII Censo de Estudiantes Universitarios de Grado 2012 (no incluyen carreras de postgrado).

Sheet I-1.2.13
A1: Ministerio de Educación y Cultura Dirección de Educación
A3: Cuadro I-1.2.13 PORCENTAJE DE POBLACIÓN DE 25 AÑOS O MÁS POR TRAMOS DE EDAD SEGÚN NIVEL EDUCATIVO MÁXIMO ALCANZADO. AÑO 2013.
A4: NIVEL EDUCATIVO MÁXIMO ALCANZADO | C4: TRAMOS DE EDAD
C5: TOTAL | D5: 25 a 29 años | E5: 30 a 39 años | F5: 40 a 49 años | G5: 50 a 59 años | H5: 60 a 69 años | I5: 70 y más años
A6: TOTAL | C6: =SUM(C10:C16) -> 99.99411675 | D6: =SUM(D10:D16) -> 99.98980008 | E6: 100 | F6: 100 | G6: 99.99212218 | H6: 99.98529739 | I6: 99.99158166
A7: Sin instrucción | C7: 1.099513745 | D7: 0.1984734122 | E7: 0.2423952461 | F7: 0.3680551218 | G7: 0.5832212932 | H7: 1.272630913 | I7: 4.197848389
A8: Primaria incompleta | C8: 10.32958331 | D8: 2.579729362 | E8: 3.412374648 | F8: 4.758529894 | G8: 8.07371539 | H8: 17.39592772 | I8: 28.33409776
A9: Primaria completa | C9: 26.80104442 | D9: 14.34788522 | E9: 18.49465143 | F9: 26.12638801 | G9: 29.57254947 | H9: 34.01227497 | I9: 38.32608582
A10: HASTA PRIMARIA COMPLETA | C10: =SUM(C7:C9) -> 38.23014147 | D10: 17.12608799 | E10: 22.14942132 | F10: 31.25297303 | G10: 38.22948616 | H10: 52.6808336 | I10: 70.85803197
A11: Media Básica incompleta | C11: 9.576200673 | D11: 13.77371481 | E11: 11.88223613 | F11: 10.26350056 | G11: 9.765871182 | H11: 7.267878208 | I11: 4.466654668
A12: Media Básica completa | C12: 10.82830533 | D12: 12.11112811 | E12: 14.96732427 | F12: 12.70462856 | G12: 11.0187072 | H12: 7.628605132 | I12: 4.515422978
A13: Media Superior incompleta | C13: 13.86630271 | D13: 18.69475044 | E13: 17.61758286 | F13: 15.67045132 | G13: 13.44717659 | H13: 10.6491375 | I13: 6.439158631
A14: Media Superior completa | C14: 8.785370696 | D14: 10.13064395 | E14: 9.638227741 | F14: 10.03694966 | G14: 10.5980316 | H14: 7.151624981 | I14: 4.567965026
A15: Terciaria incompleta | C15: 7.702012538 | D15: 18.07893037 | E15: 9.640979827 | F15: 7.454557685 | G15: 5.81829545 | H15: 4.796471373 | I15: 2.803597243
A16: Terciaria completa | C16: 11.00578333 | D16: 10.0745444 | E16: 14.10422784 | F16: 12.61693918 | G16: 11.11455401 | H16: 9.810746585 | I16: 6.340751148
A17: Fuentes:Elaboración propia en base a la ECH 2013. Nota:Todo el país (Año 2013)

Sheet I.2.1.1
A1: Ministerio de Educación y Cultura Dirección de Educación
A3: Cuadro I-2.1.1 TASA NETA DE MATRICULACIÓN ENTRE LOS NIÑOS DE 3 A 5 AÑOS POR AÑO LECTIVO Y TRAMOS DE EDAD. AÑO 2013.
A4: TRAMOS DE EDAD | B4: AÑO LECTIVO | G4: TOTAL
B5: 2008 | C5: 2009 | D5: 2010 | E5: 2011 | F5: 2012 | G5: 2013
A6: 3 a 5 años | B6: 76.8 | C6: 81.2 | D6: 81.9 | E6: 81.5 | F6: 83.9 | G6: 84.4
A7: 4 y 5 años | B7: 88.9 | C7: 92 | D7: 91.9 | E7: 91.2 | F7: 93.6 | G7: 94.4
A8: Fuente: Elaboración propia en base en las ECH 2008 a 2013.

Sheet I.2.2.1
A1: Ministerio de Educación y Cultura Dirección de Educación
A3: Cuadro I-2.2.1 MATRÍCULA EN EDUCACIÓN PRIMARIA ESPECIAL SEGÚN REGIÓN Y FORMA DE ADMINISTRACIÓN. AÑO 2013.
A4: REGIÓN Y FORMA DE ADMINISTRACIÓN | B4: Cantidad absoluta | C4: Porcentaje
A5: TOTAL | B5: =SUM(B8+B9) -> 9953 | C5: =SUM(C8+C9) -> 100
A7: GRANDES ÁREAS
A8: Montevideo | B8: 4577 | C8: =B8*100/B$5 -> 45.98613483
A9: Resto del país | B9: 5376 | C9: =B9*100/B$5 -> 54.01386517
A10: FORMA DE ADMINISTRACIÓN
A11: Público | B11: 6813 | C11: =B11*100/B$5 -> 68.4517231
A12: Privado | B12: 3140 | C12: =B12*100/B$5 -> 31.5482769
A13: Fuente: Elaboración propia en base a información del Departamento de Estadística del CEIP.

Sheet I.2.2.2
A1: Ministerio de Educación y Cultura Dirección de Educación
A3: Cuadro I-2.2.2 MATRÍCULA EN EDUCACIÓN PRIMARIA PÚBLICA COMÚN POR AÑO LECTIVO SEGÚN ÁREAS DEMOGRÁFICAS. AÑOS 2001 A 2013.
A5: ÁREAS DEMOGRÁFICAS | B5: AÑO LECTIVO
B6: 2000 | C6: 2001 | D6: 2002 | E6: 2003 | F6: 2004 | G6: 2005 | H6: 2006 | I6: 2007 | J6: 2008 | K6: 2009 | L6: 2010 | M6: 2011 | N6: 2012 | O6: 2013
A7: TOTAL | B7: =SUM(B9+B8) -> 301182 | C7: =SUM(C9+C8) -> 304452 | D7: 307756 | E7: 311141 | F7: 311350 | G7: 309286 | H7: 306030 | I7: 300143 | J7: 292542 | K7: 286092 | L7: 279445 | M7: 273440 | N7: 266349 | O7: 261188
A8: Urbana | B8: 285077 | C8: 288168 | D8: 291484 | E8: 294182 | F8: 293879 | G8: 292143 | H8: 285826 | I8: 280554 | J8: 273491 | K8: 267638 | L8: 262192 | M8: 256775 | N8: 249885 | O8: 245840
A9: Rural | B9: 16105 | C9: 16284 | D9: 16272 | E9: 16959 | F9: 17471 | G9: 17143 | H9: 20204 | I9: 19589 | J9: 19051 | K9: 18454 | L9: 17253 | M9: 16665 | N9: 16464 | O9: 15348
A10: % Urbana | B10: 94.7 | C10: 94.7 | D10: 94.7 | E10: 94.5 | F10: 94.4 | G10: 94.5 | H10: 93.4 | I10: 93.5 | J10: 93.5 | K10: 93.6 | L10: 93.8 | M10: 93.9 | N10: 93.81863645 | O10: =O8*100/O7 -> 94.12377291
A11: Fuente: Elaboración propia en base a información del Departamento de Estadística del CEIP.

Sheet I.2.2.3
A1: Ministerio de Educación y Cultura Dirección de Educación
A3: Cuadro I-2.2.3 PORCENTAJE DE ASISTENCIA INSUFICIENTE Y ABANDONO INTERMITENTE DE 1.º A 6.º GRADO EN EDUCACIÓN PRIMARIA COMÚN PÚBLICA SEGÚN REGIONES Y CONTEXTO 1er QUINTIL Y QUINTIL MAYOR. AÑO 2013.
B4: ASISTENCIA INSUFICIENTE | C4: ABANDONO INTERMITENTE
A5: TOTAL | B5: 8.7 | C5: 0.7
A6: MONTEVIDEO | B6: 15.6 | C6: 1.1
A7: RESTO DEL PAÍS | B7: 5.7 | C7: 0.6
A8: 1Quintil-Urbano | B8: 14.5 | C8: 1.2
A9: 1Quintil-Rural | B9: 5.6 | C9: 0.6
A10: 5Quintil-Urbano | B10: 4.4 | C10: 0.4
A11: 5Quintil-Rural | B11: 5.5 | C11: 1.3
A12: Fuente: Monitor Educativo de Enseñanza Estado de Situación 2013.

Sheet I.2.3.1
A1: Ministerio de Educación y Cultura Dirección de Educación
A3: Cuadro I-2.3.1 PORCENTAJE DE PROMOCIÓN, NO PROMOCIÓN Y DESVINCULACIÓN DE 1º A 3º GRADO DE EDUCACIÓN MEDIA BÁSICA TÉCNICO PROFESIONAL PÚBLICA SEGÚN TIPO DE CURSO. AÑO 2013.
A4: TIPO DE CURSO | B4: % DE PROMOCIÓN | C4: % DE NO PROMOCIÓN | D4: % DE DESVINCULADOS | E4: TOTAL
A5: TOTAL | B5: 62.7 | C5: 16.3 | D5: 20.9 | E5: =B5+C5+D5 -> 99.9
A6: Articulación Educación Media Básica | B6: 0.342 | C6: 0.101 | D6: 0.558 | E6: =B6+C6+D6 -> 1.001
A7: Ciclo Básico Tecnológico | B7: 0.62 | C7: 0.203 | D7: 0.176 | E7: =B7+C7+D7 -> 0.999
A8: C.B.T Agrario | B8: 0.849 | C8: 0.034 | D8: 0.116 | E8: =B8+C8+D8 -> 0.999
A9: Formación Profesional Básica 2007 | B9: 0.64 | C9: 0.118 | D9: 0.242 | E9: =B9+C9+D9 -> 1
A10: Fuente: Departamento de Estadística del CETP

Sheet I.2.3.2
A1: Ministerio de Educación y Cultura Dirección de Educación
A3: Cuadro I-2.3.2 PORCENTAJE DE PROMOCIÓN, NO PROMOCIÓN Y DESVINCULACIÓN DE 1º A 3º GRADO DE EDUCACIÓN MEDIA BÁSICA TÉCNICO PROFESIONAL PÚBLICA SEGÚN DEPARTAMENTO. AÑO 2013.
A4: TIPO DE CURSO | B4: % DE PROMOCIÓN | C4: % DE NO PROMOCIÓN | D4: % DE DESVINCULADOS | E4: TOTAL
A5: Artigas | B5: 0.562 | C5: 0.189 | D5: 0.25 | E5: =B5+C5+D5 -> 1.001
A6: Canelones | B6: 0.64 | C6: 0.156 | D6: 0.203 | E6: 0.999
A7: Cerro Largo | B7: 0.687 | C7: 0.116 | D7: 0.198 | E7: 1.001
A8: Colonia | B8: 0.616 | C8: 0.173 | D8: 0.211 | E8: 1
A9: Durazno | B9: 0.716 | C9: 0.126 | D9: 0.158 | E9: 1
A10: Flores | B10: 0.558 | C10: 0.194 | D10: 0.247 | E10: 0.999
A11: Florida | B11: 0.554 | C11: 0.205 | D11: 0.241 | E11: 1
A12: Lavalleja | B12: 0.618 | C12: 0.203 | D12: 0.179 | E12: 1
A13: Maldonado | B13: 0.663 | C13: 0.145 | D13: 0.192 | E13: 1
A14: Montevideo | B14: 0.564 | C14: 0.181 | D14: 0.255 | E14: 1
A15: Paysandú | B15: 0.737 | C15: 0.133 | D15: 0.13 | E15: 1
A16: Rfo Negro | B16: 0.675 | C16: 0.165 | D16: 0.16 | E16: 1
A17: Rivera | B17: 0.629 | C17: 0.139 | D17: 0.231 | E17: 0.999
A18: Rocha | B18: 0.48 | C18: 0.233 | D18: 0.287 | E18: 1
A19: Salto | B19: 0.699 | C19: 0.12 | D19: 0.181 | E19: 1
A20: San Jose | B20: 0.611 | C20: 0.185 | D20: 0.204 | E20: 1
A21: Soriano | B21: 0.635 | C21: 0.189 | D21: 0.175 | E21: 0.999
A22: Tacuarembó | B22: 0.657 | C22: 0.134 | D22: 0.209 | E22: 1
A23: Treinta y Tres | B23: 0.666 | C23: 0.159 | D23: 0.175 | E23: 1
A24: Fuente: Departamento de Estadística del CETP

Sheet I.2.3.3
A1: Ministerio de Educación y Cultura Dirección de Educación
A3: Cuadro I-2.3.3 PORCENTAJE DE PROMOCIÓN, NO PROMOCIÓN Y DESVINCULACIÓN DE 1º A 3º GRADO DE EDUCACIÓN MEDIA SUPERIOR TÉCNICO PROFESIONAL PÚBLICA SEGÚN TIPO DE CURSO. AÑO 2013.
A4: TIPO DE CURSO | B4: % DE PROMOCIÓN | C4: % DE NO PROMOCIÓN | D4: % DE DESVINCULADOS | E4: TOTAL
A5: TOTAL | B5: 63.4 | C5: 11.1 | D5: 25.5 | E5: =B5+C5+D5 -> 100
A6: Curso Técnico | B6: 0.633 | C6: 0.079 | D6: 0.288 | E6: =B6+C6+D6 -> 1
A7: Formación Profesional Superior | B7: 0.569 | C7: 0.072 | D7: 0.359 | E7: =B7+C7+D7 -> 1
A8: E.M.P. Especialización | B8: 0.443 | C8: 0.557 | D8: 0 | E8: 1
A9: Educación Media Profesional | B9: 0.619 | C9: 0.081 | D9: 0.3 | E9: 1
A10: Educación Media Tecnológica | B10: 0.644 | C10: 0.128 | D10: 0.227 | E10: 0.999
A11: Bachillerato Profesional | B11: 0.615 | C11: 0.119 | D11: 0.265 | E11: 0.999
A12: Bachillerato Figari | B12: 0.634 | C12: 0.169 | D12: 0.197 | E12: 1
A13: Fuente: Departamento de Estadística del CETP

Sheet I.2.3.4
A1: Ministerio de Educación y Cultura Dirección de Educación
A3: Cuadro I-2.3.4 PORCENTAJE DE PROMOCIÓN, NO PROMOCIÓN Y DESVINCULACIÓN DE 1º A 3º GRADO DE EDUCACIÓN MEDIA SUPERIOR TÉCNICO PROFESIONAL PÚBLICA SEGÚN DEPARTAMENTO. AÑO 2013.
A4: TIPO DE CURSO | B4: % DE PROMOCIÓN | C4: % DE NO PROMOCIÓN | D4: % DE DESVINCULADOS | E4: TOTAL
A5: Artigas | B5: 0.679 | C5: 0.109 | D5: 0.212 | E5: =B5+C5+D5 -> 1
A6: Canelones | B6: 0.63 | C6: 0.086 | D6: 0.284 | E6: 1
A7: Cerro Largo | B7: 0.69 | C7: 0.066 | D7: 0.243 | E7: 0.999
A8: Colonia | B8: 0.746 | C8: 0.061 | D8: 0.193 | E8: 1
A9: Durazno | B9: 0.597 | C9: 0.082 | D9: 0.322 | E9: 1.001
A10: Flores | B10: 0.732 | C10: 0.1 | D10: 0.167 | E10: 0.999
A11: Florida | B11: 0.732 | C11: 0.05 | D11: 0.218 | E11: 1
A12: Lavalleja | B12: 0.769 | C12: 0.045 | D12: 0.185 | E12: 0.999
A13: Maldonado | B13: 0.654 | C13: 0.082 | D13: 0.264 | E13: 1
A14: Montevideo | B14: 0.582 | C14: 0.149 | D14: 0.268 | E14: =B14+C14+D14 -> 0.999
A15: Paysandú | B15: 0.733 | C15: 0.059 | D15: 0.209 | E15: 1.001
A16: Rfo Negro | B16: 0.651 | C16: 0.114 | D16: 0.235 | E16: 1
A17: Rivera | B17: 0.69 | C17: 0.074 | D17: 0.236 | E17: 1
A18: Rocha | B18: 0.632 | C18: 0.063 | D18: 0.305 | E18: 1
A19: Salto | B19: 0.66 | C19: 0.102 | D19: 0.238 | E19: 1
A20: San Jose | B20: 0.696 | C20: 0.075 | D20: 0.229 | E20: 1
A21: Soriano | B21: 0.665 | C21: 0.102 | D21: 0.234 | E21: 1.001
A22: Tacuarembó | B22: 0.659 | C22: 0.099 | D22: 0.243 | E22: 1.001
A23: Treinta y Tres | B23: 0.566 | C23: 0.108 | D23: 0.327 | E23: 1.001
A24: Fuente: Departamento de Estadística del CETP

Sheet I.2.4.1
A1: Ministerio de Educación y Cultura Dirección de Educación
A3: Cuadro I-2.4.1. ESTABLECIMIENTOS DE EDUCACIÓN TÉCNICO PROFESIONAL POR NIVEL EDUCATIVO IMPARTIDO EN EL ESTABLECIMIENTO SEGÚN GRANDES ÁREAS. AÑO 2013.
B4: TOTAL | C4: GRANDES ÁREAS
C5: Resto del País | D5: Montevideo
A6: TOTAL | B6: =C6+D6 -> 252 | C6: 194 | D6: 58
A7: básica | B7: 38 | C7: 29 | D7: 9
A8: basica y superior | B8: 13 | C8: 13 | D8: 0
A9: superior | B9: 13 | C9: 12 | D9: 1
A10: terciaria | B10: 59 | C10: 43 | D10: 16
A11: jya | B11: 8 | C11: 4 | D11: 4
A12: superior y terciaria | B12: 7 | C12: 5 | D12: 2
A13: superior y jya | B13: 13 | C13: 8 | D13: 5
A14: basico superior y jya | B14: 33 | C14: 24 | D14: 9
A15: superior terc y jya | B15: 12 | C15: 4 | D15: 8
A16: basico superior y terciaria | B16: 3 | C16: 1 | D16: 2
A17: basico superior jya y terciaria | B17: 44 | C17: 42 | D17: 2
A18: terciaria y jya | B18: 2 | C18: 2 | D18: 0
A19: basica y jya | B19: 7 | C19: 7 | D19: 0
A21: Fuente: Departamento de Estadísticas CETP-UTU
A22: Nota: Dentro de la cantidad de establecimentos declarados se encuentran 126 reparticiones denominadas satélites en las cuales se imparten cursos administrados por el CETP. Estos son establecimientos que no forman parte de los activos de ANEP.

Sheet I.2.4.2
A1: Ministerio de Educación y Cultura Dirección de Educación
A3: Cuadro I.2.4.2 ALUMNOS MATRICULADOS EN EDUCACIÓN TÉCNICA POR GRANDES ÁREAS Y SEXO SEGÚN NIVEL Y TIPO DE CURSO. AÑO 2013.
A4: NIVEL DEL CURSO | C4: GRANDES ÁREAS
C5: TOTAL | F5: MONTEVIDEO | I5: RESTO DEL PAÍS
D6: Sexo | G6: Sexo | J6: Sexo
C7: Total | D7: Femenino | E7: Masculino | F7: Total | G7: Femenino | H7: Masculino | I7: Total | J7: Femenino | K7: Masculino
A8: TOTAL | C8: =D8+E8 -> 85212 | D8: =SUM(D9:D12) -> 38612 | E8: =SUM(E9:E12) -> 46600 | F8: =G8+H8 -> 31070 | G8: =SUM(G9:G12) -> 14078 | H8: =SUM(H9:H12) -> 16992 | I8: =J8+K8 -> 54142 | J8: =SUM(J9:J12) -> 24534 | K8: =SUM(K9:K12) -> 29608
A9: Educación Media Básica | C9: =+D9+E9 -> 29074 | D9: =+G9+J9 -> 11608 | E9: 17466 | F9: =+G9+H9 -> 5117 | G9: 2065 | H9: 3052 | I9: =+J9+K9 -> 23957 | J9: 9543 | K9: 14414
A10: Educación Media Superior | C10: =+D10+E10 -> 38995 | D10: 17460 | E10: 21535 | F10: =+G10+H10 -> 16673 | G10: 6769 | H10: 9904 | I10: =+J10+K10 -> 22322 | J10: 10691 | K10: 11631
A11: Nivel de Formación Profesional | C11: =+D11+E11 -> 8632 | D11: 4346 | E11: 4286 | F11: =+G11+H11 -> 4034 | G11: 1933 | H11: 2101 | I11: =+J11+K11 -> 4598 | J11: 2413 | K11: 2185
A12: Nivel Terciario | C12: =+D12+E12 -> 8511 | D12: 5198 | E12: 3313 | F12: =+G12+H12 -> 5246 | G12: 3311 | H12: 1935 | I12: =+J12+K12 -> 3265 | J12: 1887 | K12: 1378
A13: Fuente: Elaboración propia en base a información del Departamento de Estadísticas CETP - U.T.U
A14: Nota: La presente clasificación de niveles refiere a la adoptada por el CETP (UTU) y no a la presentada en otros apartados, que se organiza en base a los niveles del artículo 22 de la Ley General de Educación 18.437. El lector deberá tenerpresente estas condicionantes de la clasificación, ya que se producen diferencias en los valores que se observan en otros apartados y capítulos.

Sheet I.2.4.3
A1: Ministerio de Educación y Cultura Dirección de Educación Área de Investigación y Estadística
A3: Cuadro I.2.4.3 ALUMNOS MATRICULADOS EN EDUCACIÓN MEDIA, TÉCNICA Y TERCIARIA POR NIVEL DEL CURSO SEGÚN SECTORES DE ESTUDIO. AÑO 2013.
A4: ÁREAS DE ESTUDIO | C4: TOTAL | D4: NIVEL DEL CURSO
D5: Educación Media Básica | E5: Educación Media Superior | F5: Nivel de Formación Profesional | G5: Nivel Terciario
A6: TOTAL | C6: =SUM(D6:G6) -> 85212 | D6: =SUM(D7:D15) -> 29074 | E6: =SUM(E7:E15) -> 38995 | F6: =SUM(F7:F15) -> 8632 | G6: =SUM(G7:G15) -> 8511
A7: Agricultura y Pesca | C7: =SUM(D7:G7) -> 3421 | D7: 285 | E7: 2364 | F7: 244 | G7: 528
A8: Artes y Artesanías | C8: =SUM(D8:G8) -> 1169 | D8: 0 | E8: 183 | F8: 986 | G8: 0
A9: Comercio y Administración | C9: 15624 | D9: 0 | E9: 12504 | F9: 1600 | G9: 1520
A10: Comunicación | C10: 972 | D10: 0 | E10: 0 | F10: 0 | G10: 972
A11: Construcción | C11: 3051 | D11: 205 | E11: 2146 | F11: 443 | G11: 257
A12: Industria | C12: 22322 | D12: 4756 | E12: 8916 | F12: 3962 | G12: 4688
A13: Informática | C13: 7133 | D13: 937 | E13: 5930 | F13: 0 | G13: 266
A14: Programas Generales | C14: 18858 | D14: 18858 | E14: 0 | F14: 0 | G14: 0
A15: Servicios | C15: 12662 | D15: 4033 | E15: 6952 | F15: 1397 | G15: 280
A16: Fuente:Departamento de Estadísticas CETP - U.T.U

Sheet I.2.7.1
A1: Ministerio de Educación y Cultura Dirección de Educación
A3: Cuadro I-2.7.1
A4: EVOLUCIÓN DE LA MATRÍCULA DE LAS INSTITUCIONES UNIVERSITARIAS (2000 – 2013)
A5: INSTITUCIONES | B5: AÑO LECTIVO
A6: UNIVERSITARIAS | B6: 2000 | C6: 2001 | D6: 2002 | E6: 2003 | F6: 2004 | G6: 2005 | H6: 2006 | I6: 2007 | J6: 2008 | K6: 2009 | L6: 2010 | M6: 2011 | N6: 2012 | O6: 2013
A8: TOTAL | B8: =B10+B19 -> 78634 | C8: 79678 | D8: 79761 | E8: 79862 | F8: 79650 | G8: 85019 | H8: 86802 | I8: 131000 | J8: 132925 | K8: 133699 | L8: =L10+L19 -> 135288 | M8: =M10+M19+M32 -> 136946 | N8: 155916 | O8: =O10+O19+O32 -> 156818
A10: Total Universidades | B10: =B12+B14 -> 78233 | C10: 79292 | D10: 79305 | E10: 79396 | F10: 79057 | G10: 83621 | H10: 85153 | I10: 129122 | J10: 130136 | K10: 131409 | L10: 132726 | M10: 133910 | N10: 153627 | O10: =O12+O14 -> 154541
A12: UdelaR | B12: 70156 | C12: 70156 | D12: 70156 | E12: 70156 | F12: 70156 | G12: 70156 | H12: 70156 | I12: 112891 | J12: 112891 | K12: 112891 | L12: 112891 | M12: =112891 -> 112891 | N12: 130941 | O12: 130941
A14: Universidades privadas | B14: =SUM(B15:B18) -> 8077 | C14: 9136 | D14: 9149 | E14: 9240 | F14: 8901 | G14: 13465 | H14: 14997 | I14: 16231 | J14: 17245 | K14: 18518 | L14: 19835 | M14: 21019 | N14: 22686 | O14: =SUM(O15:O18) -> 23600
A15: Univ Católica del Uruguay | B15: 4057 | C15: 4180 | D15: 3591 | E15: 3849 | F15: 3286 | G15: 5580 | H15: 5911 | I15: 6401 | J15: 7126 | K15: 7227 | L15: 7996 | M15: =6655+2244 -> 8899 | N15: 9478 | O15: 9402
A16: Univ ORT Uruguay | B16: 3445 | C16: 3572 | D16: 3900 | E16: 3777 | F16: 3827 | G16: 5674 | H16: 5863 | I16: 6118 | J16: 6442 | K16: 7202 | L16: 7199 | M16: =6991+631 -> 7622 | N16: 7511 | O16: 8208
A17: Univ de la Empresa | B17: n/c | C17: 609 | D17: 909 | E17: 790 | F17: 872 | G17: 911 | H17: 1611 | I17: 1756 | J17: 1739 | K17: 2064 | L17: 2465 | M17: =1667+472 -> 2139 | N17: 3475 | O17: 3743
A18: Univ de Montevideo | B18: 575 | C18: 775 | D18: 749 | E18: 824 | F18: 916 | G18: 1300 | H18: 1612 | I18: 1956 | J18: 1938 | K18: 2025 | L18: 2175 | M18: =1780+579 -> 2359 | N18: 2222 | O18: 2247
A19: Total Institutos Universitarios | B19: =SUM(B20:B31) -> 401 | C19: 386 | D19: 456 | E19: 466 | F19: 593 | G19: 1398 | H19: 1649 | I19: 1878 | J19: 2789 | K19: 2290 | L19: 2562 | M19: 2930 | N19: 2132 | O19: =SUM(O20:O31) -> 2132
A20: IU Autónomo del Sur | B20: 215 | C20: 211 | D20: 218 | E20: 184 | F20: 195 | G20: 318 | H20: 428 | I20: 414 | J20: 428 | K20: 515 | L20: 605 | M20: 691 | N20: n/c | O20: n/c
A21: IU Asoc Cristiana de Jóvenes | B21: n/c | C21: 93 | D21: 140 | E21: 141 | F21: 184 | G21: 407 | H21: 508 | I21: 449 | J21: 352 | K21: 346 | L21: 427 | M21: 515 | N21: 587 | O21: 639
A22: IU CLAEH | B22: n/c | C22: n/c | D22: n/c | E22: 39 | F22: 91 | G22: 283 | H22: 412 | I22: 483 | J22: 483 | K22: 740 | L22: 651 | M22: =354+352 -> 706 | N22: 532 | O22: 607
A23: IU Monseñor Mariano Soler | B23: n/c | C23: n/c | D23: n/c | E23: n/c | F23: 59 | G23: 65 | H23: 50 | I23: 83 | J23: 54 | K23: 50 | L23: 42 | M23: 61 | N23: 61 | O23: 59
A24: IU Asoc Psico del Uruguay | B24: n/c | C24: n/c | D24: n/c | E24: n/c | F24: 35 | G24: 25 | H24: 31 | I24: 29 | J24: 34 | K24: 38 | L24: 40 | M24: 48 | N24: 42 | O24: 45
A25: IU Crandon * | B25: n/c | C25: n/c | D25: n/c | E25: n/c | F25: 29 | G25: 60 | H25: 59 | I25: 72 | J25: 21 | K25: 89 | L25: 78 | M25: =48+9 -> 57 | N25: 48 | O25: 41
A26: IU San Francisco de Asis | B26: n/c | C26: n/c | D26: n/c | E26: n/c | F26: n/c | G26: 83 | H26: 161 | I26: 202 | J26: 202 | K26: 237 | L26: 380 | M26: 489 | N26: 441 | O26: 435
A27: IU Maldonado – P del Este | B27: 16 | C27: n/c | D27: n/c | E27: n/c | F27: n/c | G27: n/c | H27: n/c | I27: n/c | J27: 1017 | K27: n/c | L27: n/c | M27: n/c | N27: n/c | O27: n/c
A28: Fundación Politécnico Punta del Este | B28: n/c | C28: n/c | D28: n/c | E28: n/c | F28: n/c | G28: n/c | H28: n/c | I28: n/c | J28: n/c | K28: n/c | L28: n/c | M28: n/c | N28: 42 | O28: 41
A29: Instituto Universitario BIOS | B29: n/c | C29: n/c | D29: n/c | E29: n/c | F29: n/c | G29: 157 | H29: n/c | I29: 146 | J29: 198 | K29: 112 | L29: 109 | M29: 94 | N29: 68 | O29: n/c
A30: Instituto Florence Nightingale (INSADE) | B30: 170 | C30: 48 | D30: 48 | E30: 53 | F30: n/c | G30: n/c | H30: n/c | I30: n/c | J30: n/c | K30: n/c | L30: n/c | M30: n/c | N30: n/c | O30: n/c
A31: IU CEDIIAP | B31: n/c | C31: 34 | D31: 50 | E31: 49 | F31: s/d | G31: s/d | H31: s/d | I31: s/d | J31: s/d | K31: 163 | L31: 230 | M31: =227+42 -> 269 | N31: 311 | O31: 265
A32: Total Área Seguridad y Defensa | B32: n/c | C32: n/c | D32: n/c | E32: n/c | F32: n/c | G32: n/c | H32: n/c | I32: n/c | J32: n/c | K32: n/c | L32: n/c | M32: =SUM(M33:M36) -> 106 | N32: =SUM(N33:N36) -> 157 | O32: =SUM(O33:O36) -> 145
A33: Escuela de Policía | B33: n/c | C33: n/c | D33: n/c | E33: n/c | F33: n/c | G33: n/c | H33: n/c | I33: n/c | J33: n/c | K33: n/c | L33: n/c | M33: s/d | N33: 77 | O33: 52
A34: Escuela Naval | B34: n/c | C34: n/c | D34: n/c | E34: n/c | F34: n/c | G34: n/c | H34: n/c | I34: n/c | J34: n/c | K34: n/c | L34: n/c | M34: s/d | N34: 25 | O34: s/d
A35: CALEN | B35: n/c | C35: n/c | D35: n/c | E35: n/c | F35: n/c | G35: n/c | H35: n/c | I35: n/c | J35: n/c | K35: n/c | L35: n/c | M35: 106 | N35: 55 | O35: 62
A36: Escuela de Guerra Naval | B36: n/c | C36: n/c | D36: n/c | E36: n/c | F36: n/c | G36: n/c | H36: n/c | I36: n/c | J36: n/c | K36: n/c | L36: n/c | M36: n/c | N36: n/c | O36: 31
A37: Fuentes: Oficinas productoras de cada una de las instituciones
A38: Nota: UdelaR incluye tecnicaturas y grado, no incluye matrícula de postgrados. La matrícula es la correspondiente al año 2012
A39: Las Universidades privadas e Institutos Universitarios incluyen grado y postgrado.
A40: El instituto CEDIIAP no reportó la información correspondiente al año 2000 y al período 2004-2008.
A41: El Instituto Universitario "Instituto de Estudios para la Salud y el Desarrollo Forence Ninghtingale" (INSADE), que registra actividad en los años 2000 a 2003 de la serie presentada, luego no reportó información, por lo cual fue retirado de la tabla. Sin embargo, la matricula correspondiente a dichos años sigue incluida en el item "Total de Institutos Universitarios".

Sheet I.2.7.2
A1: Ministerio de Educación y Cultura Dirección de Educación
A3: Cuadro I-2.7.2
A4: INGRESOS A INSTITUCIONES UNIVERSITARIAS POR AÑO LECTIVO SEGÚN ÁREA DE CONOCIMIENTO. AÑOS 2000 A 2013.
A5: ÁREA DE CONOCIMIENTO | B5: AÑO LECTIVO
B6: 2000 | C6: 2001 | D6: 2002 | E6: 2003 | F6: 2004 | G6: 2005 | H6: 2006 | I6: 2007 | J6: 2008 | K6: 2009 | L6: 2010 | M6: 2011 | N6: 2012 | O6: 2013
A7: TOTAL | B7: =SUM(B8:B28) -> 18131 | C7: 19265 | D7: 20090 | E7: 21169 | F7: 21558 | G7: 21964 | H7: 22798 | I7: 23014 | J7: 23566 | K7: 24981 | L7: 26253 | M7: 26283 | N7: 26854 | O7: =SUM(O8:O29) -> 32178
A8: Agricultura, silvicultura y pesca | B8: 210 | C8: 225 | D8: 176 | E8: 252 | F8: 283 | G8: 398 | H8: 362 | I8: 414 | J8: 436 | K8: 638 | L8: 806 | M8: 864 | N8: 608 | O8: 724
A9: Arquitectura y construcción | B9: 788 | C9: 704 | D9: 756 | E9: 645 | F9: 602 | G9: 628 | H9: 648 | I9: 665 | J9: 646 | K9: 832 | L9: 770 | M9: 754 | N9: 688 | O9: 932
A10: Artes | B10: 488 | C10: 539 | D10: 574 | E10: 642 | F10: 710 | G10: 809 | H10: 744 | I10: 752 | J10: 746 | K10: 839 | L10: 1219 | M10: 997 | N10: 895 | O10: 1205
A11: Ciencias de la vida | B11: 474 | C11: 492 | D11: 515 | E11: 633 | F11: 815 | G11: 785 | H11: 955 | I11: 939 | J11: 818 | K11: 581 | L11: 650 | M11: 649 | N11: 473 | O11: 489
A12: Ciencias físicas | B12: 505 | C12: 374 | D12: 545 | E12: 540 | F12: 653 | G12: 624 | H12: 771 | I12: 653 | J12: 687 | K12: 760 | L12: 636 | M12: 667 | N12: 711 | O12: 877
A13: Ciencias sociales y del comportamiento | B13: 2965 | C13: 2466 | D13: 3152 | E13: 2933 | F13: 3126 | G13: 3353 | H13: 2987 | I13: 3057 | J13: 4830 | K13: 5692 | L13: 5936 | M13: 5399 | N13: 3774 | O13: 5044
A14: Derecho | B14: 2378 | C14: 2033 | D14: 2047 | E14: 2087 | F14: 1828 | G14: 2000 | H14: 1837 | I14: 1754 | J14: 1850 | K14: 1855 | L14: 2031 | M14: 2005 | N14: 2911 | O14: 3104
A15: Docencia y ciencias de la educación | B15: 315 | C15: 505 | D15: 542 | E15: 588 | F15: 515 | G15: 766 | H15: 911 | I15: 901 | J15: 941 | K15: 709 | L15: 800 | M15: 785 | N15: 957 | O15: 769
A16: Enseñanza comercial y administración | B16: 2546 | C16: 4252 | D16: 3903 | E16: 4132 | F16: 3942 | G16: 3828 | H16: 4292 | I16: 4885 | J16: 3127 | K16: 3253 | L16: 4176 | M16: 3661 | N16: 5462 | O16: 5657
A17: Humanidades | B17: 568 | C17: 663 | D17: 709 | E17: 803 | F17: 899 | G17: 967 | H17: 1038 | I17: 889 | J17: 909 | K17: 791 | L17: 541 | M17: 707 | N17: 806 | O17: 1100
A18: Industria y producción | B18: 43 | C18: 151 | D18: 172 | E18: 214 | F18: 247 | G18: 114 | H18: 141 | I18: 104 | J18: 111 | K18: 115 | L18: 116 | M18: 219 | N18: 383 | O18: 441
A19: Informática | B19: 792 | C19: 701 | D19: 749 | E19: 790 | F19: 813 | G19: 843 | H19: 917 | I19: 962 | J19: 1186 | K19: 1248 | L19: 1319 | M19: 1280 | N19: 1128 | O19: 1366
A20: Ingeniería y profesiones afines | B20: 720 | C20: 676 | D20: 672 | E20: 752 | F20: 767 | G20: 570 | H20: 701 | I20: 633 | J20: 671 | K20: 686 | L20: 856 | M20: 828 | N20: 891 | O20: 1494
A21: Matemáticas y estadística | B21: 107 | C21: 142 | D21: 113 | E21: 131 | F21: 324 | G21: 244 | H21: 328 | I21: 329 | J21: 238 | K21: 218 | L21: 155 | M21: 176 | N21: 132 | O21: 171
A22: Medicina | B22: 3673 | C22: 3817 | D22: 3573 | E22: 3960 | F22: 4135 | G22: 3633 | H22: 3572 | I22: 3562 | J22: 3888 | K22: 4823 | L22: 4361 | M22: 4656 | N22: 4785 | O22: 6307
A23: Periodismo e información | B23: 945 | C23: 838 | D23: 1118 | E23: 1174 | F23: 972 | G23: 1170 | H23: 1219 | I23: 1036 | J23: 1038 | K23: 1049 | L23: 816 | M23: 1218 | N23: 1027 | O23: 1026
A24: Protección del medio ambiente | B24: n/c | C24: n/c | D24: n/c | E24: n/c | F24: n/c | G24: n/c | H24: n/c | I24: n/c | J24: n/c | K24: n/c | L24: n/c | M24: 6 | N24: 43 | O24: 151
A25: Servicios personales | B25: 8 | C25: 0 | D25: 0 | E25: 14 | F25: 8 | G25: 0 | H25: 318 | I25: 328 | J25: 331 | K25: 272 | L25: 411 | M25: 327 | N25: 491 | O25: 128
A26: Servicios de seguridad | B26: n/c | C26: n/c | D26: n/c | E26: n/c | F26: n/c | G26: n/c | H26: n/c | I26: n/c | J26: n/c | K26: n/c | L26: n/c | M26: s/d | N26: 102 | O26: 639
A27: Servicios sociales | B27: 311 | C27: 367 | D27: 457 | E27: 498 | F27: 508 | G27: 724 | H27: 573 | I27: 626 | J27: 594 | K27: 87 | L27: 146 | M27: 82 | N27: 0 | O27: 19
A28: Veterinaria | B28: 295 | C28: 320 | D28: 317 | E28: 381 | F28: 411 | G28: 508 | H28: 484 | I28: 525 | J28: 519 | K28: 533 | L28: 508 | M28: 578 | N28: 555 | O28: 535
A29: Otros | B29: n/c | C29: n/c | D29: n/c | E29: n/c | F29: n/c | G29: n/c | H29: n/c | I29: n/c | J29: n/c | K29: n/c | L29: 104 | M29: 327 | N29: 32 | O29: 0
A30: Fuente:Elaboración propia en base información de las oficinas productoras de las instituciones. Nota:Las áreas corresponden a la clasificación CINE 1997 de UNESCO.

Sheet I.2.7.3
A1: Ministerio de Educación y Cultura Dirección de Educación
A3: Cuadro I-2.7.3 EGRESOS DE INSTITUCIONES UNIVERSITARIAS POR AÑO LECTIVO SEGÚN ÁREA DE CONOCIMIENTO. AÑOS 2000 A 2013.
A4: INSTITUCIONES UNIVERSITARIAS | B4: AÑO LECTIVO
B5: 2000 | C5: 2001 | D5: 2002 | E5: 2003 | F5: 2004 | G5: 2005 | H5: 2006 | I5: 2007 | J5: 2008 | K5: 2009 | L5: 2010 | M5: 2011 | N5: 2012 | O5: 2013
A6: TOTAL | B6: =SUM(B7:B27) -> 4646 | C6: 4402 | D6: 5902 | E6: 5697 | F6: 6177 | G6: 5514 | H6: 6151 | I6: 6381 | J6: 7018 | K6: 7185 | L6: 7223 | M6: =SUM(M7:M27) -> 7808 | N6: 9101 | O6: =SUM(O7:O27) -> 9766
A7: Agricultura, silvicultura y pesca | B7: 226 | C7: 145 | D7: 164 | E7: 161 | F7: 213 | G7: 123 | H7: 126 | I7: 111 | J7: 164 | K7: 301 | L7: 279 | M7: 294 | N7: 216 | O7: 219
A8: Arquitectura y construcción | B8: 233 | C8: 136 | D8: 294 | E8: 208 | F8: 308 | G8: 437 | H8: 324 | I8: 303 | J8: 280 | K8: 275 | L8: 341 | M8: 349 | N8: 362 | O8: 401
A9: Artes | B9: 40 | C9: 33 | D9: 39 | E9: 60 | F9: 46 | G9: 42 | H9: 104 | I9: 120 | J9: 181 | K9: 184 | L9: 211 | M9: 162 | N9: 184 | O9: 177
A10: Ciencias de la vida | B10: 97 | C10: 62 | D10: 72 | E10: 73 | F10: 107 | G10: 108 | H10: 141 | I10: 137 | J10: 183 | K10: 169 | L10: 166 | M10: 240 | N10: 242 | O10: 177
A11: Ciencias físicas | B11: 110 | C11: 94 | D11: 153 | E11: 118 | F11: 162 | G11: 140 | H11: 105 | I11: 125 | J11: 143 | K11: 154 | L11: 158 | M11: 158 | N11: 141 | O11: 145
A12: Ciencias sociales y del comportamiento | B12: 381 | C12: 534 | D12: 739 | E12: 671 | F12: 655 | G12: 634 | H12: 689 | I12: 641 | J12: 923 | K12: 720 | L12: 746 | M12: 930 | N12: 1262 | O12: 1043
A13: Derecho | B13: 500 | C13: 613 | D13: 686 | E13: 676 | F13: 816 | G13: 781 | H13: 838 | I13: 777 | J13: 886 | K13: 806 | L13: 786 | M13: 910 | N13: 1013 | O13: 1041
A14: Enseñanza comercial y administración | B14: 914 | C14: 865 | D14: 1328 | E14: 1509 | F14: 1205 | G14: 918 | H14: 1032 | I14: 1071 | J14: 1135 | K14: 1289 | L14: 1280 | M14: 1239 | N14: 1999 | O14: 1869
A15: Formación de personal docente y ciencias de la educación | B15: 66 | C15: 61 | D15: 81 | E15: 120 | F15: 113 | G15: 136 | H15: 291 | I15: 372 | J15: 399 | K15: 275 | L15: 235 | M15: 246 | N15: 241 | O15: 397
A16: Humanidades | B16: 80 | C16: 33 | D16: 74 | E16: 33 | F16: 73 | G16: 64 | H16: 76 | I16: 75 | J16: 92 | K16: 90 | L16: 66 | M16: 75 | N16: 68 | O16: 115
A17: Industria y producción | B17: 0 | C17: 12 | D17: 8 | E17: 16 | F17: 10 | G17: 26 | H17: 16 | I17: 31 | J17: 33 | K17: 24 | L17: 27 | M17: 25 | N17: 45 | O17: 117
A18: Informática | B18: 285 | C18: 234 | D18: 257 | E18: 194 | F18: 237 | G18: 277 | H18: 235 | I18: 215 | J18: 242 | K18: 260 | L18: 250 | M18: 277 | N18: 288 | O18: 381
A19: Ingeniería y profesiones afines | B19: 133 | C19: 124 | D19: 187 | E19: 201 | F19: 224 | G19: 214 | H19: 200 | I19: 204 | J19: 194 | K19: 257 | L19: 222 | M19: 232 | N19: 275 | O19: 345
A20: Matemáticas y estadística | B20: 9 | C20: 4 | D20: 6 | E20: 9 | F20: 10 | G20: 12 | H20: 5 | I20: 13 | J20: 27 | K20: 19 | L20: 14 | M20: 11 | N20: 21 | O20: 19
A21: Medicina | B21: 1323 | C21: 1311 | D21: 1476 | E21: 1276 | F21: 1578 | G21: 1243 | H21: 1537 | I21: 1726 | J21: 1532 | K21: 1874 | L21: 1962 | M21: 1953 | N21: 2027 | O21: 2462
A22: Periodismo e información | B22: 120 | C22: 78 | D22: 208 | E22: 249 | F22: 289 | G22: 174 | H22: 191 | I22: 213 | J22: 234 | K22: 242 | L22: 201 | M22: 241 | N22: 280 | O22: 260
A23: Protección del medio ambiente | B23: s/d | C23: s/d | D23: s/d | E23: s/d | F23: s/d | G23: s/d | H23: s/d | I23: s/d | J23: s/d | K23: s/d | L23: s/d | M23: 5 | N23: 12 | O23: 10
A24: Servicios de Seguridad | B24: n/c | C24: n/c | D24: n/c | E24: n/c | F24: n/c | G24: n/c | H24: n/c | I24: n/c | J24: n/c | K24: n/c | L24: n/c | M24: s/d | N24: 41 | O24: 81
A25: Servicios personales | B25: 0 | C25: 0 | D25: 0 | E25: 16 | F25: 7 | G25: 19 | H25: 96 | I25: 145 | J25: 194 | K25: 67 | L25: 51 | M25: 181 | N25: 125 | O25: 210
A26: Servicios sociales | B26: 17 | C26: 14 | D26: 23 | E26: 18 | F26: 33 | G26: 48 | H26: 51 | I26: 47 | J26: 106 | K26: 88 | L26: 123 | M26: 148 | N26: 139 | O26: 151
A27: Veterinaria | B27: 112 | C27: 49 | D27: 107 | E27: 89 | F27: 91 | G27: 118 | H27: 94 | I27: 55 | J27: 70 | K27: 91 | L27: 105 | M27: 132 | N27: 120 | O27: 146
A28: Fuente: Elaboración propia en base a información brindada por las oficinas productoras de las instituciones. Nota: Las áreas corresponden a la clasificación CINE 1997 de UNESCO.

Sheet I.2.7.4
A1: Ministerio de Educación y Cultura Dirección de Educación
A3: Cuadro I.2.7.4 EGRESOS DE INSTITUCIONES UNIVERSITARIAS POR NIVEL ACADÉMICO SEGÚN ÁREA DE CONOCIMIENTO. AÑO 2013.
A5: INSTITUCIONES UNIVERSITARIAS | B5: NIVEL ACADÉMICO
B6: TOTAL | C6: % | D6: Carrera corta o tecnicatura | E6: Carrera de grado, licenciatura | F6: Postgrado de especialización | G6: Maestría | H6: Doctorado
A7: TOTAL | B7: =SUM(D7:H7) -> 9766 | C7: =SUM(C8:C28) -> 100 | D7: =SUM(D8:D28) -> 779 | E7: 7257 | F7: 1193 | G7: 491 | H7: 46
A8: Agricultura, silvicultura y pesca | B8: =SUM(D8:H8) -> 219 | C8: =(B8*100)/$B$7 -> 2.242473889 | D8: 0 | E8: 193 | F8: 1 | G8: 25 | H8: 0
A9: Arquitectura y construcción | B9: 401 | C9: 4.106082326 | D9: 3 | E9: 375 | F9: 23 | G9: 0 | H9: 0
A10: Artes | B10: 177 | C10: 1.812410403 | D10: 14 | E10: 163 | F10: 0 | G10: 0 | H10: 0
A11: Ciencias de la vida | B11: 177 | C11: 1.812410403 | D11: 12 | E11: 103 | F11: 0 | G11: 45 | H11: 17
A12: Ciencias físicas | B12: 145 | C12: 1.484742986 | D12: 18 | E12: 111 | F12: 0 | G12: 7 | H12: 9
A13: Ciencias sociales y del comportamiento | B13: 1043 | C13: 10.67990989 | D13: 3 | E13: 850 | F13: 124 | G13: 64 | H13: 2
A14: Derecho | B14: 1041 | C14: 10.65943068 | D14: 82 | E14: 933 | F14: 10 | G14: 16 | H14: 0
A15: Enseñanza comercial y administración | B15: 1869 | C15: 19.13782511 | D15: 200 | E15: 1270 | F15: 240 | G15: 159 | H15: 0
A16: Formación de personal docente y ciencias de la educación | B16: 397 | C16: 4.065123899 | D16: 20 | E16: 90 | F16: 227 | G16: 53 | H16: 7
A17: Humanidades | B17: 115 | C17: 1.177554782 | D17: 40 | E17: 63 | F17: 0 | G17: 12 | H17: 0
A18: Industria y producción | B18: 117 | C18: 1.198033995 | D18: 64 | E18: 20 | F18: 32 | G18: 1 | H18: 0
A19: Informática | B19: 381 | C19: 3.90129019 | D19: 42 | E19: 293 | F19: 26 | G19: 18 | H19: 2
A20: Ingeniería y profesiones afines | B20: 345 | C20: 3.532664346 | D20: 33 | E20: 283 | F20: 4 | G20: 19 | H20: 6
A21: Matemáticas y estadística | B21: 19 | C21: 0.1945525292 | D21: 0 | E21: 14 | F21: 0 | G21: 4 | H21: 1
A22: Medicina | B22: 2462 | C22: 25.20991194 | D22: 193 | E22: 1790 | F22: 420 | G22: 57 | H22: 2
A23: Periodismo e información | B23: 260 | C23: 2.662297768 | D23: 15 | E23: 242 | F23: 3 | G23: 0 | H23: 0
A24: Protección del medio ambiente | B24: 10 | C24: 0.102396068 | D24: 3 | E24: 1 | F24: 0 | G24: 6 | H24: 0
A25: Servicios de seguridad | B25: =SUM(D25:H25) -> 81 | C25: =(B25*100)/$B$7 -> 0.8294081507 | D25: 0 | E25: 21 | F25: 60 | G25: 0 | H25: 0
A26: Servicios personales | B26: 210 | C26: 2.150317428 | D26: 37 | E26: 173 | F26: 0 | G26: 0 | H26: 0
A27: Servicios sociales | B27: 151 | C27: 1.546180627 | D27: 0 | E27: 128 | F27: 23 | G27: 0 | H27: 0
A28: Veterinaria | B28: 146 | C28: 1.494982593 | D28: 0 | E28: 141 | F28: 0 | G28: 5 | H28: 0
A29: Fuente: Elaboración propia en base información de las oficinas productoras de las instituciones Nota: Las áreas corresponden a la clasificación CINE 1997 de UNESCO.

Sheet I.2.7.5
A1: Ministerio de Educación y Cultura Dirección de Educación
A3: Cuadro I-2.7.5 INGRESOS A INSTITUCIONES UNIVERSITARIAS POR NIVEL ACADÉMICO SEGÚN ÁREA DE CONOCIMIENTO. AÑO 2013.
A4: INSTITUCIONES UNIVERSITARIAS | B4: NIVEL ACADÉMICO
B5: TOTAL | D5: Carrera corta o tecnicatura | E5: Carrera de grado, licenciatura | F5: Postgrado de especialización | G5: Maestría | H5: Doctorado
A7: TOTAL | B7: =SUM(D7:H7) -> 30518 | C7: =SUM(C8:C28) -> 100 | D7: 3481 | E7: 22301 | F7: 2895 | G7: =SUM(G8:G28) -> 1695 | H7: 146
A8: Agricultura, silvicultura y pesca | B8: 724 | C8: =(B8*100)/$B$7 -> 2.372370404 | E8: 638 | F8: 17 | G8: 46 | H8: 23
A9: Arquitectura y construcción | B9: 932 | C9: 3.053935382 | D9: 73 | E9: 810 | F9: 19 | G9: 19 | H9: 11
A10: Artes | B10: 1205 | C10: 3.948489416 | D10: 74 | E10: 1131
A11: Ciencias de la vida | B11: 489 | C11: 1.602333049 | D11: 0 | E11: 383 | G11: 74 | H11: 32
A12: Ciencias físicas | B12: 794 | C12: 2.601743234 | D12: 135 | E12: 546 | F12: 56 | G12: 19 | H12: 38
A13: Ciencias sociales y del comportamiento | B13: 3467 | C13: 11.36050855 | D13: 13 | E13: 2646 | F13: 357 | G13: 430 | H13: 21
A14: Derecho | B14: 3104 | C14: 10.1710466 | E14: 2934 | F14: 10 | G14: 156 | H14: 4
A15: Enseñanza comercial y administración | B15: 5657 | C15: 18.53660135 | D15: 1360 | E15: 3592 | F15: 416 | G15: 289 | H15: 0
A16: Formación de personal docente y ciencias de la educación | B16: 769 | C16: 2.519824366 | D16: 44 | E16: 387 | F16: 176 | G16: 162 | H16: 0
A17: Humanidades | B17: 1100 | C17: 3.604430172 | D17: 322 | E17: 591 | G17: 187
A18: Industria y producción | B18: 441 | C18: 1.445048824 | D18: 154 | E18: 252 | F18: 35 | G18: 0
A19: Informática | B19: 1366 | C19: 4.476046923 | D19: 207 | E19: 1087 | F19: 27 | G19: 42 | H19: 3
A20: Ingeniería y profesiones afines | B20: 1494 | C20: 4.895471525 | D20: 162 | E20: 1228 | F20: 42 | G20: 54 | H20: 8
A21: Matemáticas y estadística | B21: 171 | C21: 0.5603250541 | E21: 123 | F21: 40 | G21: 5 | H21: 3
A22: Medicina | B22: 6307 | C22: 20.66649191 | D22: 563 | E22: 4045 | F22: 1579 | G22: 118 | H22: 2
A23: Periodismo e información | B23: 1026 | C23: 3.361950324 | D23: 0 | E23: 966 | F23: 13 | G23: 47
A24: Servicios de seguridad | B24: 151 | C24: =(B24*100)/$B$7 -> 0.49478996 | D24: 30 | E24: 104 | F24: 1 | G24: 15 | H24: 1
A25: Servicios personales | B25: 128 | C25: 0.4194246019 | E25: 21 | F25: 107
A26: Servicios sociales | B26: 639 | C26: 2.093846255 | D26: 344 | E26: 295
A27: Protección del medio ambiente | B27: 19 | C27: 0.06225833934 | E27: 0 | F27: 0 | G27: 19
A28: Veterinaria | B28: 535 | C28: 1.753063766 | E28: 522 | G28: 13
A29: Fuente: Elaboración propia en base información de las oficinas productoras de las instituciones
A30: Nota: Las áreas corresponden a la clasificación CINE 1997 de UNESCO.
A31: En el total de Ingreso no se tiene en cuenta a 1660 estudiantes que ingresaron a los CIOs de UdelaR. 83 refieren a Ciencias Físicas y 1577 y a Ciencias Sociales del Comportamiento

Sheet I.2.7.6
A1: Ministerio de Educación y Cultura Dirección de Educación
A3: Cuadro I-2.7.6 INGRESOS, MATRÍCULA Y EGRESOS DE OFERTAS DE GRADO SEGÚN FORMA DE ADMINISTRACIÓN EN CANTIDADES ABSOLUTAS Y PORCENTAJES. AÑO 2013.
A4: FORMA DE ADMINISTRACIÓN | B4: INGRESOS | C4: MATRÍCULA | D4: EGRESOS
A5: TOTAL VALORES ABSOLUTOS | B5: =SUM(B6:B8) -> 27442 | C5: =SUM(C6:C8) -> 151809 | D5: =SUM(D6:D8) -> 8034
A6: Universidad de la República * | B6: 23636 | C6: 130941 | D6: 6269
A7: Instituciones Universitarias Privadas | B7: 3785 | C7: 20816 | D7: 1744
A8: Área seguridad y defensa (oferta pública universitaria) ** | B8: 21 | C8: 52 | D8: 21
A9: TOTAL PORCENTAJES | B9: 1 | C9: 1 | D9: 1
A10: Universidad de la República | B10: =B6/B5*100% -> 0.8613074849 | C10: =C6/C5*100% -> 0.8625377942 | D10: =D6/D5*100% -> 0.7803086881
A11: Instituciones Universitarias Privadas | B11: =B7/B5*100% -> 0.1379272648 | C11: =C7/C5*100% -> 0.1371196701 | D11: 0.217077421
A12: Área seguridad y defensa (oferta pública universitaria) | B12: =B8/B5*100% -> 0.0007652503462 | C12: =C8/C5*100% -> 0.0003425356863 | D12: 0.002613890963
A13: Fuentes: Elaboración propia en base a información brindada por las oficinas productoras de las instituciones.
A14: * La matrícula es la correspondiente al año 2012. Los datos de egresos son preliminares.
A15: ** No incluye la información de cursos de nivel Universitario pertenecientes a la Escuela Naval

Sheet I.2.8.1
A1: Ministerio de Educación y Cultura
A2: Dirección de Educación
A5: Cuadro I-2.8.1
A6: ALUMNOS MATRICULADOS EN EL PROGRAMA NACIONAL DE JÓVENES Y ADULTOS POR MODALIDAD, NIVEL Y SEXO SEGÚN GRANDES ÁREAS. AÑO 2013.
A7: GRANDES ÁREAS | B7: ALUMNOS MATRICULADOS EN EDUCACIÓN PRIMARIA | J7: ALUMNOS MATRICULADOS EN TALLERES
B8: TOTAL Ed Primaria | C8: PRIMER TRAMO: NIVEL I | F8: PRIMER TRAMO: NIVEL II
C9: TOTAL | D9: SEXO | F9: TOTAL | G9: SEXO | J9: TOTAL | K9: SEXO
D10: Masculino | E10: Femenino | G10: Masculino | H10: Femenino | K10: Masculino | L10: Femenino
A11: TOTAL | B11: =C11+F11 -> 3136 | C11: =SUM(D11:E11) -> 1097 | D11: =D12+D13 -> 543 | E11: =E12+E13 -> 554 | F11: =SUM(G11:H11) -> 2039 | G11: =G12+G13 -> 1075 | H11: =H12+H13 -> 964 | J11: =SUM(K11:L11) -> 4065 | K11: =K12+K13 -> 1587 | L11: =L12+L13 -> 2478
A12: Montevideo | B12: =C12+F12 -> 1557 | C12: =SUM(D12:E12) -> 538 | D12: 276 | E12: 262 | F12: =SUM(G12:H12) -> 1019 | G12: 564 | H12: 455 | J12: =SUM(K12:L12) -> 3248 | K12: 1119 | L12: 2129
A13: Resto del País | B13: =C13+F13 -> 1579 | C13: =SUM(D13:E13) -> 559 | D13: 267 | E13: 292 | F13: =SUM(G13:H13) -> 1020 | G13: 511 | H13: 509 | J13: =SUM(K13:L13) -> 817 | K13: 468 | L13: 349
A14: Fuentes: ANEP -CODICEN - Programa de Eduacación de Jóvenes y Adultos

Sheet I.2.8.2
A1: Ministerio de Educación y Cultura
A2: Dirección de Educación
A5: Cuadro I.2.8.2
A6: ALUMNOS QUE RINDIERON LA PRUEBA DE ACREDITACIÓN EN EL PROGRAMA NACIONAL DE JÓVENES Y ADULTOS POR SEXO SEGÚN GRANDES ÁREAS. AÑO 2013.
A7: GRANDES ÁREAS | B7: ALUMNOS PARTICIPANTES EN PRUEBA DE ACREDITACIÓN
B8: TOTAL PRUEBAS DE ACREDITACIÓN | C8: SEXO
C10: Masculino | D10: Femenino
A11: TOTAL | B11: =SUM(C11:D11) -> 1151 | C11: =C12+C13 -> 591 | D11: =D12+D13 -> 560
A12: Montevideo | B12: =SUM(C12:D12) -> 263 | C12: 134 | D12: 129
A13: Resto del País | B13: =SUM(C13:D13) -> 888 | C13: 457 | D13: 431
A14: Fuentes : ANEP-CODICEN - Programa de Educación de jóvnes y Adultos .

Sheet I.2.9.1
A1: Ministerio de Educación y Cultura
A2: Dirección de Educación
A5: Cuadro I.2.9.1
A6: TOTAL DE INSTITUCIONES Y CURSOS DEL RELEVAMIENTO TÉCNICO-PROFESIONAL POR FORMA DE ADMINISTRACIÓN, GRANDES ÁREAS SEGÚN ÁREA DE CONOCIMIENTO. AÑO 2013
A7: AREA DE CONOCIMIENTO | B7: TOTAL | C7: FORMA DE ADMINISTRACIÓN | E7: ÁREA GEOGRÁFICA
C8: PÚBLICO | D8: PRIVADO | E8: MONTEVIDEO | F8: RESTO DEL PAÍS
A9: TOTAL INSTITUCIONES | B9: =C9+D9 -> 227 | C9: 15 | D9: 212 | E9: 141 | F9: 86
A11: TOTAL CURSOS | B11: =C11+D11 -> 2377 | C11: =SUM(C12:C38) -> 189 | D11: =SUM(D12:D38) -> 2188 | E11: =SUM(E12:E38) -> 1557 | F11: =SUM(F12:F38) -> 820
A12: Administración-Comercialización | B12: =C12+D12 -> 301 | C12: 1 | D12: 300 | E12: 230 | F12: 71
A13: Aeronáutica | B13: =C13+D13 -> 18 | C13: 9 | D13: 9 | E13: 3 | F13: 15
A14: Agraria | B14: 33 | D14: 33 | E14: 10 | F14: 23
A15: Animación Sociocultural | B15: 12 | D15: 12 | E15: 12
A16: Artes-Artesanias | B16: 151 | C16: 10 | D16: 141 | E16: 134 | F16: 17
A17: Capacitaciones Laborales | B17: 101 | C17: 21 | D17: 80 | E17: 59 | F17: 42
A18: Comunicaciones | B18: 37 | D18: 37 | E18: 33 | F18: 4
A19: Construcción-Arquitectura | B19: 29 | D19: 29 | E19: 28 | F19: 1
A20: Deportes y Afines | B20: 24 | D20: 24 | E20: 20 | F20: 4
A21: Diseños | B21: 40 | D21: 40 | E21: 32 | F21: 8
A22: Electrotecnia y Electrónica | B22: 13 | D22: 13 | E22: 10 | F22: 3
A23: Gastronomía | B23: 85 | C23: 3 | D23: 82 | E23: 72 | F23: 13
A24: Gráficos | B24: 3 | D24: 3 | E24: 3
A25: Hoteleria y Turismo | B25: 27 | D25: 27 | E25: 22 | F25: 5
A26: Idiomas | B26: 737 | C26: 13 | D26: 724 | E26: 385 | F26: 352
A27: Informática | B27: 263 | C27: 1 | D27: 262 | E27: 117 | F27: 146
A28: Lúdica | B28: 2 | D28: 2 | E28: 2
A29: Marítima | B29: 6 | C29: 2 | D29: 4 | E29: 6
A30: Mejoramiento de las condiciones de vida | B30: 11 | D30: 11 | E30: 9 | F30: 2
A31: Metal-Mecánica | B31: 15 | D31: 15 | E31: 12 | F31: 3
A32: Promoción Comunitaria | B32: 22 | D32: 22 | E32: 13 | F32: 9
A33: Química | B33: 3 | C33: 3 | E33: 1 | F33: 2
A34: Salud, Seguridad e Higiene | B34: 38 | C34: 2 | D34: 36 | E34: 26 | F34: 12
A35: Servicios Personales-Estética | B35: 45 | D35: 45 | E35: 41 | F35: 4
A36: Tecnológica | B36: 10 | D36: 10 | E36: 9 | F36: 1
A37: Vestimenta | B37: 9 | D37: 9 | E37: 9
A38: Otros | B38: 342 | C38: 124 | D38: 218 | E38: 259 | F38: 83
A41: Fuente: Elaboración propia en base a la información del Primer Censo Nacional de Instituciones de Formación Técnico-Profesional.
A42: Nota: Las áreas de conocimiento corresponden a la clasificación CINE 1997 de UNESCO.

Sheet I.2.9.2
A1: Ministerio de Educación y Cultura
A2: Dirección de Educación
A6: Cuadro I.2.9.2
A7: ALUMNOS MATRICULADOS POR REGIÓN SEGÚN ÁREA DE CONOCIMIENTO. AÑO 2013.
A8: ÁREA DE CONOCIMIENTO | C8: REGIÓN
B9: TOTAL | C9: Montevideo | D9: Resto del país
A10: TOTAL | B10: =C10+D10 -> 93228 | C10: =SUM(C11:C37) -> 71322 | D10: =SUM(D11:D37) -> 21906
A11: Administración-Comercialización | B11: =SUM(C11:D11) -> 10858 | C11: 9570 | D11: 1288
A12: Aeronáutica | B12: 196 | C12: 36 | D12: 160
A13: Agraria | B13: 975 | C13: 524 | D13: 451
A14: Animación Sociocultural | B14: 290 | C14: 290 | D14: 0
A15: Artes-Artesanias | B15: 4829 | C15: 4089 | D15: 740
A16: Capacitaciones Laborales | B16: 3690 | C16: 2645 | D16: 1045
A17: Comunicaciones | B17: 970 | C17: 854 | D17: 116
A18: Construcción-Arquitectura | B18: 1270 | C18: 1250 | D18: 20
A19: Deportes y Afines | B19: 1062 | C19: 720 | D19: 342
A20: Diseños | B20: 2224 | C20: 1917 | D20: 307
A21: Electrotecnia y Electrónica | B21: 379 | C21: 360 | D21: 19
A22: Gastronomía | B22: 2196 | C22: 1922 | D22: 274
A23: Gráficos | B23: 47 | C23: 47 | D23: 0
A24: Hoteleria y Turismo | B24: 920 | C24: 879 | D24: 41
A25: Idiomas | B25: 22915 | C25: 15247 | D25: 7668
A26: Informática | B26: =SUM(C26:D26) -> 12839 | C26: 9792 | D26: 3047
A27: Lúdica | B27: =SUM(C27:D27) -> 88 | C27: 88 | D27: 0
A28: Marítima | B28: 187 | C28: 187 | D28: 0
A29: Mejoramiento de las condiciones de vida | B29: 493 | C29: 460 | D29: 33
A30: Metal-Mecánica | B30: 744 | C30: 662 | D30: 82
A31: Promoción Comunitaria | B31: =SUM(C31:D31) -> 713 | C31: 502 | D31: 211
A32: Química | B32: =SUM(C32:D32) -> 211 | C32: 186 | D32: 25
A33: Salud, Seguridad e Higiene | B33: 3077 | C33: 2594 | D33: 483
A34: Servicios Personales-Estética | B34: 1654 | C34: 1599 | D34: 55
A35: Tecnológica | B35: 209 | C35: 189 | D35: 20
A36: Vestimenta | B36: 131 | C36: 131 | D36: 0
A37: Otros | B37: 20061 | C37: 14582 | D37: 5479
A38: Fuente: Elaboración propia en base a la información del Primer Censo Nacional de Instituciones de Formación Técnico-Profesional.
A39: Nota: Las áreas de conocimiento corresponden a la clasificación CINE 1997 de UNESCO.

Sheet I.2.9.3
A1: Ministerio de Educación y Cultura Dirección de Educación
A2: Área de Investigación y Estadística
A4: Cuadro I.2.9.3 ALUMNOS DEL RELEVAMIENTO DE INSTITUCIONES DE FORMACIÓN TÉCNICO-PROFESIONAL DESVINCULADOS, INGRESADOS Y EGRESADOS POR TIPO DE INSTITUCIÓN Y REGIÓN SEGÚN ÁREA DE CONOCIMIENTO. AÑO 2013
A5: ÁREA DE CONOCIMIENTO
B6: TOTAL | F6: TIPO DE INSTITUCIÓN | K6: ÁREA GEOGRÁFICA
E7: PRIVADO | H7: PÚBLICO | K7: MONTEVIDEO | N7: RESTO DEL PÁIS
B8: Desvinculados | C8: Ingresos | D8: Egresos | E8: Desvinculados | F8: Ingresos | G8: Egresos | H8: Desvinculados | I8: Ingresos | J8: Egresos | K8: Desvinculados | L8: Ingresos | M8: Egresos | N8: Desvinculados | O8: Ingresos | P8: Egresos
A9: TOTAL | B9: =SUM(E9+H9) -> 10283 | C9: =SUM(F9+I9) -> 78840 | D9: 58947 | E9: =SUM(E10:E36) -> 9979 | F9: =SUM(F10:F36) -> 73614 | G9: =SUM(G10:G36) -> 54892 | H9: =SUM(H10:H36) -> 304 | I9: =SUM(I10:I36) -> 5226 | J9: 4055 | K9: 8671 | L9: =SUM(L10:L36) -> 60158 | M9: 42258 | N9: 1612 | O9: 17814 | P9: 16689
A10: Administración-Comercialización | B10: 1336 | C10: 9642 | D10: =SUM(G10+J10) -> 7077 | E10: 1327 | F10: 9619 | G10: 7063 | H10: 9 | I10: 23 | J10: 14 | K10: 1072 | L10: 8341 | M10: 6209 | N10: 264 | O10: 1301 | P10: 868
A11: Aeronáutica | B11: 20 | C11: 216 | D11: =SUM(G11+J11) -> 175 | E11: 3 | F11: 52 | G11: 43 | H11: 17 | I11: 164 | J11: 132 | K11: 2 | L11: 34 | M11: 32 | N11: 18 | O11: 182 | P11: 143
A12: Agraria | B12: 133 | C12: 899 | D12: 541 | E12: 133 | F12: 899 | G12: 541 | H12: 0 | I12: 0 | J12: 0 | K12: 89 | L12: 448 | M12: 133 | N12: 44 | O12: 451 | P12: 408
A13: Animación Sociocultural | B13: 22 | C13: 281 | D13: 99 | E13: 22 | F13: 281 | G13: 99 | K13: 22 | L13: 281 | M13: 99
A14: Artes-Artesanias | B14: 888 | C14: 3340 | D14: 1771 | E14: 888 | F14: 3292 | G14: 1771 | H14: 0 | I14: 48 | J14: 0 | K14: 789 | L14: 3036 | M14: 1192 | N14: 99 | O14: 304 | P14: 579
A15: Capacitaciones Laborales | B15: 401 | C15: 3617 | D15: 3261 | E15: 391 | F15: 3122 | G15: 2782 | H15: 10 | I15: 495 | J15: 479 | K15: 275 | L15: 2552 | M15: 2350 | N15: 126 | O15: 1065 | P15: 911
A16: Comunicaciones | B16: 94 | C16: 914 | D16: 798 | E16: 94 | F16: 914 | G16: 798 | H16: 0 | I16: 0 | J16: 0 | K16: 65 | L16: 798 | M16: 699 | N16: 29 | O16: 116 | P16: 99
A17: Construcción-Arquitectura | B17: 133 | C17: 1270 | D17: 589 | E17: 133 | F17: 1270 | G17: 589 | H17: 0 | I17: 0 | J17: 0 | K17: 133 | L17: 1250 | M17: 589 | N17: 0 | O17: 20 | P17: 0
A18: Deportes y Afines | B18: 241 | C18: 1019 | D18: 650 | E18: 241 | F18: 1019 | G18: 650 | H18: 0 | I18: 0 | J18: 0 | K18: 125 | L18: 745 | M18: 349 | N18: 116 | O18: 274 | P18: 301
A19: Diseños | B19: 403 | C19: 1880 | D19: 1289 | E19: 403 | F19: 1880 | G19: 1289 | H19: 0 | I19: 0 | J19: 0 | K19: 348 | L19: 1602 | M19: 1089 | N19: 55 | O19: 278 | P19: 200
A20: Electrotecnia y Electrónica | B20: 81 | C20: 366 | D20: 272 | E20: 81 | F20: 366 | G20: 272 | H20: 0 | I20: 0 | J20: 0 | K20: 77 | L20: 347 | M20: 257 | N20: 4 | O20: 19 | P20: 15
A21: Gastronomía | B21: 433 | C21: 1989 | D21: 1106 | E21: 433 | F21: 1967 | G21: 1106 | H21: 0 | I21: 22 | J21: 0 | K21: 407 | L21: 1715 | M21: 949 | N21: 26 | O21: 274 | P21: 157
A22: Gráficos | B22: 10 | C22: 47 | D22: 38 | E22: 10 | F22: 47 | G22: 38 | H22: 0 | I22: 0 | J22: 0 | K22: 10 | L22: 47 | M22: 38 | N22: 0 | O22: 0 | P22: 0
A23: Hoteleria y Turismo | B23: 73 | C23: 877 | D23: 756 | E23: 73 | F23: 877 | G23: 756 | H23: 0 | I23: 0 | J23: 0 | K23: 72 | L23: 819 | M23: 722 | N23: 1 | O23: 58 | P23: 34
A24: Idiomas | B24: 2796 | C24: 18115 | D24: 16752 | E24: 2728 | F24: 17746 | G24: 16451 | H24: 68 | I24: 369 | J24: 301 | K24: 2512 | L24: 13151 | M24: 11400 | N24: 284 | O24: 4964 | P24: 5352
A25: Informática | B25: 1249 | C25: 10097 | D25: 7069 | E25: 1249 | F25: 10069 | G25: 7041 | H25: 0 | I25: 28 | J25: 28 | K25: 879 | L25: 7393 | M25: 4912 | N25: 370 | O25: 2704 | P25: 2157
A26: Lúdica | B26: 7 | C26: 18 | D26: 10 | E26: 7 | F26: 18 | G26: 10 | H26: 0 | I26: 0 | J26: 0 | K26: 7 | L26: 18 | M26: 10 | N26: 0 | O26: 0 | P26: 0
A27: Marítima | B27: 12 | C27: 184 | D27: 159 | E27: 0 | F27: 158 | G27: 148 | H27: 12 | I27: 26 | J27: 11 | K27: 12 | L27: 184 | M27: 159 | N27: 0 | O27: 0 | P27: 0
A28: Metal-Mecánica | B28: 227 | C28: 738 | D28: 464 | E28: 227 | F28: 738 | G28: 464 | H28: 0 | I28: 0 | J28: 0 | K28: 221 | L28: 662 | M28: 440 | N28: 6 | O28: 76 | P28: 24
A29: Mejoramiento de las condiciones de vida | B29: 145 | C29: 827 | D29: 348 | E29: 145 | F29: 827 | G29: 348 | H29: 0 | I29: 0 | J29: 0 | K29: 136 | L29: 794 | M29: 324 | N29: 9 | O29: 33 | P29: 24
A30: Promoción Comunitaria | B30: 68 | C30: 650 | D30: 385 | E30: 68 | F30: 650 | G30: 385 | H30: 0 | I30: 0 | J30: 0 | K30: 48 | L30: 500 | M30: 266 | N30: 20 | O30: 150 | P30: 119
A31: Química | B31: 0 | C31: =SUM(F31+I31) -> 211 | D31: 161 | E31: 0 | F31: 0 | G31: 0 | H31: 0 | I31: 211 | J31: 161 | K31: 0 | L31: 186 | M31: 136 | N31: 0 | O31: 25 | P31: 25
A32: Salud; Seguridad e Higiene | B32: =SUM(E32+H32) -> 267 | C32: 2646 | D32: =SUM(G32+J32) -> 1914 | E32: 267 | F32: 2356 | G32: 1893 | H32: 0 | I32: 290 | J32: 21 | K32: 207 | L32: 2239 | M32: 1674 | N32: 60 | O32: 407 | P32: 240
A33: Servicios Personales-Estética | B33: =SUM(E33+H33) -> 293 | C33: 1710 | D33: =SUM(G33+J33) -> 1348 | E33: 293 | F33: 1710 | G33: 1348 | H33: 0 | I33: 0 | J33: 0 | K33: 291 | L33: 1655 | M33: 1295 | N33: 2 | O33: 55 | P33: 53
A34: Tecnológica | B34: =SUM(E34+H34) -> 25 | C34: 133 | D34: =SUM(G34+J34) -> 87 | E34: 25 | F34: 133 | G34: 87 | H34: 0 | I34: 0 | J34: 0 | K34: 20 | L34: 113 | M34: 72 | N34: 5 | O34: 20 | P34: 15
A35: Vestimenta | B35: =SUM(E35+H35) -> 42 | C35: 117 | D35: =SUM(G35+J35) -> 67 | E35: 42 | F35: 117 | G35: 67 | H35: 0 | I35: 0 | J35: 0 | K35: 42 | L35: 117 | M35: 67 | N35: 0 | O35: 0 | P35: 0
A36: Otros | B36: =SUM(E36+H36) -> 884 | C36: 17037 | D36: =SUM(G36+J36) -> 11761 | E36: 696 | F36: 13487 | G36: 8853 | H36: 188 | I36: 3550 | J36: 2908 | K36: 810 | L36: 11131 | M36: 6796 | N36: 74 | O36: 5038 | P36: 4965
A37: Fuente: Elaboración propia en base a la información del Relevamiento de Instituciones de Formación Técnico-Profesional. Realizado por el Área de Investigación y Estadística.

Sheet I.2.9.4
A1: Ministerio de Educación y Cultura
A2: Dirección de Educación
A6: Cuadro I.2.9.4
A7: CANTIDAD DE CURSOS POR TRAMOS DE DURACIÓN EN HORAS SEGÚN ÁREA DE CONOCIMIENTO. AÑO 2013.
A8: ÁREA DE | B8: TOTAL | C8: 0 a 40 | D8: 41 a 140 | E8: 141 a 320 | F8: 321 a 440 | G8: 441 y más
A9: CONOCIMIENTO
A10: TOTAL | B10: =SUM(C10:G10) -> 2377 | C10: =SUM(C11:C37) -> 719 | D10: =SUM(D11:D37) -> 1025 | E10: =SUM(E11:E37) -> 429 | F10: =SUM(F11:F37) -> 91 | G10: =SUM(G11:G37) -> 113
A11: Administración - Comercialización | B11: 301 | C11: 115 | D11: 103 | E11: 42 | F11: 30 | G11: 11
A12: Aeronáutica | B12: 18 | C12: 1 | D12: 4 | E12: 3 | F12: 0 | G12: 10
A13: Agraria | B13: 33 | C13: 5 | D13: 12 | E13: 11 | F13: 2 | G13: 3
A14: Animación Sociocultural | B14: 12 | C14: 1 | D14: 3 | E14: 4 | F14: 4 | G14: 0
A15: Artes - Artesanías | B15: 151 | C15: 51 | D15: 64 | E15: 26 | F15: 0 | G15: 10
A16: Capacitaciones Laborales | B16: 101 | C16: 17 | D16: 49 | E16: 21 | F16: 7 | G16: 7
A17: Comunicaciones | B17: 37 | C17: 24 | D17: 8 | E17: 2 | F17: 0 | G17: 3
A18: Construcción - Arquitectura | B18: 29 | C18: 9 | D18: 16 | E18: 2 | F18: 0 | G18: 2
A19: Deportes y Afines | B19: 24 | C19: 14 | D19: 1 | E19: 0 | F19: 0 | G19: 9
A20: Diseños | B20: 40 | C20: 11 | D20: 15 | E20: 8 | F20: 2 | G20: 4
A21: Electrotecnia y Electrónica | B21: 13 | C21: 1 | D21: 10 | E21: 2 | F21: 0 | G21: 0
A22: Gastronomía | B22: 85 | C22: 25 | D22: 26 | E22: 15 | F22: 9 | G22: 10
A23: Gráficos | B23: 3 | C23: 2 | D23: 1 | E23: 0 | F23: 0 | G23: 0
A24: Hotelería y Turismo | B24: 27 | C24: 7 | D24: 6 | E24: 5 | F24: 2 | G24: 7
A25: Idiomas | B25: 737 | C25: 135 | D25: 418 | E25: 177 | F25: 3 | G25: 4
A26: Informática | B26: 263 | C26: 85 | D26: 154 | E26: 16 | F26: 0 | G26: 8
A27: Lúdica | B27: 2 | C27: 2 | D27: 0 | E27: 0 | F27: 0 | G27: 0
A28: Marítima | B28: 6 | C28: 5 | D28: 1 | E28: 0 | F28: 0 | G28: 0
A29: Mejoramiento de las condiciones de vida | B29: 11 | C29: 1 | D29: 7 | E29: 3 | F29: 0 | G29: 0
A30: Metal - Mecánica | B30: 15 | C30: 0 | D30: 8 | E30: 6 | F30: 1 | G30: 0
A31: Promoción Comunitaria | B31: 22 | C31: 8 | D31: 5 | E31: 8 | F31: 1 | G31: 0
A32: Química | B32: 3 | C32: 0 | D32: 2 | E32: 0 | F32: 0 | G32: 1
A33: Salud, Seguridad e Higiene | B33: 38 | C33: 24 | D33: 4 | E33: 3 | F33: 5 | G33: 2
A34: Servicios Personales - Estética | B34: 45 | C34: 20 | D34: 16 | E34: 7 | F34: 1 | G34: 1
A35: Tecnológica | B35: 10 | C35: 4 | D35: 1 | E35: 5 | F35: 0 | G35: 0
A36: Vestimenta | B36: 9 | C36: 0 | D36: 5 | E36: 2 | F36: 1 | G36: 1
A37: Otros | B37: 342 | C37: 152 | D37: 86 | E37: 61 | F37: 23 | G37: 20
A39: Fuente: Elaboración propia en base a la información del Primer Censo Nacional de Instituciones de Formación Técnico-Profesional.
A40: Nota: Las áreas de conocimiento corresponden a la clasificación CINE 1997 de UNESCO.

Sheet I.2.9.5
A1: Ministerio de Educación y Cultura
A2: Dirección de Educación
A6: Cuadro I-2.9.5
A7: ALUMNOS MATRICULADOS EN EL CETP (UTU) POR SEXO Y GRANDES ÁREAS SEGÚN TIPO DE CURSOS DE NIVEL DE FORMACIÓN PROFESIONAL. Año 2013
A8: CURSOS DE NIVEL DE FORMACIÓN PROFESIONAL | B8: TOTAL | C8: SEXO | E8: GRANDES ÁREAS
C9: Masculino | D9: Femenino | E9: Montevideo | F9: Resto del País
A10: TOTAL | B10: =SUM(B12:B22) -> 8632 | C10: =SUM(C12:C22) -> 4286 | D10: =SUM(D12:D22) -> 4346 | E10: =SUM(E12:E22) -> 4034 | F10: =SUM(F12:F22) -> 4598
A12: Acreditación de saberes | B12: =C12+D12 -> 27 | C12: 26 | D12: 1 | E12: 27 | F12: 0
A13: Capacitación Profesional | B13: =C13+D13 -> 4506 | C13: 2274 | D13: 2232 | E13: 1446 | F13: 3060
A14: Capacitación Profesional (Conv.) | B14: 148 | C14: 82 | D14: 66 | E14: 86 | F14: 62
A15: Capacitación Profundización Prof. | B15: 338 | C15: 180 | D15: 158 | E15: 121 | F15: 217
A16: Capacitación Técnica | B16: 47 | C16: 36 | D16: 11 | E16: 47 | F16: 0
A17: Curso Básico | B17: 638 | C17: 304 | D17: 334 | E17: 512 | F17: 126
A18: Curso Básico Especialización | B18: 461 | C18: 186 | D18: 275 | E18: 331 | F18: 130
A19: Form.Prof. en Artes y Artesanías | B19: 504 | C19: 190 | D19: 314 | E19: 489 | F19: 15
A20: Formación Profesional Acelerada | B20: 4 | C20: 2 | D20: 2 | E20: 4 | F20: 0
A21: Formación Profesional Básica | B21: 1765 | C21: 840 | D21: 925 | E21: 777 | F21: 988
A22: Formación Profesional Especializada | B22: 194 | C22: 166 | D22: 28 | E22: 194 | F22: 0
A23: Fuente: D.E. - CETP (U.T.U) .

Sheet I.2.9.6
A1: Ministerio de Educación y Cultura Dirección de Educación
A3: Cuadro I.2.9.6 ALUMNOS INGRESADOS Y MATRICULADOS EN CECAP POR SEXO SEGÚN GRANDES ÁREAS. AÑO 2013
A4: NIVEL EDUCATIVO MÁXIMO ALCANZADO | B4: TOTAL | C4: INGRESADOS | F4: MATRICULADOS
C5: Masculino | D5: Femenino | E5: TOTAL | F5: Masculino | G5: Femenino
A6: TOTAL | B6: =B7+B8 -> 1426 | C6: 777 | D6: 649 | E6: 2965 | F6: 1628 | G6: 1337
A7: Montevideo | B7: 306 | C7: 145 | D7: 161 | E7: 737 | F7: 370 | G7: 367
A8: Resto del país | B8: 1120 | C8: 632 | D8: 488 | E8: 2228 | F8: 1258 | G8: 970
A9: Fuente: Área de Educación No Formal de la Dirección de Educación - MEC

Sheet I.2.9.7
A1: Ministerio de Educación y Cultura Dirección de Educación
A3: Cuadro I-2.9.7
A4: ALUMNOS MATRICULADOS DEL COCAP SEGÚN TIPO DE CURSO Y ÁREA DE FORMACIÓN. AÑO 2013
A5: TIPO DE CURSO | C5: TOTAL | D5: SEXO
D6: Masculino | E6: Femenino
A7: TOTAL | C7: =C8+C9 -> 940 | D7: =D8+D9 -> 897 | E7: =E8+E9 -> 43
A8: Cursos Abiertos | C8: =D8+E8 -> 833 | D8: 823 | E8: 10
A9: Cursos Cerrados | C9: =D9+E9 -> 107 | D9: 74 | E9: 33
A10: Fuente: COCAP

Sheet I.2.9.8
A1: Ministerio de Educación y Cultura Dirección de Educación
A4: Cuadro I-2.9.8 FUNCIONARIOS PARTICIPANTES EN LOS CURSOS DE LA ENAP DR. AQUILES LANZA, CANTIDAD DE CURSOS Y HORAS TIPO DE CURSO. AÑO 2013.
A5: GRANDES ÁREAS | C5: FUNCIONARIOS PARTICIPANTES | D5: CANTIDAD DE CURSOS | E5: HORAS
A6: TOTAL | C6: =SUM(C7:C9) -> 7605 | D6: =SUM(D7:D9) -> 266 | E6: =SUM(E7:E9) -> 7454
A7: Programas de Formación: Programa de Dirección Media, Diploma en Gestión Humana y Programa de Desarrollo Administrativo | C7: 200 | D7: 8 | E7: 1778
A8: Cursos y Seminarios | C8: 4025 | D8: 161 | E8: 3542
A9: Cursos e-learning | C9: 3380 | D9: 97 | E9: 2134
A10: Fuentes: Oficina Nacional del Servicio Civil - Escuela Nacional de Administración Pública "Dr. Aquiles Lanza"
A11: Nota: Por no contar con información, no se incluye la "Maestría en Políticas y Gestión Pública".

Sheet I.2.9.9
A1: Ministerio de Educación y Cultura Dirección de Educación
A3: Cuadro I-2.9.9 ALUMNOS INGRESADOS Y MATRICULADOS EN CARRERAS NO TERCIARIAS EN UNIVERSIDADES E INSTITUTOS UNIVERSITARIOS. AÑO 2013.
A4: UNIVERSIDADES E INSTITUTOS UNIVERSITARIOS | D4: INGRESADOS | G4: MATRICULADOS
C5: TOTAL | D5: SEXO | F5: TOTAL | G5: SEXO
D6: Masculino | E6: Femenino | G6: Masculino | H6: Femenino
A7: TOTAL | C7: =C8+C9 -> 1401 | D7: 867 | E7: 534 | F7: 5039 | G7: 3340 | H7: 1699
A8: Universidad ORT Uruguay | C8: =D8+E8 -> 966 | D8: 656 | E8: 310 | F8: =G8+H8 -> 4168 | G8: 2893 | H8: 1275
A9: Universidad de la Empresa | C9: =D9+E9 -> 435 | D9: 211 | E9: 224 | F9: =G9+H9 -> 871 | G9: 447 | H9: 424
A10: Fuente: Oficinas productoras.

Sheet I-3.1.1
A1: Ministerio de Educación y Cultura Dirección de Educación
A3: Cuadro I-3.1.1
A4: ESCUELAS, MAESTROS Y ALUMNOS ATENDIDOS POR EL PROGRAMA MAESTROS COMUNITARIOS SEGÚN AÑO LECTIVO. AÑO 2013.
A5: AÑO LECTIVO | C5: Escuelas | F5: Maestros comunitarios | G5: Alumnos
C6: Total | D6: Montevideo | E6: Resto del país | G6: atendidos
A7: 2005 | C7: =+D7+E7 -> 255 | D7: 97 | E7: 158 | F7: 437 | G7: 9292
A8: 2006 | C8: =+D8+E8 -> 252 | D8: 95 | E8: 157 | F8: 433 | G8: 14884
A9: 2007 | C9: 334 | D9: 101 | E9: 233 | F9: 553 | G9: 18163
A10: 2008 | C10: 334 | D10: 100 | E10: 234 | F10: 533 | G10: 16802
A11: 2009 | C11: 337 | D11: 101 | E11: 236 | F11: 553 | G11: 16166
A12: 2010 | C12: 337 | D12: 101 | E12: 236 | F12: 553 | G12: 16749
A13: 2011 | C13: 342 | D13: 104 | E13: 238 | F13: 554 | G13: 15680
A14: 2012 | C14: 327 | D14: 101 | E14: 226 | F14: 539 | G14: 15608
A15: Fuente: CEIP-MIDES

Sheet I-3.1.2
A1: Ministerio de Educación y Cultura Dirección de Educación
A3: Cuadro I-3.1.2
A4: MAESTROS Y ESCUELAS DEL PROGRAMA MAESTROS COMUNITARIOS SEGÚN REQUERIMIENTO (2013)
A5: AÑO LECTIVO | C5: Maestros comunitarios | D5: Escuelas
A6: Total | C6: =SUM(C7:C10) -> 539 | D6: =SUM(D7:D10) -> 322
A7: Requerimiento 1 | C7: 265 | D7: 142
A8: Requerimiento 2 | C8: 202 | D8: 117
A9: Requerimiento 3 | C9: 70 | D9: 62
A10: Requerimiento 4 | C10: 2 | D10: 1
A13: Fuente: DINEM
A14: Nota: Todo el país (Año 2013).

Sheet I-3.1.3
A1: Ministerio de Educación y Cultura
A2: Dirección de Educación
A6: Cuadro I-3.1.3
A7: ESCUELAS, PROFESORES Y ALUMNOS ATENDIDOS POR EL PROGRAMA DE EDUCACIÓN FÍSICA ESCOLAR SEGÚN GRANDES ÁREAS 2013
A8: AÑO LECTIVO | D8: Escuelas | E8: Profesores | F8: Alumnos atendidos
A9: Todo el país | D9: 2354 | E9: 1097 | F9: 306542
A10: Montevideo | D10: 288 | E10: 304 | F10: sd
A11: Resto del país | D11: 2066 | E11: 793 | F11: sd
A12: Fuente: | B12: CEIP

Sheet I-3.1.4
A1: Ministerio de Educación y Cultura Dirección de Educación
A2: Cuadro I-3.1.4
A3: BECAS DE APOYO ECONÓMICO EN EDUCACIÓN MEDIA BÁSICA Y SUPERIOR OTORGADAS POR EL MEC, COMPROMISO EDUCATIVO Y BECAS OTORGADAS POR PUE EN 2013, SEGÚN SEXO Y GRANDES ÁREAS. AÑO 2013
A4: DEPARTAMENTO | B4: TOTAL | C4: MEC | E4: COMPROMISO EDUCATIVO | H4: PROGRAMA URUGUAY ESTUDIA
C5: Nivel | E5: SEXO
C6: EMB | D6: EMS | E6: Hombres | F6: Mujeres | H6: CEIP | I6: CES | J6: UTU
A7: TOTAL | B7: =+B9+B11+H7+I7+J7 -> 13288 | C7: =+C9+C11 -> 2998 | D7: =+D9+D11 -> 721 | E7: =+E9+E11 -> 1720 | F7: =+F9+F11 -> 3580 | H7: 899 | I7: 370 | J7: 3000
A9: Montevideo | B9: =+C9+D9+E9+F9 -> 2233 | C9: 1050 | D9: 195 | E9: 317 | F9: 671
A11: Resto del país | B11: =+C11+D11+E11+F11 -> 6786 | C11: =SUM(C12:C29) -> 1948 | D11: =SUM(D12:D29) -> 526 | E11: =SUM(E12:E29) -> 1403 | F11: =SUM(F12:F29) -> 2909
A12: Artigas | B12: =+C12+D12 -> 225 | C12: 169 | D12: 56 | E12: 174 | F12: 353
A13: Canelones | B13: 442 | C13: 350 | D13: 92 | E13: 225 | F13: 666
A14: Cerro Largo | B14: 168 | C14: 124 | D14: 44
A15: Colonia | B15: 87 | C15: 62 | D15: 25 | E15: 28 | F15: 72
A16: Durazno | B16: 94 | C16: 70 | D16: 24
A17: Flores | B17: 31 | C17: 23 | D17: 8
A18: Florida | B18: 92 | C18: 70 | D18: 22 | E18: 5 | F18: 18
A19: Lavalleja | B19: 70 | C19: 53 | D19: 17
A20: Maldonado | B20: 89 | C20: 71 | D20: 18 | E20: 34 | F20: 87
A21: Paysandú | B21: 121 | C21: 110 | D21: 11 | E21: 281 | F21: 516
A22: Rio Negro | B22: 86 | C22: 68 | D22: 18 | E22: 13 | F22: 11
A23: Rivera | B23: 209 | C23: 190 | D23: 19 | E23: 273 | F23: 542
A24: Rocha | B24: 109 | C24: 84 | D24: 25
A25: Salto | B25: 217 | C25: 167 | D25: 50 | E25: 126 | F25: 180
A26: San José | B26: 98 | C26: 75 | D26: 23 | E26: 20 | F26: 62
A27: Soriano | B27: 107 | C27: 80 | D27: 27 | E27: 24 | F27: 42
A28: Tacuarembó | B28: 125 | C28: 94 | D28: 31 | E28: 182 | F28: 301
A29: Treinta y Tres | B29: 104 | C29: 88 | D29: 16 | E29: 18 | F29: 59
A30: Nota: | B30: El total de becas otorgadas surge de sumar el Programa Uruguay Estudia, que se encuentra agrupado por Consejo desconcentrado de ANEP (CEIP, CES y CETP), con el Total por Sexo de las Becas MEC y Compromiso Educativo.
A31: Fuente: | B31: Área de Becas de la Dirección de Educación del Ministerio de Educación y Cultura.

Sheet I-3.1.5
A1: Ministerio de Educación y Cultura
A2: Dirección de Educación
A5: Cuadro I-3.1.5
A6: BECAS DE APOYO ECONÓMICO EN EDUCACIÓN TERCIARIA SEGÚN INSTITUCIONES QUE LAS OTORGA POR GRANDES ÁREAS. AÑO 2013.
A7: DEPARTAMENTO | C7: TOTAL | D7: FONDO DE SOLIDARIDAD | E7: ANII | F7: BIENESTAR ESTUDIANTIL | G7: CARLOS QUIJANO | H7: JULIO CASTRO | J7: Programa Uruguay Estudia
H8: IFD | I8: IINN
A9: Total | C9: =+D9+E9+F9+G9+H9+I9+J9 -> 8707 | D9: =+D12+D11 -> 6890 | E9: 165 | F9: =+F11+F12 -> 470 | G9: 10 | H9: =SUM(H13:H30) -> 698 | I9: 101 | J9: 373
A11: Montevideo | C11: =+D11+E11+F11+G11+J11+I11 -> 1723 | D11: 990 | E11: 165 | F11: 84 | G11: 10 | H11: N/C | I11: 101 | J11: 373
A12: Resto del País | C12: =+D12+F12+H12 -> 6984 | D12: =SUM(D13:D30) -> 5900 | E12: S/D | F12: =SUM(F13:F30) -> 386 | G12: N/C | H12: =SUM(H13:H30) -> 698 | I12: N/C | J12: N/C
A13: Artigas | C13: 401 | D13: 320 | F13: 22 | H13: 59
A14: Canelones | C14: 1195 | D14: 1052 | F14: 39 | H14: 104
A15: Cerro Largo | C15: 366 | D15: 258 | F15: 25 | H15: 83
A16: Colonia | C16: 473 | D16: 434 | F16: 16 | H16: 23
A17: Durazno | C17: 226 | D17: 199 | F17: 13 | H17: 14
A18: Flores | C18: 127 | D18: 117 | F18: 5 | H18: 5
A19: Florida | C19: 306 | D19: 277 | F19: 10 | H19: 19
A20: Lavalleja | C20: 224 | D20: 178 | F20: 7 | H20: 39
A21: Maldonado | C21: 192 | D21: 166 | F21: 14 | H21: 12
A22: Paysandú | C22: 560 | D22: 475 | F22: 30 | H22: 55
A23: Rio Negro | C23: 262 | D23: 224 | F23: 14 | H23: 24
A24: Rivera | C24: 464 | D24: 360 | F24: 33 | H24: 71
A25: Rocha | C25: 229 | D25: 200 | F25: 24 | H25: 5
A26: Salto | C26: 681 | D26: 555 | F26: 46 | H26: 80
A27: San José | C27: 292 | D27: 254 | F27: 14 | H27: 24
A28: Soriano | C28: 393 | D28: 328 | F28: 30 | H28: 35
A29: Tacuarembó | C29: 428 | D29: 368 | F29: 35 | H29: 25
A30: Treinta y Tres | C30: 165 | D30: 135 | F30: 9 | H30: 21
A31: Fuente: Elaboración propia en base a datos otorgados por las Instituciones.

Sheet I-3.1.6
A1: Ministerio de Educación y Cultura Dirección de Educación
A3: Cuadro I-3.1.6
A4: BECAS DEL PROGRAMA URUGUAY ESTUDIA POR MODALIDAD SEGÚN AÑO LECTIVO.
A5: AÑO | B5: TOTAL | C5: EP | D5: EMB | F5: EMS | G5: Cursos PUE-COCAP | H5: Magisterio y Profesorado | J5: Tutorias culminación EMS | L5: Cantidad de grupos CES Tutoreado
D6: CES | E6: CETP (UTU)
A7: 2009 | B7: =SUM(C7:H7) -> 549 | C7: s/d | D7: s/d | E7: 80 | F7: 330 | G7: n/c | H7: 139 | J7: 314 | L7: n/c
A8: 2010 | B8: 2228 | C8: 937 | D8: s/d | E8: 963 | F8: 328 | G8: n/c | H8: s/d | J8: 154 | L8: 20
A9: 2011 | B9: 2791 | C9: 1026 | D9: s/d | E9: 1406 | F9: 359 | G9: n/c | H9: s/d | J9: 248 | L9: 21
A10: 2012 | B10: 4033 | C10: 1000 | D10: =1654-E10 -> 654 | E10: 1000 | F10: 750 | G10: 29 | H10: 600 | J10: 124 | L10: 43
A11: 2013 | B11: =SUM(C11:H11) -> 4993 | C11: 899 | D11: =3370-E11 -> 370 | E11: 3000 | F11: 288 | G11: 63 | H11: 373 | J11: 261 | L11: s/d
A12: Nota: EMS incluye 27 becas de transportes (modalidad nueva: no se aplicó en el período 2009-2012). La modalidad Cursos PUE - COCAP inicia en 2012. Todo el país, año 2013.
A13: Fuente: PUE.

Sheet I.3.1.7
A1: Ministerio de Educación y Cultura Dirección de Educación
A5: Cuadro I-3.1.7
A6: BECAS OTORGADAS POR LA FUNDACIÓN CHAMANGÁ. AÑO 2013.
A7: GRANDES ÁREAS / DEPTO. | C7: TOTAL | D7: SEXO
D8: Hombres | E8: Mujeres
A9: Total | C9: =C11+C12 -> 32 | D9: 10 | E9: 22
A11: Montevideo | C11: 4 | D11: S/D | E11: S/D
A12: Resto del interior | C12: =SUM(C14:C31) -> 28 | D12: S/D | E12: S/D
A14: Artigas | C14: 4 | D14: S/D | E14: S/D
A15: Canelones | C15: 4 | D15: S/D | E15: S/D
A16: Cerro Largo | C16: 2 | D16: S/D | E16: S/D
A17: Colonia | C17: 3 | D17: S/D | E17: S/D
A18: Durazno | C18: 1 | D18: S/D | E18: S/D
A19: Flores | C19: 0 | D19: S/D | E19: S/D
A20: Florida | C20: 0 | D20: S/D | E20: S/D
A21: Lavalleja | C21: 0 | D21: S/D | E21: S/D
A22: Maldonado | C22: 0 | D22: S/D | E22: S/D
A23: Paysandú | C23: 3 | D23: S/D | E23: S/D
A24: Rio Negro | C24: 3 | D24: S/D | E24: S/D
A25: Rivera | C25: 1 | D25: S/D | E25: S/D
A26: Rocha | C26: 0 | D26: S/D | E26: S/D
A27: Salto | C27: 2 | D27: S/D | E27: S/D
A28: San José | C28: 2 | D28: S/D | E28: S/D
A29: Soriano | C29: 2 | D29: S/D | E29: S/D
A30: Tacuarembó | C30: 1 | D30: S/D | E30: S/D
A31: Treinta y Tres | C31: 0 | D31: S/D | E31: S/D
A32: Fuente: Fundación Chamangá.
A33: Nota: No se cuenta con desagregación de sexo por departamento.

Sheet I-3.1.8
A1: Ministerio de Educación y Cultura
A2: Dirección de Educación
A6: Cuadro I-3.1.8
A7: CANTIDAD DE CENTROS MEC Y TOTAL DE ALFABETIZADOS DIGITALES SEGÚN GRANDES ÁREAS Y DEPARTAMENTO – AÑO 2013
A8: GRANDES ÁREAS / DEPTO. | C8: ALFABETIZADOS | D8: CENTROS MEC
A9: Total | C9: =C11+C12 -> 9395 | D9: =D11+D12 -> 123
A11: Montevideo | C11: 500 | D11: 1
A12: Resto del interior | C12: =SUM(C13:C30) -> 8895 | D12: =SUM(D13:D30) -> 122
A13: Artigas | C13: 400 | D13: 9
A14: Canelones | C14: 911 | D14: 11
A15: Cerro Largo | C15: 750 | D15: 6
A16: Colonia | C16: 490 | D16: 8
A17: Durazno | C17: 440 | D17: 7
A18: Flores | C18: 220 | D18: 6
A19: Florida | C19: 530 | D19: 10
A20: Lavalleja | C20: 535 | D20: 4
A21: Maldonado | C21: 302 | D21: 6
A22: Paysandú | C22: 874 | D22: 10
A23: Rio Negro | C23: 198 | D23: 6
A24: Rivera | C24: 415 | D24: 5
A25: Rocha | C25: 500 | D25: 9
A26: Salto | C26: 620 | D26: 5
A27: San José | C27: 780 | D27: 8
A28: Soriano | C28: 300 | D28: 4
A29: Tacuarembó | C29: 215 | D29: 2
A30: Treinta y Tres | C30: 415 | D30: 6
A31: Fuente : Centros Mec.
A32: Nota: Todo el país, año 2013,

Sheet I-3.1.9
A1: Ministerio de Educación y Cultura
A2: Dirección de Educación
A6: Cuadro I-3.1.9
A7: BECARIOS DEL PROGRAMA YO ESTUDIO Y TRABAJO SEGÚN GRANDES ÁREAS Y DEPARTAMENTO. AÑO 2013.
A8: GRANDES ÁREAS / DEPTO. | C8: BECARIOS | E8: %
A9: Total | C9: =+C11+C12 -> 693 | E9: =+E11+E12 -> 100
A11: Montevideo | C11: 342 | E11: 49
A12: Resto del interior | C12: =SUM(C14:D31) -> 351 | E12: 51
A14: Artigas | C14: 16 | E14: 2
A15: Canelones | C15: 71 | E15: 10
A16: Cerro Largo | C16: 14 | E16: 2.02020202
A17: Colonia | C17: 29 | E17: 4.184704185
A18: Durazno | C18: 17 | E18: 2.453102453
A19: Flores | C19: 7 | E19: 2
A20: Florida | C20: 11 | E20: 1.587301587
A21: Lavalleja | C21: 18 | E21: 2.597402597
A22: Maldonado | C22: 24 | E22: 3.463203463
A23: Paysandú | C23: 32 | E23: 4.617604618
A24: Rio Negro | C24: 11 | E24: 1.587301587
A25: Rivera | C25: 13 | E25: 1.875901876
A26: Rocha | C26: 15 | E26: 2.164502165
A27: Salto | C27: 13 | E27: 1.875901876
A28: San José | C28: 18 | E28: 2.597402597
A29: Soriano | C29: 9 | E29: 1.298701299
A30: Tacuarembó | C30: 19 | E30: 2.741702742
A31: Treinta y Tres | C31: 14 | E31: 2.02020202
A32: Fuente: MTSS.
A33: Nota: Todo el país, año 2013

Sheet I-3.1.10
A1: Ministerio de Educación y Cultura
A2: Dirección de Educación
A4: Cuadro I-3.1.10
A5: BECARIOS DEL PROGRAMA JÓVENES EN RED POR SEXO SEGÚN DEPARTAMENTO.
A6: AÑO 2013.
A7: DEPARTAMENTO | C7: Total | D7: SEXO
D8: Hombres | E8: Mujeres | F8: % Mujeres
A10: Total | C10: 2352 | D10: 1089 | E10: 1263 | F10: 53.7
A12: Artigas | C12: 199 | D12: 66 | E12: 133 | F12: 66.8
A13: Canelones | C13: 902 | D13: 433 | E13: 469 | F13: 52
A14: Cerro Largo | C14: 174 | D14: 76 | E14: 98 | F14: 56.3
A15: Montevideo | C15: 1021 | D15: 481 | E15: 540 | F15: 52.9
A16: San José | C16: 52 | D16: 32 | E16: 20 | F16: 38.5
A17: Desconocido | C17: 4 | D17: 1 | E17: 3 | F17: 75
A19: Nota: | B19: Todo el país, año 2013.
A20: Fuente: | B20: MIDES.

Sheet I-.3.1.11
A1: Ministerio de Educación y Cultura
A2: Dirección de Educación
A5: Cuadro I-3.1.11
A6: CENTROS Y BENEFICIARIOS CON EQUIPO DE CEIBAL POR TIPO DE USUARIO SEGÚN AÑO LECTIVO - 2013
A7: AÑO | C7: Cantidad de centros con equipos | D7: TOTAL | E7: ALUMNOS | F7: DOCENTES
A8: 2007 | C8: - | D8: 5266 | E8: 4964 | F8: 302
A9: 2008 | C9: - | D9: 179505 | E9: 164711 | F9: 14794
A10: 2009 | C10: 1779 | D10: 350004 | E10: 327736 | F10: 22268
A11: 2010 | C11: 1882 | D11: 417445 | E11: 393521 | F11: 23924
A12: 2011 | C12: 2127 | D12: 503609 | E12: 476065 | F12: 27544
A13: 2012 | C13: 2392 | D13: 566552 | E13: 527312 | F13: 39240
A14: 2013 | C14: 2546 | D14: =+E14+F14 -> 607459 | E14: 559836 | F14: 47623
A15: Fuente : Plan Ceibal

Sheet I-3.3.1
A1: Ministerio de Educación y Cultura
A2: Dirección de Educación
A6: Cuadro I-3.3.1
A7: GASTO EN MILLONES DE PESOS CONSTANTES DE 2006 POR AÑO LECTIVO SEGÚN ÁMBITO DEL GASTO (2004 - 2013).
A8: ÁMBITO DEL GASTO | B8: AÑO LECTIVO
B9: 2004 | C9: 2005 | D9: 2006 | E9: 2007 | F9: 2008 | G9: 2009 | H9: 2010 | I9: 2011 | J9: 2012 | K9: 2013
A10: TOTAL | B10: 13806 | C10: 14406 | D10: 15866 | E10: 18386 | F10: 22388 | G10: 25023 | H10: 25608.20163 | I10: 28090.37611 | J10: 30264.69827 | K10: 31654.8263
A11: Inst. básicas del sist. educación formal | B11: 12883 | C11: 13314 | D11: 14345 | E11: 16157 | F11: 19010 | G11: 22020 | H11: 22218.74291 | I11: 24360.78088 | J11: 25721.20623 | K11: 26938.71055
A12: ANEP | B12: 10337 | C12: 10702 | D12: 11455 | E12: 12881 | F12: 15223 | G12: 17662 | H12: 17771.8124 | I12: 19422.88393 | J12: 20568.57046 | K12: 21656.53537
A13: UDELAR | B13: 2546 | C13: 2612 | D13: 2890 | E13: 3276 | F13: 3787 | G13: 4358 | H13: 4446.93051 | I13: 4937.896944 | J13: 5152.635773 | K13: 5276.258868
A14: UTEC | B14: 0 | C14: 0 | D14: 0 | E14: 0 | F14: 0 | G14: 0 | H14: 0 | I14: 0 | J14: 0 | K14: 6
A15: Administración Central e Inciso 21 | B15: 656 | C15: 733 | D15: 1079 | E15: 1152 | F15: 1327 | G15: 1294 | H15: 1523.082115 | I15: 1734.117378 | J15: 2456.356198 | K15: 2516.014707
A16: Educación policial y militar | B16: 391 | C16: 436 | D16: 482 | E16: 569 | F16: 608 | G16: 628 | H16: 694.2412637 | I16: 708.7408959 | J16: 946.5824513 | K16: 980.2756341
A17: Otros Administración Central1 | B17: 69 | C17: 91 | D17: 185 | E17: 159 | F17: 257 | G17: 164 | H17: 263.1640961 | I17: 390.1556544 | J17: 890.9245623 | K17: 905.9814871
A18: Partidas del inciso 21 con destino a educación2 | B18: 196 | C18: 206 | D18: 412 | E18: 424 | F18: 462 | G18: 502 | H18: 565.6767556 | I18: 635.2208281 | J18: 618.849184 | K18: 629.757586
A19: Educación no formal inicial (CAIF) y CENFORES | B19: 141 | C19: 191 | D19: 240 | E19: 281 | F19: 473 | G19: 540 | H19: 535.6258651 | I19: 666.6665992 | J19: 833.0443091 | K19: 935.8413043
A20: Ciencia y Tecnología | B20: 126 | C20: 168 | D20: 202 | E20: 299 | F20: 291 | G20: 206 | H20: 229.9738005 | I20: 278.1368348 | J20: 318.2973661 | K20: 316.0540902
A21: MEC3 | B21: 109 | C21: 125 | D21: 147 | E21: 240 | F21: 161 | G21: 79 | H21: 84.64402293 | I21: 73.69579869 | J21: 93.59018017 | K21: 85.20568848
A22: PEDECIBA, Instituto Pasteur, ANII4 | B22: 17 | C22: 43 | D22: 55 | E22: 59 | F22: 129 | G22: 127 | H22: 145.3297776 | I22: 204.4410361 | J22: 224.7071859 | K22: 230.8484017
A23: Plan Ceibal | B23: 0 | C23: 0 | D23: 0 | E23: 497 | F23: 1203 | G23: 801 | H23: 908.9556789 | I23: 843.9074011 | J23: 729.0830849 | K23: 743.0882874
A24: Incentivo a la demanda educativa en secundaria | B24: 0 | C24: 0 | D24: 0 | E24: 0 | F24: 84 | G24: 162 | H24: 191.8212572 | I24: 206.7670244 | J24: 206.7110772 | K24: 205.1173651
A26: Fuentes: Elaborado en base a datos del MEF.
A27: Notas:
A28: 1. Se incluyen gastos en Dirección de Educación del MEC, ISEF, capacitación laboral, Centro de Diseño Industrial, escuelas de formación artística y otros componentes considerados en MIDES-DINEM (2006), "Identificación y análisis del Gasto Público Social en Uruguay 2002-2005" Además, se incluye el subsidio al boleto estudiantil que realiza el MTOP. 2. Incluye subsidios a escuelas para niños con capacidades especiales, rentas afectadas al Fondo de Solidaridad y al Fondo de Reconversión Laboral. 3. Se considera la Dirección Nacional de Ciencia y Tecnología (DINACYT) y el Clemente Estable La baja de recursos se explica por la finalización del Programa de Desarrollo Tecnológico (PDT) y el traspaso de algunos programas a la ANII. 4. Del presupuesto de la ANII se toma en cuenta sólo el componente 2, de Fortalecimiento y orientación de la investigación.

Sheet I-4.4.1
A1: Ministerio de Educación y Cultura
A2: Dirección de Educación
A5: Cuadro I-4.4.1
A6: INDICADORES Y VALORES 2008 a 2013 PARA LA META NACIONAL 3 (ODM).
A7: Asistencia (%) al sistema educativo del grupo 3 a 5 por edad simple: | D7: 2008 | E7: 2009 | F7: 2010 | G7: 2011 | H7: 2012 | I7: 2013
C9: 3 años | D9: 53.8 | E9: 58.5 | F9: 61.3 | G9: 60.4 | H9: 63.8 | I9: 60.4
C10: 4 años | D10: 83 | E10: 86.6 | F10: 86.1 | G10: 86.1 | H10: 89.1 | I10: 90.2
C11: 5 años | D11: 96.9 | E11: 97.3 | F11: 97.3 | G11: 96.3 | H11: 97.7 | I11: 98.6
A12: Tasa neta de asistencia a Educ. Media Básica (12 a 14 años) | D12: 69.2 | E12: 73.1 | F12: 73.4 | G12: 75.9 | H12: 73.8 | I12: 75.6
A13: Tasa neta de asistencia e Educ. Media Superior (15 a 17 años) | D13: 53.2 | E13: 47.6 | F13: 43.2 | G13: 50.5 | H13: 51.4 | I13: 49.7
A14: Fuente: | B14: Procesamiento propio con base en la Encuesta Continua de Hogares 2008 a 2013

Sheet I-5.4.1
A1: Ministerio de Educación y Cultura Dirección de Educación
A3: Cuadro I-5.4.1
A4: PRINCIPALES ESTADÍSTICOS.
A5: INICIAL
A6: Cantidad de Establecimientos de Educación Inicial y Primera Infancia (Supervisados por CEIP, públicos y privados) | D6: 249
A7: Cantidad de Centros CAIF (Supervisados por el INAU) | D7: 336
A8: Cantidad de Centros de Educación Infantil Privados (Supervisados por el MEC) | D8: 454
A9: Cantidad de alumnos en Educación Inicial y Primera Infancia (Supervisados por CEIP públicos y privados) | D9: 109602
A10: Cantidad de alumnos en Centros CAIF (Supervisados por el INAU) | D10: 45620
A11: Cantidad de alumnos en Centros de Educación Infantil Privados (Supervisados por el MEC) | D11: 21255
A12: EDUCACIÓN PRIMARIA
A13: Cantidad de establecimientos | D13: 2421
A14: Cantidad de alumnos | D14: 319238
A15: Porcentaje de alumnos de educación pública | D15: 83.4
A16: Porcentaje de alumnos de Montevideo en educación pública | D16: 71.3
A17: Porcentaje de alumnos del Resto del País en educación pública | D17: 90.1
A18: Porcentaje de alumnos de educación pública que se encuentran en Área Urbana | D18: 93.8
A19: Razón Público/Privado en Educación Primaria | D19: 5
A20: Porcentaje de alumnos que no aprobaron en 1ero | D20: 13.7
A21: Porcentaje de alumnos que no aprobaron de 1ero a 6to | D21: 5.6
A22: Porcentaje de alumnos que no aprobaron de 1ero a 6to en escuelas rurales | D22: 4.1
A23: Porcentaje de alumnos que no aprobaron de 1ero a 6to en escuelas urbanas | D23: 5.7
A24: Porcentaje de personas de 14 a 15 que culminaron primaria | D24: 96.7
A25: Porcentaje de personas de 15 a 20 que no culminaron educación media básica, no estudian, no trabajan y no buscan trabajo | D25: 9.4
A26: EDUCACIÓN MEDIA
A27: Cantidad de establecimientos dependientes del CES | D27: 471
A28: Cantidad de establecimientos dependientes del CETP (UTU) | D28: 235
A29: Porcentaje de establecimientos dependientes del CES en Montevideo | D29: 37.4
A30: Porcentaje de establecimientos dependientes del CETP (UTU) en Montevideo | D30: 21.7
A31: Cantidad de alumnos en Educación Media Básica | D31: 181444
A32: Cantidad de alumnos en Educación Media Superior | D32: 153682
A33: Razón Público/Privado en Educación Media Básica | D33: 5
A34: Razón Público/Privado en Educación Media Superior | D34: 5.8
A35: Porcentaje de no aprobación de 1º a 3º año diurno público en Educación Media Básica General | D35: 28.6
A36: Porcentaje de desvinculación de 1º a 3º año diurno público en Educación Media Básica General | D36: 3.5
A37: Porcentaje de personas de 17 a 18 años que culminaron ciclo básico | D37: 64.4
A38: Porcentaje de personas de 21 a 22 años que culminaron segundo ciclo | D38: 36.8
A39: EDUCACIÓN TERCIARIA
A40: Cantidad de matriculados en cursos de grado en universidades e institutos universitarios | D40: 151081
A41: Cantidad de matriculados en ofertas terciarias de Formación en Educación | D41: 22754
A42: Cantidad de matriculados en ofertas terciarias del Ministerio del Interior y del Ministerio de Defensa Nacional | D42: 572
A43: Cantidad de ingresos en cursos de grado en universidades e institutos universitarios | D43: 23275
A44: Cantidad de egresos en cursos de grado en universidades e institutos universitarios | D44: 7826
A45: LOGRO EDUCATIVO Y ASISTENCIA
A46: Porcentaje personas de 25 años o más con primaria completa o menos como nivel máximo alcanzado | D46: 37.7
A47: Porcentaje personas de 25 a 29 años con primaria completa o menos como nivel máximo alcanzado | D47: 16.2
A48: Tasa de analfabetismo (Uruguay) | D48: 1.6
A49: Tasa de analfabetismo (MERCOSUR) | D49: 7.7
A50: Tasa de analfabetismo (UNASUR) | D50: 8.2
A51: Porcentaje de jóvenes de 15 a 20 años que no asiste a ningún establecimiento, no trabaja y no busca trabajo | D51: 13
A52: CONTEXTO DE LA EDUCACIÓN
A53: Cantidad de alumnos atendidos por el Programa Maestros Comunitarios | D53: 15608
A54: Cantidad de alumnos atendidos por los CECAP’s | D54: 2135
A55: Alumnos atendidos por el Programa de Educación Física Escolar | D55: 306532
A56: Razón alumnos/docente en el Programa Maestros Comunitarios | D56: 29
A57: Razón alumnos/educadores en los CECAP’s | D57: 8
A58: Razón alumnos/docente en el Programa de Educación Física Escolar | D58: 309.9
A59: GASTO
A60: Gasto público en educación como porcentaje de gasto del Gobierno Central | D60: 20.5
A61: Gasto público en educación como % del PBI (Uruguay) | D61: 4.6
A62: Notas: La categoría Centros de Educación Infantil Privados incluye el Proyecto Nuestros Niños de la Intendencia de Montevideo. La categoría CAIF incluye Centros Diurnos. Para Educación Primaria, en todos los casos se consideró educación común. Para Educación Media, la relación matriculados en educación pública, matriculados en educación privada, se realiza sin incorporar en el sector público la matrícula del CETP (UTU), por no contar con información sobre la matrícula técnico-vocacional en educación media del sector privado.

Sheet G I-1.2.1
A1: Ministerio de Educación y Cultura Dirección de Educación
A3: Gráfico I-1.2.1
A30: Fuente: Censos de Población 1963, 1975, 1985 y 1996, ENHA 2006 y ECH de 2007 a 2013 del INE.

Sheet G I-1.2.2.
A1: Ministerio de Educación y Cultura Dirección de Educación
A4: Gráfico I-1.2.2
A32: Fuente: Elaboración propia en base a ECH 2013.

Sheet G I-1.2.3
A1: Ministerio de Educación y Cultura Dirección de Educación
A5: Gráficos I-1.2.3
A31: Fuente: Elaboración propia en base a la ECH 2013.

Sheet G I-1.2.4
A1: Ministerio de Educación y Cultura Dirección de Educación
A5: Gráficos I-1.2.4
A31: Fuente: Elaboración propia en base a la ECH 2013.

Sheet G I-1.2.5
A1: Ministerio de Educación y Cultura Dirección de Educación
A5: Gráfico I-1.2.5
A30: Fuente: Elaboración propia en base a la ECH 2013.

Sheet G I-1.2.6
A1: Ministerio de Educación y Cultura Dirección de Educación
A3: Gráfico I-1.2.6
A30: Fuente: Elaboración propia en base a la ECH 2013.

Sheet G I-1.2.7
A1: Ministerio de Educación y Cultura Dirección de Educación
A3: Gráfico I-1.2.7
A30: Fuente: Elaboración propia en base a la ECH 2013.

Sheet G I-1.2.8
A1: Ministerio de Educación y Cultura Dirección de Educación
A5: Gráfico I-1.2.8
A36: Fuentes: Departamentos de Estadística u oficinas productoras de información del CEIP, CES, CETP, UdelaR, DFPD, INAU, y restantes instituciones públicas y privadas de educación terciaria.

Sheet G I-1.2.9
A1: Ministerio de Educación y Cultura Dirección de Educación
A5: Gráfico I-1.2.9
A34: Fuentes: Departamentos de Estadística y oficinas productoras de información del CEIP, CES, CETP (UTU), UdelaR e instituciones privadas de educación terciaria.
A36: Nota: No se cuenta con información sobre la cantidad de hombres y mujeres en Formación Docente, sólo existe esta información para Seguridad y Defensa
A37: y Otras Terciarias No Universitarias, por ello constituyen un volumen de matrícula difícil de visualizar en el gráfico

Sheet G I-1.2.10
A1: Ministerio de Educación y Cultura Dirección de Educación
A5: Gráfico I-1.2.8
A6: Gráfico I-1.2.10
A35: Fuentes: Departamentos de Estadística u oficinas productoras de información del CEIP, CES, CETP (UTU), UdelaR, CFE e instituciones privadas de educación
A36: terciaria.

Sheet G I-1.2.11
A1: Ministerio de Educación y Cultura Dirección de Educación
A3: Gráfico I-1.2.11
A26: Fuentes: Departamentos de Estadística u oficinas productoras de información del CEIP, CES, CETP (UTU), UdelaR, CFE e instituciones privadas de educación.
A34: Nota: Incluye Terciaria no Universitaria

Sheet G I-1.2.12
A1: Ministerio de Educación y Cultura Dirección de Educación
A3: Gráfico I-1.2.12
A29: Fuente : Elaboración propia en base a ECH 2013.

Sheet G I-1.2.13
A1: Ministerio de Educación y Cultura Dirección de Educación
A5: Gráfico I-1.2.13
A31: Fuente : Elaboración propia en base a la ECH 2013

Sheet G I-1.2.14
A1: Ministerio de Educación y Cultura Dirección de Educación
A5: Gráfico I-1.2.14
A29: Fuente: Elaboración propia en base a la ECH 2013

Sheet G I-1.2.15
A1: Ministerio de Educación y Cultura Dirección de Educación
A5: Gráfico I-1.2.15
A28: Fuente: Elaboración propia en base a ECH 2013.
A33: Fuente: ENHA 2006 y ECH 2007 a 2013 del INE

Sheet G I-1.2.16
A1: Ministerio de Educación y Cultura Dirección de Educación
A5: Gráfico I-1.2.16
A28: Fuente: Elaboración propia en base a ECH 2013.
A34: Fuente: ENHA 2006 y ECH 2007 a 2013 del INE

Sheet G I-1.2.17
A1: Ministerio de Educación y Cultura Dirección de Educación
A5: Gráfico I-1.2.17
A28: Fuente: Elaboración propia en base a ECH 2013.

Sheet G I-1.2.18
A1: Ministerio de Educación y Cultura Dirección de Educación
A5: Gráfico I-1.2.18
A35: Fuente : Elaboración propia en base a la ECH 2013.

Sheet G I-1.2.19
A1: Ministerio de Educación y Cultura Dirección de Educación
A5: Gráfico I-1.2.19
A33: Fuente : Elaboración propia en base a la ECH 2013.

Sheet G I-1.2.20
A1: Ministerio de Educación y Cultura Dirección de Educación
A5: Gráfico I-1.2.20
A26: Fuente: Elaboración propia en base a la ECH 2013

Sheet G I-1.2.21
A1: Ministerio de Educación y Cultura Dirección de Educación
A5: Gráfico I-1.2.21
A26: Fuente: Elaboración propia en base a la ECH 2013

Sheet G I-1.2.22
A1: Ministerio de Educación y Cultura Dirección de Educación
A5: Gráfico I-1.2.22
A30: Fuente: Elaboración propia en base a la ECH 2013.

Sheet G I-1.2.23
A1: Ministerio de Educación y Cultura Dirección de Educación
A5: Gráfico I-1.2.23
A28: Fuente: Elaboración propia en base a la ECH 2013.

Sheet G I-1.2.24
A1: Ministerio de Educación y Cultura Dirección de Educación
A3: Gráfico I-1.2.24
A27: Fuente: Elaboración propia en base a la ECH 2013.

Sheet G I-1.2.25
A1: Ministerio de Educación y Cultura Dirección de Educación
A3: Gráfico I-1.2.25
A21: Fuente: Elaboración propia en base a la ECH 2013.

Sheet G I-2.1.1
A1: Ministerio de Educación y Cultura Dirección de Educación
A5: Gráfico I-2.1.1
A29: Fuente: Elaboración propia en base en datos del Departamento de Estadística del CEIP, Sistema de Información para la Infancia de INAU y Área de Primera Infancia del MEC.

Sheet G I-2.1.2
A1: Ministerio de Educación y Cultura Dirección de Educación
A5: Gráfico I-2.1.2
A35: Fuente: Elaboración propia en base a datos del Departamento de Estadística del CEIP, Sistema de Información para la Infancia de INAU y Área de Primera Infancia del MEC.

Sheet G I-2.1.3
A1: Ministerio de Educación y Cultura Dirección de Educación
A5: Gráfico I-2.1.3
A29: Fuente: Elaboración propia en base a datos del Departamento de Estadística del CEIP, Sistema de Información para la Infancia de INAU y Área de Primera Infancia del MEC.

Sheet G I-2.1.4
A1: Ministerio de Educación y Cultura Dirección de Educación
A4: Gráfico I-2.1.4
A29: Fuente: Elaboración propia en base a información del Departamento de Estadística del CEIP.

Sheet G I-2.1.5
A1: Ministerio de Educación y Cultura Dirección de Educación
A3: Gráfico I-2.1.5
A29: Fuente: Elaboración propia en base a información del Departamento de Estadística del CEIP.

Sheet G I-2.2.0
A1: Ministerio de Educación y Cultura Dirección de Educación
A3: Gráfico I-2.2.0
A24: Fuente: Elaboración propia en base a información del Departamento de Estadística del CEIP para el período 2000 a 2013 y A 140 años de La Educación del
A25: Pueblo: Aportes para la reflexión sobre la educación en Uruguay. Tomo I Educación Pre primaria, Primaria y Media, para el período 1885 a 1999.

Sheet G I-2.2.1
A1: Ministerio de Educación y Cultura Dirección de Educación
A3: Gráfico I-2.2.1
A40: Fuente: | B40: Elaboración propia en base a datos del Departamento de Estadística del CEIP.
A41: Nota: | B41: Educación primaria común incluye la matrícula de educación en Jardines de Infantes con Ciclo Inicial (JICI).

Sheet G I-2.2.2
A1: Ministerio de Educación y Cultura Dirección de Educación
A6: Gráfico I-2.2.2
A29: Fuente: Elaboración propia en base a datos proporcionados por el Departamento de Estadística del CEIP.

Sheet G I-2.2.3
A1: Ministerio de Educación y Cultura Dirección de Educación
A5: Gráfico I-2.2.3
A30: Fuente: Monitor Educativo de Enseñanza Primaria ANEP.

Sheet G I-2.2.4
A1: Ministerio de Educación y Cultura Dirección de Educación
A5: Gráfico I-2.2.4
A34: Fuente: Monitor Educativo de Enseñanza Primaria. ANEP

Sheet G I-2.3.1
A1: Ministerio de Educación y Cultura Dirección de Educación
A5: Gráfico I-2.3.1
A33: Fuente: Departamentos de Estadísticas del CEIP, CES y CETP.
A34: Nota: Incluye Ciclo Básico Rural, Media General y Media Técnico-profesional.
A35: Nota: incluye matrícula por forma de administración pública y privada

Sheet G I-2.3.2
A1: Ministerio de Educación y Cultura Dirección de Educación
A5: Gráfico I-2.3.2
A30: Fuente: Departamentos de Estadísticas del CEIP, CES y CETP
A31: Nota: Incluye Ciclo Básico Rural, Media General y Media Técnica.
A32: Nota: incluye matrícula por forma de administración pública y privada

Sheet G I-2.3.3
A1: Ministerio de Educación y Cultura Dirección de Educación
A5: Gráfico I-2.3.3
A33: Fuente: Departamentos de Estadísticas del CEIP, CES y CETP
A34: Nota: incluye matrícula por forma de administración pública y privada

Sheet G I-2.3.4
A1: Ministerio de Educación y Cultura Dirección de Educación
A5: Gráfico I-2.3.4
A28: Fuente: Departamentos de Estadísticas del CEIP, CES y CETP.

Sheet G I-2.3.5
A1: Ministerio de Educación y Cultura Dirección de Educación
A5: Gráfico I-2.3.5
A28: Fuente: Departamentos de Estadística del CEIP, CES y del CETP.
A29: Nota: Media Básica General incluye Ciclo Básico Rural y por forma de administración pública y privada

Sheet G I-2.3.6
A1: Ministerio de Educación y Cultura Dirección de Educación
A5: Gráfico I-2.3.6
A38: Fuente:Departamento de Estadística del CES.

Sheet GI-2.3.7
A1: Ministerio de Educación y Cultura Dirección de Educación
A5: Gráfico I-2.3.7
A30: Fuente: Departamento de Estadística del CES.

Sheet GI-2.3.8
A1: Ministerio de Educación y Cultura Dirección de Educación
A5: Gráfico I-2.3.8
A29: Fuente: Departamento de Estadística del CES.

Sheet GI-2.3.9
A1: Ministerio de Educación y Cultura Dirección de Educación
A5: Gráfico I-2.3.9
A30: Fuente: Departamento de Estadística del CES.

Sheet G I-2.3.10
A1: Ministerio de Educación y Cultura Dirección de Educación
A5: Gráfico I-2.3.10
A35: Fuente: Departamentos de Estadística del CES y del CETP.
A36: Nota: Educación General incluye forma de administración pública y privada

Sheet G I-2.3.11
A1: Ministerio de Educación y Cultura Dirección de Educación
A3: Gráfico I-2.3.11
A45: Fuente: Departamento de Estadística del CES.

Sheet GI-2.3.12
A1: Ministerio de Educación y Cultura Dirección de Educación
A5: Gráfico I-2.3.12
A30: Fuente:Elaboración propia en base a información del Departamento de Estadística del CETP.

Sheet GI-2.3.13
A1: Ministerio de Educación y Cultura Dirección de Educación
A5: Gráfico I-2.3.13
A28: Fuente:Elaboración propia en base a información del Departamento de Estadística del CES.

Sheet GI-2.3.14
A1: Ministerio de Educación y Cultura Dirección de Educación
A5: Gráfico I-2.3.14
A33: Fuente: Elaboración propia en base a información del Monitor Educativo del CES.
A34: Nota:
A35: Por No Promoción se entiende: Alumnos con más de tres materias pendientes de aprobación.
A36: Por Reinscripto se entiende: Alumnos no promovidos en el año lectivo que registraron inscripción en el CES, CETP o Liceos Habilitados al año siguiente.
A37: Por No reinscripto se entiende: Alumnos no promovidos en el año lectivo que no registraron inscripción en el CES, CETP o Liceos Habilitados al año siguiente.

Sheet GI-2.3.15
A1: Ministerio de Educación y Cultura Dirección de Educación
A5: Gráfico I-2.3.15
A32: Fuente: Elaboración propia en base a información del Monitor Educativo del CES.
A33: Nota:
A34: Por No Promoción se entiende: Alumnos con más de tres materias pendientes de aprobación.
A35: Por Reinscripto se entiende: Alumnos no promovidos en el año lectivo que registraron inscripción en el CES, CETP o Liceos Habilitados al año siguiente.
A36: Por No reinscripto se entiende: Alumnos no promovidos en el año lectivo que no registraron inscripción en el CES, CETP o Liceos Habilitados al año siguiente.

Sheet GI-2.3.16
A1: Ministerio de Educación y Cultura Dirección de Educación
A5: Gráfico I-2.3.16
A35: Fuente: Elaboración propia en base a información del Monitor Educativo del CES.

Sheet GI-2.3.17
A1: Ministerio de Educación y Cultura Dirección de Educación
A5: Gráfico I-2.3.17
A31: Fuente: Elaboración propia en base a información del Monitor Educativo del CES.

Sheet G I-2.4.1.
A1: Ministerio de Educación y Cultura Dirección de Educación
A5: Gráfico I-2.4.1
A42: Fuente: Elaboración propia en base a información del Departamento de Estadística del CETP.

Sheet G I-.2.5.1
A1: Ministerio de Educación y Cultura Dirección de Educación
A5: Gráfico I-2.5.1
B31: Elaboración propia en base a información del Departamento de Estadística del CETP
A32: Fuente:

Sheet G I-.2.5.2
A1: Ministerio de Educación y Cultura Dirección de Educación
A5: Gráfico I-2.5.2
B31: Elaboración propia en base a información del Departamento de Estadística del CETP
A34: Fuente:
A35: Notas: | B35: No incluye las ofertas del Consejo de Formación en Educación (CFE) de ANEP ni Seguridad y Defensa, que se presentan aparte más adelante.

Sheet G I-2.5.3
A1: Ministerio de Educación y Cultura Dirección de Educación
A5: Gráfico I-2.5.3
A30: Fuente: | B30: Elaboración propia en base a información proporcionada por las oficinas productoras de estadísticas de cada una de las instituciones.

Sheet G-.2.5.4
A1: Ministerio de Educación y Cultura Dirección de Educación
A5: Gráfico I-2.5.4
A34: Fuente: | B34: Elaboración propia en base a información proporcionada por las oficinas productoras de estadísticas de cada una de las instituciones.

Sheet G I-2.5.5
A1: Ministerio de Educación y Cultura Dirección de Educación
A5: Gráfico I-2.5.5
A28: Fuente: Elaboración propia en base a información proporcionada por las oficinas productoras de estadísticas de cada una de las instituciones.
A29: Notas: La Escuela Militar de Aeronáutica no proporcionó datos de egreso para 2013 y se consignó el último valor disponible (año 2012).

Sheet GI-.2.6.1
A1: Ministerio de Educación y Cultura Dirección de Educación
A5: Gráfico I-2.6.1
A36: Fuente: Consejo de Formación en Educación de ANEP

Sheet GI-.2.6.2.
A1: Ministerio de Educación y Cultura Dirección de Educación
A5: Gráfico I-2.6.2.
A6: Gráfico I-2.5.3.
A33: Fuente: Consejo de Formación en Educación de ANEP

Sheet GI-.2.6.3.
A1: Ministerio de Educación y Cultura Dirección de Educación
A5: Gráfico I-2.6.3
A36: Fuente: Consejo de Formación en Educación de ANEP

Sheet G I-2.7.1.
A1: Ministerio de Educación y Cultura Dirección de Educación
A5: Gráfico I-2.7.1
A29: Fuente: | B29: Elaboración propia en base a información proporcionada por las oficinas productoras de estadísticas de cada una de las instituciones.

Sheet G I-2.7.2
A1: Ministerio de Educación y Cultura Dirección de Educación
A6: Gráfico I-2.7.2
A36: Fuente: Elaboración propia en base a información proporcionada por la UdelaR y las oficinas productoras de estadísticas educativas de los Institutos Universitarios y de las Universidades Privadas.
A37: Nota: Los ingresos a cursos de grado para UdelaR correspondientes al período 2000-2011 son extraídos de Estadísticas Básicas 2011-Dirección General de Planeamiento – UdelaR.

Sheet G I-2.7.3
A1: Ministerio de Educación y Cultura Dirección de Educación
A6: Gráfico I-2.7.3
A36: Fuente: Elaboración propia en base a información proporcionada por la UdelaR y las oficinas productoras de estadísticas educativas de los Institutos Universitarios y de las Universidades Privadas.

Sheet G I-2.7.4
A1: Ministerio de Educación y Cultura Dirección de Educación
A5: Gráfico I-2.7.4
A42: Fuente: | B42: Elaboración propia en base a información proporcionada por UdelaR.
A43: Nota: Los ingresos y egresos a cursos de grado para UdelaR correspondientes al período 2000 -2009 son extraidos de Estadisticas Básicas 2010 - Dirección General de Planeamiento - UdelaR

Sheet G I-2.7.5
A1: Ministerio de Educación y Cultura Dirección de Educación
A5: Gráfico I-2.7.5
A37: Fuente: | B37: Elaboración propia en base a información proporcionada por la UdelaR y las oficinas productoras de estadísticas educativas de los Institutos Universitarios y de las Universidades Privadas.
A40: Nota: El dato de egreso de UdelaR es preliminar.

Sheet G I-2.7.6
A1: Ministerio de Educación y Cultura Dirección de Educación
A5: Gráfico I-2.7.6
A43: Fuente: Elaboración propia en base a información reportada por las oficinas productoras de estadísticas de las instituciones.

Sheet G I-2.7.7
A1: Ministerio de Educación y Cultura Dirección de Educación
A5: Gráfico I-2.7.7
A30: Fuente: Elaboración propia en base a información reportada por las oficinas productoras de estadísticas de las instituciones.

Sheet G I-2.7.8
A1: Ministerio de Educación y Cultura Dirección de Educación
A5: Gráfico I-2.7.8
A31: Fuente: Elaboración propia en base a información proporcionada por las oficinas productoras de estadísticas educativas de los Institutos Universitarios y de las Universidades Privadas.

Sheet G I-3.1.1
A1: Ministerio de Educación y Cultura Dirección de Educación
A5: Gráfico I-3.1.1
A35: Fuente: Área de Becas de la Dirección de Educación del Ministerio de Educación y Cultura y Fondo de Solidaridad.
A36: Nota: El programa Uruguay Estudia incluye 600 becas otorgadas en Magisterio y Profesorado

Sheet G I-3.1.2
A1: Ministerio de Educación y Cultura Dirección de Educación
A4: Gráfico I-3.1.2
A35: Fuente: Procesamiento propio con base en la ECH 2012 del INE.

Sheet G.I-3.1.3
A1: Ministerio de Educación y Cultura Dirección de Educación
A5: Gráfico I-3.1.3
A35: Fuente: Procesamiento propio con base en información proprocionada por Plan Ceibal.
A36: Nota: Todo el país año 2013
A54: Fuente : Procesamiento propio con base en información proporcionda por plan Ceibal
A55: Nota: Todo el país , año 2013

Sheet G I-3.1.4
A1: Ministerio de Educación y Cultura Dirección de Educación
A4: Gráfico I-3.1.4
A30: Nota: En la medida en que no todas las personas tienen hijos en edad escolar, el porcentaje de “Con CEIBAL en el Hogar” no puede alcanzar el valor 100%.
A31: Fuente: Procesamiento propio con base en la ECH 2013 del INE.

Sheet G I-3.1.5
A1: Ministerio de Educación y Cultura Dirección de Educación
A4: Gráfico I-3.1.5
A30: Fuente: Procesamiento propio con base en las ECH del 2009 al 2013 del INE.

Sheet G I-3.1.6
A1: Ministerio de Educación y Cultura Dirección de Educación
A4: Gráfico I-3.1.6
A30: Fuente: Procesamiento propio con base en las ECH del 2009 al 2013 del INE.

Sheet G I-3.2.1
A1: Ministerio de Educación y Cultura Dirección de Educación
A5: Gráfico I-3.2.1
A32: Fuente: Banco Central del Uruguay (2005 – 2013).

Sheet G I-3.2.2
A1: Ministerio de Educación y Cultura Dirección de Educación
A5: Gráfico I-3.2.2
A33: Fuente: Incidencia de la pobreza e indigencia, INE.
A34: Nota: Los valores medios anuales fueron estimados por el Método del Ingreso de 2006 sobre los datos de las personas.

Sheet G I-3.3.1
A1: Ministerio de Educación y Cultura Dirección de Educación
A5: Gráfico I-3.3.1
A31: Fuente: Elaborado en base a datos del MEF, CGN.

Sheet G I-3.3.2
A1: Ministerio de Educación y Cultura Dirección de Educación
A5: Gráfico I-3.3.2
A31: Fuente: Elaborado en base a datos del MEF, CGN.

Sheet G I-3.3.3
A1: Ministerio de Educación y Cultura Dirección de Educación
A5: Gráfico I-3.3.3
A40: Fuente: Elaborado en base a datos del MEF, CGN.

Sheet G I-3.3.4
A1: Ministerio de Educación y Cultura Dirección de Educación
A5: Gráfico I-3.3.4
A34: Fuente: Gerencia General de Programación y Presupuesto, Unidad de Programación y Control Presupuestal del CODICEN.
A35: Nota: Datos al 1º de enero de cada año a valores constantes del 1º de enero de 2010. La información corresponde al salario nominal más la partida de alimentación. Serie 2000 a 2013.

Sheet G I-4.1.1
A1: Ministerio de Educación y Cultura Dirección de Educación
A5: Gráfico I-4.1.1
A33: Fuente: Indicadores Educativos del Mercosur 2000-2011 y Unidades Productoras de Estadísticas Oficiales de los Países. Para Paraguay año 2013, DGEEC, Encuesta Permanente de Hogares 2013.
A34: Notas:
A35: La Tasa de Analfabetismo se mide con base en personas con 15 y más años de edad, con excepción de Argentina, en que refiere a personas con 10 y más años de edad. En el caso de Paraguay, se considera analfabeta a la población que declara tener dos y menos años de estudio hasta 2012, dato 2013 se basa en la variable sabe leer y escribir. | B35: La Tasa de Analfabetismo se mide con base en personas con 15 y más años de edad, con excepción de Argentina, en que refiere a personas con 10 y más años de edad. En el caso de Paraguay, se considera analfabeta a la población que declara tener dos y menos años de estudio hasta 2012, dato 2013 se basa en la variable sabe leer y escribir. | C35: La Tasa de Analfabetismo se mide con base en personas con 15 y más años de edad, con excepción de Argentina, en que refiere a personas con 10 y más años de edad. En el caso de Paraguay, se considera analfabeta a la población que declara tener dos y menos años de estudio hasta 2012, dato 2013 se basa en la variable sabe leer y escribir. | D35: La Tasa de Analfabetismo se mide con base en personas con 15 y más años de edad, con excepción de Argentina, en que refiere a personas con 10 y más años de edad. En el caso de Paraguay, se considera analfabeta a la población que declara tener dos y menos años de estudio hasta 2012, dato 2013 se basa en la variable sabe leer y escribir. | E35: La Tasa de Analfabetismo se mide con base en personas con 15 y más años de edad, con excepción de Argentina, en que refiere a personas con 10 y más años de edad. En el caso de Paraguay, se considera analfabeta a la población que declara tener dos y menos años de estudio hasta 2012, dato 2013 se basa en la variable sabe leer y escribir. | F35: La Tasa de Analfabetismo se mide con base en personas con 15 y más años de edad, con excepción de Argentina, en que refiere a personas con 10 y más años de edad. En el caso de Paraguay, se considera analfabeta a la población que declara tener dos y menos años de estudio hasta 2012, dato 2013 se basa en la variable sabe leer y escribir. | G35: La Tasa de Analfabetismo se mide con base en personas con 15 y más años de edad, con excepción de Argentina, en que refiere a personas con 10 y más años de edad. En el caso de Paraguay, se considera analfabeta a la población que declara tener dos y menos años de estudio hasta 2012, dato 2013 se basa en la variable sabe leer y escribir.
A36: Último dato disponible para Brasil se corresponde a 2012, para Chile el último dato es 2011, para estos países se replica el último dato disponible para los años siguientes. | B36: Último dato disponible para Brasil se corresponde a 2012, para Chile el último dato es 2011, para estos países se replica el último dato disponible para los años siguientes. | C36: Último dato disponible para Brasil se corresponde a 2012, para Chile el último dato es 2011, para estos países se replica el último dato disponible para los años siguientes. | D36: Último dato disponible para Brasil se corresponde a 2012, para Chile el último dato es 2011, para estos países se replica el último dato disponible para los años siguientes. | E36: Último dato disponible para Brasil se corresponde a 2012, para Chile el último dato es 2011, para estos países se replica el último dato disponible para los años siguientes. | F36: Último dato disponible para Brasil se corresponde a 2012, para Chile el último dato es 2011, para estos países se replica el último dato disponible para los años siguientes. | G36: Último dato disponible para Brasil se corresponde a 2012, para Chile el último dato es 2011, para estos países se replica el último dato disponible para los años siguientes.
A37: Se corrigió el dato 2011 y 2012 para Brasil y Argentina en base a lo reportado por las oficinas nacionales productoras de estadísticas oficiales de cada país. | B37: Se corrigió el dato 2011 y 2012 para Brasil y Argentina en base a lo reportado por las oficinas nacionales productoras de estadísticas oficiales de cada país. | C37: Se corrigió el dato 2011 y 2012 para Brasil y Argentina en base a lo reportado por las oficinas nacionales productoras de estadísticas oficiales de cada país. | D37: Se corrigió el dato 2011 y 2012 para Brasil y Argentina en base a lo reportado por las oficinas nacionales productoras de estadísticas oficiales de cada país. | E37: Se corrigió el dato 2011 y 2012 para Brasil y Argentina en base a lo reportado por las oficinas nacionales productoras de estadísticas oficiales de cada país. | F37: Se corrigió el dato 2011 y 2012 para Brasil y Argentina en base a lo reportado por las oficinas nacionales productoras de estadísticas oficiales de cada país. | G37: Se corrigió el dato 2011 y 2012 para Brasil y Argentina en base a lo reportado por las oficinas nacionales productoras de estadísticas oficiales de cada país.

Sheet G I-4.1.2
A1: Ministerio de Educación y Cultura Dirección de Educación
A5: Gráfico I-4.1.2
A28: Fuente: | B28: Instituto de Estadística de la Organización de las Naciones Unidas para la Educación, la Ciencia y la Cultura (UNESCO) y, para Uruguay, Área de Investigación y Estadística de la Dirección de Educación del MEC.
A29: Nota: | B29: Los porcentajes por región son promedios ponderados, teniendo en cuenta el tamaño poblacional relativo de los países. Los cálculos se realizaron con el último dato disponible de UNESCO (año 2000 en adelante). Para Uruguay es el dato 2013.

Sheet G I_4.1.3
A1: Ministerio de Educación y Cultura Dirección de Educación
A5: Gráfico I-4.1.3
A29: Fuente: | B29: Instituto de Estadística de la Organización de las Naciones Unidas para la Educación, la Ciencia y la Cultura (UNESCO) y, para Uruguay, Área de Investigación y Estadística de la Dirección de Educación del MEC.
A30: Nota: | B30: Los porcentajes por región son promedios ponderados, teniendo en cuenta el tamaño poblacional relativo de los países. Los cálculos se realizaron con el último dato disponible de UNESCO (año 2000 en adelante). Para Uruguay es el dato 2013.

Sheet G I 4.2.1
A1: Ministerio de Educación y Cultura Dirección de Educación
A5: Gráfico I-4.2.1
A32: Fuente: Indicadores Educativos del Mercosur 2000 – 2011.

Sheet G I 4.2.2
A1: Ministerio de Educación y Cultura Dirección de Educación
A5: Gráfico I-4.2.2
A33: Fuente: Indicadores Educativos del Mercosur 2000 – 2011.

Sheet G I-4.2.3
A1: Ministerio de Educación y Cultura Dirección de Educación
A5: Gráfico I-4.2.3
A33: Fuente: Indicadores Educativos del Mercosur 2000 – 2011.

Sheet G I-4.3.1
A1: Ministerio de Educación y Cultura Dirección de Educación
A5: Gráfico I-4.3.1
B29: Instituto de Estadística de la Organización de las Naciones Unidas para la Educación, la Ciencia y la Cultura (UNESCO) y, para Uruguay, Área de Investigación y Estadística de la Dirección de Educación del MEC, en base a datos del MEF, CGN.
A30: Fuente:
A32: Nota: | B32: Los cálculos se realizaron con el último dato disponible de UNESCO (año 2000 en adelante). Para Uruguay es el dato 2013.

Sheet G I-4.3.2
A1: Ministerio de Educación y Cultura Dirección de Educación
A5: Gráfico I-4.3.2
A30: Fuente: | B30: Banco Mundial: Crecimiento del PBI (% anual) y PBI (US$ a precios constantes de 2005) http://datos.bancomundial.org/
A31: Nota: | B31: Los valores presentados del PBI son US$ a precios constantes de 2005. Para el calculo del PBI del MERCOSUR, sólo se sumaron los PBI de los países involucrados en la comparación: Argentina, Brasil, Chile, Paraguay y Uruguay.

Sheet G I-4.3.3
A1: Ministerio de Educación y Cultura Dirección de Educación
A5: Gráfico I-4.3.3
A30: Fuente: | B30: Instituto de Estadística de la Organización de las Naciones Unidas para la Educación, la Ciencia y la Cultura (UNESCO) y, para Uruguay, Área de Investigación y Estadística de la Dirección de Educación del MEC, en base a datos del MEF, CGN.
A31: Nota: | B31: Los porcentajes por región, son promedios ponderados. Los cálculos se realizaron con base al último dato disponible en la fuente (año 2000 en adelante). Para Uruguay es el dato 2013.

Sheet G I-4.4.1
A1: Ministerio de Educación y Cultura Dirección de Educación
A5: Gráfico I-4.4.1
A27: Fuentes: Elaboración propia con base a las ECH del INE y datos indicadores Miradas 2014.
A28: Notas:
A29: El dato Iberoamérica se corresponde al promedio simple de la información de los países.
A30: Se optó por presentar 2010 y 2012 dado que son los años para los cuales reporta la mayor cantidad de países.

Sheet G I-4.4.2
A1: Ministerio de Educación y Cultura Dirección de Educación
A5: Gráfico I-4.4.2
A28: Fuentes: Elaboración propia con base a las ECH del INE y datos indicadores Miradas 2014.
A29: Notas:
A30: Para niños de 4 a 5 años, se presenta una Tasa neta ajustada: incluye a niños de 5 años que ya se encuentran cursando Primaria (CINE 1).
A31: En 2009 y 2010 cambió el criterio de consulta de la ECH para las edades de 0 a 3 años por lo que no se incluye el dato para estos años puesto que no es comparable con el resto de la serie.
A32: En 2007 y 2008 la ECH no releva el dato de asistencia para las edades de 0 a 2 años
A33: El dato Iberoamérica se corresponde al promedio simple de la información de los países.
A34: Se optó por presentar 2012 dado que es el años para el cual reporta la mayor cantidad de países.

Sheet G I-4.4.3
A1: Ministerio de Educación y Cultura Dirección de Educación
A5: Gráfico I-4.4.3
A27: Fuentes: Elaboración propia con base a las ECH del INE y datos indicadores Miradas 2014.
A28: Notas:
A29: El horario establecido como general en primaria pública es de 20hs semanales.(no incluye educación especial)
A30: Las Escuelas de Tiempo Completo, Tiempo Extendido y la Escuela Rural Común superan las 20hs semanales.
A31: El dato Iberoamérica se corresponde al promedio simple de la información de los países. No se incluyó el dato de Cuba.
A32: Este indicador fue calculado para cada país de Iberoamércia como la relación entre los niños que asisten al horario establecido oficialmente como general y los que asisten a un horario superior al general. Esto implica que las cargas horarias en uno y otro caso varían según los países.
A33: Se presenta solamente dato Iberoamérica 2013 por ser el único año en que figura información para los países.
A34: Fuentes: Elaboración propia con base a las ECH del INE y datos indicadores Miradas 2014.

Sheet G I-4.4.4
A1: Ministerio de Educación y Cultura Dirección de Educación
A5: Gráfico I-4.4.4
A25: Fuentes: Elaboración propia con base a las ECH del INE y datos indicadores Miradas 2014.
A26: Notas:
A27: Edad considerada para Uruguay 4 a 14 años.
A28: Familias 1er quintil con AFAM, refiere al porcentaje de familias con niños de 4 a 14 años pertenecientes al primer quintil de ingresos que perciben Asignación Familiar.
A29: Familias 1er quintil refiere al porcentaje de familias con niños de entre 4 y 14 años que pertenecen al primer quintil de ingresos para Uruguay.
A30: Se presenta solamente dato Iberoamérica 2013 por ser el único año en que figura información para los países.
A31: El dato Iberoamérica se corresponde al promedio simple de la información de los países referente al porcentaje de familias con dificultades económicas y menores en edad de asistir a educación básica que reciben apoyo económico.

Sheet G I-5.1.1
A1: Ministerio de Educación y Cultura Dirección de Educación
A5: Gráfico I-5.1.1
A26: Fuente: Elaboración propia en base en la ENHA 2006 y en las ECH 2007 a 2013

Sheet G I-5.1.2
A1: Ministerio de Educación y Cultura Dirección de Educación
A5: Gráfico I-5.1.2
A25: Fuente: Elaboración propia en base en la ENHA 2006 y en las ECH 2007 a 2013

Sheet G I-5.1.3
A1: Ministerio de Educación y Cultura Dirección de Educación
A5: Gráfico I-5.1.3
A27: Fuente: Elaboración propia en base en la ENHA 2006 y en las ECH 2007 a 2013

Sheet G I-5.2.1
A1: Ministerio de Educación y Cultura Dirección de Educación
A5: Gráfico I-5.2.1
A26: Fuente: | B26: Gasto de ANEP y Distribución por Desconcentrados del Anuario Estadístico 2013 de ANEP y procesamiento propio de la matrícula, con base en los datos proporcionados por las oficinas productoras de estadísticas de los Desconcentrados de ANEP.
A27: Notas: | B27: El valor de gasto por estudiante para ANEP incluye el gasto del Co.Di.Cen.

Sheet G I-5.3.1
A1: Ministerio de Educación y Cultura Dirección de Educación
A5: Gráfico I-5.3.1
A27: Fuente: | B27: Elaboración propia con base a las ECH del INE.
A28: Notas: | B28: Este indicador es el resultado del cociente entre la TBA de la población potencialmente discriminada y la TBA de la población potencialmente no discriminada. Las poblaciones afrodescendiente y primer quintil.

Sheet G I-5.3.2
A1: Ministerio de Educación y Cultura Dirección de Educación
A5: Gráfico I-5.3.2
A26: Fuente: | B26: Elaboración propia con base a las ECH del INE.
A27: Notas: | B27: Este indicador es el resultado del cociente entre la TBA de la población potencialmente discriminada y la TBA de la población potencialmente no discriminada. Las poblaciones afrodescendiente y primer quintil de ingresos no son excluyentes entre sí. Se entiende por población potencialmente no vulnerada en sus derechos a todas aquellas personas que no son afrodescendientes ni pertenecientes al primer quintil de ingresos ni la combinación de ambas características.

Sheet G I-5.3.3
A1: Ministerio de Educación y Cultura Dirección de Educación
A5: Gráfico I-5.3.3
A26: Fuente: | B26: Elaboración propia con base a las ECH del INE.
A27: Notas: | B27: Este indicador es el resultado del cociente entre la TBA de la población potencialmente discriminada y la TBA de la población potencialmente no discriminada. Las poblaciones afrodescendiente y primer quintil de ingresos no son excluyentes entre sí. Se entiende por población potencialmente no vulnerada en sus derechos a todas aquellas personas que no son afrodescendientes ni pertenecientes al primer quintil de ingresos ni la combinación de estas características. Edad considerada como referencia 18 a 24 años.

Sheet PRIMERA INFANCIA E INICIAL

Sheet CONTROL (hidden)
B1: PRIMER CUADRO | C1: SEGUNDO CUADRO
A2: MATRÍCULA | B2: II-1.2.1 | C2: II-1.2.2 | D2: =IF('II-1.2.2'!C11:S11, "OK", "INCONSISTENCIA") -> OK
A3: MATRÍCULA | B3: II-1.2.1 | C3: II-1.2.3 | D3: =IF('II-1.2.3'!B11='II-1.2.1'!N11, "OK", "INCONSISTENCIA") -> OK
A4: MATRÍCULA | B4: II-1.2.1 | C4: II-1.2.5 | D4: =IF('II-1.2.5'!C10='II-1.2.1'!E11, "OK", "INCONSISTENCIA") -> OK
A5: MATRÍCULA | B5: II-1.2.1 | C5: II-1.2.6 | D5: =IF('II-1.2.1'!E11='II-1.2.6'!B8,"OK","INCONSISTENCIA") -> OK
A6: MATRÍCULA | B6: II-1.2.4 | C6: II-1.2.5 | D6: =IF('II-1.2.4'!J12, "OK", "INCONSISTENCIA") -> INCONSISTENCIA
A7: MATRÍCULA | B7: II-1.2.4 | C7: II-1.2.6 | D7: =IF('II-1.2.5'!C10='II-1.2.4'!B14, "OK", "INCONSISTENCIA") -> INCONSISTENCIA
A8: MATRÍCULA | B8: II-1.2.5 | C8: II-1.2.6 | D8: =IF(#REF!=#REF!,"OK","INCONSISTENCIA") -> 
A9: MATRÍCULA | B9: II-1.2.5 | C9: II-1.2.7 | D9: =IF(#REF! = 'II-1.2.7'!B10, "OK", "INCONSISTENCIA") -> 
A10: PERSONAL | B10: II-1.3.3 | C10: II-1.3.4 | D10: =IF('II-1.3.3'!B11 =#REF!, "OK", "INCONSISTENCIA") -> 

Sheet II-1.1.1
A1: CONSEJO DE EDUCACIÓN INICIAL Y PRIMARIA | F1: ESTABLECIMIENTOS
A3: Cuadro Nº II-1.1.1 | H3: VOLVER
A5: CANTIDAD DE ESTABLECIMIENTOS DE EDUCACIÓN EN LA PRIMERA INFANCIA E INICIAL DEL CEIP POR FORMA DE ADMINISTRACIÓN Y MODALIDAD SEGÚN DEPARTAMENTO. AÑO 2013.
A6: DEPARTAMENTO | B6: TOTAL | C6: FORMA DE ADMINISTRACIÓN
C7: PÚBLICA | H7: PRIVADA
C8: Total Público | D8: Jardines de Infantes | E8: JICI | F8: CEPI* | G8: Jardines de Tiempo Completo | H8: Jardines de Infantes
A11: TOTAL | B11: =+B12+B13 -> 244 | C11: =+C12+C13 -> 190 | D11: =SUM(D12:D13) -> 130 | E11: =SUM(E12:E13) -> 12 | F11: =SUM(F12:F13) -> 1 | G11: =SUM(G12:G13) -> 47 | H11: =SUM(H12:H13) -> 54
A12: MONTEVIDEO | B12: =+C12+H12 -> 95 | C12: =+D12+E12+F12+G12 -> 63 | D12: 43 | E12: 4 | F12: 1 | G12: 15 | H12: 32
A13: RESTO DEL PAÍS | B13: =+C13+H13 -> 149 | C13: =+D13+E13+F13+G13 -> 127 | D13: =SUM(D15:D32) -> 87 | E13: =SUM(E15:E32) -> 8 | F13: =SUM(F15:F32) -> 0 | G13: =SUM(G15:G32) -> 32 | H13: =SUM(H15:H32) -> 22
A15: Artigas | B15: =+C15+H15 -> 3 | C15: =+D15+E15+F15+G15 -> 3 | D15: 3 | E15: 0 | F15: 0 | G15: 0 | H15: 0
A16: Canelones | B16: 39 | C16: =+D16+E16+F16+G16 -> 33 | D16: 28 | E16: 1 | F16: 0 | G16: 4 | H16: 6
A17: Cerro Largo | B17: 8 | C17: 7 | D17: 4 | E17: 1 | F17: 0 | G17: 2 | H17: 1
A18: Colonia | B18: 6 | C18: 6 | D18: 5 | E18: 1 | F18: 0 | G18: 0 | H18: 0
A19: Durazno | B19: 5 | C19: 5 | D19: 3 | E19: 1 | F19: 0 | G19: 1 | H19: 0
A20: Flores | B20: 2 | C20: 2 | D20: 1 | E20: 0 | F20: 0 | G20: 1 | H20: 0
A21: Florida | B21: 5 | C21: 4 | D21: 2 | E21: 0 | F21: 0 | G21: 2 | H21: 1
A22: Lavalleja | B22: 7 | C22: 7 | D22: 5 | E22: 0 | F22: 0 | G22: 2 | H22: 0
A23: Maldonado | B23: 10 | C23: 7 | D23: 7 | E23: 0 | F23: 0 | G23: 0 | H23: 3
A24: Paysandú | B24: 5 | C24: 4 | D24: 1 | E24: 1 | F24: 0 | G24: 2 | H24: 1
A25: Río Negro | B25: 6 | C25: 6 | D25: 3 | E25: 0 | F25: 0 | G25: 3 | H25: 0
A26: Rivera | B26: 7 | C26: 7 | D26: 2 | E26: 1 | F26: 0 | G26: 4 | H26: 0
A27: Rocha | B27: 7 | C27: 7 | D27: 5 | E27: 0 | F27: 0 | G27: 2 | H27: 0
A28: Salto | B28: 9 | C28: 4 | D28: 3 | E28: 0 | F28: 0 | G28: 1 | H28: 5
A29: San José | B29: 7 | C29: 6 | D29: 4 | E29: 1 | F29: 0 | G29: 1 | H29: 1
A30: Soriano | B30: 6 | C30: 5 | D30: 4 | E30: 0 | F30: 0 | G30: 1 | H30: 1
A31: Tacuarembó | B31: =+C31+H31 -> 11 | C31: =+D31+E31+F31+G31 -> 9 | D31: 6 | E31: 0 | F31: 0 | G31: 3 | H31: 2
A32: Treinta y Tres | B32: =+C32+H32 -> 6 | C32: =+D32+E32+F32+G32 -> 5 | D32: 1 | E32: 1 | F32: 0 | G32: 3 | H32: 1
A33: Fuente: Procesamiento propio en base a datos proporcionados por el D.E.E. — C.E.I.P.
A34: Nota: * Centro Educativo de Primera Infancia. Refiere a Guarderias en Anuarios Anteriores.

Sheet II-1.1.2
A1: MINISTERIO DE EDUCACIÓN Y CULTURA | E1: Establecimientos
A2: Dirección de Educación – Área de Educación en la Primera Infancia
A4: Cuadro Nº II-1.1.2
A6: CANTIDAD DE ESTABLECIMIENTOS DE PRIMERA INFANCIA E INICIAL DEL MEC E INAU POR FORMA DE ADMINISTRACIÓN SEGÚN DEPARTAMENTO. AÑO 2013.
A7: DEPARTAMENTO
B8: TOTAL | C8: CAIF | D8: DIURNOS-INAU | E8: PRIVADOS
A11: TOTAL | B11: =C11+D11+E11 -> 822 | C11: =C12+C13 -> 345 | D11: =D12+D13 -> 37 | E11: =E12+E13 -> 440
A12: MONTEVIDEO | B12: 340 | C12: 76 | D12: 9 | E12: 255
A13: RESTO DEL PAÍS | B13: =C13+D13+E13 -> 482 | C13: =SUM(C15:C32) -> 269 | D13: =SUM(D15:D32) -> 28 | E13: =SUM(E15:E32) -> 185
A15: Artigas | B15: =C15+D15+E15 -> 20 | C15: 15 | D15: 2 | E15: 3
A16: Canelones | B16: 119 | C16: 50 | D16: 2 | E16: 67
A17: Cerro Largo | B17: 23 | C17: 19 | D17: 1 | E17: 3
A18: Colonia | B18: 35 | C18: 13 | D18: 2 | E18: 20
A19: Durazno | B19: 18 | C19: 15 | D19: 2 | E19: 1
A20: Flores | B20: 9 | C20: 5 | D20: 1 | E20: 3
A21: Florida | B21: 24 | C21: 10 | D21: 2 | E21: 12
A22: Lavalleja | B22: 13 | C22: 5 | D22: 1 | E22: 7
A23: Maldonado | B23: 28 | C23: 10 | D23: 2 | E23: 16
A24: Paysandú | B24: 34 | C24: 23 | D24: 2 | E24: 9
A25: Río Negro | B25: 16 | C25: 12 | D25: 1 | E25: 3
A26: Rivera | B26: 22 | C26: 14 | D26: 1 | E26: 7
A27: Rocha | B27: 17 | C27: 11 | D27: 1 | E27: 5
A28: Salto | B28: 31 | C28: 21 | D28: 1 | E28: 9
A29: San José | B29: 21 | C29: 10 | D29: 2 | E29: 9
A30: Soriano | B30: 21 | C30: 12 | D30: 2 | E30: 7
A31: Tacuarembó | B31: 19 | C31: 13 | D31: 2 | E31: 4
A32: Treinta y Tres | B32: 12 | C32: 11 | D32: 1 | E32: 0
A33: Fuente: Procesamiento propio en base a datos proporcionados por:
A34: Registro Nacional de Centros Educativos en la Primera Infancia. MEC
A35: Para CAIF Y CENTROS DIURNOS: SIPI de INAU.

Sheet II-1.2.1
A1: CONSEJO DE EDUCACIÓN INICIAL Y PRIMARIA | O1: ALUMNOS MATRICULADOS
A3: Cuadro Nº II-1.2.1
A5: ALUMNOS MATRICULADOS EN EDUCACIÓN EN LA PRIMERA INFANCIA E INICIAL POR FORMA DE ADMINISTRACIÓN, MODALIDAD Y SEXO SEGÚN DEPARTAMENTO. AÑO 2013.
A6: DEPARTAMENTO | B6: FORMA DE ADMINISTRACIÓN
B7: TOTAL | E7: PÚBLICA | N7: PRIVADA
E8: Total Público | F8: Inicial en Escuelas* | H8: Jardines de Infantes | J8: JICI** | L8: CEPI*** | N8: Total Privada | O8: Jardines de Infantes | Q8: Inicial en Colegios
B9: TOTAL | C9: SEXO | F9: SEXO | H9: SEXO | J9: SEXO | L9: SEXO | O9: SEXO | Q9: SEXO
C10: M | D10: F | F10: M | G10: F | H10: M | I10: F | J10: M | K10: F | L10: M | M10: F | O10: M | P10: F | Q10: M | R10: F
A11: TOTAL | B11: =+B12+B13 -> 109794 | C11: =+C12+C13 -> 55994 | D11: =+D12+D13 -> 53800 | E11: =+E12+E13 -> 80200 | F11: =F12+F13 -> 23607 | G11: =G12+G13 -> 22638 | H11: =+H12+H13 -> 15923 | I11: =I12+I13 -> 15428 | J11: =J12+J13 -> 1266 | K11: =K12+K13 -> 1190 | L11: =+L12+L13 -> 73 | M11: =M12+M13 -> 75 | N11: =+N12+N13 -> 29594 | O11: =+O12+O13 -> 2633 | P11: =+P12+P13 -> 2522 | Q11: =+Q12+Q13 -> 12492 | R11: =+R12+R13 -> 11947
A12: MONTEVIDEO | B12: =+C12+D12 -> 41874 | C12: =+F12+H12+J12+L12+O12+Q12 -> 21469 | D12: =+G12+I12+K12+M12+P12+R12 -> 20405 | E12: =+F12+G12+H12+I12+J12+K12+L12+M12 -> 24141 | F12: 5897 | G12: 5612 | H12: 5789 | I12: 5586 | J12: 562 | K12: 547 | L12: 73 | M12: 75 | N12: =+O12+P12+Q12+R12 -> 17733 | O12: 1734 | P12: 1604 | Q12: 7414 | R12: 6981
A13: RESTO DEL PAÍS | B13: =SUM(B15:B32) -> 67920 | C13: 34525 | D13: 33395 | E13: 56059 | F13: 17710 | G13: 17026 | H13: =SUM(H15:H32) -> 10134 | I13: 9842 | J13: 704 | K13: 643 | L13: 0 | M13: 0 | N13: 11861 | O13: =SUM(O15:O32) -> 899 | P13: 918 | Q13: 5078 | R13: 4966
A15: Artigas | B15: =+C15+D15 -> 2625 | C15: =+F15+H15+J15+L15+O15+Q15 -> 1365 | D15: 1260 | E15: =+F15+G15+H15+I15+J15+K15+L15+M15 -> 2478 | F15: 963 | G15: 894 | H15: 326 | I15: 295 | J15: 0 | K15: 0 | L15: 0 | M15: 0 | N15: =+O15+P15+Q15+R15 -> 147 | O15: 0 | P15: 0 | Q15: 76 | R15: 71
A16: Canelones | B16: 16753 | C16: 8596 | D16: 8157 | E16: 12978 | F16: 3504 | G16: 3339 | H16: 3058 | I16: 2911 | J16: 86 | K16: 80 | L16: 0 | M16: 0 | N16: 3775 | O16: 262 | P16: 273 | Q16: 1686 | R16: 1554
A17: Cerro Largo | B17: 2929 | C17: 1448 | D17: 1481 | E17: 2580 | F17: 772 | G17: 781 | H17: 407 | I17: 415 | J17: 104 | K17: 101 | L17: 0 | M17: 0 | N17: 349 | O17: 54 | P17: 53 | Q17: 111 | R17: 131
A18: Colonia | B18: 4209 | C18: 2162 | D18: 2047 | E18: =+F18+G18+H18+I18+J18+K18+L18+M18 -> 3520 | F18: 1289 | G18: 1206 | H18: 431 | I18: 443 | J18: 85 | K18: 66 | L18: 0 | M18: 0 | N18: 689 | O18: 0 | P18: 0 | Q18: 357 | R18: 332
A19: Durazno | B19: 1830 | C19: 924 | D19: 906 | E19: 1605 | F19: 496 | G19: 502 | H19: 279 | I19: 259 | J19: 35 | K19: 34 | L19: 0 | M19: 0 | N19: 225 | O19: 0 | P19: 0 | Q19: 114 | R19: 111
A20: Flores | B20: 798 | C20: 386 | D20: 412 | E20: 648 | F20: 194 | G20: 223 | H20: 119 | I20: 112 | J20: 0 | K20: 0 | L20: 0 | M20: 0 | N20: 150 | O20: 0 | P20: 0 | Q20: 73 | R20: 77
A21: Florida | B21: 2020 | C21: 1011 | D21: 1009 | E21: 1849 | F21: 623 | G21: 613 | H21: 309 | I21: 304 | J21: 0 | K21: 0 | L21: 0 | M21: 0 | N21: 171 | O21: 35 | P21: 43 | Q21: 44 | R21: 49
A22: Lavalleja | B22: 1925 | C22: 953 | D22: 972 | E22: 1556 | F22: 367 | G22: 361 | H22: 409 | I22: 419 | J22: 0 | K22: 0 | L22: 0 | M22: 0 | N22: 369 | O22: 0 | P22: 0 | Q22: 177 | R22: 192
A23: Maldonado | B23: 6180 | C23: 3124 | D23: 3056 | E23: 3964 | F23: 1288 | G23: 1221 | H23: 716 | I23: 739 | J23: 0 | K23: 0 | L23: 0 | M23: 0 | N23: 2216 | O23: 124 | P23: 90 | Q23: 996 | R23: 1006
A24: Paysandú | B24: 3791 | C24: 1935 | D24: 1856 | E24: 3313 | F24: 1298 | G24: 1205 | H24: 307 | I24: 305 | J24: 93 | K24: 105 | L24: 0 | M24: 0 | N24: 478 | O24: 54 | P24: 63 | Q24: 183 | R24: 178
A25: Río Negro | B25: 2218 | C25: 1157 | D25: 1061 | E25: 1892 | F25: 482 | G25: 451 | H25: 505 | I25: 454 | J25: 0 | K25: 0 | L25: 0 | M25: 0 | N25: 326 | O25: 0 | P25: 0 | Q25: 170 | R25: 156
A26: Rivera | B26: 3841 | C26: 1946 | D26: 1895 | E26: 3450 | F26: 1150 | G26: 1092 | H26: 519 | I26: 517 | J26: 97 | K26: 75 | L26: 0 | M26: 0 | N26: 391 | O26: 0 | P26: 0 | Q26: 180 | R26: 211
A27: Rocha | B27: 2443 | C27: 1210 | D27: 1233 | E27: 2193 | F27: 575 | G27: 608 | H27: 499 | I27: 511 | J27: 0 | K27: 0 | L27: 0 | M27: 0 | N27: 250 | O27: 0 | P27: 0 | Q27: 136 | R27: 114
A28: Salto | B28: 4997 | C28: 2550 | D28: 2447 | E28: 4045 | F28: 1519 | G28: 1425 | H28: 540 | I28: 561 | J28: 0 | K28: 0 | L28: 0 | M28: 0 | N28: 952 | O28: 186 | P28: 179 | Q28: 305 | R28: 282
A29: San José | B29: 3616 | C29: 1839 | D29: 1777 | E29: 3165 | F29: 1034 | G29: 1030 | H29: 510 | I29: 442 | J29: 79 | K29: 70 | L29: 0 | M29: 0 | N29: 451 | O29: 49 | P29: 52 | Q29: 167 | R29: 183
A30: Soriano | B30: 2849 | C30: 1431 | D30: 1418 | E30: 2581 | F30: 941 | G30: 911 | H30: 366 | I30: 363 | J30: 0 | K30: 0 | L30: 0 | M30: 0 | N30: 268 | O30: 27 | P30: 38 | Q30: 97 | R30: 106
A31: Tacuarembó | B31: 3372 | C31: 1703 | D31: 1669 | E31: 2810 | F31: 847 | G31: 809 | H31: 586 | I31: 568 | J31: 0 | K31: 0 | L31: 0 | M31: 0 | N31: 562 | O31: 64 | P31: 79 | Q31: 206 | R31: 213
A32: Treinta y Tres | B32: 1524 | C32: 785 | D32: 739 | E32: =+F32+G32+H32+I32+J32+K32+L32+M32 -> 1432 | F32: 368 | G32: 355 | H32: 248 | I32: 224 | J32: 125 | K32: 112 | L32: 0 | M32: 0 | N32: 92 | O32: 44 | P32: 48 | Q32: 0 | R32: 0
A33: Fuente: Procesamiento propio en base a datos proporcionados por el D.E.E. — C.E.I.P.
A34: * Refiere a Clases Jardineras en Anuarios Anteriores.
A35: ** Jardines de Infantes con Ciclo Inicial.
A36: *** Centro Educativo de Primera Infancia. Refiere a Guarderías en Anuarios Anteriores.

Sheet II-1.2.2
A1: CONSEJO DE EDUCACIÓN INICIAL Y PRIMARIA | K1: ALUMNOS MATRICULADOS
A3: Cuadro Nº II-1.2.2
N4: VOLVER
A5: ALUMNOS MATRICULADOS EN EDUCACIÓN PÚBLICA EN LA PRIMERA INFANCIA E INICIAL DEL CEIP POR MODALIDAD Y EDAD SEGÚN DEPARTAMENTO. AÑO 2013.
A6: DEPARTAMENTO
B7: PÚBLICA
B8: Total Público | C8: Inicial en Escuelas* | F8: Jardines de Infantes** | K8: JICI*** | P8: CEPI****
C9: AÑOS | F9: AÑOS | K9: AÑOS | P9: AÑOS
C10: 4 | D10: 5 | F10: <= 2 | G10: 3 | H10: 4 | I10: 5 | K10: <= 2 | L10: 3 | M10: 4 | N10: 5 | P10: <= 2 | Q10: 3 | R10: 4 | S10: 5
A11: TOTAL | B11: =+B12+B13 -> 80200 | C11: =C12+C13 -> 21359 | D11: =D12+D13 -> 24886 | F11: =+F12+F13 -> 57 | G11: =G12+G13 -> 7062 | H11: =H12+H13 -> 12749 | I11: =I12+I13 -> 11483 | K11: =K12+K13 -> 0 | L11: =L12+L13 -> 613 | M11: =M12+M13 -> 940 | N11: =N12+N13 -> 903 | P11: =+P12+P13 -> 45 | Q11: =+Q12+Q13 -> 54 | R11: =+R12+R13 -> 49 | S11: =+S12+S13 -> 0
A12: MONTEVIDEO | B12: =SUM(C12:S12) -> 24141 | C12: 5142 | D12: 6367 | F12: 57 | G12: 2117 | H12: 4706 | I12: 4495 | K12: 0 | L12: 330 | M12: 407 | N12: 372 | P12: 45 | Q12: 54 | R12: 49 | S12: 0
A13: RESTO DEL PAÍS | B13: =SUM(B15:B32) -> 56059 | C13: =SUM(C15:C32) -> 16217 | D13: =SUM(D15:D32) -> 18519 | F13: =SUM(F15:F32) -> 0 | G13: =SUM(G15:G32) -> 4945 | H13: 8043 | I13: 6988 | K13: 0 | L13: 283 | M13: =SUM(M15:M32) -> 533 | N13: =SUM(N15:N32) -> 531 | P13: 0 | Q13: 0 | R13: 0 | S13: 0
A15: Artigas | B15: =SUM(C15:S15) -> 2478 | C15: 906 | D15: 951 | F15: 0 | G15: 132 | H15: 248 | I15: 241 | K15: 0 | L15: 0 | M15: 0 | N15: 0 | P15: 0 | Q15: 0 | R15: 0 | S15: 0
A16: Canelones | B16: =SUM(C16:S16) -> 12978 | C16: 3170 | D16: 3673 | F16: 0 | G16: 1190 | H16: 2402 | I16: 2377 | K16: 0 | L16: 39 | M16: 65 | N16: 62 | P16: 0 | Q16: 0 | R16: 0 | S16: 0
A17: Cerro Largo | B17: 2580 | C17: 736 | D17: 817 | F17: 0 | G17: 124 | H17: 372 | I17: 326 | K17: 0 | L17: 64 | M17: 70 | N17: 71 | P17: 0 | Q17: 0 | R17: 0 | S17: 0
A18: Colonia | B18: 3520 | C18: 1196 | D18: 1299 | F18: 0 | G18: 313 | H18: 308 | I18: 253 | K18: 0 | L18: 26 | M18: 71 | N18: 54 | P18: 0 | Q18: 0 | R18: 0 | S18: 0
A19: Durazno | B19: 1605 | C19: 459 | D19: 539 | F19: 0 | G19: 134 | H19: 242 | I19: 162 | K19: 0 | L19: 20 | M19: 29 | N19: 20 | P19: 0 | Q19: 0 | R19: 0 | S19: 0
A20: Flores | B20: 648 | C20: 172 | D20: 245 | F20: 0 | G20: 69 | H20: 99 | I20: 63 | K20: 0 | L20: 0 | M20: 0 | N20: 0 | P20: 0 | Q20: 0 | R20: 0 | S20: 0
A21: Florida | B21: 1849 | C21: 535 | D21: 701 | F21: 0 | G21: 158 | H21: 281 | I21: 174 | K21: 0 | L21: 0 | M21: 0 | N21: 0 | P21: 0 | Q21: 0 | R21: 0 | S21: 0
A22: Lavalleja | B22: 1556 | C22: 333 | D22: 395 | F22: 0 | G22: 258 | H22: 295 | I22: 275 | K22: 0 | L22: 0 | M22: 0 | N22: 0 | P22: 0 | Q22: 0 | R22: 0 | S22: 0
A23: Maldonado | B23: 3964 | C23: 1167 | D23: 1342 | F23: 0 | G23: 313 | H23: 588 | I23: 554 | K23: 0 | L23: 0 | M23: 0 | N23: 0 | P23: 0 | Q23: 0 | R23: 0 | S23: 0
A24: Paysandú | B24: 3313 | C24: 1192 | D24: 1311 | F24: 0 | G24: 159 | H24: 219 | I24: 234 | K24: 0 | L24: 24 | M24: 90 | N24: 84 | P24: 0 | Q24: 0 | R24: 0 | S24: 0
A25: Río Negro | B25: 1892 | C25: 454 | D25: 479 | F25: 0 | G25: 229 | H25: 391 | I25: 339 | K25: 0 | L25: 0 | M25: 0 | N25: 0 | P25: 0 | Q25: 0 | R25: 0 | S25: 0
A26: Rivera | B26: 3450 | C26: 1070 | D26: 1172 | F26: 0 | G26: 332 | H26: 416 | I26: 288 | K26: 0 | L26: 33 | M26: 70 | N26: 69 | P26: 0 | Q26: 0 | R26: 0 | S26: 0
A27: Rocha | B27: 2193 | C27: 512 | D27: 671 | F27: 0 | G27: 255 | H27: 472 | I27: 283 | K27: 0 | L27: 0 | M27: 0 | N27: 0 | P27: 0 | Q27: 0 | R27: 0 | S27: 0
A28: Salto | B28: 4045 | C28: 1409 | D28: 1535 | F28: 0 | G28: 330 | H28: 436 | I28: 335 | K28: 0 | L28: 0 | M28: 0 | N28: 0 | P28: 0 | Q28: 0 | R28: 0 | S28: 0
A29: San José | B29: 3165 | C29: 973 | D29: 1091 | F29: 0 | G29: 256 | H29: 346 | I29: 350 | K29: 0 | L29: 22 | M29: 52 | N29: 75 | P29: 0 | Q29: 0 | R29: 0 | S29: 0
A30: Soriano | B30: 2581 | C30: 829 | D30: 1023 | F30: 0 | G30: 235 | H30: 273 | I30: 221 | K30: 0 | L30: 0 | M30: 0 | N30: 0 | P30: 0 | Q30: 0 | R30: 0 | S30: 0
A31: Tacuarembó | B31: 2810 | C31: 738 | D31: 918 | F31: 0 | G31: 376 | H31: 442 | I31: 336 | K31: 0 | L31: 0 | M31: 0 | N31: 0 | P31: 0 | Q31: 0 | R31: 0 | S31: 0
A32: Treinta y Tres | B32: 1432 | C32: 366 | D32: 357 | F32: 0 | G32: 82 | H32: 213 | I32: 177 | K32: 0 | L32: 55 | M32: 86 | N32: 96 | P32: 0 | Q32: 0 | R32: 0 | S32: 0
A33: Fuente: Procesamiento propio en base a datos proporcionados por el D.E.E. — C.E.I.P.
A34: * Refiere a Clases Jardineras en Anuarios Anteriores.
A35: ** Jardines de Infantes incluye Jardines de Infantes comunes y Tiempo Completo.
A36: *** Jardines de Infantes con Ciclo Inicial.
A37: **** Centro Educativo de Primera Infancia. Refiere a Guarderías en Anuarios Anteriores.

Sheet II-1.2.3
A1: CONSEJO DE EDUCACIÓN INICIAL Y PRIMARIA | M1: ALUMNOS MATRICULADOS
A3: Cuadro Nº II-1.2.3
A5: ALUMNOS MATRICULADOS EN EDUCACIÓN EN LA PRIMERA INFANCIA E INICIAL PRIVADA POR MODALIDAD Y NIVEL SEGÚN DEPARTAMENTO. AÑO 2013.
A6: DEPARTAMENTO | D6: MODALIDAD
D7: JARDINES PRIVADOS | K7: INICIAL EN COLEGIOS
B8: TOTAL | D8: NIVEL | K8: NIVEL
C9: Total | D9: Nursery | E9: 2 años | F9: 3 años | G9: 4 años | H9: 5 años | I9: 6 años | J9: Total | K9: Nursery | L9: 2 años | M9: 3 años | N9: 4 años | O9: 5 años
A11: TOTAL | B11: =+B12+B13 -> 29594 | C11: =+C12+C13 -> 5155 | D11: =SUM(D12:D13) -> 815 | E11: 1278 | F11: 1262 | G11: 1089 | H11: 687 | I11: 24 | J11: =+J12+J13 -> 24439 | K11: =SUM(K12:K13) -> 1372 | L11: =SUM(L12:L13) -> 3412 | M11: =SUM(M12:M13) -> 4944 | N11: =SUM(N12:N13) -> 6986 | O11: =SUM(O12:O13) -> 7725
A12: MONTEVIDEO | B12: =+C12+J12 -> 17733 | C12: =SUM(D12:I12) -> 3338 | D12: 609 | E12: 799 | F12: 794 | G12: 699 | H12: 413 | I12: 24 | J12: =SUM(K12:O12) -> 14395 | K12: 859 | L12: 1805 | M12: 2740 | N12: 4197 | O12: 4794
A13: RESTO DEL PAÍS | B13: =SUM(B15:B32) -> 11861 | C13: =SUM(C15:C32) -> 1817 | D13: 206 | E13: 479 | F13: 468 | G13: 390 | H13: 274 | I13: 0 | J13: 10044 | K13: 513 | L13: 1607 | M13: 2204 | N13: 2789 | O13: 2931
A15: Artigas | B15: =+C15+J15 -> 147 | C15: =SUM(D15:I15) -> 0 | D15: 0 | E15: 0 | F15: 0 | G15: 0 | H15: 0 | I15: 0 | J15: =+K15+L15+M15+N15+O15 -> 147 | K15: 15 | L15: 28 | M15: 33 | N15: 36 | O15: 35
A16: Canelones | B16: 3775 | C16: 535 | D16: 34 | E16: 117 | F16: 123 | G16: 147 | H16: 114 | I16: 0 | J16: 3240 | K16: 130 | L16: 416 | M16: 697 | N16: 973 | O16: 1024
A17: Cerro Largo | B17: 349 | C17: 107 | D17: 22 | E17: 43 | F17: 22 | G17: 20 | H17: 0 | I17: 0 | J17: 242 | K17: 0 | L17: 35 | M17: 44 | N17: 87 | O17: 76
A18: Colonia | B18: 689 | C18: 0 | D18: 0 | E18: 0 | F18: 0 | G18: 0 | H18: 0 | I18: 0 | J18: 689 | K18: 114 | L18: 117 | M18: 164 | N18: 161 | O18: 133
A19: Durazno | B19: 225 | C19: 0 | D19: 0 | E19: 0 | F19: 0 | G19: 0 | H19: 0 | I19: 0 | J19: 225 | K19: 12 | L19: 12 | M19: 61 | N19: 71 | O19: 69
A20: Flores | B20: 150 | C20: 0 | D20: 0 | E20: 0 | F20: 0 | G20: 0 | H20: 0 | I20: 0 | J20: 150 | K20: 8 | L20: 41 | M20: 32 | N20: 29 | O20: 40
A21: Florida | B21: 171 | C21: 78 | D21: 32 | E21: 23 | F21: 11 | G21: 12 | H21: 0 | I21: 0 | J21: 93 | K21: 0 | L21: 13 | M21: 23 | N21: 28 | O21: 29
A22: Lavalleja | B22: 369 | C22: 0 | D22: 0 | E22: 0 | F22: 0 | G22: 0 | H22: 0 | I22: 0 | J22: 369 | K22: 26 | L22: 79 | M22: 75 | N22: 87 | O22: 102
A23: Maldonado | B23: 2216 | C23: 214 | D23: 7 | E23: 43 | F23: 61 | G23: 55 | H23: 48 | I23: 0 | J23: 2002 | K23: 58 | L23: 333 | M23: 457 | N23: 569 | O23: 585
A24: Paysandú | B24: 478 | C24: 117 | D24: 16 | E24: 29 | F24: 23 | G24: 23 | H24: 26 | I24: 0 | J24: 361 | K24: 4 | L24: 21 | M24: 34 | N24: 116 | O24: 186
A25: Río Negro | B25: 326 | C25: 0 | D25: 0 | E25: 0 | F25: 0 | G25: 0 | H25: 0 | I25: 0 | J25: 326 | K25: 11 | L25: 63 | M25: 70 | N25: 100 | O25: 82
A26: Rivera | B26: 391 | C26: 0 | D26: 0 | E26: 0 | F26: 0 | G26: 0 | H26: 0 | I26: 0 | J26: 391 | K26: 19 | L26: 79 | M26: 104 | N26: 94 | O26: 95
A27: Rocha | B27: 250 | C27: 0 | D27: 0 | E27: 0 | F27: 0 | G27: 0 | H27: 0 | I27: 0 | J27: 250 | K27: 20 | L27: 51 | M27: 73 | N27: 60 | O27: 46
A28: Salto | B28: 952 | C28: 365 | D28: 50 | E28: 95 | F28: 129 | G28: 74 | H28: 17 | I28: 0 | J28: 587 | K28: 47 | L28: 108 | M28: 115 | N28: 151 | O28: 166
A29: San José | B29: 451 | C29: 101 | D29: 13 | E29: 27 | F29: 22 | G29: 15 | H29: 24 | I29: 0 | J29: 350 | K29: 14 | L29: 77 | M29: 92 | N29: 86 | O29: 81
A30: Soriano | B30: 268 | C30: 65 | D30: 15 | E30: 25 | F30: 20 | G30: 5 | H30: 0 | I30: 0 | J30: 203 | K30: 0 | L30: 40 | M30: 50 | N30: 49 | O30: 64
A31: Tacuarembó | B31: 562 | C31: 143 | D31: 17 | E31: 46 | F31: 36 | G31: 21 | H31: 23 | I31: 0 | J31: 419 | K31: 35 | L31: 94 | M31: 80 | N31: 92 | O31: 118
A32: Treinta y Tres | B32: 92 | C32: 92 | D32: 0 | E32: 31 | F32: 21 | G32: 18 | H32: 22 | I32: 0 | J32: 0 | K32: 0 | L32: 0 | M32: 0 | N32: 0 | O32: 0
A33: Fuente: Procesamiento propio en base a datos proporcionados por el D.E.E. — C.E.I.P.

Sheet II-1.2.4
A1: MINISTERIO DE EDUCACIÓN Y CULTURA | I1: Alumnos Matriculados
A3: Dirección de Educación – Área de Educación en la Primera Infancia
A4: INAU-CAIF
A6: Cuadro Nº II-1.2.4
A8: ALUMNOS MATRICULADOS EN EDUCACIÓN EN LA PRIMERA INFANCIA E INICIAL POR FORMA DE ADMINISTRACIÓN Y SEXO SEGÚN DEPARTAMENTO. AÑO 2013.
A9: DEPARTAMENTO | E9: FORMA DE ADMINISTRACIÓN
B10: TOTAL | E10: CAIF Y CENTROS DIURNOS | G10: Centros Privados
B12: TOTAL | C12: SEXO | E12: SEXO
C13: M | D13: F | E13: M | F13: F | G13: M | H13: F
A14: TOTAL | B14: =+B15+B16 -> 67939 | C14: =E14+G14 -> 34694 | D14: 33245 | E14: =E15+E16 -> 23893 | F14: =F15+F16 -> 23012 | G14: =G15+G16 -> 10801 | H14: =H15+H16 -> 10233
A15: MONTEVIDEO | B15: =+C15+D15 -> 23778 | C15: 12261 | D15: 11517 | E15: 5651 | F15: 5363 | G15: 6610 | H15: 6154
A16: RESTO DEL PAÍS | B16: =+C16+D16 -> 44161 | C16: 22433 | D16: 21728 | E16: =SUM(E17:E35) -> 18242 | F16: =SUM(F17:F35) -> 17649 | G16: =SUM(G17:G35) -> 4191 | H16: =SUM(H17:H35) -> 4079
A18: Artigas | B18: =+C18+D18 -> 2225 | C18: =E18+G18 -> 1138 | D18: =F18+H18 -> 1087 | E18: 1072 | F18: 994 | G18: 66 | H18: 93
A19: Canelones | B19: 9318 | C19: =E19+G19 -> 4746 | D19: 4572 | E19: 3350 | F19: 3197 | G19: 1396 | H19: 1375
A20: Cerro Largo | B20: 2728 | C20: 1434 | D20: 1294 | E20: 1370 | F20: 1244 | G20: 64 | H20: 50
A21: Colonia | B21: 2429 | C21: 1220 | D21: 1209 | E21: 882 | F21: 857 | G21: 338 | H21: 352
A22: Durazno | B22: 2108 | C22: 1067 | D22: 1041 | E22: 1040 | F22: 1021 | G22: 27 | H22: 20
A23: Flores | B23: 788 | C23: 400 | D23: 388 | E23: 352 | F23: 321 | G23: 48 | H23: 67
A24: Florida | B24: 1847 | C24: 955 | D24: 892 | E24: 657 | F24: 616 | G24: 298 | H24: 276
A25: Lavalleja | B25: 978 | C25: 483 | D25: 495 | E25: 366 | F25: 377 | G25: 117 | H25: 118
A26: Maldonado | B26: 2328 | C26: 1183 | D26: 1145 | E26: 688 | F26: 672 | G26: 495 | H26: 473
A27: Paysandú | B27: 3641 | C27: 1814 | D27: 1827 | E27: 1554 | F27: 1574 | G27: 260 | H27: 253
A28: Río Negro | B28: 1485 | C28: 741 | D28: 744 | E28: 688 | F28: 674 | G28: 53 | H28: 70
A29: Rivera | B29: 2669 | C29: 1343 | D29: 1326 | E29: 1113 | F29: 1135 | G29: 230 | H29: 191
A30: Rocha | B30: 1622 | C30: 821 | D30: 801 | E30: 768 | F30: 736 | G30: 53 | H30: 65
A31: Salto | B31: 3377 | C31: 1716 | D31: 1661 | E31: 1413 | F31: 1392 | G31: 303 | H31: 269
A32: San José | B32: 1839 | C32: 932 | D32: 907 | E32: 702 | F32: 683 | G32: 230 | H32: 224
A33: Soriano | B33: 1701 | C33: 870 | D33: 831 | E33: 717 | F33: 706 | G33: 153 | H33: 125
A34: Tacuarembó | B34: 1957 | C34: 980 | D34: 977 | E34: 920 | F34: 919 | G34: 60 | H34: 58
A35: Treinta y Tres | B35: 1121 | C35: 590 | D35: 531 | E35: 590 | F35: 531 | G35: 0 | H35: 0
A36: Fuente: Procesamiento propio en base a datos proporcionados por:
A37: Registro Nacional de Centros de Educación Infantil Privados. MEC
A38: Para CAIF Y CENTROS DIURNOS: SIPI de INAU.
A39: Nota: Los centros pertenecientes al Proyecto Nuestros Niños de la IMM, se encuentran incluidos en la matrícula de Centros Privados, en tanto los mismos son supervisados por el MEC.
A40: CAIF y Centros Diurnos incluyen para este año la matrícula de Experiencia Oportuna.
A41: (0 a 1 año) que en el anuario 2012 solo se incluía en el cuadro II

Sheet II-1.2.5
A1: MINISTERIO DE EDUCACIÓN Y CULTURA | G1: ALUMNOS MATRICULADOS
A2: Dirección de Educación – Área de Educación en la Primera Infancia
A4: Cuadro Nº II-1.2.5
A5: ALUMNOS MATRICULADOS EN EDUCACIÓN EN LA PRIMERA INFANCIA E INICIAL POR FORMA DE ADMINISTRACIÓN SEGÚN EDAD. AÑO 2013.
C6: FORMA DE ADMINISTRACIÓN
A7: EDAD | C7: CEIP- PÚBLICOS | D7: CEIP-PRIVADOS (Habilitados y Autorizados) | E7: CAIF | F7: DIURNOS | G7: PRIVADOS MEC
A10: TOTAL | B10: =C10+D10+E10+F10+G10 -> 177733 | C10: =C11+C14+C15+C16+C17 -> 80200 | D10: =SUM(D11:D17) -> 29594 | E10: =SUM(E11:E17) -> 45150 | F10: 1755 | G10: 21034
A11: 0 a 11 meses | B11: 48530 | C11: 102 | D11: 2187 | E11: 6001 | F11: 118 | G11: 744
A12: 1 año | E12: 11927 | F12: 409 | G12: 3589
A13: 2 años | D13: 4690 | E13: 12106 | F13: 541 | G13: 6116
A14: 3 años | B14: 32418 | C14: 7729 | D14: 6206 | E14: 11837 | F14: 518 | G14: 6128
A15: 4 años | B15: 49459 | C15: 35097 | D15: 8075 | E15: 3279 | F15: 169 | G15: 2839
A16: 5 años | B16: 46938 | C16: 37272 | D16: 8412 | E16: 0 | F16: 0 | G16: 1254
A17: 6 años | B17: 388 | C17: 0 | D17: 24 | E17: 0 | F17: 0 | G17: 364
A18: Fuente: Procesamiento propio en base a datos proporcionados por:
A19: Registro Nacional de Centros de Educación Infantil Privados. MEC
A20: Para CAIF Y CENTROS DIURNOS: SIPI de INAU.
A21: Programa Nuestros Niños: IMM. Se encuentran incluidos dentro de la matricula privada.
A22: Nota: En los Centros de Educación Infantil Privados MEC se incluyen 364 niñas y niños que tienen más de 5 años.
A23: Para CAIF las edades de 0 y 1 año corresponden a la modalidad Experiencia Oportuna.

Sheet II-1.2.6
A1: CONSEJO DE EDUCACIÓN INICIAL Y PRIMARIA | D1: ALUMNOS MATRICULADOS
A3: Cuadro Nº II-1.2.6
A5: ALUMNOS MATRICULADOS EN EDUCACIÓN EN LA PRIMERA INFANCIA E INICIAL PÚBLICA DEL CEIP POR ÁREA DEMOGRÁFICA SEGÚN DEPARTAMENTO. AÑO 2013.
A6: DEPARTAMENTO | B6: TOTAL | C6: ÁREA DEMOGRÁFICA
C7: URBANA | D7: RURAL
A8: TOTAL | B8: =SUM(C8+D8) -> 80200 | C8: =SUM(C9:C10) -> 76119 | D8: =SUM(D9:D10) -> 4081
A9: MONTEVIDEO | B9: =+C9+D9 -> 24141 | C9: 24141 | D9: 0
A10: RESTO DEL PAÍS | B10: =+C10+D10 -> 56059 | C10: =SUM(C12:C29) -> 51978 | D10: =SUM(D12:D29) -> 4081
A12: Artigas | B12: 2478 | C12: 2300 | D12: 178
A13: Canelones | B13: 12978 | C13: 12373 | D13: 605
A14: Cerro Largo | B14: 2580 | C14: 2367 | D14: 213
A15: Colonia | B15: 3520 | C15: 3209 | D15: 311
A16: Durazno | B16: 1605 | C16: 1490 | D16: 115
A17: Flores | B17: 648 | C17: 610 | D17: 38
A18: Florida | B18: 1849 | C18: 1635 | D18: 214
A19: Lavalleja | B19: 1556 | C19: 1433 | D19: 123
A20: Maldonado | B20: 3964 | C20: 3762 | D20: 202
A21: Paysandú | B21: 3313 | C21: 3062 | D21: 251
A22: Río Negro | B22: 1892 | C22: 1756 | D22: 136
A23: Rivera | B23: 3450 | C23: 3181 | D23: 269
A24: Rocha | B24: 2193 | C24: 2089 | D24: 104
A25: Salto | B25: 4045 | C25: 3676 | D25: 369
A26: San José | B26: 3165 | C26: 2816 | D26: 349
A27: Soriano | B27: 2581 | C27: 2375 | D27: 206
A28: Tacuarembó | B28: 2810 | C28: 2525 | D28: 285
A29: Treinta y Tres | B29: 1432 | C29: 1319 | D29: 113
A30: Fuente: Procesamiento propio en base a datos proporcionados
A31: por el D.E.E. — C.E.I.P.
A32: Nota: En los años 2012 y 2013 el presente cuadro considera la matrícula total de Educación en la Primera Infancia e Inicial Pública.
A33: Años anteriores solo consideraban la matrícula de Educación Inicial en Escuelas.

Sheet II-1.2.7
A1: MINISTERIO DE EDUCACIÓN Y CULTURA | J1: ALUMNOS MATRICULADOS
A2: Dirección de Educación – Área de Educación en la Primera Infancia
A4: Cuadro Nº II-1.2.7
A6: ALUMNOS MATRICULADOS EN EDUCACIÓN EN LA PRIMERA INFANCIA E INICIAL EN CENTROS PRIVADOS HABILITADOS POR EL MEC POR EDAD SEGÚN DEPARTAMENTO. AÑO 2013.
A7: DEPARTAMENTO | C7: E D A D
B8: TOTAL | C8: 0 a 11 meses | D8: 1 año | E8: 2 años | F8: 3 años | G8: 4 años | H8: 5 años
A10: TOTAL | B10: =+B11+B12 -> 21034 | C10: 744 | D10: 3589 | E10: 6116 | F10: 6128 | G10: 2839 | H10: 1618
A11: MONTEVIDEO | B11: =+C11+D11+E11+F11+G11+H11 -> 12764 | C11: 605 | D11: 2173 | E11: 3693 | F11: 3666 | G11: 1765 | H11: 862
A12: RESTO DEL PAÍS | B12: =SUM(B14:B31) -> 8270 | C12: 139 | D12: 1416 | E12: 2423 | F12: 2462 | G12: 1074 | H12: 756
A14: Artigas | B14: =+C14+D14+E14+F14+G14+H14 -> 159 | C14: 4 | D14: 24 | E14: 47 | F14: 51 | G14: 23 | H14: 10
A15: Canelones | B15: 2771 | C15: 66 | D15: 427 | E15: 764 | F15: 841 | G15: 417 | H15: 256
A16: Cerro Largo | B16: 114 | C16: 0 | D16: 28 | E16: 28 | F16: 33 | G16: 19 | H16: 6
A17: Colonia | B17: 690 | C17: 10 | D17: 142 | E17: 246 | F17: 248 | G17: 31 | H17: 13
A18: Durazno | B18: 47 | C18: 0 | D18: 22 | E18: 10 | F18: 8 | G18: 6 | H18: 1
A19: Flores | B19: 115 | C19: 6 | D19: 27 | E19: 35 | F19: 19 | G19: 16 | H19: 12
A20: Florida | B20: 574 | C20: 9 | D20: 125 | E20: 154 | F20: 165 | G20: 84 | H20: 37
A21: Lavalleja | B21: 235 | C21: 5 | D21: 35 | E21: 79 | F21: 84 | G21: 29 | H21: 3
A22: Maldonado | B22: 968 | C22: 5 | D22: 108 | E22: 231 | F22: 237 | G22: 167 | H22: 220
A23: Paysandú | B23: 513 | C23: 19 | D23: 111 | E23: 133 | F23: 138 | G23: 76 | H23: 36
A24: Río Negro | B24: 123 | C24: 0 | D24: 34 | E24: 46 | F24: 29 | G24: 12 | H24: 2
A25: Rivera | B25: 421 | C25: 2 | D25: 77 | E25: 136 | F25: 113 | G25: 58 | H25: 35
A26: Rocha | B26: 118 | C26: 0 | D26: 24 | E26: 39 | F26: 36 | G26: 8 | H26: 11
A27: Salto | B27: 572 | C27: 6 | D27: 94 | E27: 161 | F27: 178 | G27: 42 | H27: 91
A28: San José | B28: 454 | C28: 7 | D28: 82 | E28: 165 | F28: 154 | G28: 29 | H28: 17
A29: Soriano | B29: 278 | C29: 0 | D29: 33 | E29: 114 | F29: 92 | G29: 38 | H29: 1
A30: Tacuarembó | B30: 118 | C30: 0 | D30: 23 | E30: 35 | F30: 36 | G30: 19 | H30: 5
A31: Treinta y Tres | B31: 0 | C31: 0 | D31: 0 | E31: 0 | F31: 0 | G31: 0 | H31: 0
A32: Fuente: Procesamiento propio en base a datos proporcionados por:
A33: Registro Nacional de Centros de Educación Infantil Privados. MEC
A34: Nota: En la categoria de 5 años se incluyen 364 niñas y niños que tienen más de 5 años.

Sheet II-1.3.1
A1: CONSEJO DE EDUCACIÓN INICIAL Y PRIMARIA | D1: PERSONAL DOCENTE
A3: Cuadro Nº II-1.3.1
A5: PERSONAL DOCENTE DE EDUCACIÓN EN LA PRIMERA INFANCIA E INICIAL PÚBLICA DEL CEIP SEGÚN DEPARTAMENTO. AÑO 2013.
A6: DEPARTAMENTO | B6: DOCENTES
A8: TOTAL | B8: =SUM(B9:B10) -> 2715
A9: MONTEVIDEO | B9: 951
A10: RESTO DEL PAÍS | B10: =SUM(B12:B29) -> 1764
A12: Artigas | B12: 82
A13: Canelones | B13: 411
A14: Cerro Largo | B14: 82
A15: Colonia | B15: 97
A16: Durazno | B16: 47
A17: Flores | B17: 24
A18: Florida | B18: 71
A19: Lavalleja | B19: 56
A20: Maldonado | B20: 147
A21: Paysandú | B21: 93
A22: Río Negro | B22: 63
A23: Rivera | B23: 102
A24: Rocha | B24: 69
A25: Salto | B25: 118
A26: San José | B26: 91
A27: Soriano | B27: 77
A28: Tacuarembó | B28: 80
A29: Treinta y Tres | B29: 54
A30: Fuente: D.E.E. - C.E.I.P
A31: Nota: Personal docente solo considera maestro/a de clase.

Sheet II-1.3.2
A1: CONSEJO DE EDUCACIÓN INICIAL Y PRIMARIA | E1: PERSONAL DOCENTE
A3: Cuadro Nº II-1.3.2.
A5: PERSONAL DOCENTE DE EDUCACIÓN EN LA PRIMERA INFANCIA E INICIAL PRIVADA SEGÚN DEPARTAMENTO. AÑO 2013.
A6: DEPARTAMENTO | C6: DOCENTES
B8: TOTAL | C8: Colegios Habilitados | D8: Colegios Autorizados | E8: Jardines de Infantes Autorizados
A10: TOTAL | B10: =SUM(B11:B12) -> 1047 | C10: =SUM(C11:C12) -> 681 | D10: =SUM(D11:D12) -> 16 | E10: =SUM(E11:E12) -> 350
A11: MONTEVIDEO | B11: =+C11+D11+E11 -> 675 | C11: 407 | D11: 11 | E11: 257
A12: RESTO DEL PAÍS | B12: =+C12+D12+E12 -> 372 | C12: =SUM(C14:C31) -> 274 | D12: =SUM(D14:D31) -> 5 | E12: =SUM(E14:E31) -> 93
A14: Artigas | B14: =+C14+D14 -> 2 | C14: 2 | D14: 0 | E14: 0
A15: Canelones | B15: 91 | C15: 86 | D15: 5 | E15: 36
A16: Cerro Largo | B16: 4 | C16: 4 | D16: 0 | E16: 5
A17: Colonia | B17: 16 | C17: 16 | D17: 0 | E17: 0
A18: Durazno | B18: 4 | C18: 4 | D18: 0 | E18: 0
A19: Flores | B19: 5 | C19: 5 | D19: 0 | E19: 0
A20: Florida | B20: 1 | C20: 1 | D20: 0 | E20: 5
A21: Lavalleja | B21: 13 | C21: 13 | D21: 0 | E21: 0
A22: Maldonado | B22: 56 | C22: 56 | D22: 0 | E22: 12
A23: Paysandú | B23: 9 | C23: 9 | D23: 0 | E23: 8
A24: Río Negro | B24: 8 | C24: 8 | D24: 0 | E24: 0
A25: Rivera | B25: 14 | C25: 14 | D25: 0 | E25: 0
A26: Rocha | B26: 9 | C26: 9 | D26: 0 | E26: 0
A27: Salto | B27: 8 | C27: 8 | D27: 0 | E27: 13
A28: San José | B28: 10 | C28: 10 | D28: 0 | E28: 3
A29: Soriano | B29: 10 | C29: 10 | D29: 0 | E29: 2
A30: Tacuarembó | B30: 16 | C30: 16 | D30: 0 | E30: 9
A31: Treinta y Tres | B31: 3 | C31: 3 | D31: 0 | E31: 0
A32: Fuente: D.E.E. — C.E.P. | B32: C.E.I.P
A33: Nota: Personal docente solo considera maestro/a de clase.

Sheet II-1.3.3
A1: MINISTERIO DE EDUCACIÓN Y CULTURA | L1: PERSONAL DOCENTE
A3: Cuadro Nº II-1.3.3
A5: CANTIDAD DE PERSONAL DOCENTE Y NO DOCENTE EN CENTROS PRIVADOS SUPERVISADOS POR EL MEC, EN EDUCACIÓN EN LA PRIMERA INFANCIA E INICIAL SEGÚN NIVEL EDUCATIVO ALCANZADO Y DEPARTAMENTO. AÑO 2013.
C7: Nivel educativo
C8: Primaria | D8: Ciclo Básico Liceo o UTU | E8: Bachillerato Secundario CES o UTU | F8: Terciario no Universitario | G8: Terciaria Universitaria | H8: S/D | I8: Total
A9: Total | B9: Director responsable técnico | C9: 0 | D9: 0 | E9: 1 | F9: 391 | G9: 61 | H9: 12 | I9: 465
B10: Personal no pedagógico | C10: 31 | D10: 73 | E10: 43 | F10: 8 | G10: 181 | H10: 14 | I10: 350
B11: Personal pedagógico | C11: 47 | D11: 529 | E11: 967 | F11: 757 | G11: 530 | H11: 212 | I11: 3042
B12: S/D | C12: 10 | D12: 25 | E12: 33 | F12: 23 | G12: 7 | H12: 132 | I12: 230
B13: Total | C13: 88 | D13: 627 | E13: 1044 | F13: 1179 | G13: 779 | H13: 370 | I13: 4087
A14: ARTIGAS | B14: Director responsable técnico | C14: 0 | D14: 0 | E14: 0 | F14: 3 | G14: 0 | H14: 0 | I14: 3
B15: Personal no pedagógico | C15: 0 | D15: 0 | E15: 0 | F15: 0 | G15: 0 | H15: 0 | I15: 0
B16: Personal pedagógico | C16: 1 | D16: 4 | E16: 8 | F16: 9 | G16: 0 | H16: 0 | I16: 22
B17: S/D | C17: 0 | D17: 0 | E17: 0 | F17: 0 | G17: 0 | H17: 0 | I17: 0
B18: Total | C18: 1 | D18: 4 | E18: 8 | F18: 12 | G18: 0 | H18: 0 | I18: 25
A19: CANELONES | B19: Director responsable técnico | C19: 0 | D19: 0 | E19: 1 | F19: 51 | G19: 14 | H19: 3 | I19: 69
B20: Personal no pedagógico | C20: 1 | D20: 5 | E20: 6 | F20: 2 | G20: 23 | H20: 0 | I20: 37
B21: Personal pedagógico | C21: 12 | D21: 105 | E21: 127 | F21: 100 | G21: 59 | H21: 6 | I21: 409
B22: S/D | C22: 0 | D22: 2 | E22: 1 | F22: 1 | G22: 2 | H22: 1 | I22: 7
B23: Total | C23: 13 | D23: 112 | E23: 135 | F23: 154 | G23: 98 | H23: 10 | I23: 522
A24: CERRO LARGO | B24: Director responsable técnico | C24: 0 | D24: 0 | E24: 0 | F24: 3 | G24: 1 | H24: 0 | I24: 4
B25: Personal no pedagógico | C25: 0 | D25: 0 | E25: 1 | F25: 0 | G25: 2 | H25: 0 | I25: 3
B26: Personal pedagógico | C26: 0 | D26: 7 | E26: 3 | F26: 4 | G26: 1 | H26: 0 | I26: 15
B27: S/D | C27: 0 | D27: 0 | E27: 0 | F27: 0 | G27: 0 | H27: 0 | I27: 0
B28: Total | C28: 0 | D28: 7 | E28: 4 | F28: 7 | G28: 4 | H28: 0 | I28: 22
A29: COLONIA | B29: Director responsable técnico | C29: 0 | D29: 0 | E29: 0 | F29: 17 | G29: 3 | H29: 0 | I29: 20
B30: Personal no pedagógico | C30: 0 | D30: 4 | E30: 0 | F30: 0 | G30: 3 | H30: 0 | I30: 7
B31: Personal pedagógico | C31: 7 | D31: 25 | E31: 27 | F31: 17 | G31: 6 | H31: 1 | I31: 83
B32: S/D | C32: 0 | D32: 0 | E32: 1 | F32: 0 | G32: 0 | H32: 1 | I32: 2
B33: Total | C33: 7 | D33: 29 | E33: 28 | F33: 34 | G33: 12 | H33: 2 | I33: 112
A34: DURAZNO | B34: Director responsable técnico | C34: 0 | D34: 0 | E34: 0 | F34: 1 | G34: 0 | H34: 0 | I34: 1
B35: Personal no pedagógico | C35: 1 | D35: 0 | E35: 0 | F35: 0 | G35: 0 | H35: 0 | I35: 1
B36: Personal pedagógico | C36: 0 | D36: 1 | E36: 4 | F36: 2 | G36: 0 | H36: 0 | I36: 7
B37: S/D | C37: 0 | D37: 0 | E37: 0 | F37: 0 | G37: 0 | H37: 0 | I37: 0
B38: Total | C38: 1 | D38: 1 | E38: 4 | F38: 3 | G38: 0 | H38: 0 | I38: 9
A39: FLORES | B39: Director responsable técnico | C39: 0 | D39: 0 | E39: 0 | F39: 3 | G39: 0 | H39: 0 | I39: 3
B40: Personal no pedagógico | C40: 1 | D40: 0 | E40: 1 | F40: 0 | G40: 1 | H40: 0 | I40: 3
B41: Personal pedagógico | C41: 0 | D41: 4 | E41: 4 | F41: 4 | G41: 6 | H41: 0 | I41: 18
B42: S/D | C42: 0 | D42: 0 | E42: 0 | F42: 0 | G42: 0 | H42: 0 | I42: 0
B43: Total | C43: 1 | D43: 4 | E43: 5 | F43: 7 | G43: 7 | H43: 0 | I43: 24
A44: FLORIDA | B44: Director responsable técnico | C44: 0 | D44: 0 | E44: 0 | F44: 12 | G44: 0 | H44: 0 | I44: 12
B45: Personal no pedagógico | C45: 2 | D45: 0 | E45: 1 | F45: 0 | G45: 3 | H45: 0 | I45: 6
B46: Personal pedagógico | C46: 3 | D46: 10 | E46: 29 | F46: 11 | G46: 19 | H46: 0 | I46: 72
B47: S/D | C47: 0 | D47: 0 | E47: 0 | F47: 1 | G47: 0 | H47: 0 | I47: 1
B48: Total | C48: 5 | D48: 10 | E48: 30 | F48: 24 | G48: 22 | H48: 0 | I48: 91
A49: LAVALLEJA | B49: Director responsable técnico | C49: 0 | D49: 0 | E49: 0 | F49: 6 | G49: 0 | H49: 1 | I49: 7
B50: Personal no pedagógico | C50: 1 | D50: 0 | E50: 0 | F50: 0 | G50: 1 | H50: 0 | I50: 2
B51: Personal pedagógico | C51: 4 | D51: 8 | E51: 12 | F51: 9 | G51: 5 | H51: 0 | I51: 38
B52: S/D | C52: 0 | D52: 0 | E52: 0 | F52: 0 | G52: 0 | H52: 0 | I52: 0
B53: Total | C53: 5 | D53: 8 | E53: 12 | F53: 15 | G53: 6 | H53: 1 | I53: 47
A54: MALDONADO | B54: Director responsable técnico | C54: 0 | D54: 0 | E54: 0 | F54: 15 | G54: 1 | H54: 0 | I54: 16
B55: Personal no pedagógico | C55: 2 | D55: 3 | E55: 1 | F55: 1 | G55: 11 | H55: 0 | I55: 18
B56: Personal pedagógico | C56: 1 | D56: 16 | E56: 64 | F56: 41 | G56: 11 | H56: 4 | I56: 137
B57: S/D | C57: 0 | D57: 0 | E57: 5 | F57: 0 | G57: 0 | H57: 2 | I57: 7
B58: Total | C58: 3 | D58: 19 | E58: 70 | F58: 57 | G58: 23 | H58: 6 | I58: 178
A59: MONTEVIDEO | B59: Director responsable técnico | C59: 0 | D59: 0 | E59: 0 | F59: 232 | G59: 39 | H59: 6 | I59: 277
B60: Personal no pedagógico | C60: 16 | D60: 53 | E60: 28 | F60: 4 | G60: 128 | H60: 12 | I60: 241
B61: Personal pedagógico | C61: 17 | D61: 285 | E61: 565 | F61: 485 | G61: 369 | H61: 186 | I61: 1907
B62: S/D | C62: 10 | D62: 22 | E62: 22 | F62: 21 | G62: 5 | H62: 123 | I62: 203
B63: Total | C63: 43 | D63: 360 | E63: 615 | F63: 742 | G63: 541 | H63: 327 | I63: 2628
A64: PAYSANDU | B64: Director responsable técnico | C64: 0 | D64: 0 | E64: 0 | F64: 9 | G64: 0 | H64: 0 | I64: 9
B65: Personal no pedagógico | C65: 1 | D65: 0 | E65: 1 | F65: 0 | G65: 4 | H65: 0 | I65: 6
B66: Personal pedagógico | C66: 0 | D66: 10 | E66: 43 | F66: 15 | G66: 12 | H66: 3 | I66: 83
B67: S/D | C67: 0 | D67: 0 | E67: 0 | F67: 0 | G67: 0 | H67: 0 | I67: 0
B68: Total | C68: 1 | D68: 10 | E68: 44 | F68: 24 | G68: 16 | H68: 3 | I68: 98
A69: RIO NEGRO | B69: Director responsable técnico | C69: 0 | D69: 0 | E69: 0 | F69: 3 | G69: 0 | H69: 0 | I69: 3
B70: Personal no pedagógico | C70: 0 | D70: 0 | E70: 0 | F70: 0 | G70: 0 | H70: 2 | I70: 2
B71: Personal pedagógico | C71: 0 | D71: 1 | E71: 2 | F71: 1 | G71: 2 | H71: 6 | I71: 12
B72: S/D | C72: 0 | D72: 0 | E72: 0 | F72: 0 | G72: 0 | H72: 0 | I72: 0
B73: Total | C73: 0 | D73: 1 | E73: 2 | F73: 4 | G73: 2 | H73: 8 | I73: 17
A74: RIVERA | B74: Director responsable técnico | C74: 0 | D74: 0 | E74: 0 | F74: 5 | G74: 2 | H74: 0 | I74: 7
B75: Personal no pedagógico | C75: 2 | D75: 5 | E75: 0 | F75: 1 | G75: 0 | H75: 0 | I75: 8
B76: Personal pedagógico | C76: 0 | D76: 20 | E76: 21 | F76: 19 | G76: 9 | H76: 0 | I76: 69
B77: S/D | C77: 0 | D77: 0 | E77: 0 | F77: 0 | G77: 0 | H77: 0 | I77: 0
B78: Total | C78: 2 | D78: 25 | E78: 21 | F78: 25 | G78: 11 | H78: 0 | I78: 84
A79: ROCHA | B79: Director responsable técnico | C79: 0 | D79: 0 | E79: 0 | F79: 3 | G79: 1 | H79: 1 | I79: 5
B80: Personal no pedagógico | C80: 0 | D80: 0 | E80: 0 | F80: 0 | G80: 0 | H80: 0 | I80: 0
B81: Personal pedagógico | C81: 1 | D81: 5 | E81: 3 | F81: 3 | G81: 6 | H81: 1 | I81: 19
B82: S/D | C82: 0 | D82: 0 | E82: 0 | F82: 0 | G82: 0 | H82: 0 | I82: 0
B83: Total | C83: 1 | D83: 5 | E83: 3 | F83: 6 | G83: 7 | H83: 2 | I83: 24
A84: SALTO | B84: Director responsable técnico | C84: 0 | D84: 0 | E84: 0 | F84: 9 | G84: 0 | H84: 0 | I84: 9
B85: Personal no pedagógico | C85: 4 | D85: 3 | E85: 4 | F85: 0 | G85: 3 | H85: 0 | I85: 14
B86: Personal pedagógico | C86: 0 | D86: 9 | E86: 12 | F86: 12 | G86: 12 | H86: 1 | I86: 46
B87: S/D | C87: 0 | D87: 0 | E87: 0 | F87: 0 | G87: 0 | H87: 0 | I87: 0
B88: Total | C88: 4 | D88: 12 | E88: 16 | F88: 21 | G88: 15 | H88: 1 | I88: 69
A89: SAN JOSE | B89: Director responsable técnico | C89: 0 | D89: 0 | E89: 0 | F89: 8 | G89: 0 | H89: 1 | I89: 9
B90: Personal no pedagógico | C90: 0 | D90: 0 | E90: 0 | F90: 0 | G90: 0 | H90: 0 | I90: 0
B91: Personal pedagógico | C91: 0 | D91: 10 | E91: 20 | F91: 8 | G91: 2 | H91: 1 | I91: 41
B92: S/D | C92: 0 | D92: 0 | E92: 3 | F92: 0 | G92: 0 | H92: 5 | I92: 8
B93: Total | C93: 0 | D93: 10 | E93: 23 | F93: 16 | G93: 2 | H93: 7 | I93: 58
A94: SORIANO | B94: Director responsable técnico | C94: 0 | D94: 0 | E94: 0 | F94: 7 | G94: 0 | H94: 0 | I94: 7
B95: Personal no pedagógico | C95: 0 | D95: 0 | E95: 0 | F95: 0 | G95: 2 | H95: 0 | I95: 2
B96: Personal pedagógico | C96: 1 | D96: 6 | E96: 19 | F96: 13 | G96: 4 | H96: 0 | I96: 43
B97: S/D | C97: 0 | D97: 0 | E97: 0 | F97: 0 | G97: 0 | H97: 0 | I97: 0
B98: Total | C98: 1 | D98: 6 | E98: 19 | F98: 20 | G98: 6 | H98: 0 | I98: 52
A99: TACUAREMBO | B99: Director responsable técnico | C99: 0 | D99: 0 | E99: 0 | F99: 4 | G99: 0 | H99: 0 | I99: 4
B100: Personal no pedagógico | C100: 0 | D100: 0 | E100: 0 | F100: 0 | G100: 0 | H100: 0 | I100: 0
B101: Personal pedagógico | C101: 0 | D101: 3 | E101: 4 | F101: 4 | G101: 7 | H101: 3 | I101: 21
B102: S/D | C102: 0 | D102: 1 | E102: 1 | F102: 0 | G102: 0 | H102: 0 | I102: 2
B103: Total | C103: 0 | D103: 4 | E103: 5 | F103: 8 | G103: 7 | H103: 3 | I103: 27
A105: Fuente: Procesamiento propio en base a datos proporcionados por: Registro Nacional de Centros de Educación Infantil Privados. MEC

Sheet PRIMARIA

Sheet CONTROL (hidden)
A1: DENTRO DE PRIMARIA | G1: EN SINOPSIS
B2: PRIMER CUADRO | C2: SEGUNDO CUADRO | D2: TERCER CUADRO | F2: Aclaración. | G2: PRIMER CUADRO | H2: SEGUNDO CUADRO | I2: TERCER CUADRO
A3: ESTABLEC. | B3: II-2.1.1 | C3: II-2.1.2 | E3: =IF(SUM(#REF!+#REF!+#REF!+#REF!+#REF! +#REF! =#REF!),"OK","INCONSISTENCIA") -> 
A4: ESTABLEC. | B4: II-2.1.1 | C4: II-2.1.4 | E4: =IF(#REF!=#REF!,"OK","INCONSISTENCIA") -> 
A5: ESTABLEC. | B5: II-2.1.1 | C5: II-2.1.4 | E5: =IF(#REF!=#REF!,"OK","INCONSISTENCIA") ->  | F5: =IF(E5="INCONSISTENCIA","Número de establecimiento de especial","") -> 
A6: MATRÍCULA | B6: II-2.2.1 | C6: II-2.2.2 | E6: =IF(#REF!=#REF!,"OK","INCONSISTENCIA") ->  | F6: =IF(E6="INCONSISTENCIA","Matrícula de Primaria Pública","") ->  | J6: =IF((#REF!+#REF!)=#REF!,"OK","INCONSISTENCIA") ->  | K6: =IF(J6="INCONSISTENCIA","Matrícula de Primaria Pública","") -> 
A7: MATRÍCULA | B7: II-2.2.2 | C7: II-2.2.3 | E7: =IF(#REF!=SUM(#REF!-#REF!),"OK","INCONSISTENCIA") ->  | J7: =IF((#REF!+#REF!)=#REF!,"OK","INCONSISTENCIA") -> 
A8: MATRÍCULA | B8: II-2.2.2 | C8: II-2.2.8 | E8: =IF(#REF!=#REF!,"OK","INCONSISTENCIA") -> 
A9: MATRÍCULA | B9: II-2.2.1 | C9: II-2.2.6 | E9: =IF(#REF!=#REF!,"OK","INCONSISTENCIA") -> 
A10: MATRÍCULA | B10: II-2.2.2 | C10: II-2.2.8 | E10: =IF(#REF!=#REF!,"OK","INCONSISTENCIA") -> 
A11: MATRÍCULA | B11: II-2.2.1 | C11: II-2.2.8 | E11: =IF(#REF!=#REF!,"OK","INCONSISTENCIA") -> 
A12: MATRÍCULA | B12: II-2.2.2 | C12: II-2.2.9 | E12: =IF(#REF!=#REF!,"OK","INCONSISTENCIA") -> 
A13: MATRÍCULA | B13: II-2.2.1 | C13: II-2.2.10 | E13: =IF(#REF!=#REF!,"OK","INCONSISTENCIA") -> 
A14: MATRÍCULA | B14: II-2.2.2 | C14: II-2.2.11 | E14: =IF(#REF!=#REF!,"OK","INCONSISTENCIA") -> 
A15: MATRÍCULA | B15: II-2.2.1 | C15: II-2.2.11 | E15: =IF(#REF!=#REF!,"OK","INCONSISTENCIA") -> 
A16: MATRÍCULA | B16: II-2.2.12 | C16: II-2.2.13 | E16: =IF(#REF!=#REF!,"OK","INCONSISTENCIA") -> 
A17: MATRÍCULA | B17: II-2.2.10 | C17: II-2.2.12 | E17: =IF(#REF!=#REF!,"OK","INCONSISTENCIA") -> 
A18: MATRÍCULA | B18: II-2.2.12 | C18: II-2.2.13 | E18: =IF(#REF!=#REF!,"OK","INCONSISTENCIA") -> 
A19: MATRÍCULA | B19: II-2.2.13 | C19: II-2.2.14 | E19: =IF(#REF!=#REF!,"OK","INCONSISTENCIA") -> 
A20: MATRÍCULA | B20: II-2.2.13 | C20: II-2.2.14 | E20: =IF(#REF!=#REF!,"OK","INCONSISTENCIA") -> 
A21: MATRÍCULA | B21: II-2.2.1 | C21: II-2.2.15 | E21: =IF(#REF!=#REF!+#REF!,"OK","INCONSISTENCIA") -> 
A22: MATRÍCULA | B22: II-2.2.16 | C22: II-2.2.17 | E22: =IF(#REF!=#REF!,"OK","INCONSISTENCIA") -> 
A23: MATRÍCULA | B23: II-2.2.1 | C23: II-2.2.18 | E23: =IF(#REF!=#REF!,"OK","INCONSISTENCIA") -> 

Sheet II-2.1.1
A1: CONSEJO DE EDUCACIÓN PRIMARIA | E1: ESTABLECIMIENTOS
A3: Cuadro Nº II-2.1.1
A4: ESTABLECIMIENTOS DE EDUCACIÓN PRIMARIA POR FORMA DE ADMINISTRACIÓN Y TIPO DE EDUCACIÓN SEGÚN DEPARTAMENTO. AÑO 2013.
A5: DEPARTAMENTO | C5: FORMA DE ADMINISTRACIÓN
B6: TOTAL | C6: TIPO DE EDUCACIÓN
C7: PÚBLICA | E7: PRIVADA
C8: Común | D8: Especial | E8: Común | F8: Especial
A10: TOTAL | B10: =+C10+D10+E10+F10 -> 2544 | C10: =SUM(C11:C12) -> 2051 | D10: =SUM(D11:D12) -> 80 | E10: =SUM(E11,E12) -> 345 | F10: =SUM(F11:F12) -> 68
A11: MONTEVIDEO | B11: =+C11+D11+E11+F11 -> 491 | C11: 249 | D11: 26 | E11: 173 | F11: 43
A12: RESTO DEL PAÍS. | B12: 2053 | C12: =SUM(C13:C30) -> 1802 | D12: =SUM(D13:D30) -> 54 | E12: =SUM(E13:E30) -> 172 | F12: =SUM(F13:F30) -> 25
A13: Artigas | B13: 83 | C13: 77 | D13: 2 | E13: 2 | F13: 2
A14: Canelones | B14: 307 | C14: 233 | D14: 10 | E14: 60 | F14: 4
A15: Cerro Largo. | B15: 126 | C15: 117 | D15: 3 | E15: 6 | F15: 0
A16: Colonia | B16: 140 | C16: 126 | D16: 4 | E16: 9 | F16: 1
A17: Durazno | B17: 85 | C17: 79 | D17: 2 | E17: 4 | F17: 0
A18: Flores. | B18: 40 | C18: 36 | D18: 1 | E18: 3 | F18: 0
A19: Florida | B19: 104 | C19: 98 | D19: 2 | E19: 3 | F19: 1
A20: Lavalleja | B20: 100 | C20: 91 | D20: 2 | E20: 7 | F20: 0
A21: Maldonado | B21: 110 | C21: 77 | D21: 4 | E21: 26 | F21: 3
A22: Paysandú. | B22: 121 | C22: 105 | D22: 2 | E22: 9 | F22: 5
A23: Río Negro. | B23: 71 | C23: 61 | D23: 2 | E23: 7 | F23: 1
A24: Rivera | B24: 135 | C24: 123 | D24: 4 | E24: 8 | F24: 0
A25: Rocha. | B25: 79 | C25: 71 | D25: 3 | E25: 4 | F25: 1
A26: Salto | B26: 115 | C26: 101 | D26: 3 | E26: 7 | F26: 4
A27: San José | B27: 115 | C27: 105 | D27: 4 | E27: 6 | F27: 0
A28: Soriano | B28: 108 | C28: 99 | D28: 3 | E28: 3 | F28: 3
A29: Tacuarembó. | B29: 142 | C29: 134 | D29: 2 | E29: 6 | F29: 0
A30: Treinta y Tres. | B30: 72 | C30: 69 | D30: 1 | E30: 2 | F30: 0
A31: Fuente: Procesamiento propio en base a datos proporcionados por el D.E.E. — C.E.I.P.
A32: Nota: Pública no incluye JICI

Sheet II-2.1.2
A1: CONSEJO DE EDUCACIÓN PRIMARIA | K1: ESTABLECIMIENTOS
A3: Cuadro Nº II-2.1.2
A5: ESTABLECIMIENTOS DE EDUCACIÓN PRIMARIA PÚBLICA COMÚN POR ÁREA DEMOGRÁFICA Y CATEGORÍA SEGÚN DEPARTAMENTO AÑO 2013.
A6: DEPARTAMENTO | B6: TOTAL | C6: ÁREA DEMOGRÁFICA
D7: URBANA | K7: RURAL
C8: Total Urbana | D8: CATEGORÍA | J8: Total Rural | K8: CATEGORÍA
D9: Común | E9: De Práctica | F9: Tiempo Completo | G9: Aprender | H9: Tiempo Extendido | I9: JICI | K9: Común | L9: Internado Rural
A11: TOTAL | B11: =+C11+J11 -> 2063 | C11: =+D11+E11+F11+G11+H11+I11 -> 952 | D11: =SUM(D12:D13) -> 329 | E11: =SUM(E12:E13) -> 129 | F11: 188 | G11: 265 | H11: 29 | I11: 12 | J11: =SUM(J12:J13) -> 1111 | K11: 1105 | L11: 6
A12: MONTEVIDEO | B12: =+C12+J12 -> 253 | C12: =+D12+E12+F12+G12+H12+I12 -> 253 | D12: 93 | E12: 22 | F12: 43 | G12: 87 | H12: 4 | I12: 4 | J12: 0 | K12: 0 | L12: 0
A13: RESTO DEL PAÍS | B13: 1810 | C13: =+D13+E13+F13+G13+H13+I13 -> 699 | D13: =SUM(D14:D31) -> 236 | E13: 107 | F13: 145 | G13: 178 | H13: 25 | I13: 8 | J13: 1111 | K13: 1105 | L13: 6
A14: Artigas | B14: 77 | C14: 30 | D14: 5 | E14: 6 | F14: 8 | G14: 10 | H14: 1 | I14: 0 | J14: =+K14+L14 -> 47 | K14: 46 | L14: 1
A15: Canelones | B15: 234 | C15: 138 | D15: 41 | E15: 19 | F15: 25 | G15: 47 | H15: 5 | I15: 1 | J15: =+K15+L15 -> 96 | K15: 96 | L15: 0
A16: Cerro Largo | B16: 118 | C16: 30 | D16: 4 | E16: 7 | F16: 7 | G16: 9 | H16: 2 | I16: 1 | J16: 88 | K16: 88 | L16: 0
A17: Colonia | B17: 127 | C17: 44 | D17: 22 | E17: 7 | F17: 6 | G17: 7 | H17: 1 | I17: 1 | J17: 83 | K17: 83 | L17: 0
A18: Durazno | B18: 80 | C18: 25 | D18: 8 | E18: 5 | F18: 5 | G18: 6 | H18: 0 | I18: 1 | J18: 55 | K18: 55 | L18: 0
A19: Flores | B19: 36 | C19: 10 | D19: 3 | E19: 2 | F19: 4 | G19: 0 | H19: 1 | I19: 0 | J19: 26 | K19: 25 | L19: 1
A20: Florida | B20: 98 | C20: 31 | D20: 13 | E20: 5 | F20: 6 | G20: 2 | H20: 5 | I20: 0 | J20: 67 | K20: 67 | L20: 0
A21: Lavalleja | B21: 91 | C21: 25 | D21: 11 | E21: 3 | F21: 7 | G21: 3 | H21: 1 | I21: 0 | J21: 66 | K21: 66 | L21: 0
A22: Maldonado | B22: 77 | C22: 41 | D22: 19 | E22: 5 | F22: 11 | G22: 5 | H22: 1 | I22: 0 | J22: 36 | K22: 35 | L22: 1
A23: Paysandú | B23: 106 | C23: 49 | D23: 17 | E23: 7 | F23: 9 | G23: 15 | H23: 0 | I23: 1 | J23: 57 | K23: 55 | L23: 2
A24: Río Negro | B24: 61 | C24: 22 | D24: 11 | E24: 4 | F24: 5 | G24: 2 | H24: 0 | I24: 0 | J24: 39 | K24: 38 | L24: 1
A25: Rivera | B25: 124 | C25: 42 | D25: 10 | E25: 6 | F25: 8 | G25: 17 | H25: 0 | I25: 1 | J25: 82 | K25: 82 | L25: 0
A26: Rocha | B26: 71 | C26: 32 | D26: 12 | E26: 4 | F26: 9 | G26: 7 | H26: 0 | I26: 0 | J26: 39 | K26: 39 | L26: 0
A27: Salto | B27: 101 | C27: 40 | D27: 6 | E27: 7 | F27: 12 | G27: 13 | H27: 2 | I27: 0 | J27: 61 | K27: 61 | L27: 0
A28: San José | B28: 106 | C28: 38 | D28: 19 | E28: 5 | F28: 5 | G28: 5 | H28: 3 | I28: 1 | J28: 68 | K28: 68 | L28: 0
A29: Soriano | B29: 99 | C29: 36 | D29: 15 | E29: 4 | F29: 7 | G29: 10 | H29: 0 | I29: 0 | J29: 63 | K29: 63 | L29: 0
A30: Tacuarembó | B30: 134 | C30: 43 | D30: 12 | E30: 5 | F30: 6 | G30: 17 | H30: 3 | I30: 0 | J30: 91 | K30: 91 | L30: 0
A31: Treinta y Tres | B31: 70 | C31: 23 | D31: 8 | E31: 6 | F31: 5 | G31: 3 | H31: 0 | I31: 1 | J31: 47 | K31: 47 | L31: 0
A32: Fuente: Procesamiento propio en base a datos proporcionados por el DEE — CEIP | F32: D.E.E.-C.E.I.P.
A33: Nota: Este año se incorpora la categoría Tiempo Extendido

Sheet II-2.1.3
A1: CONSEJO DE EDUCACIÓN PRIMARIA | D1: Establecimientos
A3: Cuadro Nº II-2.1.3
A5: ESTABLECIMIENTOS DE EDUCACIÓN PRIMARIA PÚBLICA ESPECIAL POR TIPO DE DISCAPACIDAD SEGÚN DEPARTAMENTO AÑO 2013.
A6: DEPARTAMENTO | B6: TOTAL | C6: DISCAPACIDAD
C7: Intelectual | D7: Auditiva | E7: Visual
A9: TOTAL | B9: =+B10+B11 -> 80 | C9: =SUM(C10:C11) -> 74 | D9: =SUM(D10:D11) -> 4 | E9: =SUM(E10:E11) -> 2
A10: MONTEVIDEO | B10: =+C10+D10+E10 -> 26 | C10: 23 | D10: 1 | E10: 2
A11: RESTO DEL PAÍS | B11: =SUM(B12:B29) -> 54 | C11: =SUM(C12:C29) -> 51 | D11: =SUM(D12:D29) -> 3 | E11: =SUM(E12:E29) -> 0
A12: Artigas | B12: =+C12+D12+E12 -> 2 | C12: 2 | D12: 0 | E12: 0
A13: Canelones | B13: 10 | C13: 10 | D13: 0 | E13: 0
A14: Cerro Largo | B14: 3 | C14: 3 | D14: 0 | E14: 0
A15: Colonia | B15: 4 | C15: 4 | D15: 0 | E15: 0
A16: Durazno | B16: 2 | C16: 2 | D16: 0 | E16: 0
A17: Flores | B17: 1 | C17: 1 | D17: 0 | E17: 0
A18: Florida | B18: 2 | C18: 2 | D18: 0 | E18: 0
A19: Lavalleja | B19: 2 | C19: 2 | D19: 0 | E19: 0
A20: Maldonado | B20: 4 | C20: 3 | D20: 1 | E20: 0
A21: Paysandú | B21: 2 | C21: 2 | D21: 0 | E21: 0
A22: Río Negro | B22: 2 | C22: 2 | D22: 0 | E22: 0
A23: Rivera | B23: 4 | C23: 3 | D23: 1 | E23: 0
A24: Rocha | B24: 3 | C24: 3 | D24: 0 | E24: 0
A25: Salto | B25: 3 | C25: 2 | D25: 1 | E25: 0
A26: San José | B26: 4 | C26: 4 | D26: 0 | E26: 0
A27: Soriano | B27: 3 | C27: 3 | D27: 0 | E27: 0
A28: Tacuarembó | B28: 2 | C28: 2 | D28: 0 | E28: 0
A29: Treinta y Tres | B29: 1 | C29: 1 | D29: 0 | E29: 0
A30: Fuente: DEE — CEIP | C30: 0
A31: Nota: Los establecimientos que atienden discapacidades intelectuales, además de atender niños con disfunciones clásicamente tipificadas como “Intelectuales”, atienden a los niños con discapacidades de orden motriz o de carácter, lo que implica que la matrícula correspondiente los agrupa.

Sheet II-2.1.4
A1: CONSEJO DE EDUCACIÓN PRIMARIA | E1: ESTABLECIMIENTOS
A3: Cuadro Nº II-2.1.4
A5: ESTABLECIMIENTOS DE EDUCACIÓN PRIMARIA PRIVADA POR TIPO DE EDUCACIÓN SEGÚN DEPARTAMENTO. AÑO 2013.
A6: DEPARTAMENTO | B6: TOTAL | D6: TIPO DE EDUCACIÓN
C7: Total | D7: EDUCACIÓN COMÚN | F7: EDUCACIÓN ESPECIAL
D8: Habilitados | E8: Autorizados
A10: TOTAL DEL PAÍS | B10: =+C10+F10 -> 413 | C10: =+D10+E10 -> 345 | D10: =SUM(D11:D12) -> 328 | E10: =SUM(E11:E12) -> 17 | F10: =SUM(F11:F12) -> 68
A11: MONTEVIDEO | B11: =+C11+F11 -> 216 | C11: =+D11+E11 -> 173 | D11: 163 | E11: 10 | F11: 43
A12: RESTO DEL PAÍS | B12: 197 | C12: 172 | D12: =SUM(D13:D30) -> 165 | E12: =SUM(E13:E30) -> 7 | F12: =SUM(F13:F30) -> 25
A13: Artigas | B13: 4 | C13: 2 | D13: 2 | E13: 0 | F13: 2
A14: Canelones | B14: 64 | C14: 60 | D14: 56 | E14: 4 | F14: 4
A15: Cerro Largo | B15: 6 | C15: 6 | D15: 6 | E15: 0 | F15: 0
A16: Colonia | B16: 10 | C16: 9 | D16: 9 | E16: 0 | F16: 1
A17: Durazno | B17: 4 | C17: 4 | D17: 4 | E17: 0 | F17: 0
A18: Flores | B18: 3 | C18: 3 | D18: 3 | E18: 0 | F18: 0
A19: Florida | B19: 4 | C19: 3 | D19: 3 | E19: 0 | F19: 1
A20: Lavalleja | B20: 7 | C20: 7 | D20: 7 | E20: 0 | F20: 0
A21: Maldonado | B21: 29 | C21: 26 | D21: 26 | E21: 0 | F21: 3
A22: Paysandú | B22: 14 | C22: 9 | D22: 9 | E22: 0 | F22: 5
A23: Río Negro | B23: 8 | C23: 7 | D23: 5 | E23: 2 | F23: 1
A24: Rivera | B24: 8 | C24: 8 | D24: 8 | E24: 0 | F24: 0
A25: Rocha | B25: 5 | C25: 4 | D25: 4 | E25: 0 | F25: 1
A26: Salto | B26: 11 | C26: 7 | D26: 7 | E26: 0 | F26: 4
A27: San José | B27: 6 | C27: 6 | D27: 5 | E27: 1 | F27: 0
A28: Soriano | B28: 6 | C28: 3 | D28: 3 | E28: 0 | F28: 3
A29: Tacuarembó | B29: 6 | C29: 6 | D29: 6 | E29: 0 | F29: 0
A30: Treinta y Tres | B30: 2 | C30: 2 | D30: 2 | E30: 0 | F30: 0
A31: Fuente: Procesamiento propio en base a datos proporcionados por el D.E.E. — C.E.I.P.

Sheet II-2.2.1
A1: CONSEJO DE EDUCACIÓN PRIMARIA | H1: ALUMNOS MATRICULADOS
A3: Cuadro Nº II-2.2.1
A4: ALUMNOS MATRICULADOS EN EDUCACIÓN PRIMARIA COMÚN POR FORMA DE ADMINISTRACIÓN Y SEXO SEGÚN DEPARTAMENTO AÑO 2013
A5: DEPARTAMENTO | B5: TOTAL | C5: FORMA DE ADMINISTRACIÓN
C6: TOTAL | E6: PÚBLICA | H6: PRIVADA
E7: TOTAL | F7: SEXO | H7: TOTAL | I7: SEXO
C8: M | D8: F | F8: M | G8: F | I8: M | J8: F
A9: TOTAL | B9: =E9+H9 -> 314048 | C9: =+F9+I9 -> 161751 | D9: =+G9+J9 -> 152297 | E9: =+F9+G9 -> 260476 | F9: =SUM(F10:F11) -> 134611 | G9: =SUM(G10:G11) -> 125865 | H9: =+I9+J9 -> 53572 | I9: =SUM(I10:I11) -> 27140 | J9: =SUM(J10:J11) -> 26432
A10: MONTEVIDEO | B10: =E10+H10 -> 113031 | C10: =+F10+I10 -> 58106 | D10: 54925 | E10: =+F10+G10 -> 80120 | F10: 41433 | G10: 38687 | H10: =+I10+J10 -> 32911 | I10: 16673 | J10: 16238
A11: RESTO DEL PAÍS | B11: 201017 | C11: 103645 | D11: 97372 | E11: =SUM(E12:E29) -> 180356 | F11: =SUM(F12:F29) -> 93178 | G11: =SUM(G12:G29) -> 87178 | H11: =+I11+J11 -> 20661 | I11: =SUM(I12:I29) -> 10467 | J11: =SUM(J12:J29) -> 10194
A12: Artigas | B12: 8125 | C12: 4267 | D12: 3858 | E12: =+F12+G12 -> 7985 | F12: 4198 | G12: 3787 | H12: =+I12+J12 -> 140 | I12: 69 | J12: 71
A13: Canelones | B13: 50964 | C13: 26264 | D13: 24700 | E13: =+F13+G13 -> 43484 | F13: 22444 | G13: 21040 | H13: 7480 | I13: 3820 | J13: 3660
A14: Cerro Largo | B14: 9163 | C14: 4664 | D14: 4499 | E14: 8541 | F14: 4361 | G14: 4180 | H14: 622 | I14: 303 | J14: 319
A15: Colonia | B15: 11284 | C15: 5771 | D15: 5513 | E15: 10554 | F15: 5407 | G15: 5147 | H15: 730 | I15: 364 | J15: 366
A16: Durazno | B16: 5929 | C16: 3027 | D16: 2902 | E16: 5264 | F16: 2713 | G16: 2551 | H16: 665 | I16: 314 | J16: 351
A17: Flores | B17: 2428 | C17: 1180 | D17: 1248 | E17: 2133 | F17: 1029 | G17: 1104 | H17: 295 | I17: 151 | J17: 144
A18: Florida | B18: 6419 | C18: 3336 | D18: 3083 | E18: 6137 | F18: 3191 | G18: 2946 | H18: 282 | I18: 145 | J18: 137
A19: Lavalleja | B19: 5459 | C19: 2857 | D19: 2602 | E19: 4814 | F19: 2527 | G19: 2287 | H19: 645 | I19: 330 | J19: 315
A20: Maldonado | B20: 17449 | C20: 8896 | D20: 8553 | E20: 13325 | F20: 6795 | G20: 6530 | H20: 4124 | I20: 2101 | J20: 2023
A21: Paysandú | B21: 12493 | C21: 6517 | D21: 5976 | E21: 11317 | F21: 5898 | G21: 5419 | H21: 1176 | I21: 619 | J21: 557
A22: Río Negro | B22: 6058 | C22: 3100 | D22: 2958 | E22: 5552 | F22: 2836 | G22: 2716 | H22: 506 | I22: 264 | J22: 242
A23: Rivera | B23: 11192 | C23: 5901 | D23: 5291 | E23: 10536 | F23: 5543 | G23: 4993 | H23: 656 | I23: 358 | J23: 298
A24: Rocha | B24: 6871 | C24: 3583 | D24: 3288 | E24: 6504 | F24: 3408 | G24: 3096 | H24: 367 | I24: 175 | J24: 192
A25: Salto | B25: 14007 | C25: 7273 | D25: 6734 | E25: 12906 | F25: 6735 | G25: 6171 | H25: 1101 | I25: 538 | J25: 563
A26: San José | B26: 10316 | C26: 5298 | D26: 5018 | E26: 9716 | F26: 5032 | G26: 4684 | H26: 600 | I26: 266 | J26: 334
A27: Soriano | B27: 8574 | C27: 4380 | D27: 4194 | E27: 8137 | F27: 4162 | G27: 3975 | H27: 437 | I27: 218 | J27: 219
A28: Tacuarembó | B28: 9532 | C28: 4886 | D28: 4646 | E28: 8901 | F28: 4570 | G28: 4331 | H28: 631 | I28: 316 | J28: 315
A29: Treinta y Tres | B29: 4754 | C29: 2445 | D29: 2309 | E29: 4550 | F29: 2329 | G29: 2221 | H29: 204 | I29: 116 | J29: 88
A30: Fuente: Procesamiento propio en base a datos proporcionados por el DEE — CEIP.
A31: Nota: Pública no incluye JICI.

Sheet II-2.2.2
A1: CONSEJO DE EDUCACIÓN PRIMARIA | H1: ALUMNOS MATRICULADOS
A3: Cuadro Nº II-2.2.2
A5: ALUMNOS MATRICULADOS EN EDUCACIÓN PRIMARIA PÚBLICA POR TIPO DE EDUCACIÓN Y SEXO SEGÚN DEPARTAMENTO. AÑO 2013.
A6: DEPARTAMENTO | B6: TOTAL | C6: TOTAL SEXO | E6: TIPO DE EDUCACIÓN
E7: COMÚN | H7: ESPECIAL
H8: Total | I8: ESCUELAS ESPECIALES | K8: CLASES ESPECIALES EN ESCUELAS COMUNES
E9: Total | F9: SEXO | I9: SEXO | K9: SEXO
C10: M | D10: F | F10: M | G10: F | I10: M | J10: F | K10: M | L10: F
A11: TOTAL | B11: =+C11+D11 -> 267289 | C11: =+F11+I11+K11 -> 138802 | D11: =+G11+J11+L11 -> 128487 | E11: =+F11+G11 -> 260476 | F11: =SUM(F12:F13) -> 134611 | G11: =SUM(G12:G13) -> 125865 | H11: =+I11+J11+K11+L11 -> 6813 | I11: =SUM(I12:I13) -> 4101 | J11: =SUM(J12:J13) -> 2561 | K11: =SUM(K12:K13) -> 90 | L11: =SUM(L12:L13) -> 61
A12: MONTEVIDEO | B12: =+C12+D12 -> 82686 | C12: =+F12+I12+K12 -> 42992 | D12: 39694 | E12: =+F12+G12 -> 80120 | F12: 41433 | G12: 38687 | H12: =+I12+J12+K12+L12 -> 2566 | I12: 1559 | J12: 1007 | K12: 0 | L12: 0
A13: RESTO DEL PAÍS | B13: 184603 | C13: 95810 | D13: 88793 | E13: =+F13+G13 -> 180356 | F13: =SUM(F14:F31) -> 93178 | G13: 87178 | H13: 4247 | I13: 2542 | J13: 1554 | K13: 90 | L13: 61
A14: Artigas | B14: 8156 | C14: 4307 | D14: 3849 | E14: =+F14+G14 -> 7985 | F14: 4198 | G14: 3787 | H14: 171 | I14: 104 | J14: 57 | K14: 5 | L14: 5
A15: Canelones | B15: 44238 | C15: 22932 | D15: 21306 | E15: 43484 | F15: 22444 | G15: 21040 | H15: 754 | I15: 459 | J15: 259 | K15: 29 | L15: 7
A16: Cerro Largo | B16: 8775 | C16: 4503 | D16: 4272 | E16: 8541 | F16: 4361 | G16: 4180 | H16: 234 | I16: 136 | J16: 88 | K16: 6 | L16: 4
A17: Colonia | B17: 10799 | C17: 5570 | D17: 5229 | E17: 10554 | F17: 5407 | G17: 5147 | H17: 245 | I17: 156 | J17: 78 | K17: 7 | L17: 4
A18: Durazno | B18: 5450 | C18: 2825 | D18: 2625 | E18: 5264 | F18: 2713 | G18: 2551 | H18: 186 | I18: 107 | J18: 66 | K18: 5 | L18: 8
A19: Flores | B19: 2187 | C19: 1064 | D19: 1123 | E19: 2133 | F19: 1029 | G19: 1104 | H19: 54 | I19: 35 | J19: 18 | K19: 0 | L19: 1
A20: Florida | B20: 6300 | C20: 3295 | D20: 3005 | E20: 6137 | F20: 3191 | G20: 2946 | H20: 163 | I20: 101 | J20: 55 | K20: 3 | L20: 4
A21: Lavalleja | B21: 4969 | C21: 2628 | D21: 2341 | E21: 4814 | F21: 2527 | G21: 2287 | H21: 155 | I21: 98 | J21: 52 | K21: 3 | L21: 2
A22: Maldonado | B22: 13610 | C22: 6958 | D22: 6652 | E22: 13325 | F22: 6795 | G22: 6530 | H22: 285 | I22: 163 | J22: 122 | K22: 0 | L22: 0
A23: Paysandú | B23: 11549 | C23: 6033 | D23: 5516 | E23: 11317 | F23: 5898 | G23: 5419 | H23: 232 | I23: 123 | J23: 89 | K23: 12 | L23: 8
A24: Río Negro | B24: 5729 | C24: 2940 | D24: 2789 | E24: 5552 | F24: 2836 | G24: 2716 | H24: 177 | I24: 103 | J24: 70 | K24: 1 | L24: 3
A25: Rivera | B25: 10743 | C25: 5670 | D25: 5073 | E25: 10536 | F25: 5543 | G25: 4993 | H25: 207 | I25: 127 | J25: 80 | K25: 0 | L25: 0
A26: Rocha | B26: 6757 | C26: 3564 | D26: 3193 | E26: 6504 | F26: 3408 | G26: 3096 | H26: 253 | I26: 156 | J26: 97 | K26: 0 | L26: 0
A27: Salto | B27: 13273 | C27: 6963 | D27: 6310 | E27: 12906 | F27: 6735 | G27: 6171 | H27: 367 | I27: 226 | J27: 134 | K27: 2 | L27: 5
A28: San José | B28: 9991 | C28: 5204 | D28: 4787 | E28: 9716 | F28: 5032 | G28: 4684 | H28: 275 | I28: 167 | J28: 103 | K28: 5 | L28: 0
A29: Soriano | B29: 8339 | C29: 4286 | D29: 4053 | E29: 8137 | F29: 4162 | G29: 3975 | H29: 202 | I29: 121 | J29: 78 | K29: 3 | L29: 0
A30: Tacuarembó | B30: 9084 | C30: 4681 | D30: 4403 | E30: 8901 | F30: 4570 | G30: 4331 | H30: 183 | I30: 103 | J30: 64 | K30: 8 | L30: 8
A31: Treinta y Tres | B31: 4654 | C31: 2387 | D31: 2267 | E31: 4550 | F31: 2329 | G31: 2221 | H31: 104 | I31: 57 | J31: 44 | K31: 1 | L31: 2
A32: Fuente: Procesamiento propio en base a datos proporcionados por el D.E.E. — C.E.I.P.

Sheet II-2.2.3
A1: CONSEJO DE EDUCACIÓN PRIMARIA | J1: ALUMNOS MATRICULADOS
A3: Cuadro Nº II-2.2.3
A5: ALUMNOS MATRICULADOS EN EDUCACIÓN PRIMARIA PÚBLICA COMÚN POR ÁREA DEMOGRÁFICA Y CATEGORÍA SEGÚN DEPARTAMENTO AÑO 2013. | N5: VOLVER
A6: DEPARTAMENTO | B6: TOTAL | C6: ÁREA DEMOGRÁFICA
C7: URBANA | K7: RURAL
C8: Total Urbana | D8: CATEGORÍA | J8: Total Rural | K8: CATEGORÍA
D9: Común | E9: De Práctica | F9: Tiempo Completo | G9: Aprender | H9: Tiempo Extendido | I9: JICI | K9: Común | L9: Internado Rural
A11: TOTAL | B11: =+C11+J11 -> 261188 | C11: =+D11+E11+F11+G11+H11+I11 -> 245840 | D11: =SUM(D12:D13) -> 90187 | E11: 41157 | F11: 32957 | G11: 77268 | H11: 3559 | I11: 712 | J11: =+K11+L11 -> 15348 | K11: =SUM(K12:K13) -> 15215 | L11: =SUM(L12:L13) -> 133
A12: MONTEVIDEO | B12: =+C12+J12 -> 80447 | C12: =+D12+E12+F12+G12+H12+I12 -> 80447 | D12: 31313 | E12: 6359 | F12: 9704 | G12: 31830 | H12: 914 | I12: 327 | J12: =+K12+L12 -> 0 | K12: 0 | L12: 0
A13: RESTO DEL PAÍS | B13: =+C13+J13 -> 180741 | C13: =+D13+E13+F13+G13+H13+I13 -> 165393 | D13: =SUM(D14:D31) -> 58874 | E13: 34798 | F13: 23253 | G13: 45438 | H13: 2645 | I13: 385 | J13: 15348 | K13: =SUM(K14:K31) -> 15215 | L13: =SUM(L14:L31) -> 133
A14: Artigas | B14: =+C14+J14 -> 7985 | C14: =+D14+E14+F14+G14+H14+I14 -> 7262 | D14: 1608 | E14: 1909 | F14: 1308 | G14: 2329 | H14: 108 | I14: 0 | J14: 723 | K14: 679 | L14: 44
A15: Canelones | B15: 43530 | C15: =+D15+E15+F15+G15+H15+I15 -> 41058 | D15: 13858 | E15: 6526 | F15: 4534 | G15: 15773 | H15: 321 | I15: 46 | J15: 2472 | K15: 2472 | L15: 0
A16: Cerro Largo | B16: 8588 | C16: 7674 | D16: 1489 | E16: 2444 | F16: 952 | G16: 2466 | H16: 276 | I16: 47 | J16: 914 | K16: 914 | L16: 0
A17: Colonia | B17: 10599 | C17: 9502 | D17: 5581 | E17: 2151 | F17: 1118 | G17: 536 | H17: 71 | I17: 45 | J17: 1097 | K17: 1097 | L17: 0
A18: Durazno | B18: 5304 | C18: 4858 | D18: 1307 | E18: 1587 | F18: 716 | G18: 1208 | H18: 0 | I18: 40 | J18: 446 | K18: 446 | L18: 0
A19: Flores | B19: 2133 | C19: 1903 | D19: 763 | E19: 554 | F19: 472 | G19: 0 | H19: 114 | I19: 0 | J19: 230 | K19: 207 | L19: 23
A20: Florida | B20: 6137 | C20: 5335 | D20: 2153 | E20: 1540 | F20: 664 | G20: 505 | H20: 473 | I20: 0 | J20: 802 | K20: 802 | L20: 0
A21: Lavalleja | B21: 4814 | C21: 4376 | D21: 1816 | E21: 957 | F21: 905 | G21: 552 | H21: 146 | I21: 0 | J21: 438 | K21: 438 | L21: 0
A22: Maldonado | B22: 13325 | C22: 12663 | D22: 6614 | E22: 2217 | F22: 1427 | G22: 2135 | H22: 270 | I22: 0 | J22: 662 | K22: 647 | L22: 15
A23: Paysandú | B23: 11333 | C23: 10358 | D23: 3239 | E23: 2145 | F23: 1597 | G23: 3361 | H23: 0 | I23: 16 | J23: 975 | K23: 935 | L23: 40
A24: Río Negro | B24: 5552 | C24: 4985 | D24: 2763 | E24: 1235 | F24: 755 | G24: 232 | H24: 0 | I24: 0 | J24: 567 | K24: 556 | L24: 11
A25: Rivera | B25: 10583 | C25: 9578 | D25: 2573 | E25: 1681 | F25: 1413 | G25: 3864 | H25: 0 | I25: 47 | J25: 1005 | K25: 1005 | L25: 0
A26: Rocha | B26: 6504 | C26: 6212 | D26: 2836 | E26: 1090 | F26: 1117 | G26: 1169 | H26: 0 | I26: 0 | J26: 292 | K26: 292 | L26: 0
A27: Salto | B27: 12906 | C27: 11543 | D27: 1890 | E27: 2855 | F27: 2533 | G27: 4027 | H27: 238 | I27: 0 | J27: 1363 | K27: 1363 | L27: 0
A28: San José | B28: 9804 | C28: 8688 | D28: 4094 | E28: 1299 | F28: 1116 | G28: 1771 | H28: 320 | I28: 88 | J28: 1116 | K28: 1116 | L28: 0
A29: Soriano | B29: 8137 | C29: 7428 | D29: 2671 | E29: 1626 | F29: 1050 | G29: 2081 | H29: 0 | I29: 0 | J29: 709 | K29: 709 | L29: 0
A30: Tacuarembó | B30: 8901 | C30: 7739 | D30: 2083 | E30: 1322 | F30: 893 | G30: 3133 | H30: 308 | I30: 0 | J30: 1162 | K30: 1162 | L30: 0
A31: Treinta y Tres | B31: 4606 | C31: 4231 | D31: 1536 | E31: 1660 | F31: 683 | G31: 296 | H31: 0 | I31: 56 | J31: 375 | K31: 375 | L31: 0
A32: Fuente: Procesamiento propio en base a datos proporcionados por el D.E.E .— C.E.I.P.

Sheet II-2.2.4
A1: CONSEJO DE EDUCACIÓN PRIMARIA | E1: Alumnos matriculados
A3: Cuadro Nº II-2.2.4
A5: ALUMNOS MATRICULADOS EN EDUCACIÓN PRIMARIA PÚBLICA ESPECIAL POR TIPO DE DISCAPACIDAD SEGÚN DEPARTAMENTO. AÑO 2013.
A6: DEPARTAMENTO | C6: TOTAL | D6: DISCAPACIDAD
D7: Intelectual | E7: Auditiva | F7: Visual
A9: TOTAL | C9: =+C11+C12 -> 6813 | D9: =SUM(D11:D12) -> 6425 | E9: =SUM(E11:E12) -> 281 | F9: =SUM(F11:F12) -> 107
A11: MONTEVIDEO | C11: =+D11+E11+F11 -> 2566 | D11: 2399 | E11: 84 | F11: 83
A12: RESTO DEL PAÍS | C12: =SUM(C13:C30) -> 4247 | D12: =SUM(D13:D30) -> 4026 | E12: =SUM(E13:E30) -> 197 | F12: =SUM(F13:F30) -> 24
A13: Artigas | C13: =+D13+E13+F13 -> 171 | D13: 161 | E13: 10 | F13: 0
A14: Canelones | C14: 754 | D14: 730 | E14: 24 | F14: 0
A15: Cerro Largo | C15: 234 | D15: 224 | E15: 10 | F15: 0
A16: Colonia | C16: 245 | D16: 234 | E16: 11 | F16: 0
A17: Durazno | C17: 186 | D17: 173 | E17: 10 | F17: 3
A18: Flores | C18: 54 | D18: 53 | E18: 1 | F18: 0
A19: Florida | C19: 163 | D19: 156 | E19: 7 | F19: 0
A20: Lavalleja | C20: 155 | D20: 150 | E20: 5 | F20: 0
A21: Maldonado | C21: 285 | D21: 264 | E21: 21 | F21: 0
A22: Paysandú | C22: 232 | D22: 212 | E22: 14 | F22: 6
A23: Río Negro | C23: 177 | D23: 173 | E23: 4 | F23: 0
A24: Rivera | C24: 207 | D24: 183 | E24: 24 | F24: 0
A25: Rocha | C25: 253 | D25: 253 | E25: 0 | F25: 0
A26: Salto | C26: 367 | D26: 323 | E26: 37 | F26: 7
A27: San José | C27: 275 | D27: 270 | E27: 5 | F27: 0
A28: Soriano | C28: 202 | D28: 199 | E28: 3 | F28: 0
A29: Tacuarembó | C29: 183 | D29: 167 | E29: 8 | F29: 8
A30: Treinta y Tres | C30: 104 | D30: 101 | E30: 3 | F30: 0
A31: Fuente: D.E.E. — C.E.P.
A32: Nota: Incluyen Escuelas Especiales y Clases Especiales en Escuelas Comunes.
A33: Para el Interior del país las clases orientadas a discapacitados visuales y fonoaudiología se realizan en Escuelas Comunes, excepto en Maldonado, Rivera y Salto donde funcionan Escuelas de Fonoaudiología.

Sheet II-2.2.5
A1: CONSEJO DE EDUCACIÓN PRIMARIA | N1: ALUMNOS MATRICULADOS
A3: Cuadro Nº II-2.2.5
A5: ALUMNOS MATRICULADOS EN EDUCACIÓN ESPECIAL PÚBLICA POR EDADES SIMPLES Y SEXO SEGÚN DEPARTAMENTO AÑO 2013
A6: DEPARTAMENTO | B6: TOTAL GENERAL | C6: TOTAL MASCULINO | D6: TOTAL FEMENINO | E6: EDAD
E7: Menos de 3 años | G7: 3 años | I7: 4 años | K7: 5 años | M7: 6 años | O7: 7 años | Q7: 8 años | S7: 9 años | U7: 10 años | W7: 11 años | Y7: 12 años | AA7: 13 años | AC7: 14 años | AE7: 15 años | AG7: 16 años | AI7: 17 años | AK7: 18 años | AM7: 19 años | AO7: 20 años | AQ7: 21 años
E8: SEXO
E9: M | F9: F | G9: M | H9: F | I9: M | J9: F | K9: M | L9: F | M9: M | N9: F | O9: M | P9: F | Q9: M | R9: F | S9: M | T9: F | U9: M | V9: F | W9: M | X9: F | Y9: M | Z9: F | AA9: M | AB9: F | AC9: M | AD9: F | AE9: M | AF9: F | AG9: M | AH9: F | AI9: M | AJ9: F | AK9: M | AL9: F | AM9: M | AN9: F | AO9: M | AP9: F | AQ9: M | AR9: F
A11: TOTAL | B11: =C11+D11 -> 6813 | C11: =E11+G11+I11+K11+M11+O11+Q11+S11+U11+W11+Y11+AA11+AC11+AE11+AG11+AI11+AK11+AM11+AO11+AQ11 -> 4191 | D11: =F11+H11+J11+L11+N11+P11+R11+T11+V11+X11+Z11+AB11+AD11+AF11+AH11+AJ11+AL11+AN11+AP11+AR11 -> 2622 | E11: =SUM(E12:E13) -> 7 | F11: 0 | G11: 7 | H11: 3 | I11: 27 | J11: 17 | K11: 61 | L11: 39 | M11: 129 | N11: 85 | O11: 224 | P11: 131 | Q11: =SUM(Q12:Q13) -> 352 | R11: 230 | S11: 394 | T11: 248 | U11: 471 | V11: 265 | W11: 466 | X11: 276 | Y11: 478 | Z11: 279 | AA11: 477 | AB11: 290 | AC11: 399 | AD11: 248 | AE11: 257 | AF11: 162 | AG11: 140 | AH11: 117 | AI11: 87 | AJ11: 78 | AK11: 47 | AL11: 31 | AM11: 31 | AN11: 23 | AO11: 23 | AP11: 26 | AQ11: 114 | AR11: 74
A12: MONTEVIDEO | B12: =C12+D12 -> 2566 | C12: =E12+G12+I12+K12+M12+O12+Q12+S12+U12+W12+Y12+AA12+AC12+AE12+AG12+AI12+AK12+AM12+AO12+AQ12 -> 1559 | D12: 1007 | E12: 4 | F12: 0 | G12: 3 | H12: 0 | I12: 7 | J12: 11 | K12: 24 | L12: 14 | M12: 46 | N12: 28 | O12: 58 | P12: 37 | Q12: 128 | R12: 75 | S12: 125 | T12: 87 | U12: 163 | V12: 102 | W12: 159 | X12: 78 | Y12: 167 | Z12: 107 | AA12: 164 | AB12: 105 | AC12: 160 | AD12: 97 | AE12: 102 | AF12: 70 | AG12: 61 | AH12: 55 | AI12: 53 | AJ12: 45 | AK12: 27 | AL12: 13 | AM12: 19 | AN12: 15 | AO12: 17 | AP12: 22 | AQ12: 72 | AR12: 46
A13: RESTO DEL PAÍS | B13: 4247 | C13: 2632 | D13: 1615 | E13: =SUM(E14:E31) -> 3 | F13: 0 | G13: 4 | H13: 3 | I13: 20 | J13: 6 | K13: 37 | L13: 25 | M13: 83 | N13: 57 | O13: 166 | P13: 94 | Q13: 224 | R13: 155 | S13: 269 | T13: 161 | U13: 308 | V13: 163 | W13: 307 | X13: 198 | Y13: 311 | Z13: 172 | AA13: 313 | AB13: 185 | AC13: 239 | AD13: 151 | AE13: 155 | AF13: 92 | AG13: 79 | AH13: 62 | AI13: 34 | AJ13: 33 | AK13: 20 | AL13: 18 | AM13: 12 | AN13: 8 | AO13: 6 | AP13: 4 | AQ13: 42 | AR13: 28
A14: Artigas | B14: 171 | C14: 109 | D14: 62 | E14: 0 | F14: 0 | G14: 0 | H14: 0 | I14: 0 | J14: 0 | K14: 2 | L14: 2 | M14: 8 | N14: 0 | O14: 2 | P14: 5 | Q14: 13 | R14: 8 | S14: 14 | T14: 5 | U14: 15 | V14: 2 | W14: 9 | X14: 11 | Y14: 15 | Z14: 7 | AA14: 10 | AB14: 10 | AC14: 14 | AD14: 7 | AE14: 3 | AF14: 2 | AG14: 1 | AH14: 1 | AI14: 2 | AJ14: 2 | AK14: 1 | AL14: 0 | AM14: 0 | AN14: 0 | AO14: 0 | AP14: 0 | AQ14: 0 | AR14: 0
A15: Canelones | B15: 754 | C15: 488 | D15: 266 | E15: 0 | F15: 0 | G15: 0 | H15: 1 | I15: 8 | J15: 0 | K15: 8 | L15: 3 | M15: 21 | N15: 6 | O15: 35 | P15: 18 | Q15: 56 | R15: 23 | S15: 54 | T15: 32 | U15: 48 | V15: 31 | W15: 57 | X15: 30 | Y15: 49 | Z15: 20 | AA15: 50 | AB15: 28 | AC15: 42 | AD15: 27 | AE15: 30 | AF15: 17 | AG15: 16 | AH15: 12 | AI15: 5 | AJ15: 8 | AK15: 4 | AL15: 6 | AM15: 2 | AN15: 2 | AO15: 1 | AP15: 1 | AQ15: 2 | AR15: 1
A16: Cerro Largo | B16: 234 | C16: 142 | D16: 92 | E16: 0 | F16: 0 | G16: 0 | H16: 0 | I16: 0 | J16: 0 | K16: 3 | L16: 3 | M16: 2 | N16: 2 | O16: 6 | P16: 4 | Q16: 10 | R16: 6 | S16: 15 | T16: 4 | U16: 19 | V16: 9 | W16: 14 | X16: 13 | Y16: 16 | Z16: 12 | AA16: 10 | AB16: 8 | AC16: 15 | AD16: 12 | AE16: 11 | AF16: 6 | AG16: 7 | AH16: 2 | AI16: 4 | AJ16: 4 | AK16: 1 | AL16: 1 | AM16: 4 | AN16: 1 | AO16: 1 | AP16: 0 | AQ16: 4 | AR16: 5
A17: Colonia | B17: 245 | C17: 163 | D17: 82 | E17: 0 | F17: 0 | G17: 0 | H17: 1 | I17: 0 | J17: 0 | K17: 1 | L17: 2 | M17: 1 | N17: 5 | O17: 10 | P17: 2 | Q17: 9 | R17: 5 | S17: 14 | T17: 6 | U17: 15 | V17: 8 | W17: 11 | X17: 5 | Y17: 17 | Z17: 8 | AA17: 32 | AB17: 9 | AC17: 21 | AD17: 10 | AE17: 12 | AF17: 7 | AG17: 5 | AH17: 5 | AI17: 9 | AJ17: 1 | AK17: 2 | AL17: 1 | AM17: 1 | AN17: 3 | AO17: 2 | AP17: 1 | AQ17: 1 | AR17: 3
A18: Durazno | B18: 186 | C18: 112 | D18: 74 | E18: 0 | F18: 0 | G18: 0 | H18: 0 | I18: 1 | J18: 0 | K18: 1 | L18: 1 | M18: 1 | N18: 2 | O18: 5 | P18: 5 | Q18: 9 | R18: 3 | S18: 9 | T18: 5 | U18: 6 | V18: 11 | W18: 14 | X18: 3 | Y18: 14 | Z18: 14 | AA18: 17 | AB18: 6 | AC18: 9 | AD18: 4 | AE18: 13 | AF18: 7 | AG18: 7 | AH18: 3 | AI18: 2 | AJ18: 4 | AK18: 3 | AL18: 5 | AM18: 0 | AN18: 0 | AO18: 1 | AP18: 1 | AQ18: 0 | AR18: 0
A19: Flores | B19: 54 | C19: 35 | D19: 19 | E19: 0 | F19: 0 | G19: 0 | H19: 0 | I19: 0 | J19: 0 | K19: 0 | L19: 0 | M19: 0 | N19: 0 | O19: 4 | P19: 3 | Q19: 3 | R19: 2 | S19: 4 | T19: 3 | U19: 2 | V19: 1 | W19: 4 | X19: 1 | Y19: 3 | Z19: 2 | AA19: 6 | AB19: 2 | AC19: 5 | AD19: 1 | AE19: 3 | AF19: 2 | AG19: 0 | AH19: 1 | AI19: 1 | AJ19: 1 | AK19: 0 | AL19: 0 | AM19: 0 | AN19: 0 | AO19: 0 | AP19: 0 | AQ19: 0 | AR19: 0
A20: Florida | B20: 163 | C20: 104 | D20: 59 | E20: 0 | F20: 0 | G20: 0 | H20: 0 | I20: 0 | J20: 0 | K20: 1 | L20: 1 | M20: 1 | N20: 0 | O20: 3 | P20: 0 | Q20: 9 | R20: 10 | S20: 14 | T20: 8 | U20: 11 | V20: 5 | W20: 15 | X20: 9 | Y20: 14 | Z20: 6 | AA20: 17 | AB20: 8 | AC20: 6 | AD20: 5 | AE20: 2 | AF20: 4 | AG20: 8 | AH20: 1 | AI20: 0 | AJ20: 0 | AK20: 0 | AL20: 1 | AM20: 1 | AN20: 0 | AO20: 0 | AP20: 0 | AQ20: 2 | AR20: 1
A21: Lavalleja | B21: 155 | C21: 101 | D21: 54 | E21: 0 | F21: 0 | G21: 0 | H21: 0 | I21: 0 | J21: 1 | K21: 1 | L21: 1 | M21: 5 | N21: 0 | O21: 7 | P21: 3 | Q21: 10 | R21: 4 | S21: 4 | T21: 6 | U21: 7 | V21: 4 | W21: 7 | X21: 4 | Y21: 7 | Z21: 2 | AA21: 6 | AB21: 6 | AC21: 17 | AD21: 8 | AE21: 15 | AF21: 4 | AG21: 5 | AH21: 6 | AI21: 2 | AJ21: 1 | AK21: 2 | AL21: 2 | AM21: 2 | AN21: 0 | AO21: 1 | AP21: 1 | AQ21: 3 | AR21: 1
A22: Maldonado | B22: 285 | C22: 163 | D22: 122 | E22: 2 | F22: 0 | G22: 0 | H22: 0 | I22: 1 | J22: 0 | K22: 4 | L22: 2 | M22: 4 | N22: 5 | O22: 15 | P22: 7 | Q22: 9 | R22: 21 | S22: 21 | T22: 14 | U22: 19 | V22: 11 | W22: 23 | X22: 16 | Y22: 19 | Z22: 12 | AA22: 23 | AB22: 14 | AC22: 13 | AD22: 9 | AE22: 6 | AF22: 2 | AG22: 3 | AH22: 7 | AI22: 0 | AJ22: 0 | AK22: 0 | AL22: 1 | AM22: 0 | AN22: 1 | AO22: 0 | AP22: 0 | AQ22: 1 | AR22: 0
A23: Paysandú | B23: 232 | C23: 135 | D23: 97 | E23: 0 | F23: 0 | G23: 0 | H23: 0 | I23: 1 | J23: 0 | K23: 0 | L23: 2 | M23: 5 | N23: 4 | O23: 19 | P23: 9 | Q23: 15 | R23: 11 | S23: 13 | T23: 11 | U23: 23 | V23: 13 | W23: 12 | X23: 10 | Y23: 14 | Z23: 13 | AA23: 16 | AB23: 14 | AC23: 12 | AD23: 3 | AE23: 1 | AF23: 3 | AG23: 2 | AH23: 0 | AI23: 0 | AJ23: 3 | AK23: 0 | AL23: 0 | AM23: 1 | AN23: 0 | AO23: 0 | AP23: 0 | AQ23: 1 | AR23: 1
A24: Río Negro | B24: 177 | C24: 104 | D24: 73 | E24: 0 | F24: 0 | G24: 0 | H24: 0 | I24: 0 | J24: 0 | K24: 2 | L24: 0 | M24: 9 | N24: 2 | O24: 6 | P24: 4 | Q24: 14 | R24: 3 | S24: 5 | T24: 10 | U24: 12 | V24: 6 | W24: 11 | X24: 8 | Y24: 16 | Z24: 5 | AA24: 10 | AB24: 8 | AC24: 9 | AD24: 9 | AE24: 9 | AF24: 10 | AG24: 1 | AH24: 7 | AI24: 0 | AJ24: 1 | AK24: 0 | AL24: 0 | AM24: 0 | AN24: 0 | AO24: 0 | AP24: 0 | AQ24: 0 | AR24: 0
A25: Rivera | B25: 207 | C25: 127 | D25: 80 | E25: 0 | F25: 0 | G25: 2 | H25: 1 | I25: 0 | J25: 0 | K25: 0 | L25: 0 | M25: 1 | N25: 6 | O25: 6 | P25: 3 | Q25: 8 | R25: 9 | S25: 11 | T25: 9 | U25: 23 | V25: 8 | W25: 18 | X25: 15 | Y25: 21 | Z25: 10 | AA25: 17 | AB25: 9 | AC25: 9 | AD25: 7 | AE25: 7 | AF25: 2 | AG25: 3 | AH25: 1 | AI25: 1 | AJ25: 0 | AK25: 0 | AL25: 0 | AM25: 0 | AN25: 0 | AO25: 0 | AP25: 0 | AQ25: 0 | AR25: 0
A26: Rocha | B26: 253 | C26: 156 | D26: 97 | E26: 0 | F26: 0 | G26: 0 | H26: 0 | I26: 2 | J26: 1 | K26: 4 | L26: 2 | M26: 4 | N26: 7 | O26: 13 | P26: 8 | Q26: 11 | R26: 16 | S26: 31 | T26: 17 | U26: 18 | V26: 10 | W26: 17 | X26: 10 | Y26: 17 | Z26: 7 | AA26: 13 | AB26: 1 | AC26: 7 | AD26: 1 | AE26: 3 | AF26: 9 | AG26: 10 | AH26: 7 | AI26: 1 | AJ26: 1 | AK26: 4 | AL26: 0 | AM26: 0 | AN26: 0 | AO26: 0 | AP26: 0 | AQ26: 1 | AR26: 0
A27: Salto | B27: 367 | C27: 228 | D27: 139 | E27: 1 | F27: 0 | G27: 2 | H27: 0 | I27: 3 | J27: 3 | K27: 5 | L27: 4 | M27: 9 | N27: 8 | O27: 12 | P27: 7 | Q27: 15 | R27: 9 | S27: 23 | T27: 11 | U27: 21 | V27: 12 | W27: 26 | X27: 16 | Y27: 35 | Z27: 14 | AA27: 38 | AB27: 28 | AC27: 21 | AD27: 16 | AE27: 14 | AF27: 8 | AG27: 1 | AH27: 3 | AI27: 2 | AJ27: 0 | AK27: 0 | AL27: 0 | AM27: 0 | AN27: 0 | AO27: 0 | AP27: 0 | AQ27: 0 | AR27: 0
A28: San José | B28: 275 | C28: 172 | D28: 103 | E28: 0 | F28: 0 | G28: 0 | H28: 0 | I28: 0 | J28: 0 | K28: 0 | L28: 0 | M28: 2 | N28: 1 | O28: 3 | P28: 6 | Q28: 12 | R28: 5 | S28: 16 | T28: 5 | U28: 21 | V28: 11 | W28: 25 | X28: 17 | Y28: 22 | Z28: 13 | AA28: 13 | AB28: 13 | AC28: 13 | AD28: 12 | AE28: 15 | AF28: 2 | AG28: 2 | AH28: 1 | AI28: 1 | AJ28: 1 | AK28: 0 | AL28: 0 | AM28: 0 | AN28: 0 | AO28: 0 | AP28: 0 | AQ28: 27 | AR28: 16
A29: Soriano | B29: 202 | C29: 124 | D29: 78 | E29: 0 | F29: 0 | G29: 0 | H29: 0 | I29: 1 | J29: 0 | K29: 0 | L29: 2 | M29: 6 | N29: 3 | O29: 11 | P29: 4 | Q29: 9 | R29: 6 | S29: 8 | T29: 7 | U29: 19 | V29: 13 | W29: 17 | X29: 13 | Y29: 17 | Z29: 11 | AA29: 19 | AB29: 5 | AC29: 11 | AD29: 10 | AE29: 5 | AF29: 3 | AG29: 1 | AH29: 0 | AI29: 0 | AJ29: 1 | AK29: 0 | AL29: 0 | AM29: 0 | AN29: 0 | AO29: 0 | AP29: 0 | AQ29: 0 | AR29: 0
A30: Tacuarembó | B30: 183 | C30: 111 | D30: 72 | E30: 0 | F30: 0 | G30: 0 | H30: 0 | I30: 3 | J30: 0 | K30: 5 | L30: 0 | M30: 3 | N30: 5 | O30: 6 | P30: 5 | Q30: 7 | R30: 5 | S30: 8 | T30: 2 | U30: 25 | V30: 8 | W30: 13 | X30: 13 | Y30: 9 | Z30: 13 | AA30: 10 | AB30: 9 | AC30: 11 | AD30: 5 | AE30: 6 | AF30: 4 | AG30: 4 | AH30: 1 | AI30: 1 | AJ30: 2 | AK30: 0 | AL30: 0 | AM30: 0 | AN30: 0 | AO30: 0 | AP30: 0 | AQ30: 0 | AR30: 0
A31: Treinta y Tres | B31: 104 | C31: 58 | D31: 46 | E31: 0 | F31: 0 | G31: 0 | H31: 0 | I31: 0 | J31: 1 | K31: 0 | L31: 0 | M31: 1 | N31: 1 | O31: 3 | P31: 1 | Q31: 5 | R31: 9 | S31: 5 | T31: 6 | U31: 4 | V31: 0 | W31: 14 | X31: 4 | Y31: 6 | Z31: 3 | AA31: 6 | AB31: 7 | AC31: 4 | AD31: 5 | AE31: 0 | AF31: 0 | AG31: 3 | AH31: 4 | AI31: 3 | AJ31: 3 | AK31: 3 | AL31: 1 | AM31: 1 | AN31: 1 | AO31: 0 | AP31: 0 | AQ31: 0 | AR31: 0
A32: Fuente: Procesamiento propio en base a datos proporcionados por el DEE — CEIP

Sheet II-2.2.6
A1: CONSEJO DE EDUCACIÓN PRIMARIA | E1: ALUMNOS MATRICULADOS
A3: Cuadro Nº II-2.2.6
A5: ALUMNOS MATRICULADOS EN EDUCACIÓN PRIMARIA PRIVADA POR TIPO DE EDUCACIÓN SEGÚN DEPARTAMENTO AÑO 2013
A6: DEPARTAMENTO | B6: TIPO DE EDUCACIÓN
B7: TOTAL | C7: EDUCACIÓN COMÚN | F7: EDUCACIÓN ESPECIAL
C8: Total | D8: Habilitados | E8: Autorizados
A10: TOTAL DEL PAÍS | B10: =SUM(B11:B12) -> 56712 | C10: =+D10+E10 -> 53572 | D10: =D11+D12 -> 50994 | E10: =E11+E12 -> 2578 | F10: =F11+F12 -> 3140
A11: MONTEVIDEO | B11: =+C11+F11 -> 34922 | C11: =+D11+E11 -> 32911 | D11: 30796 | E11: 2115 | F11: 2011 | AT11: MONTEVIDEO
A12: RESTO DEL PAÍS | B12: =+C12+F12 -> 21790 | C12: =+D12+E12 -> 20661 | D12: =SUM(D13:D30) -> 20198 | E12: =SUM(E13:E30) -> 463 | F12: =SUM(F13:F30) -> 1129 | AT12: RESTO DEL PAÍS
A13: Artigas | B13: =+C13+F13 -> 299 | C13: =+D13+E13 -> 140 | D13: 140 | E13: 0 | F13: 159 | AT13: Artigas
A14: Canelones | B14: 7536 | C14: =+D14+E14 -> 7480 | D14: 7062 | E14: 418 | F14: 56 | AT14: Canelones
A15: Cerro Largo | B15: 622 | C15: 622 | D15: 622 | E15: 0 | F15: 0 | AT15: Cerro Largo
A16: Colonia | B16: 730 | C16: 730 | D16: 730 | E16: 0 | F16: 0 | AT16: Colonia
A17: Durazno | B17: 665 | C17: 665 | D17: 665 | E17: 0 | F17: 0 | AT17: Durazno
A18: Flores | B18: 295 | C18: 295 | D18: 295 | E18: 0 | F18: 0 | AT18: Flores
A19: Florida | B19: 349 | C19: 282 | D19: 282 | E19: 0 | F19: 67 | AT19: Florida
A20: Lavalleja | B20: 645 | C20: 645 | D20: 645 | E20: 0 | F20: 0 | AT20: Lavalleja
A21: Maldonado | B21: 4244 | C21: 4124 | D21: 4124 | E21: 0 | F21: 120 | AT21: Maldonado
A22: Paysandú | B22: 1312 | C22: 1176 | D22: 1176 | E22: 0 | F22: 136 | AT22: Paysandú
A23: Río Negro | B23: 657 | C23: 506 | D23: 481 | E23: 25 | F23: 151 | AT23: Río Negro
A24: Rivera | B24: 656 | C24: 656 | D24: 656 | E24: 0 | F24: 0 | AT24: Rivera
A25: Rocha | B25: 454 | C25: 367 | D25: 367 | E25: 0 | F25: 87 | AT25: Rocha
A26: Salto | B26: 1174 | C26: 1101 | D26: 1101 | E26: 0 | F26: 73 | AT26: Salto
A27: San José | B27: 600 | C27: 600 | D27: 580 | E27: 20 | F27: 0 | AT27: San José
A28: Soriano | B28: 717 | C28: 437 | D28: 437 | E28: 0 | F28: 280 | AT28: Soriano
A29: Tacuarembó | B29: 631 | C29: 631 | D29: 631 | E29: 0 | F29: 0 | AT29: Tacuarembó
A30: Treinta y Tres | B30: 204 | C30: 204 | D30: 204 | E30: 0 | F30: 0 | AT30: Treinta y Tres
A31: Fuente: Procesamiento propio en base a datos proporcionados por el D.E.E. — C.E.I.P.
A32: Nota: Especial incluye la matrícula de clases especiales en escuelas comunes,
A33: Instrucción Temprana, Educación Inicial, Preparatorio y Talleres
A107: 30025 | B107: 2163 | C107: 2209
A108: 19484 | B108: 397 | C108: 1758
A109: 92 | B109: 0 | C109: 162
A110: 6669 | B110: 344 | C110: 0
A111: 615 | B111: 0 | C111: 0
A112: 724 | B112: 0 | C112: 0
A113: 634 | B113: 0 | C113: 0
A114: 361 | B114: 0 | C114: 7
A115: 296 | B115: 0 | C115: 62
A116: 615 | B116: 0 | C116: 0
A117: 3879 | B117: 0 | C117: 141
A118: 1175 | B118: 0 | C118: 276
A119: 428 | B119: 33 | C119: 149
A120: 673 | B120: 0 | C120: 7
A121: 413 | B121: 0 | C121: 87
A122: 1089 | B122: 0 | C122: 208
A123: 556 | B123: 20 | C123: 0
A124: 435 | B124: 0 | C124: 659
A125: 643 | B125: 0 | C125: 0
A126: 187 | B126: 0 | C126: 0

Sheet II-2.2.7
A1: CONSEJO DE EDUCACIÓN PRIMARIA | N1: ALUMNOS MATRICULADOS
A3: Cuadro Nº II-2.2.7
A5: ALUMNOS MATRICULADOS EN EDUCACIÓN ESPECIAL PRIVADA POR EDADES SIMPLES Y SEXO SEGÚN DEPARTAMENTO AÑO 2013
A6: DEPARTAMENTO | B6: TOTAL GENERAL | C6: TOTAL MASCULINO | D6: TOTAL FEMENINO | E6: EDAD
E7: Menos de 3 años | G7: 3 años | I7: 4 años | K7: 5 años | M7: 6 años | O7: 7 años | Q7: 8 años | S7: 9 años | U7: 10 años | W7: 11 años | Y7: 12 años | AA7: 13 años | AC7: 14 años | AE7: 15 años | AG7: 16 años | AI7: 17 años | AK7: 18 años | AM7: 19 años | AO7: 20 años | AQ7: 21 años
E8: SEXO
E9: M | F9: F | G9: M | H9: F | I9: M | J9: F | K9: M | L9: F | M9: M | N9: F | O9: M | P9: F | Q9: M | R9: F | S9: M | T9: F | U9: M | V9: F | W9: M | X9: F | Y9: M | Z9: F | AA9: M | AB9: F | AC9: M | AD9: F | AE9: M | AF9: F | AG9: M | AH9: F | AI9: M | AJ9: F | AK9: M | AL9: F | AM9: M | AN9: F | AO9: M | AP9: F | AQ9: M | AR9: F
A11: TOTAL | B11: =C11+D11 -> 3140 | C11: =E11+G11+I11+K11+M11+O11+Q11+S11+U11+W11+Y11+AA11+AC11+AE11+AG11+AI11+AK11+AM11+AO11+AQ11 -> 1682 | D11: 1458 | E11: =SUM(E12:E13) -> 34 | F11: 16 | G11: 18 | H11: 13 | I11: 29 | J11: 15 | K11: 53 | L11: 33 | M11: 43 | N11: 27 | O11: 51 | P11: 39 | Q11: 73 | R11: 50 | S11: 77 | T11: 63 | U11: 82 | V11: 48 | W11: 90 | X11: 62 | Y11: 77 | Z11: 58 | AA11: 66 | AB11: 58 | AC11: 69 | AD11: 48 | AE11: 87 | AF11: 63 | AG11: 63 | AH11: 53 | AI11: 56 | AJ11: 62 | AK11: 69 | AL11: 41 | AM11: 44 | AN11: 54 | AO11: 28 | AP11: 71 | AQ11: 573 | AR11: 584
A12: MONTEVIDEO | B12: =C12+D12 -> 2011 | C12: 1058 | D12: 953 | E12: 6 | F12: 7 | G12: 11 | H12: 4 | I12: 16 | J12: 11 | K12: 31 | L12: 21 | M12: 29 | N12: 16 | O12: 30 | P12: 23 | Q12: 48 | R12: 31 | S12: 53 | T12: 42 | U12: 54 | V12: 35 | W12: 60 | X12: 44 | Y12: 56 | Z12: 43 | AA12: 37 | AB12: 35 | AC12: 48 | AD12: 31 | AE12: 47 | AF12: 37 | AG12: 38 | AH12: 35 | AI12: 35 | AJ12: 40 | AK12: 45 | AL12: 28 | AM12: 26 | AN12: 36 | AO12: 17 | AP12: 62 | AQ12: 371 | AR12: 372
A13: RESTO DEL PAÍS | B13: =C13+D13 -> 1129 | C13: 624 | D13: 505 | E13: =SUM(E14:E31) -> 28 | F13: =SUM(F14:F31) -> 9 | G13: 7 | H13: 9 | I13: 13 | J13: 4 | K13: 22 | L13: 12 | M13: 14 | N13: 11 | O13: 21 | P13: 16 | Q13: 25 | R13: 19 | S13: 24 | T13: 21 | U13: 28 | V13: 13 | W13: 30 | X13: 18 | Y13: 21 | Z13: 15 | AA13: 29 | AB13: 23 | AC13: 21 | AD13: 17 | AE13: 40 | AF13: 26 | AG13: 25 | AH13: 18 | AI13: 21 | AJ13: 22 | AK13: 24 | AL13: 13 | AM13: 18 | AN13: 18 | AO13: 11 | AP13: 9 | AQ13: 202 | AR13: 212
A14: Artigas | B14: =C14+D14 -> 159 | C14: 89 | D14: 70 | E14: 2 | F14: 0 | G14: 0 | H14: 2 | I14: 4 | J14: 2 | K14: 0 | L14: 0 | M14: 0 | N14: 0 | O14: 0 | P14: 0 | Q14: 0 | R14: 0 | S14: 3 | T14: 0 | U14: 1 | V14: 2 | W14: 1 | X14: 3 | Y14: 0 | Z14: 1 | AA14: 8 | AB14: 5 | AC14: 8 | AD14: 1 | AE14: 12 | AF14: 11 | AG14: 8 | AH14: 1 | AI14: 4 | AJ14: 3 | AK14: 5 | AL14: 4 | AM14: 5 | AN14: 1 | AO14: 0 | AP14: 3 | AQ14: 28 | AR14: 31
A15: Canelones | B15: 56 | C15: 33 | D15: 23 | E15: 6 | F15: 2 | G15: 0 | H15: 1 | I15: 0 | J15: 0 | K15: 1 | L15: 2 | M15: 0 | N15: 0 | O15: 0 | P15: 0 | Q15: 0 | R15: 0 | S15: 0 | T15: 0 | U15: 0 | V15: 0 | W15: 0 | X15: 0 | Y15: 0 | Z15: 0 | AA15: 0 | AB15: 0 | AC15: 0 | AD15: 0 | AE15: 1 | AF15: 0 | AG15: 2 | AH15: 1 | AI15: 3 | AJ15: 3 | AK15: 5 | AL15: 2 | AM15: 1 | AN15: 2 | AO15: 3 | AP15: 1 | AQ15: 11 | AR15: 9
A16: Cerro Largo | B16: 0 | C16: 0 | D16: 0 | E16: 0 | F16: 0 | G16: 0 | H16: 0 | I16: 0 | J16: 0 | K16: 0 | L16: 0 | M16: 0 | N16: 0 | O16: 0 | P16: 0 | Q16: 0 | R16: 0 | S16: 0 | T16: 0 | U16: 0 | V16: 0 | W16: 0 | X16: 0 | Y16: 0 | Z16: 0 | AA16: 0 | AB16: 0 | AC16: 0 | AD16: 0 | AE16: 0 | AF16: 0 | AG16: 0 | AH16: 0 | AI16: 0 | AJ16: 0 | AK16: 0 | AL16: 0 | AM16: 0 | AN16: 0 | AO16: 0 | AP16: 0 | AQ16: 0 | AR16: 0
A17: Colonia | B17: 0 | C17: 0 | D17: 0 | E17: 0 | F17: 0 | G17: 0 | H17: 0 | I17: 0 | J17: 0 | K17: 0 | L17: 0 | M17: 0 | N17: 0 | O17: 0 | P17: 0 | Q17: 0 | R17: 0 | S17: 0 | T17: 0 | U17: 0 | V17: 0 | W17: 0 | X17: 0 | Y17: 0 | Z17: 0 | AA17: 0 | AB17: 0 | AC17: 0 | AD17: 0 | AE17: 0 | AF17: 0 | AG17: 0 | AH17: 0 | AI17: 0 | AJ17: 0 | AK17: 0 | AL17: 0 | AM17: 0 | AN17: 0 | AO17: 0 | AP17: 0 | AQ17: 0 | AR17: 0
A18: Durazno | B18: 0 | C18: 0 | D18: 0 | E18: 0 | F18: 0 | G18: 0 | H18: 0 | I18: 0 | J18: 0 | K18: 0 | L18: 0 | M18: 0 | N18: 0 | O18: 0 | P18: 0 | Q18: 0 | R18: 0 | S18: 0 | T18: 0 | U18: 0 | V18: 0 | W18: 0 | X18: 0 | Y18: 0 | Z18: 0 | AA18: 0 | AB18: 0 | AC18: 0 | AD18: 0 | AE18: 0 | AF18: 0 | AG18: 0 | AH18: 0 | AI18: 0 | AJ18: 0 | AK18: 0 | AL18: 0 | AM18: 0 | AN18: 0 | AO18: 0 | AP18: 0 | AQ18: 0 | AR18: 0
A19: Flores | B19: 0 | C19: 0 | D19: 0 | E19: 0 | F19: 0 | G19: 0 | H19: 0 | I19: 0 | J19: 0 | K19: 0 | L19: 0 | M19: 0 | N19: 0 | O19: 0 | P19: 0 | Q19: 0 | R19: 0 | S19: 0 | T19: 0 | U19: 0 | V19: 0 | W19: 0 | X19: 0 | Y19: 0 | Z19: 0 | AA19: 0 | AB19: 0 | AC19: 0 | AD19: 0 | AE19: 0 | AF19: 0 | AG19: 0 | AH19: 0 | AI19: 0 | AJ19: 0 | AK19: 0 | AL19: 0 | AM19: 0 | AN19: 0 | AO19: 0 | AP19: 0 | AQ19: 0 | AR19: 0
A20: Florida | B20: 67 | C20: 32 | D20: 35 | E20: 4 | F20: 0 | G20: 0 | H20: 2 | I20: 3 | J20: 0 | K20: 4 | L20: 3 | M20: 0 | N20: 2 | O20: 3 | P20: 2 | Q20: 3 | R20: 2 | S20: 1 | T20: 4 | U20: 0 | V20: 1 | W20: 1 | X20: 2 | Y20: 0 | Z20: 1 | AA20: 1 | AB20: 3 | AC20: 1 | AD20: 1 | AE20: 1 | AF20: 1 | AG20: 0 | AH20: 0 | AI20: 0 | AJ20: 1 | AK20: 2 | AL20: 0 | AM20: 0 | AN20: 0 | AO20: 0 | AP20: 2 | AQ20: 8 | AR20: 8
A21: Lavalleja | B21: 0 | C21: 0 | D21: 0 | E21: 0 | F21: 0 | G21: 0 | H21: 0 | I21: 0 | J21: 0 | K21: 0 | L21: 0 | M21: 0 | N21: 0 | O21: 0 | P21: 0 | Q21: 0 | R21: 0 | S21: 0 | T21: 0 | U21: 0 | V21: 0 | W21: 0 | X21: 0 | Y21: 0 | Z21: 0 | AA21: 0 | AB21: 0 | AC21: 0 | AD21: 0 | AE21: 0 | AF21: 0 | AG21: 0 | AH21: 0 | AI21: 0 | AJ21: 0 | AK21: 0 | AL21: 0 | AM21: 0 | AN21: 0 | AO21: 0 | AP21: 0 | AQ21: 0 | AR21: 0
A22: Maldonado | B22: 120 | C22: 66 | D22: 54 | E22: 1 | F22: 0 | G22: 0 | H22: 0 | I22: 0 | J22: 1 | K22: 0 | L22: 0 | M22: 1 | N22: 2 | O22: 1 | P22: 2 | Q22: 2 | R22: 2 | S22: 3 | T22: 4 | U22: 4 | V22: 0 | W22: 7 | X22: 2 | Y22: 5 | Z22: 4 | AA22: 2 | AB22: 3 | AC22: 3 | AD22: 3 | AE22: 9 | AF22: 3 | AG22: 3 | AH22: 7 | AI22: 6 | AJ22: 4 | AK22: 4 | AL22: 1 | AM22: 3 | AN22: 3 | AO22: 4 | AP22: 3 | AQ22: 8 | AR22: 10
A23: Paysandú | B23: 136 | C23: 70 | D23: 66 | E23: 2 | F23: 2 | G23: 1 | H23: 0 | I23: 0 | J23: 0 | K23: 0 | L23: 0 | M23: 1 | N23: 0 | O23: 1 | P23: 0 | Q23: 1 | R23: 2 | S23: 0 | T23: 0 | U23: 0 | V23: 0 | W23: 0 | X23: 0 | Y23: 0 | Z23: 0 | AA23: 2 | AB23: 1 | AC23: 0 | AD23: 1 | AE23: 2 | AF23: 1 | AG23: 3 | AH23: 2 | AI23: 1 | AJ23: 4 | AK23: 0 | AL23: 3 | AM23: 0 | AN23: 2 | AO23: 1 | AP23: 0 | AQ23: 55 | AR23: 48
A24: Río Negro | B24: 151 | C24: 90 | D24: 61 | E24: 5 | F24: 1 | G24: 2 | H24: 2 | I24: 2 | J24: 1 | K24: 11 | L24: 4 | M24: 8 | N24: 4 | O24: 12 | P24: 7 | Q24: 8 | R24: 9 | S24: 9 | T24: 9 | U24: 9 | V24: 6 | W24: 7 | X24: 6 | Y24: 9 | Z24: 3 | AA24: 5 | AB24: 3 | AC24: 1 | AD24: 4 | AE24: 2 | AF24: 2 | AG24: 0 | AH24: 0 | AI24: 0 | AJ24: 0 | AK24: 0 | AL24: 0 | AM24: 0 | AN24: 0 | AO24: 0 | AP24: 0 | AQ24: 0 | AR24: 0
A25: Rivera | B25: 0 | C25: 0 | D25: 0 | E25: 0 | F25: 0 | G25: 0 | H25: 0 | I25: 0 | J25: 0 | K25: 0 | L25: 0 | M25: 0 | N25: 0 | O25: 0 | P25: 0 | Q25: 0 | R25: 0 | S25: 0 | T25: 0 | U25: 0 | V25: 0 | W25: 0 | X25: 0 | Y25: 0 | Z25: 0 | AA25: 0 | AB25: 0 | AC25: 0 | AD25: 0 | AE25: 0 | AF25: 0 | AG25: 0 | AH25: 0 | AI25: 0 | AJ25: 0 | AK25: 0 | AL25: 0 | AM25: 0 | AN25: 0 | AO25: 0 | AP25: 0 | AQ25: 0 | AR25: 0
A26: Rocha | B26: 87 | C26: 50 | D26: 37 | E26: 0 | F26: 0 | G26: 0 | H26: 0 | I26: 0 | J26: 0 | K26: 0 | L26: 1 | M26: 2 | N26: 2 | O26: 0 | P26: 0 | Q26: 0 | R26: 0 | S26: 0 | T26: 0 | U26: 1 | V26: 0 | W26: 7 | X26: 2 | Y26: 1 | Z26: 0 | AA26: 2 | AB26: 4 | AC26: 0 | AD26: 1 | AE26: 2 | AF26: 3 | AG26: 1 | AH26: 2 | AI26: 1 | AJ26: 0 | AK26: 3 | AL26: 0 | AM26: 1 | AN26: 1 | AO26: 0 | AP26: 0 | AQ26: 29 | AR26: 21
A27: Salto | B27: 73 | C27: =E27+G27+I27+K27+M27+O27+Q27+S27+U27+W27+Y27+AA27+AC27+AE27+AG27+AI27+AK27+AM27+AO27+AQ27 -> 41 | D27: 32 | E27: 0 | F27: 0 | G27: 1 | H27: 0 | I27: 4 | J27: 0 | K27: 2 | L27: 2 | M27: 0 | N27: 0 | O27: 1 | P27: 3 | Q27: 4 | R27: 3 | S27: 5 | T27: 0 | U27: 2 | V27: 2 | W27: 2 | X27: 1 | Y27: 2 | Z27: 0 | AA27: 2 | AB27: 3 | AC27: 3 | AD27: 3 | AE27: 1 | AF27: 1 | AG27: 3 | AH27: 1 | AI27: 1 | AJ27: 2 | AK27: 1 | AL27: 0 | AM27: 3 | AN27: 4 | AO27: 2 | AP27: 0 | AQ27: 2 | AR27: 7
A28: San José | B28: 0 | C28: 0 | D28: 0 | E28: 0 | F28: 0 | G28: 0 | H28: 0 | I28: 0 | J28: 0 | K28: 0 | L28: 0 | M28: 0 | N28: 0 | O28: 0 | P28: 0 | Q28: 0 | R28: 0 | S28: 0 | T28: 0 | U28: 0 | V28: 0 | W28: 0 | X28: 0 | Y28: 0 | Z28: 0 | AA28: 0 | AB28: 0 | AC28: 0 | AD28: 0 | AE28: 0 | AF28: 0 | AG28: 0 | AH28: 0 | AI28: 0 | AJ28: 0 | AK28: 0 | AL28: 0 | AM28: 0 | AN28: 0 | AO28: 0 | AP28: 0 | AQ28: 0 | AR28: 0
A29: Soriano | B29: 280 | C29: 153 | D29: 127 | E29: 8 | F29: 4 | G29: 3 | H29: 2 | I29: 0 | J29: 0 | K29: 4 | L29: 0 | M29: 2 | N29: 1 | O29: 3 | P29: 2 | Q29: 7 | R29: 1 | S29: 3 | T29: 4 | U29: 11 | V29: 2 | W29: 5 | X29: 2 | Y29: 4 | Z29: 6 | AA29: 7 | AB29: 1 | AC29: 5 | AD29: 3 | AE29: 10 | AF29: 4 | AG29: 5 | AH29: 4 | AI29: 5 | AJ29: 5 | AK29: 4 | AL29: 3 | AM29: 5 | AN29: 5 | AO29: 1 | AP29: 0 | AQ29: 61 | AR29: 78
A30: Tacuarembó | B30: 0 | C30: 0 | D30: 0 | E30: 0 | F30: 0 | G30: 0 | H30: 0 | I30: 0 | J30: 0 | K30: 0 | L30: 0 | M30: 0 | N30: 0 | O30: 0 | P30: 0 | Q30: 0 | R30: 0 | S30: 0 | T30: 0 | U30: 0 | V30: 0 | W30: 0 | X30: 0 | Y30: 0 | Z30: 0 | AA30: 0 | AB30: 0 | AC30: 0 | AD30: 0 | AE30: 0 | AF30: 0 | AG30: 0 | AH30: 0 | AI30: 0 | AJ30: 0 | AK30: 0 | AL30: 0 | AM30: 0 | AN30: 0 | AO30: 0 | AP30: 0 | AQ30: 0 | AR30: 0
A31: Treinta y Tres | B31: 0 | C31: 0 | D31: 0 | E31: 0 | F31: 0 | G31: 0 | H31: 0 | I31: 0 | J31: 0 | K31: 0 | L31: 0 | M31: 0 | N31: 0 | O31: 0 | P31: 0 | Q31: 0 | R31: 0 | S31: 0 | T31: 0 | U31: 0 | V31: 0 | W31: 0 | X31: 0 | Y31: 0 | Z31: 0 | AA31: 0 | AB31: 0 | AC31: 0 | AD31: 0 | AE31: 0 | AF31: 0 | AG31: 0 | AH31: 0 | AI31: 0 | AJ31: 0 | AK31: 0 | AL31: 0 | AM31: 0 | AN31: 0 | AO31: 0 | AP31: 0 | AQ31: 0 | AR31: 0
A32: Fuente: Procesamiento propio en base a datos proporcionados por el DEE — CEIP

Sheet II-2.2.8
A1: CONSEJO DE EDUCACIÓN PRIMARIA | M1: ALUMNOS MATRICULADOS
A3: Cuadro Nº II-2.2.8
A5: ALUMNOS MATRICULADOS EN EDUCACIÓN PRIMARIA COMÚN POR GRADO Y FORMA DE ADMINISTRACIÓN SEGÚN EDAD AÑO 2013
A6: EDAD | D6: GRADO
B7: TOTAL | D7: Primero | F7: Segundo | H7: Tercero | J7: Cuarto | L7: Quinto | N7: Sexto
D9: FORMA DE ADMINISTRACIÓN
B10: Pública | C10: Privada | D10: Pública | E10: Privada | F10: Pública | G10: Privada | H10: Pública | I10: Privada | J10: Pública | K10: Privada | L10: Pública | M10: Privada | N10: Pública | O10: Privada
A11: TOTAL | B11: =SUM(B12:B20) -> 260476 | C11: =SUM(C12:C20) -> 53572 | D11: =SUM(D12:D20) -> 44285 | E11: =SUM(E12:E20) -> 9558 | F11: =SUM(F12:F20) -> 41303 | G11: =SUM(G12:G20) -> 9172 | H11: =SUM(H12:H20) -> 43130 | I11: 9139 | J11: =SUM(J12:J20) -> 43283 | K11: 8985 | L11: =SUM(L12:L20) -> 44202 | M11: 8438 | N11: =SUM(N12:N20) -> 44273 | O11: 8280
A12: 6 años | B12: =+D12+F12+H12+J12+L12+N12 -> 36509 | C12: =+E12 -> 8389 | D12: 36509 | E12: 8389 | F12: 0 | G12: 0 | H12: 0 | I12: 0 | J12: 0 | K12: 0 | L12: 0 | M12: 0 | N12: 0 | O12: 0
A13: 7 años | B13: 37724 | C13: =+E13+G13 -> 8883 | D13: 7112 | E13: 1113 | F13: 30612 | G13: 7770 | H13: 0 | I13: 0 | J13: 0 | K13: 0 | L13: 0 | M13: 0 | N13: 0 | O13: 0
A14: 8 años | B14: 40292 | C14: =+E14+G14+I14 -> 8968 | D14: 596 | E14: 47 | F14: 8872 | G14: 1299 | H14: 30824 | I14: 7622 | J14: 0 | K14: 0 | L14: 0 | M14: 0 | N14: 0 | O14: 0
A15: 9 años | B15: 41056 | C15: =+E15+G15+I15+K15 -> 8945 | D15: 54 | E15: 6 | F15: 1627 | G15: 96 | H15: 9605 | I15: 1377 | J15: 29770 | K15: 7466 | L15: 0 | M15: 0 | N15: 0 | O15: 0
A16: 10 años | B16: 42361 | C16: =+E16+G16+I16+K16+M16 -> 8593 | D16: 9 | E16: 1 | F16: 164 | G16: 6 | H16: 2305 | I16: 118 | J16: 10282 | K16: 1367 | L16: 29601 | M16: 7101 | N16: 0 | O16: 0
A17: 11 años | B17: 42155 | C17: =+E17+G17+I17+K17+M17+O17 -> 7912 | D17: 1 | E17: 2 | F17: 23 | G17: 0 | H17: 345 | I17: 13 | J17: 2685 | K17: 119 | L17: 10621 | M17: 1223 | N17: 28480 | O17: 6555
A18: 12 años | B18: 15121 | C18: =+E18+G18+I18+K18+M18+O18 -> 1712 | D18: 4 | E18: 0 | F18: 3 | G18: 1 | H18: 44 | I18: 4 | J18: 470 | K18: 26 | L18: 3283 | M18: 95 | N18: 11317 | O18: 1586
A19: 13 años | B19: 4437 | C19: =+E19+G19+I19+K19+M19+O19 -> 133 | D19: 0 | E19: 0 | F19: 1 | G19: 0 | H19: 6 | I19: 2 | J19: 70 | K19: 2 | L19: 613 | M19: 12 | N19: 3747 | O19: 117
A20: 14 años y más | B20: 821 | C20: =+E20+G20+I20+K20+M20+O20 -> 37 | D20: 0 | E20: 0 | F20: 1 | G20: 0 | H20: 1 | I20: 3 | J20: 6 | K20: 5 | L20: 84 | M20: 7 | N20: 729 | O20: 22
A21: Fuente: Procesamiento propio en base a datos proporcionados por el D.E.E .— C.E.I.P.
A22: Nota: Primaria Pública no incluye la matrícula correspondiente a JICI

Sheet II-2.2.9
A1: CONSEJO DE EDUCACIÓN PRIMARIA | M1: ALUMNOS MATRICULADOS
A3: Cuadro Nº II-2.2.9
A4: ALUMNOS MATRICULADOS EN EDUCACIÓN PRIMARIA COMÚN PÚBLICA POR GRADO Y SEXO SEGÚN EDAD. AÑO 2013.
A5: EDAD | E5: GRADO
C6: TOTAL SEXO | E6: Primero | G6: Segundo | I6: Tercero | K6: Cuarto | M6: Quinto | O6: Sexto
E7: SEXO
B8: TOTAL | C8: M | D8: F | E8: M | F8: F | G8: M | H8: F | I8: M | J8: F | K8: M | L8: F | M8: M | N8: F | O8: M | P8: F
A9: TOTAL | B9: =+C9+D9 -> 260476 | C9: =SUM(E9+G9+I9+K9+M9+O9) -> 134611 | D9: =+F9+H9+J9+L9+N9+P9 -> 125865 | E9: =SUM(E10:E18) -> 23107 | F9: 21178 | G9: 21363 | H9: 19940 | I9: 22370 | J9: 20760 | K9: 22240 | L9: 21043 | M9: =SUM(M10:M18) -> 22687 | N9: =SUM(N10:N18) -> 21515 | O9: 22844 | P9: 21429
A10: 6 años | B10: =+C10+D10 -> 36509 | C10: =SUM(E10+G10+I10+K10+M10+O10) -> 18581 | D10: =+F10+H10+J10+L10+N10+P10 -> 17928 | E10: 18581 | F10: 17928 | G10: 0 | H10: 0 | I10: 0 | J10: 0 | K10: 0 | L10: 0 | M10: 0 | N10: 0 | O10: 0 | P10: 0
A11: 7 años | B11: =+C11+D11 -> 37724 | C11: =SUM(E11+G11+I11+K11+M11+O11) -> 19209 | D11: =+F11+H11+J11+L11+N11+P11 -> 18515 | E11: 4109 | F11: 3003 | G11: 15100 | H11: 15512 | I11: 0 | J11: 0 | K11: 0 | L11: 0 | M11: 0 | N11: 0 | O11: 0 | P11: 0
A12: 8 años | B12: 40292 | C12: 20741 | D12: 19551 | E12: 373 | F12: 223 | G12: 5162 | H12: 3710 | I12: 15206 | J12: 15618 | K12: 0 | L12: 0 | M12: 0 | N12: 0 | O12: 0 | P12: 0
A13: 9 años | B13: =+C13+D13 -> 41056 | C13: =SUM(E13+G13+I13+M13+K13+O13) -> 20916 | D13: =+F13+H13+J13+N13+L13+P13 -> 20140 | E13: 37 | F13: 17 | G13: 987 | H13: 640 | I13: 5497 | J13: 4108 | K13: 14395 | L13: 15375 | M13: 0 | N13: 0 | O13: 0 | P13: 0
A14: 10 años | B14: 42361 | C14: =SUM(E14+G14+I14+M14+K14+O14) -> 21602 | D14: =+F14+H14+J14+N14+L14+P14 -> 20759 | E14: 5 | F14: 4 | G14: 100 | H14: 64 | I14: 1401 | J14: 904 | K14: 5823 | L14: 4459 | M14: 14273 | N14: 15328 | O14: 0 | P14: 0
A15: 11 años | B15: 42155 | C15: 21634 | D15: =+F15+H15+J15+N15+L15+P15 -> 20521 | E15: 0 | F15: 1 | G15: 11 | H15: 12 | I15: 236 | J15: 109 | K15: 1660 | L15: 1025 | M15: 5906 | N15: 4715 | O15: 13821 | P15: 14659
A16: 12 años | B16: 15121 | C16: 8623 | D16: 6498 | E16: 2 | F16: 2 | G16: 2 | H16: 1 | I16: 27 | J16: 17 | K16: 311 | L16: 159 | M16: 2036 | N16: 1247 | O16: 6245 | P16: 5072
A17: 13 años | B17: 4437 | C17: 2779 | D17: 1658 | E17: 0 | F17: 0 | G17: 1 | H17: 0 | I17: 3 | J17: 3 | K17: 48 | L17: 22 | M17: 413 | N17: 200 | O17: 2314 | P17: 1433
A18: 14 años y más | B18: 821 | C18: 526 | D18: 295 | E18: 0 | F18: 0 | G18: 0 | H18: 1 | I18: 0 | J18: 1 | K18: 3 | L18: 3 | M18: 59 | N18: 25 | O18: 464 | P18: 265
A19: Fuente: Procesamiento propio en base a datos proporcionados por el D.E.E. — C.E.I.P.
A20: Nota: Primaria Pública no incluye la matrícula correspondiente a JICI

Sheet II-2.2.10
A1: CONSEJO DE EDUCACIÓN PRIMARIA | M1: ALUMNOS MATRICULADOS
A3: Cuadro Nº II-2.2.10
A4: ALUMNOS MATRICULADOS EN EDUCACIÓN PRIMARIA COMÚN PRIVADA POR GRADO Y SEXO SEGÚN EDAD AÑO 2013
A5: EDAD | E5: GRADO
B6: TOTAL SEXO | E6: Primero | G6: Segundo | I6: Tercero | K6: Cuarto | M6: Quinto | O6: Sexto
E7: SEXO
B8: TOTAL | C8: M | D8: F | E8: M | F8: F | G8: M | H8: F | I8: M | J8: F | K8: M | L8: F | M8: M | N8: F | O8: M | P8: F
A9: TOTAL | B9: =C9+D9 -> 53572 | C9: =SUM(C10:C18) -> 27140 | D9: =SUM(D10:D18) -> 26432 | E9: 4916 | F9: 4642 | G9: 4656 | H9: 4516 | I9: 4571 | J9: 4568 | K9: 4552 | L9: 4433 | M9: 4230 | N9: 4208 | O9: 4215 | P9: 4065
A10: 6 años | B10: =C10+D10 -> 8389 | C10: =E10+G10+I10+K10+M10+O10 -> 4295 | D10: =F10+H10+J10+L10+N10+P10 -> 4094 | E10: 4295 | F10: 4094 | G10: 0 | H10: 0 | I10: 0 | J10: 0 | K10: 0 | L10: 0 | M10: 0 | N10: 0 | O10: 0 | P10: 0
A11: 7 años | B11: 8883 | C11: =E11+G11+I11+K11+M11+O11 -> 4502 | D11: 4381 | E11: 590 | F11: 523 | G11: 3912 | H11: 3858 | I11: 0 | J11: 0 | K11: 0 | L11: 0 | M11: 0 | N11: 0 | O11: 0 | P11: 0
A12: 8 años | B12: 8968 | C12: 4468 | D12: 4500 | E12: 26 | F12: 21 | G12: 682 | H12: 617 | I12: 3760 | J12: 3862 | K12: 0 | L12: 0 | M12: 0 | N12: 0 | O12: 0 | P12: 0
A13: 9 años | B13: 8945 | C13: 4523 | D13: 4422 | E13: 2 | F13: 4 | G13: 62 | H13: 34 | I13: 729 | J13: 648 | K13: 3730 | L13: 3736 | M13: 0 | N13: 0 | O13: 0 | P13: 0
A14: 10 años | B14: 8593 | C14: 4302 | D14: 4291 | E14: 1 | F14: 0 | G14: 0 | H14: 6 | I14: 70 | J14: 48 | K14: 731 | L14: 636 | M14: 3500 | N14: 3601 | O14: 0 | P14: 0
A15: 11 años | B15: 7912 | C15: 4039 | D15: 3873 | E15: 2 | F15: 0 | G15: 0 | H15: 0 | I15: 8 | J15: 5 | K15: 73 | L15: 46 | M15: 660 | N15: 563 | O15: 3296 | P15: 3259
A16: 12 años | B16: 1712 | C16: 906 | D16: 806 | E16: 0 | F16: 0 | G16: 0 | H16: 1 | I16: 2 | J16: 2 | K16: 15 | L16: 11 | M16: 59 | N16: 36 | O16: 830 | P16: 756
A17: 13 años | B17: 133 | C17: 81 | D17: 52 | E17: 0 | F17: 0 | G17: 0 | H17: 0 | I17: 1 | J17: 1 | K17: 0 | L17: 2 | M17: 7 | N17: 5 | O17: 73 | P17: 44
A18: 14 años y más | B18: 37 | C18: 24 | D18: 13 | E18: 0 | F18: 0 | G18: 0 | H18: 0 | I18: 1 | J18: 2 | K18: 3 | L18: 2 | M18: 4 | N18: 3 | O18: 16 | P18: 6
A19: Fuente: Procesamiento propio en base a datos proporcionados por el D.E.E. — C.E.I.P.

Sheet II-2.2.11
A1: CONSEJO DE EDUCACIÓN PRIMARIA | M1: ALUMNOS MATRICULADOS
A3: Cuadro Nº II-2.2.11
A5: ALUMNOS MATRICULADOS EN EDUCACIÓN PRIMARIA COMÚN POR GRADO Y FORMA DE ADMINISTRACIÓN SEGÚN DEPARTAMENTO AÑO 2013
A6: DEPARTAMENTO | B6: GRADO
B7: TOTAL | D7: Primero | F7: Segundo | H7: Tercero | J7: Cuarto | L7: Quinto | N7: Sexto
D8: FORMA DE ADMINISTRACIÓN
B9: Pública | C9: Privada | D9: Pública | E9: Privada | F9: Pública | G9: Privada | H9: Pública | I9: Privada | J9: Pública | K9: Privada | L9: Pública | M9: Privada | N9: Pública | O9: Privada
A11: TOTAL | B11: =SUM(B12:B13) -> 260476 | C11: 53572 | D11: 44285 | E11: 9558 | F11: 41303 | G11: 9172 | H11: 43130 | I11: 9139 | J11: 43283 | K11: 8985 | L11: 44202 | M11: 8438 | N11: 44273 | O11: 8280
A12: MONTEVIDEO | B12: =+D12+F12+H12+J12+L12+N12 -> 80120 | C12: =+E12+G12+I12+K12+M12+O12 -> 32911 | D12: 14646 | E12: 5907 | F12: 12968 | G12: 5640 | H12: 13066 | I12: 5607 | J12: 13165 | K12: 5516 | L12: 13220 | M12: 5196 | N12: 13055 | O12: 5045
A13: RESTO DEL PAÍS | B13: =SUM(B14:B31) -> 180356 | C13: =SUM(C14:C31) -> 20661 | D13: 29639 | E13: 3651 | F13: 28335 | G13: 3532 | H13: 30064 | I13: 3532 | J13: 30118 | K13: 3469 | L13: 30982 | M13: 3242 | N13: 31218 | O13: 3235
A14: Artigas | B14: =+D14+F14+H14+J14+L14+N14 -> 7985 | C14: =+E14+G14+I14+K14+M14+O14 -> 140 | D14: 1193 | E14: 30 | F14: 1229 | G14: 28 | H14: 1297 | I14: 30 | J14: 1343 | K14: 26 | L14: 1390 | M14: 13 | N14: 1533 | O14: 13
A15: Canelones | B15: =+D15+F15+H15+J15+L15+N15 -> 43484 | C15: =+E15+G15+I15+K15+M15+O15 -> 7480 | D15: 7457 | E15: 1346 | F15: 6932 | G15: 1328 | H15: 7128 | I15: 1244 | J15: 7323 | K15: 1259 | L15: 7370 | M15: 1144 | N15: 7274 | O15: 1159
A16: Cerro Largo | B16: =+D16+F16+H16+J16+L16+N16 -> 8541 | C16: 622 | D16: 1361 | E16: 132 | F16: 1354 | G16: 94 | H16: 1466 | I16: 118 | J16: 1475 | K16: 95 | L16: 1431 | M16: 81 | N16: 1454 | O16: 102
A17: Colonia | B17: =+D17+F17+H17+J17+L17+N17 -> 10554 | C17: 730 | D17: 1730 | E17: 125 | F17: 1746 | G17: 137 | H17: 1772 | I17: 119 | J17: 1808 | K17: 113 | L17: 1749 | M17: 121 | N17: 1749 | O17: 115
A18: Durazno | B18: 5264 | C18: 665 | D18: 752 | E18: 128 | F18: 748 | G18: 110 | H18: 907 | I18: 120 | J18: 886 | K18: 111 | L18: 995 | M18: 101 | N18: 976 | O18: 95
A19: Flores | B19: 2133 | C19: 295 | D19: 312 | E19: 39 | F19: 307 | G19: 55 | H19: 375 | I19: 45 | J19: 377 | K19: 55 | L19: 401 | M19: 46 | N19: 361 | O19: 55
A20: Florida | B20: 6137 | C20: 282 | D20: 1033 | E20: 41 | F20: 960 | G20: 42 | H20: 1050 | I20: 53 | J20: 981 | K20: 42 | L20: 1056 | M20: 60 | N20: 1057 | O20: 44
A21: Lavalleja | B21: 4814 | C21: 645 | D21: 834 | E21: 105 | F21: 771 | G21: 109 | H21: 778 | I21: 110 | J21: 798 | K21: 106 | L21: 815 | M21: 114 | N21: 818 | O21: 101
A22: Maldonado | B22: 13325 | C22: 4124 | D22: 2190 | E22: 686 | F22: 2081 | G22: 688 | H22: 2176 | I22: 727 | J22: 2208 | K22: 666 | L22: 2363 | M22: 677 | N22: 2307 | O22: 680
A23: Paysandú | B23: 11317 | C23: 1176 | D23: 1877 | E23: 199 | F23: 1809 | G23: 178 | H23: 1882 | I23: 209 | J23: 1875 | K23: 207 | L23: 1919 | M23: 180 | N23: 1955 | O23: 203
A24: Río Negro | B24: 5552 | C24: 506 | D24: 996 | E24: 100 | F24: 877 | G24: 78 | H24: 917 | I24: 97 | J24: 909 | K24: 91 | L24: 896 | M24: 72 | N24: 957 | O24: 68
A25: Rivera | B25: 10536 | C25: 656 | D25: 1685 | E25: 116 | F25: 1632 | G25: 119 | H25: 1762 | I25: 112 | J25: 1778 | K25: 113 | L25: 1839 | M25: 100 | N25: 1840 | O25: 96
A26: Rocha | B26: 6504 | C26: 367 | D26: 1071 | E26: 63 | F26: 991 | G26: 50 | H26: 1092 | I26: 70 | J26: 1084 | K26: 76 | L26: 1099 | M26: 61 | N26: 1167 | O26: 47
A27: Salto | B27: 12906 | C27: 1101 | D27: 2240 | E27: 180 | F27: 2101 | G27: 205 | H27: 2150 | I27: 184 | J27: 2003 | K27: 174 | L27: 2207 | M27: 186 | N27: 2205 | O27: 172
A28: San José | B28: 9716 | C28: 600 | D28: 1585 | E28: 115 | F28: 1532 | G28: 107 | H28: 1607 | I28: 94 | J28: 1695 | K28: 102 | L28: 1665 | M28: 98 | N28: 1632 | O28: 84
A29: Soriano | B29: 8137 | C29: 437 | D29: 1328 | E29: 82 | F29: 1283 | G29: 70 | H29: 1396 | I29: 72 | J29: 1336 | K29: 83 | L29: 1364 | M29: 60 | N29: 1430 | O29: 70
A30: Tacuarembó | B30: 8901 | C30: 631 | D30: 1297 | E30: 129 | F30: 1303 | G30: 101 | H30: 1527 | I30: 98 | J30: 1484 | K30: 118 | L30: 1603 | M30: 91 | N30: 1687 | O30: 94
A31: Treinta y Tres | B31: 4550 | C31: 204 | D31: 698 | E31: 35 | F31: 679 | G31: 33 | H31: 782 | I31: 30 | J31: 755 | K31: 32 | L31: 820 | M31: 37 | N31: 816 | O31: 37
A32: Fuente: Procesamiento propio en base a datos proporcionados por el DEE — CEIP
A33: Nota: Primaria Pública no incluye la matrícula correspondiente a JICI

Sheet II-2.2.12
A1: CONSEJO DE EDUCACIÓN PRIMARIA | F1: RENDIMIENTO ESCOLAR
A3: Cuadro Nº II-2.2.12
A5: RENDIMIENTO ESCOLAR EN EDUCACIÓN PRIMARIA COMÚN PÚBLICA POR ÁREA DEMOGRÁFICA SEGÚN GRADO AÑO 2013
A6: GRADO | B6: RENDIMIENTO ESCOLAR
B7: PROMOVIDOS | E7: NO PROMOVIDOS
B8: TOTAL | C8: ÁREA DEMOGRÁFICA | E8: TOTAL | F8: ÁREA DEMOGRÁFICA
C9: Urbana | D9: Rural | F9: Urbana | G9: Rural
A11: TOTAL | B11: =+C11+D11 -> 246377 | C11: =SUM(C12:C17) -> 231574 | D11: =SUM(D12:D17) -> 14803 | E11: =+F11+G11 -> 14099 | F11: =SUM(F12:F17) -> 13554 | G11: =SUM(G12:G17) -> 545
A12: Primero | B12: =+C12+D12 -> 38353 | C12: 36135 | D12: 2218 | E12: =+F12+G12 -> 5932 | F12: 5711 | G12: 221
A13: Segundo | B13: 38345 | C13: 36075 | D13: 2270 | E13: 2958 | F13: 2836 | G13: 122
A14: Tercero | B14: 41151 | C14: 38619 | D14: 2532 | E14: 1979 | F14: 1905 | G14: 74
A15: Cuarto | B15: 41795 | C15: 39266 | D15: 2529 | E15: 1488 | F15: 1437 | G15: 51
A16: Quinto | B16: 43095 | C16: 40453 | D16: 2642 | E16: 1107 | F16: 1069 | G16: 38
A17: Sexto | B17: 43638 | C17: 41026 | D17: 2612 | E17: 635 | F17: 596 | G17: 39
A19: Fuente: Procesamiento propio en base a datos proporcionados por el D.E.E .— C.E.I.P.
A20: Notas: - No incluye datos correspondientes a JICI - No se presenta información para la Educación Primaria Privada porque no existen establecimientos privados en el área demográfica rural

Sheet II-2.2.13
A1: CONSEJO DE EDUCACIÓN PRIMARIA | F1: RENDIMIENTO ESCOLAR
A3: Cuadro Nº II-2.2.13
A5: RENDIMIENTO ESCOLAR EN EDUCACIÓN PRIMARIA COMÚN PÚBLICA POR ÁREA DEMOGRÁFICA SEGÚN DEPARTAMENTO AÑO 2013
A6: DEPARTAMENTO | B6: RENDIMIENTO ESCOLAR
B7: PROMOVIDOS | F7: NO PROMOVIDOS
B8: TOTAL | C8: ÁREA DEMOGRÁFICA | E8: TOTAL | F8: ÁREA DEMOGRÁFICA
C9: Urbana | D9: Rural | F9: Urbana | G9: Rural
A11: TOTAL | B11: =+C11+D11 -> 246377 | C11: =SUM(C12:C13) -> 231574 | D11: =SUM(D12:D13) -> 14803 | E11: =+F11+G11 -> 14099 | F11: =SUM(F12:F13) -> 13554 | G11: =SUM(G12:G13) -> 545
A12: MONTEVIDEO | B12: =+C12+D12 -> 73501 | C12: 73501 | D12: 0 | E12: =+F12+G12 -> 6619 | F12: 6619 | G12: 0
A13: RESTO DEL PAÍS | B13: =+C13+D13 -> 172876 | C13: =SUM(C14:C31) -> 158073 | D13: =SUM(D14:D31) -> 14803 | E13: =+F13+G13 -> 7480 | F13: =SUM(F14:F31) -> 6935 | G13: =SUM(G14:G31) -> 545
A14: Artigas | B14: =+C14+D14 -> 7745 | C14: 7045 | D14: 700 | E14: =+F14+G14 -> 240 | F14: 217 | G14: 23
A15: Canelones | B15: 40725 | C15: 38372 | D15: 2353 | E15: 2759 | F15: 2640 | G15: 119
A16: Cerro Largo | B16: 8130 | C16: 7258 | D16: 872 | E16: 411 | F16: 369 | G16: 42
A17: Colonia | B17: 10265 | C17: 9194 | D17: 1071 | E17: 289 | F17: 263 | G17: 26
A18: Durazno | B18: 5164 | C18: 4731 | D18: 433 | E18: 100 | F18: 87 | G18: 13
A19: Flores | B19: 2114 | C19: 1886 | D19: 228 | E19: 19 | F19: 17 | G19: 2
A20: Florida | B20: 5899 | C20: 5119 | D20: 780 | E20: 238 | F20: 216 | G20: 22
A21: Lavalleja | B21: 4715 | C21: 4287 | D21: 428 | E21: 99 | F21: 89 | G21: 10
A22: Maldonado | B22: 12859 | C22: 12222 | D22: 637 | E22: 466 | F22: 441 | G22: 25
A23: Paysandú | B23: 10784 | C23: 9839 | D23: 945 | E23: 533 | F23: 503 | G23: 30
A24: Río Negro | B24: 5349 | C24: 4806 | D24: 543 | E24: 203 | F24: 179 | G24: 24
A25: Rivera | B25: 10272 | C25: 9292 | D25: 980 | E25: 264 | F25: 239 | G25: 25
A26: Rocha | B26: 6349 | C26: 6065 | D26: 284 | E26: 155 | F26: 147 | G26: 8
A27: Salto | B27: 12251 | C27: 10967 | D27: 1284 | E27: 655 | F27: 576 | G27: 79
A28: San José | B28: 9245 | C28: 8168 | D28: 1077 | E28: 471 | F28: 432 | G28: 39
A29: Soriano | B29: 7831 | C29: 7147 | D29: 684 | E29: 306 | F29: 281 | G29: 25
A30: Tacuarembó | B30: 8717 | C30: 7578 | D30: 1139 | E30: 184 | F30: 161 | G30: 23
A31: Treinta y Tres | B31: 4462 | C31: 4097 | D31: 365 | E31: 88 | F31: 78 | G31: 10
A32: Fuente: Procesamiento propio en base a datos proporcionados por el D.E.E .— C.E.I.P.
A33: Nota: No incluye datos correspondientes a JICI
A34: Nota: No se presenta información para la Educación Primaria Privada porque no existen establecimientos privados en el área demográfica rural

Sheet II-2.2.14
A1: CONSEJO DE EDUCACIÓN PRIMARIA | F1: RENDIMIENTOS ESCOLAR
A3: Cuadro Nº II-2.2.14
A5: RENDIMIENTO ESCOLAR EN EDUCACIÓN PRIMARIA COMÚN PÚBLICA POR SEXO SEGÚN DEPARTAMENTO. AÑO 2013.
A6: DEPARTAMENTO | B6: RENDIMIENTO ESCOLAR
B7: PROMOVIDOS | E7: NO PROMOVIDOS
B8: TOTAL | C8: SEXO | E8: TOTAL | F8: SEXO
C9: M | D9: F | F9: M | G9: F
A10: TOTAL | B10: =+C10+D10 -> 246377 | C10: =SUM(C11:C12) -> 125956 | D10: =SUM(D11:D12) -> 120421 | E10: =+F10+G10 -> 14099 | F10: =SUM(F11:F12) -> 8655 | G10: =SUM(G11:G12) -> 5444
A11: MONTEVIDEO | B11: =+C11+D11 -> 73501 | C11: 37475 | D11: 36026 | E11: =+F11+G11 -> 6619 | F11: 3958 | G11: 2661
A12: RESTO DEL PAÍS | B12: 172876 | C12: =SUM(C13:C30) -> 88481 | D12: =SUM(D13:D30) -> 84395 | E12: 7480 | F12: =SUM(F13:F30) -> 4697 | G12: =SUM(G13:G30) -> 2783
A13: Artigas | B13: 7745 | C13: 4035 | D13: 3710 | E13: 240 | F13: 163 | G13: 77
A14: Canelones | B14: 40725 | C14: 20764 | D14: 19961 | E14: 2759 | F14: 1680 | G14: 1079
A15: Cerro Largo | B15: 8130 | C15: 4101 | D15: 4029 | E15: 411 | F15: 260 | G15: 151
A16: Colonia | B16: 10265 | C16: 5226 | D16: 5039 | E16: 289 | F16: 181 | G16: 108
A17: Durazno | B17: 5164 | C17: 2655 | D17: 2509 | E17: 100 | F17: 58 | G17: 42
A18: Flores | B18: 2114 | C18: 1016 | D18: 1098 | E18: 19 | F18: 13 | G18: 6
A19: Florida | B19: 5899 | C19: 3042 | D19: 2857 | E19: 238 | F19: 149 | G19: 89
A20: Lavalleja | B20: 4715 | C20: 2468 | D20: 2247 | E20: 99 | F20: 59 | G20: 40
A21: Maldonado | B21: 12859 | C21: 6498 | D21: 6361 | E21: 466 | F21: 297 | G21: 169
A22: Paysandú | B22: 10784 | C22: 5560 | D22: 5224 | E22: 533 | F22: 338 | G22: 195
A23: Río Negro | B23: 5349 | C23: 2702 | D23: 2647 | E23: 203 | F23: 134 | G23: 69
A24: Rivera | B24: 10272 | C24: 5379 | D24: 4893 | E24: 264 | F24: 164 | G24: 100
A25: Rocha | B25: 6349 | C25: 3301 | D25: 3048 | E25: 155 | F25: 107 | G25: 48
A26: Salto | B26: 12251 | C26: 6313 | D26: 5938 | E26: 655 | F26: 422 | G26: 233
A27: San José | B27: 9245 | C27: 4727 | D27: 4518 | E27: 471 | F27: 305 | G27: 166
A28: Soriano | B28: 7831 | C28: 3971 | D28: 3860 | E28: 306 | F28: 191 | G28: 115
A29: Tacuarembó | B29: 8717 | C29: 4455 | D29: 4262 | E29: 184 | F29: 115 | G29: 69
A30: Treinta y Tres | B30: 4462 | C30: 2268 | D30: 2194 | E30: 88 | F30: 61 | G30: 27
A31: Fuente: Procesamiento propio en base a datos proporcionados por el D.E.E. — C.E.I.P.
A32: Nota: No incluye datos correspondientes a JICI .

Sheet II-2.2.15
A1: CONSEJO DE EDUCACIÓN PRIMARIA | F1: RENDIMIENTO ESCOLAR
A3: Cuadro Nº II-2.2.15
A5: RENDIMIENTO ESCOLAR EN EDUCACIÓN PRIMARIA COMÚN PRIVADA POR SEXO SEGÚN DEPARTAMENTO AÑO 2013
A6: DEPARTAMENTO | B6: RENDIMIENTO ESCOLAR
B7: PROMOVIDOS | E7: NO PROMOVIDOS
B8: TOTAL | C8: SEXO | E8: TOTAL | F8: SEXO
C9: M | D9: F | F9: M | G9: F
A10: TOTAL | B10: =+C10+D10 -> 52924 | C10: =SUM(C11:C12) -> 26741 | D10: =SUM(D11:D12) -> 26183 | E10: =+F10+G10 -> 648 | F10: =SUM(F11:F12) -> 399 | G10: =SUM(G11:G12) -> 249
A11: MONTEVIDEO | B11: =+C11+D11 -> 32472 | C11: 16413 | D11: 16059 | E11: =+F11+G11 -> 439 | F11: 260 | G11: 179
A12: RESTO DEL PAÍS | B12: 20452 | C12: =SUM(C13:C30) -> 10328 | D12: =SUM(D13:D30) -> 10124 | E12: 209 | F12: =SUM(F13:F30) -> 139 | G12: =SUM(G13:G30) -> 70
A13: Artigas | B13: 138 | C13: 67 | D13: 71 | E13: 2 | F13: 2 | G13: 0
A14: Canelones | B14: 7376 | C14: 3754 | D14: 3622 | E14: 104 | F14: 66 | G14: 38
A15: Cerro Largo | B15: 614 | C15: 295 | D15: 319 | E15: 8 | F15: 8 | G15: 0
A16: Colonia | B16: 722 | C16: 360 | D16: 362 | E16: 8 | F16: 4 | G16: 4
A17: Durazno | B17: 660 | C17: 310 | D17: 350 | E17: 5 | F17: 4 | G17: 1
A18: Flores | B18: 294 | C18: 150 | D18: 144 | E18: 1 | F18: 1 | G18: 0
A19: Florida | B19: 282 | C19: 145 | D19: 137 | E19: 0 | F19: 0 | G19: 0
A20: Lavalleja | B20: 639 | C20: 327 | D20: 312 | E20: 6 | F20: 3 | G20: 3
A21: Maldonado | B21: 4092 | C21: 2084 | D21: 2008 | E21: 32 | F21: 17 | G21: 15
A22: Paysandú | B22: 1171 | C22: 616 | D22: 555 | E22: 5 | F22: 3 | G22: 2
A23: Río Negro | B23: 502 | C23: 260 | D23: 242 | E23: 4 | F23: 4 | G23: 0
A24: Rivera | B24: 650 | C24: 353 | D24: 297 | E24: 6 | F24: 5 | G24: 1
A25: Rocha | B25: 366 | C25: 174 | D25: 192 | E25: 1 | F25: 1 | G25: 0
A26: Salto | B26: 1091 | C26: 529 | D26: 562 | E26: 10 | F26: 9 | G26: 1
A27: San José | B27: 591 | C27: 260 | D27: 331 | E27: 9 | F27: 6 | G27: 3
A28: Soriano | B28: 434 | C28: 216 | D28: 218 | E28: 3 | F28: 2 | G28: 1
A29: Tacuarembó | B29: 627 | C29: 312 | D29: 315 | E29: 4 | F29: 4 | G29: 0
A30: Treinta y Tres | B30: 203 | C30: 116 | D30: 87 | E30: 1 | F30: 0 | G30: 1
A31: Fuente: Procesamiento propio en base a datos proporcionados por el D.E.E. — C.E.I.P.

Sheet II-2.2.16
A1: CONSEJO DE EDUCACIÓN PRIMARIA | E1: RENDIMIENTO ESCOLAR
A3: Cuadro Nº II-2.2.16
A5: RENDIMIENTO ESCOLAR DE EDUCACIÓN PRIMARIA COMÚN PÚBLICA POR ÁREA DEMOGRÁFICA SEGÚN DEPARTAMENTO AÑO 2013
A6: DEPARTAMENTO | C6: ÁREA DEMOGRÁFICA
B7: TOTAL
C8: Urbana | D8: Rural
A10: TOTAL | B10: =+C10+D10 -> 43638 | C10: =SUM(C11:C12) -> 41026 | D10: =SUM(D11:D12) -> 2612
A11: MONTEVIDEO | B11: =C11+D11 -> 12817 | C11: 12817 | D11: 0
A12: RESTO DEL PAÍS | B12: =+C12+D12 -> 30821 | C12: =SUM(C13:C30) -> 28209 | D12: =SUM(D13:D30) -> 2612
A13: Artigas | B13: =+C13+D13 -> 1515 | C13: 1376 | D13: 139
A14: Canelones | B14: 7146 | C14: 6741 | D14: 405
A15: Cerro Largo | B15: 1429 | C15: 1266 | D15: 163
A16: Colonia | B16: 1737 | C16: 1575 | D16: 162
A17: Durazno | B17: 971 | C17: 892 | D17: 79
A18: Flores | B18: 361 | C18: 319 | D18: 42
A19: Florida | B19: 1039 | C19: 929 | D19: 110
A20: Lavalleja | B20: 816 | C20: 739 | D20: 77
A21: Maldonado | B21: 2291 | C21: 2173 | D21: 118
A22: Paysandú | B22: 1931 | C22: 1773 | D22: 158
A23: Río Negro | B23: 947 | C23: 848 | D23: 99
A24: Rivera | B24: 1824 | C24: 1661 | D24: 163
A25: Rocha | B25: 1162 | C25: 1114 | D25: 48
A26: Salto | B26: 2145 | C26: 1909 | D26: 236
A27: San José | B27: 1611 | C27: 1418 | D27: 193
A28: Soriano | B28: 1409 | C28: 1274 | D28: 135
A29: Tacuarembó | B29: 1675 | C29: 1457 | D29: 218
A30: Treinta y Tres | B30: 812 | C30: 745 | D30: 67
A31: Fuente: Procesamiento propio en base a datos proporcionados por el D.E.E .— C.E.I.P.
A32: Nota: No se presenta información para Montevideo Rural por que no existen establecimientos en el área demográfica rural.

Sheet II-2.2.17
A1: CONSEJO DE EDUCACIÓN PRIMARIA | G1: RENDIMIENTO ESCOLAR
A3: Cuadro Nº II-2.2.17
A5: RENDIMIENTO ESCOLAR DE EDUCACIÓN PRIMARIA COMÚN POR FORMA DE ADMINISTRACIÓN SEGÚN DEPARTAMENTO AÑO 2013
A6: DEPARTAMENTO | B6: TOTAL | C6: PÚBLICA | G6: PRIVADA
C7: TOTAL | D7: SEXO | G7: TOTAL | H7: SEXO
D8: M | E8: M | F8: F | H8: M | I8: F
A9: TOTAL | B9: =+C9+G9 -> 51918 | C9: =+E9+F9 -> 43638 | E9: =SUM(E10:E11) -> 22458 | F9: =SUM(F10:F11) -> 21180 | G9: =+H9+I9 -> 8280 | H9: =SUM(H10,H11) -> 4215 | I9: =SUM(I10,I11) -> 4065
A10: MONTEVIDEO | B10: =+C10+G10 -> 17862 | C10: =+E10+F10 -> 12817 | D10: 6560 | E10: 6553 | F10: 6264 | G10: =+H10+I10 -> 5045 | H10: 2574 | I10: 2471
A11: RESTO DEL PAÍS | B11: =+C11+G11 -> 34056 | C11: 30821 | E11: =SUM(E12:E29) -> 15905 | F11: =SUM(F12:F29) -> 14916 | G11: 3235 | H11: =SUM(H12:H29) -> 1641 | I11: =SUM(I12:I29) -> 1594
A12: Artigas | B12: =+C12+G12 -> 1528 | C12: 1515 | D12: 765 | E12: 767 | F12: 748 | G12: 13 | H12: 5 | I12: 8
A13: Canelones | B13: 8305 | C13: 7146 | D13: 3826 | E13: 3653 | F13: 3493 | G13: 1159 | H13: 593 | I13: 566
A14: Cerro Largo | B14: 1531 | C14: 1429 | D14: 802 | E14: 734 | F14: 695 | G14: 102 | H14: 54 | I14: 48
A15: Colonia | B15: 1852 | C15: 1737 | D15: 891 | E15: 881 | F15: 856 | G15: 115 | H15: 58 | I15: 57
A16: Durazno | B16: 1066 | C16: 971 | D16: 502 | E16: 517 | F16: 454 | G16: 95 | H16: 44 | I16: 51
A17: Flores | B17: 416 | C17: 361 | D17: 192 | E17: 170 | F17: 191 | G17: 55 | H17: 36 | I17: 19
A18: Florida | B18: 1083 | C18: 1039 | D18: 502 | E18: 542 | F18: 497 | G18: 44 | H18: 21 | I18: 23
A19: Lavalleja | B19: 917 | C19: 816 | D19: 426 | E19: 436 | F19: 380 | G19: 101 | H19: 59 | I19: 42
A20: Maldonado | B20: 2971 | C20: 2291 | D20: 1183 | E20: 1213 | F20: 1078 | G20: 680 | H20: 341 | I20: 339
A21: Paysandú | B21: 2134 | C21: 1931 | D21: 976 | E21: 1018 | F21: 913 | G21: 203 | H21: 99 | I21: 104
A22: Río Negro | B22: 1015 | C22: 947 | D22: 501 | E22: 482 | F22: 465 | G22: 68 | H22: 33 | I22: 35
A23: Rivera | B23: 1920 | C23: 1824 | D23: 995 | E23: 957 | F23: 867 | G23: 96 | H23: 55 | I23: 41
A24: Rocha | B24: 1209 | C24: 1162 | D24: 603 | E24: 613 | F24: 549 | G24: 47 | H24: 23 | I24: 24
A25: Salto | B25: 2317 | C25: 2145 | D25: 1191 | E25: 1081 | F25: 1064 | G25: 172 | H25: 86 | I25: 86
A26: San José | B26: 1695 | C26: 1611 | D26: 824 | E26: 854 | F26: 757 | G26: 84 | H26: 43 | I26: 41
A27: Soriano | B27: 1479 | C27: 1409 | D27: 717 | E27: 704 | F27: 705 | G27: 70 | H27: 28 | I27: 42
A28: Tacuarembó | B28: 1769 | C28: 1675 | D28: 845 | E28: 855 | F28: 820 | G28: 94 | H28: 46 | I28: 48
A29: Treinta y Tres | B29: 849 | C29: 812 | D29: 443 | E29: 428 | F29: 384 | G29: 37 | H29: 17 | I29: 20
A30: Fuente: Procesamiento propio en base a datos proporcionados por el D.E.E. — C.E.I.P.

Sheet II-2.2.18
A1: CONSEJO DE EDUCACIÓN PRIMARIA | E1: RENDIMIENTO ESCOLAR
A3: Cuadro Nº II-2.2.18
A5: ASISTENCIA INSUFICIENTE Y ABANDONO INTERMITENTE DE 1º GRADO Y 1º A 6º GRADO EN EDUCACIÓN COMÚN PÚBLICA SEGÚN DEPARTAMENTO. AÑO 2013
A6: DEPARTAMENTO | C6: ASISTENCIA INSUFICIENTE | E6: ABANDONO INTERMITENTE
C7: Sólo 1.er año | D7: 1.º a 6.º años | E7: Sólo 1.er año | F7: 1.º a 6.º años
A8: TOTAL | B8: =SUM(B9:B10) -> 260476 | C8: =SUM(C9:C10) -> 5503 | D8: =SUM(D9:D10) -> 22718 | E8: =SUM(E9:E10) -> 409 | F8: =SUM(F9:F10) -> 1937
A9: MONTEVIDEO | B9: ='[1]II-2.2.1'!E10 -> 80120 | C9: 3167 | D9: 12472 | E9: 200 | F9: 850
A10: RESTO DEL PAÍS | B10: =SUM(B11:B28) -> 180356 | C10: =SUM(C11:C28) -> 2336 | D10: =SUM(D11:D28) -> 10246 | E10: =SUM(E11:E28) -> 209 | F10: =SUM(F11:F28) -> 1087
A11: Artigas | B11: ='[1]II-2.2.1'!E12 -> 7985 | C11: 112 | D11: 487 | E11: 5 | F11: 43
A12: Canelones | B12: ='[1]II-2.2.1'!E13 -> 43484 | C12: 942 | D12: 4211 | E12: 61 | F12: 323
A13: Cerro Largo | B13: ='[1]II-2.2.1'!E14 -> 8541 | C13: 78 | D13: 378 | E13: 3 | F13: 28
A14: Colonia | B14: ='[1]II-2.2.1'!E15 -> 10554 | C14: 58 | D14: 237 | E14: 6 | F14: 46
A15: Durazno | B15: ='[1]II-2.2.1'!E16 -> 5264 | C15: 60 | D15: 302 | E15: 5 | F15: 43
A16: Flores | B16: ='[1]II-2.2.1'!E17 -> 2133 | C16: 15 | D16: 60 | E16: 0 | F16: 2
A17: Florida | B17: ='[1]II-2.2.1'!E18 -> 6137 | C17: 52 | D17: 222 | E17: 27 | F17: 92
A18: Lavalleja | B18: ='[1]II-2.2.1'!E19 -> 4814 | C18: 35 | D18: 164 | E18: 1 | F18: 22
A19: Maldonado | B19: ='[1]II-2.2.1'!E20 -> 13325 | C19: 171 | D19: 726 | E19: 32 | F19: 98
A20: Paysandú | B20: ='[1]II-2.2.1'!E21 -> 11317 | C20: 98 | D20: 455 | E20: 12 | F20: 42
A21: Río Negro | B21: ='[1]II-2.2.1'!E22 -> 5552 | C21: 52 | D21: 188 | E21: 5 | F21: 14
A22: Rivera | B22: ='[1]II-2.2.1'!E23 -> 10536 | C22: 110 | D22: 505 | E22: 11 | F22: 66
A23: Rocha | B23: ='[1]II-2.2.1'!E24 -> 6504 | C23: 84 | D23: 390 | E23: 12 | F23: 54
A24: Salto | B24: ='[1]II-2.2.1'!E25 -> 12906 | C24: 198 | D24: 717 | E24: 14 | F24: 88
A25: San José | B25: ='[1]II-2.2.1'!E26 -> 9716 | C25: 102 | D25: 439 | E25: 2 | F25: 35
A26: Soriano | B26: ='[1]II-2.2.1'!E27 -> 8137 | C26: 62 | D26: 281 | E26: 3 | F26: 18
A27: Tacuarembó | B27: ='[1]II-2.2.1'!E28 -> 8901 | C27: 65 | D27: 290 | E27: 4 | F27: 45
A28: Treinta y Tres | B28: ='[1]II-2.2.1'!E29 -> 4550 | C28: 42 | D28: 194 | E28: 6 | F28: 28
A29: Fuente: Procesamiento propio en base a datos proporcionados por el D.E.E. — C.E.I.P.
A30: No incluye datos correspondientes a JICI .

Sheet II-2.3.1
A1: CONSEJO DE EDUCACIÓN PRIMARIA | G1: PERSONAL DOCENTE
A3: Cuadro Nº II-2.3.1
A5: PERSONAL DOCENTE DE EDUCACIÓN PRIMARIA PÚBLICA POR TIPO DE DESEMPEÑO DOCENTE SEGÚN DEPARTAMENTO AÑO 2013
A6: DEPARTAMENTO | C6: TIPO DE DESEMPEÑO DOCENTE
B7: TOTAL | C7: Inspección | D7: Educación Común | E7: Educación en Colonias | F7: Educación Especial | G7: Servicios Docentes Especiales | H7: Profesores Especiales | I7: Coordinación Apoyo
A9: TOTAL | B9: =SUM(B11:B12) -> 19389 | C9: 273 | D9: 15225 | E9: 39 | F9: 963 | G9: 128 | H9: 2668 | I9: 93
A11: MONTEVIDEO | B11: =SUM(C11:I11) -> 5683 | C11: 104 | D11: 4157 | E11: 14 | F11: 407 | G11: 75 | H11: 913 | I11: 13
A12: RESTO DEL PAÍS | B12: =SUM(B14:B31) -> 13706 | C12: 169 | D12: 11068 | E12: 25 | F12: 556 | G12: =SUM(G14:G31) -> 53 | H12: 1755 | I12: 80
A14: Artigas | B14: =SUM(C14:I14) -> 651 | C14: 7 | D14: 524 | E14: 0 | F14: 23 | G14: 0 | H14: 93 | I14: 4
A15: Canelones | B15: 2724 | C15: 31 | D15: 2260 | E15: 0 | F15: 108 | G15: 13 | H15: 299 | I15: 13
A16: Cerro Largo | B16: 702 | C16: 9 | D16: 561 | E16: 0 | F16: 32 | G16: 4 | H16: 92 | I16: 4
A17: Colonia | B17: 812 | C17: 9 | D17: 653 | E17: 0 | F17: 36 | G17: 3 | H17: 107 | I17: 4
A18: Durazno | B18: 463 | C18: 7 | D18: 376 | E18: 0 | F18: 22 | G18: 0 | H18: 54 | I18: 4
A19: Flores | B19: 208 | C19: 3 | D19: 159 | E19: 0 | F19: 9 | G19: 0 | H19: 34 | I19: 3
A20: Florida | B20: 535 | C20: 7 | D20: 410 | E20: 0 | F20: 24 | G20: 5 | H20: 85 | I20: 4
A21: Lavalleja | B21: 433 | C21: 6 | D21: 348 | E21: 0 | F21: 20 | G21: 4 | H21: 51 | I21: 4
A22: Maldonado | B22: 842 | C22: 11 | D22: 654 | E22: 15 | F22: 38 | G22: 7 | H22: 113 | I22: 4
A23: Paysandú | B23: 861 | C23: 10 | D23: 709 | E23: 0 | F23: 37 | G23: 4 | H23: 97 | I23: 4
A24: Río Negro | B24: 462 | C24: 5 | D24: 373 | E24: 0 | F24: 21 | G24: 0 | H24: 59 | I24: 4
A25: Rivera | B25: 888 | C25: 11 | D25: 714 | E25: 0 | F25: 31 | G25: 1 | H25: 127 | I25: 4
A26: Rocha | B26: 544 | C26: 7 | D26: 419 | E26: 0 | F26: 28 | G26: 3 | H26: 83 | I26: 4
A27: Salto | B27: 956 | C27: 12 | D27: 759 | E27: 9 | F27: 32 | G27: 2 | H27: 137 | I27: 5
A28: San José | B28: 740 | C28: 9 | D28: 622 | E28: 0 | F28: 29 | G28: 0 | H28: 76 | I28: 4
A29: Soriano | B29: 657 | C29: 9 | D29: 531 | E29: 0 | F29: 29 | G29: 2 | H29: 82 | I29: 4
A30: Tacuarembó | B30: 806 | C30: 10 | D30: 665 | E30: 1 | F30: 22 | G30: 5 | H30: 100 | I30: 3
A31: Treinta y Tres | B31: 422 | C31: 6 | D31: 331 | E31: 0 | F31: 15 | G31: 0 | H31: 66 | I31: 4
A32: Fuente: DEE — CEIP Listado de cargos de la División Hacienda a Julio 2013
A74: =SUM(A76:A77) -> 147
A76: 92
A77: =SUM(A79:A96) -> 55
A79: 0
A80: 14
A81: 4
A82: 3
A83: 0
A84: 0
A85: 5
A86: 4
A87: 7
A88: 5
A89: 0
A90: 1
A91: 3
A92: 2
A93: 0
A94: 2
A95: 5
A96: 0

Sheet II-2.3.2
A1: CONSEJO DE EDUCACIÓN PRIMARIA | J1: PERSONAL DOCENTE
A3: Cuadro Nº II-2.3.2
A5: PERSONAL DOCENTE DE EDUCACIÓN PRIMARIA PRIVADA POR TIPO DE ESTABLECIMIENTO Y TIPO DE DESEMPEÑO DOCENTE SEGÚN DEPARTAMENTO AÑO 2013
A6: DEPARTAMENTO | C6: TOTAL | D6: MAESTROS | E6: PROFESORES | F6: ESTABLECIMIENTOS
F7: HABILITADOS | I7: AUTORIZADOS
F8: Total | G8: Maestros | H8: Profesores | I8: Total | J8: Maestros | K8: Profesores
A10: TOTAL | C10: =+D10+E10 -> 7954 | D10: =+G10+J10 -> 3414 | E10: =+H10+K10 -> 4540 | F10: =+G10+H10 -> 7452 | G10: =SUM(G11:G12) -> 3245 | H10: =SUM(H11:H12) -> 4207 | I10: =+J10+K10 -> 502 | J10: =SUM(J11:J12) -> 169 | K10: =SUM(K11:K12) -> 333
A11: MONTEVIDEO | C11: =+D11+E11 -> 4751 | D11: =G11+J11 -> 2007 | E11: =H11+K11 -> 2744 | F11: =+G11+H11 -> 4322 | G11: 1875 | H11: 2447 | I11: =+J11+K11 -> 429 | J11: 132 | K11: 297
A12: RESTO DEL PAÍS | C12: =+D12+E12 -> 3203 | D12: =G12+J12 -> 1407 | E12: =H12+K12 -> 1796 | F12: =+G11+H11 -> 4322 | G12: =SUM(G13:G30) -> 1370 | H12: =SUM(H13:H30) -> 1760 | I12: =+J12+K12 -> 73 | J12: =SUM(J13:J30) -> 37 | K12: =SUM(K13:K30) -> 36
A13: Artigas | C13: =+F13+I13 -> 27 | D13: 12 | E13: 15 | F13: =+G13+H13 -> 27 | G13: 12 | H13: 15 | I13: 0 | J13: 0 | K13: 0
A14: Canelones | C14: 1132 | D14: 506 | E14: 626 | F14: 1067 | G14: 474 | H14: 593 | I14: 65 | J14: 32 | K14: 33
A15: Cerro Largo | C15: 78 | D15: 42 | E15: 36 | F15: 78 | G15: 42 | H15: 36 | I15: 0 | J15: 0 | K15: 0
A16: Colonia | C16: 103 | D16: 40 | E16: 63 | F16: 103 | G16: 40 | H16: 63 | I16: 0 | J16: 0 | K16: 0
A17: Durazno | C17: 69 | D17: 39 | E17: 30 | F17: 69 | G17: 39 | H17: 30 | I17: 0 | J17: 0 | K17: 0
A18: Flores | C18: 55 | D18: 25 | E18: 30 | F18: 55 | G18: 25 | H18: 30 | I18: 0 | J18: 0 | K18: 0
A19: Florida | C19: 52 | D19: 21 | E19: 31 | F19: 52 | G19: 21 | H19: 31 | I19: 0 | J19: 0 | K19: 0
A20: Lavalleja | C20: 119 | D20: 53 | E20: 66 | F20: 119 | G20: 53 | H20: 66 | I20: 0 | J20: 0 | K20: 0
A21: Maldonado | C21: 586 | D21: 265 | E21: 321 | F21: 586 | G21: 265 | H21: 321 | I21: 0 | J21: 0 | K21: 0
A22: Paysandú | C22: 196 | D22: 86 | E22: 110 | F22: 196 | G22: 86 | H22: 110 | I22: 0 | J22: 0 | K22: 0
A23: Río Negro | C23: 111 | D23: 37 | E23: 74 | F23: 106 | G23: 34 | H23: 72 | I23: 5 | J23: 3 | K23: 2
A24: Rivera | C24: 125 | D24: 50 | E24: 75 | F24: 125 | G24: 50 | H24: 75 | I24: 0 | J24: 0 | K24: 0
A25: Rocha | C25: 65 | D25: 30 | E25: 35 | F25: 65 | G25: 30 | H25: 35 | I25: 0 | J25: 0 | K25: 0
A26: Salto | C26: 154 | D26: 61 | E26: 93 | F26: 154 | G26: 61 | H26: 93 | I26: 0 | J26: 0 | K26: 0
A27: San José | C27: 104 | D27: 45 | E27: 59 | F27: 101 | G27: 43 | H27: 58 | I27: 3 | J27: 2 | K27: 1
A28: Soriano | C28: 59 | D28: 24 | E28: 35 | F28: 59 | G28: 24 | H28: 35 | I28: 0 | J28: 0 | K28: 0
A29: Tacuarembó | C29: 145 | D29: 61 | E29: 84 | F29: 145 | G29: 61 | H29: 84 | I29: 0 | J29: 0 | K29: 0
A30: Treinta y Tres | C30: 23 | D30: 10 | E30: 13 | F30: 23 | G30: 10 | H30: 13 | I30: 0 | J30: 0 | K30: 0
A31: Fuente: DEE — CEIP Planillas enviadas por las Inspecciones Departamentales a abril de 2011.
A32: NOTA: El personal docente incluye exclusivamente docencia directa

Sheet MEDIA BASICA

Sheet CONTROL Media Básica (hidden)
B1: PRIMER CUADRO | C1: SEGUNDO CUADRO
A2: MATRÍCULA | B2: II-3.2.1 | C2: II-3.2.4 | D2: =IF('II-3.2.1'!C10 ='II-3.2.4'!B11, "OK", "INCONSISTENCIA") -> OK
A3: MATRÍCULA | B3: II-3.2.1 | C3: II-3.2.4 | D3: =IF('II-3.2.1'!D10 = 'II-3.2.4'!D11, "OK", "INCONSISTENCIA") -> OK
A4: MATRÍCULA | B4: II-3.2.1 | C4: II-3.2.4 | D4: =IF('II-3.2.1'!E10 = 'II-3.2.4'!F11, "OK", "INCONSISTENCIA") -> OK
A5: MATRÍCULA | B5: II-3.2.1 | C5: II-3.2.4 | D5: =IF('II-3.2.1'!C13 = 'II-3.2.4'!C11, "OK", "INCONSISTENCIA") -> OK
A6: MATRÍCULA | B6: II-3.2.1 | C6: II-3.2.4 | D6: =IF('II-3.2.1'!D13 = 'II-3.2.4'!E11, "OK", "INCONSISTENCIA") -> OK
A7: MATRÍCULA | B7: II-3.2.1 | C7: II-3.2.4 | D7: =IF('II-3.2.1'!E13 = 'II-3.2.4'!G11, "OK", "INCONSISTENCIA") -> OK
A8: MATRÍCULA | B8: II-3.2.2 | C8: II-3.2.5 | D8: =IF('II-3.2.2'!C14='II-3.2.5 '!F9, "OK", "INCONSISTENCIA") -> OK
A9: MATRÍCULA | B9: II-3.2.2 | C9: II-3.2.5 | D9: =IF('II-3.2.2'!F14='II-3.2.5 '!C9, "OK", "INCONSISTENCIA") -> OK
A10: MATRÍCULA | B10: II-3.2.2 | C10: II-3.2.5 | D10: =IF('II-3.2.2'!I14='II-3.2.5 '!D9, "OK", "INCONSISTENCIA") -> OK
A11: MATRÍCULA | B11: II-3.2.2 | C11: II-3.2.5 | D11: =IF('II-3.2.2'!L14='II-3.2.5 '!E9, "OK", "INCONSISTENCIA") -> OK
A12: MATRÍCULA | B12: II-3.2.5 | C12: II-3.2.6 | D12: =IF('II-3.2.5 '!C9='II-3.2.6 '!E10, "OK", "INCONSISTENCIA") -> OK
A13: MATRÍCULA | B13: II-3.2.5 | C13: II-3.2.6 | D13: =IF('II-3.2.5 '!D9='II-3.2.6 '!C10, "OK", "INCONSISTENCIA") -> OK
A14: MATRÍCULA | B14: II-3.2.5 | C14: II-3.2.6 | D14: =IF('II-3.2.5 '!E9='II-3.2.6 '!D10, "OK", "INCONSISTENCIA") -> OK
A15: MATRÍCULA | B15: II-3.2.5 | C15: II-3.2.6 | D15: =IF('II-3.2.5 '!F9='II-3.2.6 '!F10, "OK", "INCONSISTENCIA") -> OK

Sheet II-3.1.1
A1: CONSEJO DE EDUCACIÓN INICIAL Y PRIMARIA (CEIP), | J1: ESTABLECIMIENTOS
A2: CONSEJO DE EDUCACIÓN SECUNDARIA (CES) Y CONSEJO DE EDUCACIÓN TÉCNICO PROFESIONAL (UTU)
A4: Cuadro Nº II-3.1.1
A6: ESTABLECIMIENTOS DE EDUCACIÓN MEDIA BÁSICA POR MODALIDAD Y FORMA DE ADMINISTRACIÓN SEGÚN DEPARTAMENTO. AÑO 2013.
A7: DEPARTAMENTO | D7: MODALIDAD
B8: TOTAL GENERAL | D8: CES | K8: CEIP | L8: CETP
D9: FORMA DE ADMINISTRACIÓN
C10: TOTAL LICEOS PÚBLICOS | D10: LICEOS PÚBLICOS | H10: TOTAL LICEOS PRIVADOS | I10: Liceos Privados | K10: Escuelas con Ciclo Básico Rural | L10: Escuelas de CBT y Técnica.
D12: Diurnos Oficiales | F12: Extra Edad Oficiales (Nocturno Y Diurno)
D15: Ciclo Básico | E15: C.Básico y Bachillerato | F15: Ciclo Básico | G15: C.Básico y Bachillerato | I15: Ciclo Básico | J15: C.Básico y Bachillerato
A16: TOTAL | B16: =SUM(C16+H16) -> 501 | C16: =SUM(C17,C18) -> 324 | D16: =D17+D18 -> 102 | E16: 153 | F16: 7 | G16: 62 | H16: =SUM(I16:J16) -> 177 | I16: 19 | J16: 158 | K16: 61 | L16: 138
A17: MONTEVIDEO | B17: =SUM(C17+H17) -> 169 | C17: =SUM(D17:G17) -> 72 | D17: 39 | E17: 17 | F17: 1 | G17: 15 | H17: =SUM(I17:J17) -> 97 | I17: 6 | J17: 91 | K17: 1 | L17: 22
A18: RESTO DEL PAÍS | B18: =SUM(C18+H18) -> 332 | C18: =SUM(C19:C36) -> 252 | D18: =SUM(D19:D36) -> 63 | E18: =SUM(E19:E36) -> 136 | F18: 6 | G18: 47 | H18: =SUM(I18:J18) -> 80 | I18: =SUM(I19:I36) -> 13 | J18: =SUM(J19:J36) -> 67 | K18: 60 | L18: 116
A19: Artigas | B19: 11 | C19: =SUM(D19:G19) -> 10 | D19: 4 | E19: 5 | F19: 0 | G19: 1 | H19: 1 | I19: 1 | J19: 0 | K19: 3 | L19: 7
A20: Canelones | B20: 84 | C20: =SUM(D20:G20) -> 59 | D20: 15 | E20: 28 | F20: 3 | G20: 13 | H20: 25 | I20: 3 | J20: 22 | K20: 0 | L20: 27
A21: Cerro Largo | B21: 12 | C21: 10 | D21: 2 | E21: 6 | F21: 0 | G21: 2 | H21: 2 | I21: 0 | J21: 2 | K21: 4 | L21: 8
A22: Colonia | B22: 20 | C22: 18 | D22: 3 | E22: 9 | F22: 0 | G22: 6 | H22: 2 | I22: 1 | J22: 1 | K22: 6 | L22: 9
A23: Durazno | B23: 10 | C23: 8 | D23: 2 | E23: 5 | F23: 0 | G23: 1 | H23: 2 | I23: 0 | J23: 2 | K23: 1 | L23: 5
A24: Flores | B24: 7 | C24: 5 | D24: 1 | E24: 3 | F24: 0 | G24: 1 | H24: 2 | I24: 0 | J24: 2 | K24: 1 | L24: 2
A25: Florida | B25: 14 | C25: 12 | D25: 2 | E25: 9 | F25: 0 | G25: 1 | H25: 2 | I25: 0 | J25: 2 | K25: 2 | L25: 4
A26: Lavalleja | B26: 13 | C26: 10 | D26: 2 | E26: 6 | F26: 1 | G26: 1 | H26: 3 | I26: 2 | J26: 1 | K26: 2 | L26: 4
A27: Maldonado | B27: 27 | C27: 15 | D27: 5 | E27: 6 | F27: 0 | G27: 4 | H27: 12 | I27: 1 | J27: 11 | K27: 4 | L27: 4
A28: Paysandú | B28: 17 | C28: 13 | D28: 5 | E28: 7 | F28: 0 | G28: 1 | H28: 4 | I28: 0 | J28: 4 | K28: 10 | L28: 5
A29: Río Negro | B29: 11 | C29: 9 | D29: 3 | E29: 4 | F29: 0 | G29: 2 | H29: 2 | I29: 1 | J29: 1 | K29: 5 | L29: 3
A30: Rivera | B30: 20 | C30: 14 | D30: 5 | E30: 7 | F30: 2 | G30: 0 | H30: 6 | I30: 2 | J30: 4 | K30: 4 | L30: 9
A31: Rocha | B31: 15 | C31: 13 | D31: 3 | E31: 7 | F31: 0 | G31: 3 | H31: 2 | I31: 0 | J31: 2 | K31: 3 | L31: 5
A32: Salto | B32: 16 | C32: 11 | D32: 1 | E32: 9 | F32: 0 | G32: 1 | H32: 5 | I32: 0 | J32: 5 | K32: 1 | L32: 4
A33: San José | B33: 16 | C33: 13 | D33: 3 | E33: 5 | F33: 0 | G33: 5 | H33: 3 | I33: 1 | J33: 2 | K33: 7 | L33: 5
A34: Soriano | B34: 12 | C34: 11 | D34: 3 | E34: 5 | F34: 0 | G34: 3 | H34: 1 | I34: 0 | J34: 1 | K34: 1 | L34: 6
A35: Tacuarembó | B35: 17 | C35: 13 | D35: 3 | E35: 9 | F35: 0 | G35: 1 | H35: 4 | I35: 1 | J35: 3 | K35: 4 | L35: 6
A36: Treinta y Tres | B36: 10 | C36: 8 | D36: 1 | E36: 6 | F36: 0 | G36: 1 | H36: 2 | I36: 0 | J36: 2 | K36: 2 | L36: 3
A37: Fuente: D.E.- C.E.S .
A38: Notas: 1- Los establecimientos considerados en el Tipo de Educación Escuelas con Ciclo Básico Rural” ya fueron considerados en los totales de establecimientos de Educación Primaria por lo cual, si bien se presentan en la columna correspondiente, no participan en el “Total” del presente cuadro. 2- En un mismo establecimiento del CETP, coexisten ofertas educativas de diferentes niveles. Los establecimientos fueron contabilizados por el nivel educativo, por lo tanto cada dependencia física será contada tantas veces como niveles educativos contenga. Por ello el presente cuadro computa los establecimientos con cursos de Educación Media Básica, independientemente que en el mismo espacio locativo se dicten ofertas de otros niveles.

Sheet II-3.1.2
A1: CONSEJO DE EDUCACIÓN INICIAL Y PRIMARIA (CEIP), | G1: ESTABLECIMIENTOS
A2: CONSEJO DE EDUCACIÓN SECUNDARIA (CES) Y CONSEJO DE EDUCACIÓN TÉCNICO PROFESIONAL (UTU)
A3: Cuadro Nº II-3.1.2
A5: ESTABLECIMIENTOS FÍSICOS DE EDUCACIÓN MEDIA POR FORMA DE ADMINISTRACIÓN SEGÚN DEPARTAMENTO. AÑO 2013.
A6: DEPARTAMENTO | C6: MODALIDAD
B7: TOTAL GENERAL | C7: CES | E7: CEIP | F7: CETP
C9: LICEOS PÚBLICOS | D9: LICEOS PRIVADOS | E9: Escuelas con Ciclo Básico Rural | F9: Escuelas de CBT y Técnica.
A10: TOTAL | B10: =B11+B12 -> 797 | C10: =C11+C12 -> 296 | D10: =D11+D12 -> 188 | E10: =E11+E12 -> 61 | F10: =F11+F12 -> 252
A11: MONTEVIDEO | B11: =SUM(C11:F11) -> 240 | C11: 75 | D11: 106 | E11: 1 | F11: 58
A12: RESTO DEL PAÍS | B12: =SUM(C12:F12) -> 557 | C12: =SUM(C13:C30) -> 221 | D12: =SUM(D13:D30) -> 82 | E12: =SUM(E13:E30) -> 60 | F12: =SUM(F13:F30) -> 194
A13: Artigas | B13: =C13+D13+E13+F13 -> 27 | C13: 11 | D13: 1 | E13: 3 | F13: 12
A14: Canelones | B14: 121 | C14: 50 | D14: 26 | E14: 0 | F14: 45
A15: Cerro Largo | B15: 26 | C15: 8 | D15: 2 | E15: 4 | F15: 12
A16: Colonia | B16: 36 | C16: 14 | D16: 2 | E16: 6 | F16: 14
A17: Durazno | B17: 19 | C17: 8 | D17: 2 | E17: 1 | F17: 8
A18: Flores | B18: 11 | C18: 3 | D18: 2 | E18: 1 | F18: 5
A19: Florida | B19: 22 | C19: 12 | D19: 2 | E19: 2 | F19: 6
A20: Lavalleja | B20: 19 | C20: 8 | D20: 3 | E20: 2 | F20: 6
A21: Maldonado | B21: 35 | C21: 12 | D21: 13 | E21: 4 | F21: 6
A22: Paysandú | B22: 42 | C22: 14 | D22: 4 | E22: 10 | F22: 14
A23: Río Negro | B23: 19 | C23: 8 | D23: 2 | E23: 5 | F23: 4
A24: Rivera | B24: 33 | C24: 13 | D24: 6 | E24: 4 | F24: 10
A25: Rocha | B25: 25 | C25: 11 | D25: 2 | E25: 3 | F25: 9
A26: Salto | B26: 24 | C26: 11 | D26: 5 | E26: 1 | F26: 7
A27: San José | B27: 33 | C27: 9 | D27: 3 | E27: 7 | F27: 14
A28: Soriano | B28: 17 | C28: 9 | D28: 1 | E28: 1 | F28: 6
A29: Tacuarembó | B29: 32 | C29: 13 | D29: 4 | E29: 4 | F29: 11
A30: Treinta y Tres | B30: 16 | C30: 7 | D30: 2 | E30: 2 | F30: 5
A31: Fuente: C.E.S - CETP- CEIP
A32: Nota: 1- A diferencia del cuadro anterior II-3.1.1, el presente consolida la cantidad de establecimientos físicos con independencia del nivel educativo al cual son dirigidos los programas de estudios impartidos. En el caso del CETP debe considerarse que además de Educación Media se dictan programas dirigidos a Educación Terciaria No Universitaria y Educación de Jóvenes y Adultos.
A33: 2- Dentro de la cantidad de establecimientos declarados en el CETP se encuentran 126 reparticiones denominadas satélites en las cuales se imparten cursos administrados por el CETP, en establecimientos que no forman parte de los activos de ANEP.

Sheet II-3.2.1
A1: CONSEJO DE EDUCACIÓN SECUNDARIA | D1: ALUMNOS MATRICULADOS
A3: Cuadro Nº II-3.2.1
A5: ALUMNOS MATRICULADOS EN EDUCACION MEDIA BÁSICA GENERAL POR GRADO SEGÚN GRANDES ÁREAS Y FORMA DE ADMINISTRACIÓN. AÑO 2013.
A6: GRANDES ÁREAS Y FORMA DE ADMINISTRACIÓN | C6: GRADO
B7: TOTAL
C8: PRIMERO | D8: SEGUNDO | E8: TERCERO
A9: TOTAL DEL PAÍS | B9: =C9+D9+E9 -> 151201 | C9: =C14+C19 -> 55052 | D9: 48151 | E9: 47998
A10: MEDIA BÁSICA PÚBLICA | B10: 124749 | C10: 45755 | D10: 39376 | E10: 39618
A11: Diurna | B11: 111263 | C11: =C16+C21 -> 42725 | D11: 35512 | E11: 33026
A12: Nocturna | B12: 13486 | C12: =C17+C22 -> 3030 | D12: 3864 | E12: 6592
A13: MEDIA BÁSICA PRIVADA | B13: 26452 | C13: 9297 | D13: 8775 | E13: 8380
A14: TOTAL MONTEVIDEO | B14: 55292 | C14: =C15+C18 -> 20431 | D14: =D15+D18 -> 17549 | E14: =E15+E18 -> 17312
A15: MEDIA BÁSICA PÚBLICA | B15: 38460 | C15: =C16+C17 -> 14546 | D15: =D16+D17 -> 11931 | E15: =E16+E17 -> 11983
A16: Diurna | B16: 33785 | C16: 13565 | D16: 10577 | E16: 9643
A17: Nocturna | B17: 4675 | C17: 981 | D17: 1354 | E17: 2340
A18: MEDIA BÁSICA PRIVADA | B18: =C18+D18+E18 -> 16832 | C18: 5885 | D18: 5618 | E18: 5329
A19: TOTAL RESTO DEL PAÍS | B19: 95909 | C19: =C20+C23 -> 34621 | D19: =D20+D23 -> 30602 | E19: =E20+E23 -> 30686
A20: MEDIA BÁSICA PÚBLICA | B20: 86289 | C20: =C21+C22 -> 31209 | D20: =D21+D22 -> 27445 | E20: =E21+E22 -> 27635
A21: Diurna | B21: 77478 | C21: 29160 | D21: 24935 | E21: 23383
A22: Nocturna | B22: 8811 | C22: 2049 | D22: 2510 | E22: 4252
A23: MEDIA BÁSICA PRIVADA | B23: 9620 | C23: 3412 | D23: 3157 | E23: 3051
A24: Fuente: D.E. — C.E.S.
A25: Nota: La referencia "Privada", (incluye los Habilitados "Liceo Naval" y "Liceo Militar"), se corresponde con la de "Liceos Habilitados" presente en ediciones anteriores del Anuario Estadístico del MEC.

Sheet II-3.2.2
A1: CONSEJO DE EDUCACIÓN TÉCNICO PROFESIONAL (U.T.U.) | H1: ALUMNOS MATRICULADOS
A5: Cuadro II-3.2.2.
A6: ALUMNOS MATRICULADOS EN EL CETP EN EDUCACIÓN MEDIA BÁSICA TECNOLÓGICA POR TIPO DE CURSO SEGÚN GRANDES ÁREAS, DEPARTAMENTO Y SEXO .AÑO 2013
A9: GRANDES ÁREAS,DEPARTAMENTO Y SEXO | B9: TOTAL | D9: EDUCACIÓN MEDIA BÁSICA TECNOLÓGICA
C10: TOTAL | D10: Articulación Ed.Media Básica | F10: TOTAL | G10: C. B. T. Agrario | I10: TOTAL | J10: Ciclo Básico Tecnológico | L10: TOTAL | M10: Formación Profesional Básica 2007
D11: Sexo | G11: Sexo | J11: Sexo | M11: Sexo
D12: M | E12: F | G12: M | H12: F | J12: M | K12: F | M12: M | N12: F
A14: TOTAL | B14: =+C14+F14+I14+L14 -> 29074 | C14: =SUM(C15:C16) -> 954 | D14: =SUM(D15:D16) -> 406 | E14: =SUM(E15:E16) -> 548 | F14: =SUM(F15:F16) -> 1135 | G14: =SUM(G15:G16) -> 812 | H14: 323 | I14: 16787 | J14: 9963 | K14: 6824 | L14: 10198 | M14: =SUM(M15:M16) -> 6285 | N14: =SUM(N15:N16) -> 3913
A15: Montevideo | B15: =+C15+F15+I15+L15 -> 5117 | C15: =+D15+E15 -> 292 | D15: 155 | E15: 137 | F15: =+G15+H15 -> 0 | G15: 0 | H15: 0 | I15: =+J15+K15 -> 2329 | J15: 1398 | K15: 931 | L15: =+M15+N15 -> 2496 | M15: 1499 | N15: 997
A16: Resto del País | B16: =+C16+F16+I16+L16 -> 23957 | C16: =SUM(C17:C34) -> 662 | D16: 251 | E16: 411 | F16: =SUM(F17:F34) -> 1135 | G16: 812 | H16: 323 | I16: =SUM(I17:I34) -> 14458 | J16: 8565 | K16: 5893 | L16: =SUM(L17:L34) -> 7702 | M16: 4786 | N16: 2916
A17: Artigas | B17: =+C17+F17+I17+L17 -> 1442 | C17: =+D17+E17 -> 69 | D17: 29 | E17: 40 | F17: =+G17+H17 -> 0 | G17: 0 | H17: 0 | I17: =+J17+K17 -> 857 | J17: 517 | K17: 340 | L17: =+M17+N17 -> 516 | M17: 255 | N17: 261
A18: Canelones | B18: =+C18+F18+I18+L18 -> 5419 | C18: 173 | D18: 60 | E18: 113 | F18: 91 | G18: 56 | H18: 35 | I18: 2771 | J18: 1631 | K18: 1140 | L18: 2384 | M18: 1513 | N18: 871
A19: Cerro Largo | B19: 1557 | C19: 68 | D19: 23 | E19: 45 | F19: 59 | G19: 45 | H19: 14 | I19: 953 | J19: 572 | K19: 381 | L19: 477 | M19: 307 | N19: 170
A20: Colonia | B20: 1599 | C20: 74 | D20: 27 | E20: 47 | F20: 105 | G20: 76 | H20: 29 | I20: 1140 | J20: 712 | K20: 428 | L20: 280 | M20: 202 | N20: 78
A21: Durazno | B21: 1024 | C21: 0 | D21: 0 | E21: 0 | F21: 131 | G21: 77 | H21: 54 | I21: 665 | J21: 402 | K21: 263 | L21: 228 | M21: 120 | N21: 108
A22: Flores | B22: 283 | C22: 0 | D22: 0 | E22: 0 | F22: 0 | G22: 0 | H22: 0 | I22: 161 | J22: 97 | K22: 64 | L22: 122 | M22: 90 | N22: 32
A23: Florida | B23: 698 | C23: 57 | D23: 18 | E23: 39 | F23: 0 | G23: 0 | H23: 0 | I23: 352 | J23: 188 | K23: 164 | L23: 289 | M23: 177 | N23: 112
A24: Lavalleja | B24: 513 | C24: 0 | D24: 0 | E24: 0 | F24: 41 | G24: 30 | H24: 11 | I24: 254 | J24: 143 | K24: 111 | L24: 218 | M24: 127 | N24: 91
A25: Maldonado | B25: 1476 | C25: 0 | D25: 0 | E25: 0 | F25: 0 | G25: 0 | H25: 0 | I25: 1101 | J25: 659 | K25: 442 | L25: 375 | M25: 225 | N25: 150
A26: Paysandú | B26: 1380 | C26: 0 | D26: 0 | E26: 0 | F26: 253 | G26: 180 | H26: 73 | I26: 675 | J26: 425 | K26: 250 | L26: 452 | M26: 274 | N26: 178
A27: Rio Negro | B27: 683 | C27: 0 | D27: 0 | E27: 0 | F27: 0 | G27: 0 | H27: 0 | I27: 475 | J27: 304 | K27: 171 | L27: 208 | M27: 140 | N27: 68
A28: Rivera | B28: 885 | C28: 24 | D28: 4 | E28: 20 | F28: 75 | G28: 61 | H28: 14 | I28: 517 | J28: 283 | K28: 234 | L28: 269 | M28: 150 | N28: 119
A29: Rocha | B29: 909 | C29: 30 | D29: 20 | E29: 10 | F29: 81 | G29: 60 | H29: 21 | I29: 455 | J29: 273 | K29: 182 | L29: 343 | M29: 230 | N29: 113
A30: Salto | B30: 1248 | C30: 26 | D30: 15 | E30: 11 | F30: 72 | G30: 53 | H30: 19 | I30: 844 | J30: 463 | K30: 381 | L30: 306 | M30: 208 | N30: 98
A31: San José | B31: 1582 | C31: 81 | D31: 31 | E31: 50 | F31: 62 | G31: 50 | H31: 12 | I31: 1218 | J31: 661 | K31: 557 | L31: 221 | M31: 141 | N31: 80
A32: Soriano | B32: 1596 | C32: 27 | D32: 9 | E32: 18 | F32: 105 | G32: 84 | H32: 21 | I32: 1062 | J32: 647 | K32: 415 | L32: 402 | M32: 239 | N32: 163
A33: Tacuarembó | B33: 1059 | C33: 33 | D33: 15 | E33: 18 | F33: 0 | G33: 0 | H33: 0 | I33: 522 | J33: 316 | K33: 206 | L33: 504 | M33: 312 | N33: 192
A34: Treinta y Tres | B34: 604 | C34: 0 | D34: 0 | E34: 0 | F34: 60 | G34: 40 | H34: 20 | I34: 436 | J34: 272 | K34: 164 | L34: 108 | M34: 76 | N34: 32
A35: Fuente: Procesamiento propio en base a datos proporcionados por el D.E. - CETP (U.T.U) .

Sheet II-3.2.3
A1: CONSEJO DE EDUCACIÓN PRIMARIA | I1: ALUMNOS MATRICULADOS
A3: Cuadro Nº II-3.2.3
A6: ALUMNOS MATRICULADOS EN SÉPTIMO, OCTAVO Y NOVENO GRADO DE CICLO BÁSICO RURAL POR SEXO SEGÚN DEPARTAMENTO AÑO 2013.
A7: DEPARTAMENTO | B7: TOTAL | E7: CICLO BÁSICO RURAL
E8: GRADO
E9: SÉPTIMO | H9: OCTAVO | K9: NOVENO
E10: SEXO | H10: SEXO | K10: SEXO
B11: T | C11: M | D11: F | E11: T | F11: M | G11: F | H11: T | I11: M | J11: F | K11: T | L11: M | M11: F
A13: TOTAL | B13: =E13+H13+K13 -> 1812 | C13: 933 | D13: 879 | E13: =F13+G13 -> 686 | F13: =F14+F15 -> 377 | G13: =G14+G15 -> 309 | H13: =I13+J13 -> 600 | I13: =I14+I15 -> 298 | J13: =J14+J15 -> 302 | K13: =L13+M13 -> 526 | L13: =L14+L15 -> 258 | M13: =M14+M15 -> 268
A14: MONTEVIDEO | B14: 64 | C14: 31 | D14: 33 | E14: 23 | F14: 11 | G14: 12 | H14: 20 | I14: 10 | J14: 10 | K14: 21 | L14: 10 | M14: 11
A15: RESTO DEL PAÍS | B15: 1748 | C15: 902 | D15: 846 | E15: =F15+G15 -> 663 | F15: =SUM(F16:F33) -> 366 | G15: =SUM(G16:G33) -> 297 | H15: =I15+J15 -> 580 | I15: =SUM(I16:I33) -> 288 | J15: =SUM(J16:J33) -> 292 | K15: =L15+M15 -> 505 | L15: =SUM(L16:L33) -> 248 | M15: =SUM(M16:M33) -> 257
A16: Artigas | B16: 114 | C16: 55 | D16: 59 | E16: 40 | F16: 19 | G16: 21 | H16: 48 | I16: 23 | J16: 25 | K16: 26 | L16: 13 | M16: 13
A17: Canelones | B17: =E17+H17+K17 -> 0 | C17: =F17+I17+L17 -> 0 | D17: =G17+J17+M17 -> 0 | E17: 0 | F17: 0 | G17: 0 | H17: 0 | I17: 0 | J17: 0 | K17: 0 | L17: 0 | M17: 0
A18: Cerro Largo | B18: 100 | C18: 52 | D18: 48 | E18: 45 | F18: 31 | G18: 14 | H18: 32 | I18: 10 | J18: 22 | K18: 23 | L18: 11 | M18: 12
A19: Colonia | B19: 182 | C19: 101 | D19: 81 | E19: 63 | F19: 39 | G19: 24 | H19: 72 | I19: 40 | J19: 32 | K19: 47 | L19: 22 | M19: 25
A20: Durazno | B20: 28 | C20: 14 | D20: 14 | E20: 9 | F20: 4 | G20: 5 | H20: 7 | I20: 4 | J20: 3 | K20: 12 | L20: 6 | M20: 6
A21: Flores | B21: 12 | C21: 9 | D21: 3 | E21: 4 | F21: 4 | G21: 0 | H21: 3 | I21: 2 | J21: 1 | K21: 5 | L21: 3 | M21: 2
A22: Florida | B22: 65 | C22: 37 | D22: 28 | E22: 26 | F22: 19 | G22: 7 | H22: 22 | I22: 9 | J22: 13 | K22: 17 | L22: 9 | M22: 8
A23: Lavalleja | B23: 75 | C23: 29 | D23: 46 | E23: 33 | F23: 16 | G23: 17 | H23: 22 | I23: 9 | J23: 13 | K23: 20 | L23: 4 | M23: 16
A24: Maldonado | B24: 101 | C24: 63 | D24: 38 | E24: 44 | F24: 26 | G24: 18 | H24: 23 | I24: 12 | J24: 11 | K24: 34 | L24: 25 | M24: 9
A25: Paysandú | B25: 298 | C25: 154 | D25: 144 | E25: 111 | F25: 53 | G25: 58 | H25: 103 | I25: 57 | J25: 46 | K25: 84 | L25: 44 | M25: 40
A26: Río Negro | B26: 105 | C26: 38 | D26: 67 | E26: 43 | F26: 16 | G26: 27 | H26: 30 | I26: 12 | J26: 18 | K26: 32 | L26: 10 | M26: 22
A27: Rivera | B27: 127 | C27: 64 | D27: 63 | E27: 39 | F27: 22 | G27: 17 | H27: 41 | I27: 21 | J27: 20 | K27: 47 | L27: 21 | M27: 26
A28: Rocha | B28: 77 | C28: 40 | D28: 37 | E28: 29 | F28: 14 | G28: 15 | H28: 24 | I28: 12 | J28: 12 | K28: 24 | L28: 14 | M28: 10
A29: Salto | B29: 24 | C29: 16 | D29: 8 | E29: 10 | F29: 8 | G29: 2 | H29: 8 | I29: 4 | J29: 4 | K29: 6 | L29: 4 | M29: 2
A30: San José | B30: 189 | C30: 106 | D30: 83 | E30: 71 | F30: 43 | G30: 28 | H30: 62 | I30: 33 | J30: 29 | K30: 56 | L30: 30 | M30: 26
A31: Soriano | B31: 51 | C31: 18 | D31: 33 | E31: 24 | F31: 11 | G31: 13 | H31: 15 | I31: 5 | J31: 10 | K31: 12 | L31: 2 | M31: 10
A32: Tacuarembó | B32: 139 | C32: 76 | D32: 63 | E32: 52 | F32: 30 | G32: 22 | H32: 43 | I32: 24 | J32: 19 | K32: 44 | L32: 22 | M32: 22
A33: Treinta y Tres | B33: 61 | C33: 30 | D33: 31 | E33: 20 | F33: 11 | G33: 9 | H33: 25 | I33: 11 | J33: 14 | K33: 16 | L33: 8 | M33: 8
A34: Fuente: DE — CES

Sheet II-3.2.4
A1: CONSEJO DE EDUCACIÓN SECUNDARIA | E1: ALUMNOS MATRICULADOS
A3: Cuadro Nº II-3.2.4
A5: ALUMNOS MATRICULADOS DE EDUCACIÓN MEDIA BÁSICA GENERAL POR GRADO Y FORMA DE ADMINISTRACIÓN SEGÚN DEPARTAMENTO AÑO 2013
A7: DEPARTAMENTO | B7: GRADO
B8: PRIMERO | D8: SEGUNDO | F8: TERCERO
B9: FORMA DE ADMINISTRACIÓN
B10: Públicos | C10: Privados | D10: Públicos | E10: Privados | F10: Públicos | G10: Privados
A11: TOTAL | B11: =B12+B13 -> 45755 | C11: 9297 | D11: 39376 | E11: 8775 | F11: 39618 | G11: 8380
A12: MONTEVIDEO | B12: 14546 | C12: 5885 | D12: 11931 | E12: 5618 | F12: 11983 | G12: 5329
A13: RESTO DEL PAÍS | B13: =SUM(B14:B31) -> 31209 | C13: 3412 | D13: 27445 | E13: 3157 | F13: 27635 | G13: 3051
A14: Artigas | B14: 1193 | C14: 18 | D14: 1217 | E14: 23 | F14: 1143 | G14: 17
A15: Canelones | B15: 8103 | C15: 1291 | D15: 6932 | E15: 1105 | F15: 7058 | G15: 1142
A16: Cerro Largo | B16: 1237 | C16: 96 | D16: 1286 | E16: 81 | F16: 1336 | G16: 75
A17: Colonia | B17: 1596 | C17: 26 | D17: 1518 | E17: 21 | F17: 1567 | G17: 40
A18: Durazno | B18: 900 | C18: 77 | D18: 738 | E18: 94 | F18: 723 | G18: 76
A19: Flores | B19: 389 | C19: 48 | D19: 313 | E19: 62 | F19: 305 | G19: 40
A20: Florida | B20: 884 | C20: 102 | D20: 795 | E20: 71 | F20: 861 | G20: 60
A21: Lavalleja | B21: 957 | C21: 57 | D21: 813 | E21: 50 | F21: 799 | G21: 59
A22: Maldonado | B22: 2357 | C22: 476 | D22: 2105 | E22: 479 | F22: 2059 | G22: 471
A23: Paysandú | B23: 1797 | C23: 235 | D23: 1453 | E23: 210 | F23: 1474 | G23: 217
A24: Río Negro | B24: 898 | C24: 59 | D24: 880 | E24: 46 | F24: 821 | G24: 52
A25: Rivera | B25: 2318 | C25: 168 | D25: 1727 | E25: 151 | F25: 1759 | G25: 132
A26: Rocha | B26: 1136 | C26: 76 | D26: 1079 | E26: 79 | F26: 1054 | G26: 63
A27: Salto | B27: 2121 | C27: 238 | D27: 1938 | E27: 240 | F27: 1853 | G27: 196
A28: San José | B28: 1529 | C28: 149 | D28: 1246 | E28: 121 | F28: 1380 | G28: 103
A29: Soriano | B29: 1220 | C29: 73 | D29: 1102 | E29: 70 | F29: 1193 | G29: 86
A30: Tacuarembó | B30: 1734 | C30: 127 | D30: 1544 | E30: 157 | F30: 1460 | G30: 145
A31: Treinta y Tres | B31: 840 | C31: 96 | D31: 759 | E31: 97 | F31: 790 | G31: 77
A32: Fuente: DE — CES
A33: Nota: Incluye la matrícula correspondiente a los liceos de cuarto turno (nocturnos).

Sheet II-3.2.5
A1: CONSEJO DE EDUCACIÓN TÉCNICO PROFESIONAL (U.T.U.) | E1: ALUMNOS MATRICULADOS
A3: Cuadro Nº II-3.2.5
A5: ALUMNOS MATRICULADOS EN EDUCACIÓN TÉCNICA MEDIA BÁSICA POR TIPO DE CURSO SEGÚN EDAD. AÑO 2013
A7: EDAD | B7: TOTAL | C7: TIPO DE CURSO
C8: C.T.B Agrario | D8: Ciclo Básico Tecnológico | E8: Formación Profesional Básica Plan 2007 | F8: Articulación Educación Media Básica
A9: TOTAL | B9: =SUM(B10:B21) -> 29074 | C9: =SUM(C10:C21) -> 1135 | D9: =SUM(D10:D21) -> 16787 | E9: =SUM(E10:E21) -> 10198 | F9: =SUM(F10:F21) -> 954
A10: 11 y 12 años | B10: =SUM(C10:F10) -> 3661 | C10: 268 | D10: 3382 | E10: 7 | F10: 4
A11: 13 años | B11: =SUM(C11:F11) -> 5460 | C11: 383 | D11: 5041 | E11: 29 | F11: 7
A12: 14 años | B12: 5674 | C12: 332 | D12: 4687 | E12: 642 | F12: 13
A13: 15 años | B13: 4833 | C13: 110 | D13: 2277 | E13: 2427 | F13: 19
A14: 16 años | B14: 4019 | C14: 32 | D14: 1016 | E14: 2951 | F14: 20
A15: 17 años | B15: 2585 | C15: 6 | D15: 294 | E15: 2249 | F15: 36
A16: 18 años | B16: 981 | C16: 3 | D16: 50 | E16: 871 | F16: 57
